Workbook

Sheet INDEX for Book
A1: Worksheet List | B1: Link | D1: Worksheet List | E1: Link | G1: Worksheet List | H1: Link | J1: Worksheet List | K1: Link | M1: Worksheet List | N1: Link | P1: Worksheet List | Q1: Link | S1: Worksheet List | T1: Link
A2: Chapter 1 | D2: Chapter 5 | G2: Functions(1):- | H2: Click here! | J2: AVE:- | K2: Click here! | M2: ST(2):- | N2: Click here! | P2: AF(4):- | Q2: Click here! | S2: Chapter 8
A3: Setup:- | B3: Click here! | D3: Formula(1):- | E3: Click here! | G3: Functions(2):- | H3: Click here! | J3: MED:- | K3: Click here! | M3: ST PT C:- | N3: Click here! | P3: AF(5):- | Q3: Click here! | S3: CF(1):- | T3: Click here!
A4: Chapter 2 | D4: Formula(2):- | E4: Click here! | G4: SUMPRODUCT:- | H4: Click here! | J4: MODE:- | K4: Click here! | M4: PTData:- | N4: Click here! | P4: AF(6):- | Q4: Click here! | S4: CF(2):- | T4: Click here!
A5: KeyB:- | B5: Click here! | D5: MathOperators:- | E5: Click here! | G5: SP(2):- | H5: Click here! | J5: RANK:- | K5: Click here! | M5: FormulaS:- | N5: Click here! | P5: AF(7):- | Q5: Click here! | S5: Logical:- | T5: Click here!
A6: KeyB(2):- | B6: Click here! | D6: OrderOfOperations:- | E6: Click here! | G6: IF(1):- | H6: Click here! | J6: GS:- | K6: Click here! | M6: PTData (2):- | N6: Click here! | P6: Extract:- | Q6: Click here! | S6: CF(3):- | T6: Click here!
A7: KeyB(3):- | B7: Click here! | D7: OOO:- | E7: Click here! | G7: IF(2):- | H7: Click here! | J7: Array(1):- | K7: Click here! | M7: PTData (3):- | N7: Click here! | P7: AF(8):- | Q7: Click here! | S7: CF(4):- | T7: Click here!
A8: Chapter 3 | D8: 3WaysToGetCR:- | E8: Click here! | G8: IF(3):- | H8: Click here! | J8: Array(2):- | K8: Click here! | M8: PTData (4):- | N8: Click here! | P8: TTC(1):- | Q8: Click here! | S8: CF(5):- | T8: Click here!
A9: SUMIFS:- | B9: Click here! | D9: CR(1):- | E9: Click here! | G9: IF(4):- | H9: Click here! | J9: Array(3):- | K9: Click here! | M9: Visualize:- | N9: Click here! | P9: TTC2:- | Q9: Click here! | S9: CF(6):- | T9: Click here!
A10: PT:- | B10: Click here! | D10: CR(2):- | E10: Click here! | G10: IF(5):- | H10: Click here! | J10: Array(4):- | K10: Click here! | M10: PT(5):- | N10: Click here! | P10: ID(1):- | Q10: Click here! | S10: F&R&GotTo:- | T10: Click here!
A11: Tables:- | B11: Click here! | D11: CR(3):- | E11: Click here! | G11: IF(6):- | H11: Click here! | J11: Errors:- | K11: Click here! | M11: PTData (5):- | N11: Click here! | P11: ID(2):- | Q11: Click here!
A12: Decimals:- | B12: Click here! | D12: CR(4):- | E12: Click here! | G12: IF(7):- | H12: Click here! | J12: Chapter 6 | M12: PTData (6):- | N12: Click here! | P12: ID(3):- | Q12: Click here!
A13: DateMath:- | B13: Click here! | D13: CR(5):- | E13: Click here! | G13: VLOOKUP(1):- | H13: Click here! | J13: S(1):- | K13: Click here! | M13: PTData (7):- | N13: Click here! | P13: Ct(1):- | Q13: Click here!
A14: TimeMath:- | B14: Click here! | D14: CR(6):- | E14: Click here! | G14: VLOOKUP(2):- | H14: Click here! | J14: S(2):- | K14: Click here! | M14: PTData (8):- | N14: Click here! | P14: Ct(3):- | Q14: Click here!
A15: Percentage(1):- | B15: Click here! | D15: CR(7):- | E15: Click here! | G15: V(3):- | H15: Click here! | J15: S(3):- | K15: Click here! | M15: PT(11):- | N15: Click here! | P15: Chapter 7
A16: Percentage(2):- | B16: Click here! | D16: Assumption:- | E16: Click here! | G16: V(4):- | H16: Click here! | J16: S(4):- | K16: Click here! | M16: PTData (9):- | N16: Click here! | P16: C(1):- | Q16: Click here!
A17: Align(1):- | B17: Click here! | D17: Scenarios:- | E17: Click here! | G17: V(5):- | H17: Click here! | J17: S(5):- | K17: Click here! | M17: Filter:- | N17: Click here! | P17: C(2):- | Q17: Click here!
A18: Align(2):- | B18: Click here! | D18: CR(8):- | E18: Click here! | G18: CTable:- | H18: Click here! | J18: S(6):- | K18: Click here! | M18: PFilter:- | N18: Click here! | P18: C(3):- | Q18: Click here!
A19: Align(3):- | B19: Click here! | D19: CAR:- | E19: Click here! | G19: 2wl:- | H19: Click here! | J19: S(7):- | K19: Click here! | M19: FilterC:- | N19: Click here! | P19: C(4):- | Q19: Click here!
A20: Chapter 4 | D20: CR(9):- | E20: Click here! | G20: MasterList:- | H20: Click here! | J20: S(8):- | K20: Click here! | M20: FilterT:- | N20: Click here! | P20: C(5):- | Q20: Click here!
A21: Store 1:- | B21: Click here! | D21: Corp:- | E21: Click here! | G21: I(1):- | H21: Click here! | J21: S(9):- | K21: Click here! | M21: FilterD:- | N21: Click here! | P21: C(6):- | Q21: Click here!
A22: Store 2:- | B22: Click here! | D22: Oak:- | E22: Click here! | G22: I(2):- | H22: Click here! | J22: S(10):- | K22: Click here! | M22: FilterSales:- | N22: Click here! | P22: C(7):- | Q22: Click here!
A23: Jones - Amortization Table:- | B23: Click here! | D23: Sea:- | E23: Click here! | G23: I(3):- | H23: Click here! | J23: S(11):- | K23: Click here! | M23: AF(1):- | N23: Click here! | P23: C(8):- | Q23: Click here!
A24: Styles(1):- | B24: Click here! | D24: Tac:- | E24: Click here! | G24: ROUND:- | H24: Click here! | J24: ST(1):- | K24: Click here! | M24: AF(2):- | N24: Click here! | P24: C(9):- | Q24: Click here!
A25: Styles(2):- | B25: Click here! | D25: Ranges:- | E25: Click here! | G25: ROUND information:- | H25: Click here! | J25: STpaste:- | K25: Click here! | M25: AF(3):- | N25: Click here!

Sheet Setup

Sheet CopiedTable
A1: January Sales | B1: Sales Rep1 | C1: Sales Rep2 | D1: Sales Rep3 | E1: Sales Rep4 | F1: Totals
A2: Pro1 | B2: 415 | C2: 244 | D2: 248 | E2: 417 | F2: =SUM(B2:E2) -> 1324
A3: Pro2 | B3: 279 | C3: 223 | D3: 321 | E3: 191 | F3: 1014
A4: Pro3 | B4: 379 | C4: 382 | D4: 215 | E4: 304 | F4: 1280
A5: Pro4 | B5: 181 | C5: 227 | D5: 150 | E5: 260 | F5: 818
A6: Pro5 | B6: 290 | C6: 440 | D6: 212 | E6: 368 | F6: 1310
A7: Totals | B7: =SUM(B2:B6) -> 1544 | C7: =SUM(C2:C6) -> 1516 | D7: =SUM(D2:D6) -> 1146 | E7: =SUM(E2:E6) -> 1540 | F7: 5746
A9: January Sales | B9: Pro1 | C9: Pro2 | D9: Pro3 | E9: Pro4 | F9: Pro5 | G9: Totals
A10: Sales Rep1 | B10: 415 | C10: 279 | D10: 379 | E10: 181 | F10: 290 | G10: =SUM(B10:F10) -> 1544
A11: Sales Rep2 | B11: 244 | C11: 223 | D11: 382 | E11: 227 | F11: 440 | G11: =SUM(B11:F11) -> 1516
A12: Sales Rep3 | B12: 248 | C12: 321 | D12: 215 | E12: 150 | F12: 212 | G12: =SUM(B12:F12) -> 1146
A13: Sales Rep4 | B13: 417 | C13: 191 | D13: 304 | E13: 260 | F13: 368 | G13: =SUM(B13:F13) -> 1540
A14: Totals | B14: =SUM(B10:B13) -> 1324 | C14: 1014 | D14: 1280 | E14: 818 | F14: 1310 | G14: 5746
A16: Totals | B16: 1544 | C16: 1516 | D16: 1146 | E16: 1540

Sheet KeyB
A1: January Sales | B1: Sales Rep1 | C1: Sales Rep2 | D1: Sales Rep3 | E1: Sales Rep4 | F1: Totals
A2: Pro1 | B2: 415 | C2: 244 | D2: 248 | E2: 417 | F2: =SUM(B2:E2) -> 1324
A3: Pro2 | B3: 279 | C3: 223 | D3: 321 | E3: 191 | F3: 1014
A4: Pro3 | B4: 379 | C4: 382 | D4: 215 | E4: 304 | F4: 1280
A5: Pro4 | B5: 181 | C5: 227 | D5: 150 | E5: 260 | F5: 818
A6: Pro5 | B6: 290 | C6: 440 | D6: 212 | E6: 368 | F6: 1310
A7: Totals | B7: =SUM(B2:B6) -> 1544 | C7: =SUM(C2:C6) -> 1516 | D7: =SUM(D2:D6) -> 1146 | E7: =SUM(E2:E6) -> 1540 | F7: 5746
C10: Dec Total
A11: Dec Sales | C11: =SUM(A12:A77) -> 44164
A12: 563
A13: 719
A14: 477
A15: 601
A16: 773
A17: 926
A18: 373
A19: 537
A20: 387
A21: 657
A22: 811
A23: 704
A24: 353
A25: 875
A26: 866
A27: 989
A28: 907
A29: 771
A30: 581
A31: 308
A32: 370
A33: 950
A34: 715
A35: 847
A36: 930
A37: 755
A38: 861
A39: 477
A40: 707
A41: 504
A42: 670
A43: 540
A44: 735
A45: 413
A46: 925
A47: 650
A48: 725
A49: 569
A50: 413
A51: 441
A52: 686
A53: 519
A54: 429
A55: 750
A56: 581
A57: 696
A58: 476
A59: 450
A60: 794
A61: 932
A62: 927
A63: 446
A64: 568
A65: 861
A66: 477
A67: 605
A68: 499
A69: 395
A70: 860
A71: 872
A72: 967
A73: 860
A74: 321
A75: 925
A76: 914
A77: 979

Sheet KeyB(2)
A1: Sales | E1: Jan | F1: Feb | G1: Mar | H1: Apr
A2: 10 | D2: Revenue | E2: 10000 | F2: 20000 | G2: 18500 | H2: 21550
A3: 22 | D3: Expenses | E3: 6600 | F3: 13800 | G3: 12025 | H3: 15947
A4: 50 | D4: Net Income | E4: =E2-E3 -> 3400 | F4: =F2-F3 -> 6200 | G4: =G2-G3 -> 6475 | H4: =H2-H3 -> 5603
A5: 35
A6: 14
A7: 52
A8: =SUM(A2:A7) -> 183

Sheet KeyB(3)
A1: Paste Formulas Only | B1: = | C1: Ctrl + V, tap Ctrl, tap F
A2: Paste Formulas and Number Formatting | B2: = | C2: Ctrl + V, tap Ctrl, tap O
A3: Keep Source Formatting | B3: = | C3: Ctrl + V, tap Ctrl, tap K
A4: Do Not Paste Borders | B4: = | C4: Ctrl + V, tap Ctrl, tap B
A5: Keep Source Column Widths | B5: = | C5: Ctrl + V, tap Ctrl, tap W
A6: Transpose Columns and Rows | B6: = | C6: Ctrl + V, tap Ctrl, tap T
A7: Paste Values Only (Convert Formulas to Values) | B7: = | C7: Ctrl + V, tap Ctrl, tap V
A8: Paste Values and Number Formatting | B8: = | C8: Ctrl + V, tap Ctrl, tap A
A9: Paste Values and Source Formatting | B9: = | C9: Ctrl + V, tap Ctrl, tap E
A10: Paste Formatting | B10: = | C10: Ctrl + V, tap Ctrl, tap R
A11: Paste Link | B11: = | C11: Ctrl + V, tap Ctrl, tap N
A12: Paste Picture (Converts Cells to an actual picture) | B12: = | C12: Ctrl + V, tap Ctrl, tap U
A13: Paste Linked Picture | B13: = | C13: Ctrl + V, tap Ctrl, tap I
A15: Paste Values Only (Convert Formulas to Values) | B15: = | C15: Right-click key, tap V
A16: Paste Formulas Only | B16: = | C16: Right-click key, tap F, Enter
A17: Transpose Columns and Rows | B17: = | C17: Right-click key, tap T, Enter
A18: Paste Formatting Only | B18: = | C18: Right-click key, tap R
A19: Paste Link | B19: = | C19: Right-click key, tap N, Enter
A21: Navigation Keyboard Shortcuts
A22: Jump to the bottom of the column of data | B22: = | C22: Ctrl + Down Arrow
A23: Jump to the top of the column of data | B23: = | C23: Ctrl + Up Arrow
A24: Jump to the left end of a row of data | B24: = | C24: Ctrl + Left Arrow
A25: Jump to the right end of a row of data | B25: = | C25: Ctrl + Right Arrow
A26: Jump to cell A1 | B26: = | C26: Ctrl + Home
A27: Jump to last cell used | B27: = | C27: Ctrl + End
A29: Highlighting or Selection Keyboard Shortcuts
A30: Highlight or select the column of data below the selected cell | B30: = | C30: Ctrl + Shift + Down Arrow
A31: Highlight or select the column of data above the selected cell | B31: = | C31: Ctrl + Shift + Up Arrow
A32: Highlight or select the row of data to the left of the selected cell | B32: = | C32: Ctrl + Shift + Left Arrow
A33: Highlight or select the row of data to the right of the selected cell | B33: = | C33: Ctrl + Shift + Right Arrow
A34: Highlight Current Region | B34: = | C34: Ctrl + * (on Number Pad)

Sheet SUMIFS
A1: Date | B1: SalesRep | C1: UnitsSold
A2: 2010-08-09 | B2: Sioux | C2: 10
A3: 2010-08-09 | B3: Tina | C3: 9
A4: 2010-08-10 | B4: Sioux | C4: 4
A5: 2010-08-10 | B5: Tina | C5: 8
A6: 2010-08-11 | B6: Sioux | C6: 1
A7: 2010-08-11 | B7: Tina | C7: 3
A9: Sales Period | B9: SalesRep | C9: UnitsSold
A10: Week | B10: Tina | C10: =SUMIFS(C2:C7,B2:B7,B10) -> 20
A12: Weekly Quota = | B12: 20

Sheet PT2
A3: Row Labels | B3: Sum of UnitsSold
A4: Chin | B4: 24
A5: Sioux | B5: 25
A6: Tina | B6: 31
A7: Grand Total | B7: 80

Sheet PT
A1: Date | B1: SalesRep | C1: UnitsSold | F1: SalesRep | G1: Sum of UnitsSold
A2: 2010-08-09 | B2: Sioux | C2: 10 | F2: Chin | G2: 24
A3: 2010-08-09 | B3: Tina | C3: 9 | F3: Sioux | G3: 25
A4: 2010-08-10 | B4: Sioux | C4: 4 | F4: Tina | G4: 31
A5: 2010-08-10 | B5: Tina | C5: 8 | F5: Grand Total | G5: 80
A6: 2010-08-11 | B6: Sioux | C6: 1
A7: 2010-08-11 | B7: Tina | C7: 3
A8: 2010-08-12 | B8: Chin | C8: 4
A9: 2010-08-12 | B9: Sioux | C9: 5
A10: 2010-08-12 | B10: Tina | C10: 3
A11: 2010-08-13 | B11: Chin | C11: 6
A12: 2010-08-13 | B12: Sioux | C12: 5
A13: 2010-08-13 | B13: Tina | C13: 8
A14: 2010-08-14 | B14: Chin | C14: 14
B26: SalesRep | C26: Total
B27: Sioux | C27: =SUMIFS($C$2:$C$14,$B$2:$B$14,B27) -> 25
B28: Tina | C28: 31
B29: Chin | C29: 24

Sheet Tables
A1: Date | B1: SalesRep | C1: ProductSold | D1: UnitsSold | E1: Total Sales | G1: Criteria | H1: Tina | I1: Sales | J1: =SUMIFS(E2:E19,B2:B19,H1) -> 2641.48
A2: 2010-01-08 | B2: Tina | C2: Boom 15 | D2: 27 | E2: 1179.63 | G2: Criteria | H2: Bob | I2: Sales | J2: =SUMIFS(BoomSales[Total Sales],BoomSales[SalesRep],H2) -> 1080.7
A3: 2010-01-03 | B3: Shelia | C3: Boom 15 | D3: 20 | E3: 873.8 | G3: Criteria | H3: Chin | I3: Sales | J3: =SUMIFS(BoomSales[Total Sales],BoomSales[SalesRep],H3) -> 302
A4: 2010-01-06 | B4: Tina | C4: Boom 14 | D4: 23 | E4: 757.85
A5: 2010-01-01 | B5: Bob | C5: Boom 11 | D5: 26 | E5: 492.7
A6: 2010-01-06 | B6: Tina | C6: Boom 5 | D6: 25 | E6: 350
A7: 2010-01-08 | B7: Sioux | C7: Boom 6 | D7: 23 | E7: 343.85
A8: 2010-01-02 | B8: Bob | C8: Boom 5 | D8: 24 | E8: 336
A9: 2010-01-05 | B9: Donita | C9: Boom 6 | D9: 18 | E9: 269.1
A10: 2010-01-07 | B10: Donita | C10: Boom 11 | D10: 14 | E10: 265.3
A11: 2010-01-08 | B11: Bob | C11: Boom 10 | D11: 14 | E11: 252
A12: 2010-01-07 | B12: Tina | C12: Boom 10 | D12: 13 | E12: 234
A13: 2010-01-06 | B13: Chin | C13: Boom 5 | D13: 13 | E13: 182
A14: 2010-01-03 | B14: Shelia | C14: Boom 8 | D14: 10 | E14: 159.5
A15: 2010-01-07 | B15: Shelia | C15: Boom 13 | D15: 6 | E15: 153.3
A16: 2010-01-06 | B16: Shelia | C16: Boom 8 | D16: 8 | E16: 127.6
A17: 2010-01-06 | B17: Chin | C17: Boom 2 | D17: 10 | E17: 120
A18: 2010-01-08 | B18: Tina | C18: Boom 1 | D18: 12 | E18: 120
A19: 2010-01-09 | B19: Don | C19: Boom 10 | D19: 1 | E19: 29

Sheet Decimals
A1: Tax Collected | C1: Numbers you see
A2: 10.255 | C2: 10
A3: 2.359 | C3: 2
A4: 9.955 | C4: 10
A5: 6.333333333 | C5: 6
A6: 3.2 | C6: 3
A7: 3.65 | C7: 4
A8: 4.8875 | C8: 5
A9: =SUM(A2:A8) -> 40.63983333 | C9: =SUM(C2:C8) -> 40

Sheet DateMath
B1: 1900-01-01 | F1: Loan Issue Date | G1: 2010-01-01
B2: 1900-01-02 | F2: Term | G2: 45 | H2: days
A3: Due Date Invoice | B3: 2009-04-26 | F3: Maturity Date | G3: =G1+G2 -> 2010-02-15
A4: Today | B4: 2009-05-19
A5: Days Past Due | B5: =B4-B3 -> 23 | F5: Ctrl + Shift + ~
F6: Ctrl + Shift + `

Sheet TimeMath
A1: Time In | B1: 06:00:00 | C1: 06:00:00 | D1: =6/24 -> 06:00:00 | I1: Number | J1: Time
A2: Time Out | B2: 16:30:00 | I2: 0 | J2: =I2 -> 00:00:00
A3: Proportion of day worked | B3: =B2-B1 -> 0.4375 | I3: 0.25 | J3: 06:00:00
A4: Hours worked | B4: =B3*24 -> 10.5 | I4: =1/3 -> 0.3333333333 | J4: 08:00:00
A5: In One Formula | B5: =(B2-B1)*24 -> 10.5 | I5: 0.5 | J5: 12:00:00
I6: 0.75 | J6: 18:00:00
A7: Time In | B7: 06:00:00 | I7: =(24*60*60-1)/(24*60*60) -> 0.9999884259 | J7: 23:59:59
A8: Time Out | B8: 11:30:00 | I8: 1 | J8: 1
A9: Time In | B9: 13:00:00
A10: Time Out | B10: 16:30:00
A11: Hours Worked | B11: =SUM(B8-B7,B10-B9)*24 -> 9
A12: Wage | B12: 15.75
A13: Gross Pay | B13: =B12*B11 -> 141.75
B14: =B11*B12 -> 141.75

Sheet Percentage(1)
A1: Tax Percentage | C1: Tax Rate
A2: 0.088 | C2: 6 | D2: 0.06
C3: 0.06 | D3: .06*100 | E3: Step 1
D4: 6
A5: Date | B5: Time | D5: 6% | E5: Step 2
A6: 2009-09-16 | B6: 11:11:00
A8: Sales | B8: Tax
A9: 10 | B9: =A9*A2 -> 0.88

Sheet Percentage(2)
A1: Situation 1: | B1: Type .03 in cell, then add % format | C1: 0.03
A2: Situation 2: | B2: Type 3 in cell, then add % format | C2: 3
A3: Situation 3: | B3: Add % format, then type 3, Enter | C3: 0.03
A4: Situation 4: | B4: Add % format, then type .03, Enter | C4: 0.03
A5: Situation 5: | B5: Add % format as you type | C5: 0.03
A6: Situation 6: | B6: Type .025, then add % from ribbon | C6: 0.025
C8: 100
C9: =C8*C6 -> 2.5

Sheet Align(1)
A1: By default, words are aligned left
A2: Excel
A3: By default, numbers are aligned right
A4: 43
A5: By default, TRUE/FALSEs are aligned center
A6: FALSE

Sheet Align(2)
A1: Sales Data Imported as Text | C1: Dates
A2: 15 | C2: 2009-09-23 | E2: =SUM(A2:A8)
A3: 25 | C3: 2009-09-25
A4: 62 | C4: 2009-09-24 | E4: Ctrl + Shift + 4
A5: 52 | C5: 2009-09-30
A6: 25 | C6: =COUNT(C2:C5) -> 4
A7: 62
A8: 32
A9: =SUM(A2:A8) -> 273 | B9: <<== This cell has the General Number format before the SUM function is added. After you add the SUM function the cell adopts the Text number
B10: formatting from the cells above (because the cell references in the formula are looking at the cells
A12: Sales Data Imported as Text
A13: $15.00
A14: $25.00
A15: $62.00
A16: $52.00
A17: $25.00
A18: $62.00
A19: $32.00
A20: =A13+A14+A15+A16+A17+A18+A19 -> 273

Sheet Align(3)
A1: Sales Data Imported as Text | C1: Sales Data Formatted as Text
A2: 15 | C2: 15
A3: 25 | C3: 25
A4: 62 | C4: 62
A5: 52 | C5: 52
A6: 25 | C6: 25
A7: 62 | C7: 62
A8: 32 | C8: 32
A9: =SUM(A2:A8) -> 273 | C9: =SUM(C2:C8) -> 273

Sheet Store 1
A1: 2011 Units Sold - Wind Sport Inc. | J1: 2011 Sales Sold - Wind Sport Inc.
B2: Jan | C2: Feb | D2: Mar | E2: Apr | F2: May | G2: Jun | K2: Jan | L2: Feb | M2: Mar | N2: Apr | O2: May | P2: Jun
A3: Boomerangs | B3: 350 | C3: 273 | D3: 375 | E3: 500 | F3: 955 | G3: 1092 | J3: Boomerangs | K3: 350 | L3: 273 | M3: 375 | N3: 500 | O3: 955 | P3: 1092
A4: Kites | B4: 957 | C4: 925 | D4: 1250 | E4: 1100 | F4: 2010 | G4: 2290 | J4: Kites | K4: 957 | L4: 925 | M4: 1250 | N4: 1100 | O4: 2010 | P4: 2290
A5: Toys | B5: 160 | C5: 220 | D5: 291 | E5: 446 | F5: 537 | G5: 208 | J5: Toys | K5: 160 | L5: 220 | M5: 291 | N5: 446 | O5: 537 | P5: 208
A6: Accessories | B6: 525 | C6: 625 | D6: 570 | E6: 852 | F6: 750 | G6: 575 | J6: Accessories | K6: 525 | L6: 625 | M6: 570 | N6: 852 | O6: 750 | P6: 575
A7: Total | B7: =SUM(B3:B6) -> 1992 | C7: 2043 | D7: 2486 | E7: 2898 | F7: 4252 | G7: 4165 | J7: Total | K7: =SUM(K3:K6) -> 1992 | L7: 2043 | M7: 2486 | N7: 2898 | O7: 4252 | P7: 4165
J9: 2011 Sales Sold - Wind Sport Inc.
K10: Jan | L10: Feb | M10: Mar | N10: Apr | O10: May | P10: Jun
J11: Boomerangs | K11: 350 | L11: 273 | M11: 375 | N11: 500 | O11: 955 | P11: 1092
J12: Kites | K12: 957 | L12: 925 | M12: 1250 | N12: 1100 | O12: 2010 | P12: 2290
J13: Toys | K13: 160 | L13: 220 | M13: 291 | N13: 446 | O13: 537 | P13: 208
J14: Accessories | K14: 525 | L14: 625 | M14: 570 | N14: 852 | O14: 750 | P14: 575
J15: Total | K15: =SUM(K11:K14) -> 1992 | L15: 2043 | M15: 2486 | N15: 2898 | O15: 4252 | P15: 4165

Sheet Store 2
A1: Wind Sport Inc.
B2: Jul | C2: Aug | D2: Sep | E2: Oct | F2: Nov | G2: Dec
A3: Boomerangs | B3: =B11*1.075 -> 376.25 | C3: 293.475 | D3: 403.125 | E3: 537.5 | F3: 1026.625 | G3: 1173.9
A4: Kites | B4: 1028.775 | C4: 994.375 | D4: 1343.75 | E4: 1182.5 | F4: 2160.75 | G4: 2461.75
A5: Toys | B5: 172 | C5: 236.5 | D5: 312.825 | E5: 479.45 | F5: 577.275 | G5: 223.6
A6: Accessories | B6: 564.375 | C6: 671.875 | D6: 612.75 | E6: 915.9 | F6: 806.25 | G6: 618.125
A7: Total | B7: =SUM(B3:B6) -> 2141.4 | C7: =SUM(C3:C6) -> 2196.225 | D7: 2672.45 | E7: 3115.35 | F7: 4570.9 | G7: 4477.375
A9: Wind Sport Inc.
B10: Jan | C10: Feb | D10: Mar | E10: Apr | F10: May | G10: Jun
A11: Boomerangs | B11: 350 | C11: 273 | D11: 375 | E11: 500 | F11: 955 | G11: 1092
A12: Kites | B12: 957 | C12: 925 | D12: 1250 | E12: 1100 | F12: 2010 | G12: 2290
A13: Toys | B13: 160 | C13: 220 | D13: 291 | E13: 446 | F13: 537 | G13: 208
A14: Accessories | B14: 525 | C14: 625 | D14: 570 | E14: 852 | F14: 750 | G14: 575
A15: Total | B15: =SUM(B11:B14) -> 1992 | C15: 2043 | D15: 2486 | E15: 2898 | F15: 4252 | G15: 4165

Sheet Jones - Amortization Table
B1: Years | F1: Periods per year
B2: 30 | F2: 12
A4: Period | B4: PMT | C4: Interest | D4: Principal Paid | E4: Balance | F4: Annual Rate | G4: Lump Sum (Reduces PMT)
A5: =ROWS(A$5:A5)-1 -> 0 | E5: 100000
A6: =ROWS(A$5:A6)-1 -> 1 | B6: =-PMT(F6/$F$2,COUNT(A6:$A$365),E5) -> 840.8542072 | C6: =E5*F6/$F$2 -> 791.6666667 | D6: =B6-C6 -> 49.18754051 | E6: =E5-D6-G6 -> 99950.81246 | F6: 0.095
A7: =ROWS(A$5:A7)-1 -> 2 | B7: =-PMT(F7/$F$2,COUNT(A7:$A$365),E6) -> 840.8542072 | C7: =E6*F7/$F$2 -> 791.2772653 | D7: =B7-C7 -> 49.57694187 | E7: 99901.23552 | F7: 0.095
A8: =ROWS(A$5:A8)-1 -> 3 | B8: =-PMT(F8/$F$2,COUNT(A8:$A$365),E7) -> 840.8542072 | C8: 790.8847812 | D8: 49.969426 | E8: 99851.26609 | F8: 0.095
A9: =ROWS(A$5:A9)-1 -> 4 | B9: =-PMT(F9/$F$2,COUNT(A9:$A$365),E8) -> 840.8542072 | C9: 790.4891899 | D9: 50.36501729 | E9: 99800.90107 | F9: 0.095
A10: =ROWS(A$5:A10)-1 -> 5 | B10: =-PMT(F10/$F$2,COUNT(A10:$A$365),E9) -> 840.8542072 | C10: 790.0904668 | D10: 50.76374034 | E10: 99750.13733 | F10: 0.095
A11: =ROWS(A$5:A11)-1 -> 6 | B11: =-PMT(F11/$F$2,COUNT(A11:$A$365),E10) -> 840.8542072 | C11: 789.6885872 | D11: 51.16561995 | E11: 74698.97171 | F11: 0.095 | G11: 25000
A12: =ROWS(A$5:A12)-1 -> 7 | B12: =-PMT(F12/$F$2,COUNT(A12:$A$365),E11) -> 630.0059425 | C12: 591.3668594 | D12: 38.63908306 | E12: 74660.33263 | F12: 0.095
A13: =ROWS(A$5:A13)-1 -> 8 | B13: =-PMT(F13/$F$2,COUNT(A13:$A$365),E12) -> 630.0059425 | C13: 591.0609667 | D13: 38.9449758 | E13: 74621.38766 | F13: 0.095
A14: =ROWS(A$5:A14)-1 -> 9 | B14: =-PMT(F14/$F$2,COUNT(A14:$A$365),E13) -> 630.0059425 | C14: 590.7526523 | D14: 39.2532902 | E14: 74582.13436 | F14: 0.095
A15: =ROWS(A$5:A15)-1 -> 10 | B15: =-PMT(F15/$F$2,COUNT(A15:$A$365),E14) -> 630.0059425 | C15: 590.4418971 | D15: 39.56404541 | E15: 74542.57032 | F15: 0.095
A16: =ROWS(A$5:A16)-1 -> 11 | B16: =-PMT(F16/$F$2,COUNT(A16:$A$365),E15) -> 630.0059425 | C16: 590.1286817 | D16: 39.87726077 | E16: 74502.69306 | F16: 0.095
A17: =ROWS(A$5:A17)-1 -> 12 | B17: =-PMT(F17/$F$2,COUNT(A17:$A$365),E16) -> 630.0059425 | C17: 589.8129867 | D17: 40.19295575 | E17: 74462.5001 | F17: 0.095
A18: =ROWS(A$5:A18)-1 -> 13 | B18: =-PMT(F18/$F$2,COUNT(A18:$A$365),E17) -> 657.11449 | C18: 620.5208342 | D18: 36.59365576 | E18: 74425.90645 | F18: 0.1
A19: =ROWS(A$5:A19)-1 -> 14 | B19: =-PMT(F19/$F$2,COUNT(A19:$A$365),E18) -> 657.11449 | C19: 620.2158871 | D19: 36.89860289 | E19: 74389.00784 | F19: 0.1
A20: =ROWS(A$5:A20)-1 -> 15 | B20: =-PMT(F20/$F$2,COUNT(A20:$A$365),E19) -> 657.11449 | C20: 619.9083987 | D20: 37.20609125 | E20: 74351.80175 | F20: 0.1
A21: =ROWS(A$5:A21)-1 -> 16 | B21: =-PMT(F21/$F$2,COUNT(A21:$A$365),E20) -> 657.11449 | C21: 619.5983479 | D21: 37.51614201 | E21: 74314.28561 | F21: 0.1
A22: =ROWS(A$5:A22)-1 -> 17 | B22: =-PMT(F22/$F$2,COUNT(A22:$A$365),E21) -> 657.11449 | C22: 619.2857134 | D22: 37.82877653 | E22: 74276.45683 | F22: 0.1
A23: =ROWS(A$5:A23)-1 -> 18 | B23: =-PMT(F23/$F$2,COUNT(A23:$A$365),E22) -> 657.11449 | C23: 618.9704736 | D23: 38.14401633 | E23: 74238.31282 | F23: 0.1
A24: =ROWS(A$5:A24)-1 -> 19 | B24: =-PMT(F24/$F$2,COUNT(A24:$A$365),E23) -> 657.11449 | C24: 618.6526068 | D24: 38.46188313 | E24: 74199.85094 | F24: 0.1
A25: =ROWS(A$5:A25)-1 -> 20 | B25: =-PMT(F25/$F$2,COUNT(A25:$A$365),E24) -> 657.11449 | C25: 618.3320911 | D25: 38.78239883 | E25: 74161.06854 | F25: 0.1
A26: =ROWS(A$5:A26)-1 -> 21 | B26: =-PMT(F26/$F$2,COUNT(A26:$A$365),E25) -> 657.11449 | C26: 618.0089045 | D26: 39.10558548 | E26: 74121.96295 | F26: 0.1
A27: =ROWS(A$5:A27)-1 -> 22 | B27: =-PMT(F27/$F$2,COUNT(A27:$A$365),E26) -> 657.11449 | C27: 617.6830246 | D27: 39.43146536 | E27: 74082.53149 | F27: 0.1
A28: =ROWS(A$5:A28)-1 -> 23 | B28: =-PMT(F28/$F$2,COUNT(A28:$A$365),E27) -> 657.11449 | C28: 617.354429 | D28: 39.76006091 | E28: 74042.77142 | F28: 0.1
A29: =ROWS(A$5:A29)-1 -> 24 | B29: =-PMT(F29/$F$2,COUNT(A29:$A$365),E28) -> 657.11449 | C29: 617.0230952 | D29: 40.09139475 | E29: 74002.68003 | F29: 0.1
A30: =ROWS(A$5:A30)-1 -> 25 | B30: =-PMT(F30/$F$2,COUNT(A30:$A$365),E29) -> 657.11449 | C30: 616.6890002 | D30: 40.4254897 | E30: 73962.25454 | F30: 0.1
A31: =ROWS(A$5:A31)-1 -> 26 | B31: =-PMT(F31/$F$2,COUNT(A31:$A$365),E30) -> 657.11449 | C31: 616.3521212 | D31: 40.76236879 | E31: 73921.49217 | F31: 0.1
A32: =ROWS(A$5:A32)-1 -> 27 | B32: =-PMT(F32/$F$2,COUNT(A32:$A$365),E31) -> 657.11449 | C32: 616.0124348 | D32: 41.10205519 | E32: 73880.39012 | F32: 0.1
A33: =ROWS(A$5:A33)-1 -> 28 | B33: =-PMT(F33/$F$2,COUNT(A33:$A$365),E32) -> 657.11449 | C33: 615.6699176 | D33: 41.44457232 | E33: 73838.94554 | F33: 0.1
A34: =ROWS(A$5:A34)-1 -> 29 | B34: =-PMT(F34/$F$2,COUNT(A34:$A$365),E33) -> 657.11449 | C34: 615.3245462 | D34: 41.78994375 | E34: 73797.1556 | F34: 0.1
A35: =ROWS(A$5:A35)-1 -> 30 | B35: =-PMT(F35/$F$2,COUNT(A35:$A$365),E34) -> 657.11449 | C35: 614.9762967 | D35: 42.13819329 | E35: 73755.01741 | F35: 0.1
A36: =ROWS(A$5:A36)-1 -> 31 | B36: =-PMT(F36/$F$2,COUNT(A36:$A$365),E35) -> 657.11449 | C36: 614.6251451 | D36: 42.4893449 | E36: 73712.52806 | F36: 0.1
A37: =ROWS(A$5:A37)-1 -> 32 | B37: =-PMT(F37/$F$2,COUNT(A37:$A$365),E36) -> 657.11449 | C37: 614.2710672 | D37: 42.84342277 | E37: 73669.68464 | F37: 0.1
A38: =ROWS(A$5:A38)-1 -> 33 | B38: =-PMT(F38/$F$2,COUNT(A38:$A$365),E37) -> 657.11449 | C38: 613.9140387 | D38: 43.20045129 | E38: 73626.48419 | F38: 0.1
A39: =ROWS(A$5:A39)-1 -> 34 | B39: =-PMT(F39/$F$2,COUNT(A39:$A$365),E38) -> 657.11449 | C39: 613.5540349 | D39: 43.56045505 | E39: 73582.92373 | F39: 0.1
A40: =ROWS(A$5:A40)-1 -> 35 | B40: =-PMT(F40/$F$2,COUNT(A40:$A$365),E39) -> 657.11449 | C40: 613.1910311 | D40: 43.92345885 | E40: 73539.00027 | F40: 0.1
A41: =ROWS(A$5:A41)-1 -> 36 | B41: =-PMT(F41/$F$2,COUNT(A41:$A$365),E40) -> 657.11449 | C41: 612.8250023 | D41: 44.28948767 | E41: 73494.71079 | F41: 0.1
A42: =ROWS(A$5:A42)-1 -> 37 | B42: =-PMT(F42/$F$2,COUNT(A42:$A$365),E41) -> 657.11449 | C42: 612.4559232 | D42: 44.65856673 | E42: 73450.05222 | F42: 0.1
A43: =ROWS(A$5:A43)-1 -> 38 | B43: =-PMT(F43/$F$2,COUNT(A43:$A$365),E42) -> 657.11449 | C43: 612.0837685 | D43: 45.03072146 | E43: 73405.0215 | F43: 0.1
A44: =ROWS(A$5:A44)-1 -> 39 | B44: =-PMT(F44/$F$2,COUNT(A44:$A$365),E43) -> 657.11449 | C44: 611.7085125 | D44: 45.40597747 | E44: 73359.61552 | F44: 0.1
A45: =ROWS(A$5:A45)-1 -> 40 | B45: =-PMT(F45/$F$2,COUNT(A45:$A$365),E44) -> 657.11449 | C45: 611.3301293 | D45: 45.78436061 | E45: 73313.83116 | F45: 0.1
A46: =ROWS(A$5:A46)-1 -> 41 | B46: =-PMT(F46/$F$2,COUNT(A46:$A$365),E45) -> 657.11449 | C46: 610.948593 | D46: 46.16589695 | E46: 73267.66526 | F46: 0.1
A47: =ROWS(A$5:A47)-1 -> 42 | B47: =-PMT(F47/$F$2,COUNT(A47:$A$365),E46) -> 657.11449 | C47: 610.5638772 | D47: 46.55061276 | E47: 73221.11465 | F47: 0.1
A48: =ROWS(A$5:A48)-1 -> 43 | B48: =-PMT(F48/$F$2,COUNT(A48:$A$365),E47) -> 657.11449 | C48: 610.1759554 | D48: 46.93853453 | E48: 73174.17612 | F48: 0.1
A49: =ROWS(A$5:A49)-1 -> 44 | B49: =-PMT(F49/$F$2,COUNT(A49:$A$365),E48) -> 657.11449 | C49: 609.784801 | D49: 47.32968899 | E49: 73126.84643 | F49: 0.1
A50: =ROWS(A$5:A50)-1 -> 45 | B50: =-PMT(F50/$F$2,COUNT(A50:$A$365),E49) -> 657.11449 | C50: 609.3903869 | D50: 47.72410306 | E50: 73079.12232 | F50: 0.1
A51: =ROWS(A$5:A51)-1 -> 46 | B51: =-PMT(F51/$F$2,COUNT(A51:$A$365),E50) -> 657.11449 | C51: 608.992686 | D51: 48.12180392 | E51: 73031.00052 | F51: 0.1
A52: =ROWS(A$5:A52)-1 -> 47 | B52: =-PMT(F52/$F$2,COUNT(A52:$A$365),E51) -> 657.11449 | C52: 608.591671 | D52: 48.52281895 | E52: 72982.4777 | F52: 0.1
A53: =ROWS(A$5:A53)-1 -> 48 | B53: =-PMT(F53/$F$2,COUNT(A53:$A$365),E52) -> 657.11449 | C53: 608.1873142 | D53: 48.92717578 | E53: 72933.55053 | F53: 0.1
A54: =ROWS(A$5:A54)-1 -> 49 | B54: =-PMT(F54/$F$2,COUNT(A54:$A$365),E53) -> 657.11449 | C54: 607.7795877 | D54: 49.33490224 | E54: 72884.21562 | F54: 0.1
A55: =ROWS(A$5:A55)-1 -> 50 | B55: =-PMT(F55/$F$2,COUNT(A55:$A$365),E54) -> 657.11449 | C55: 607.3684635 | D55: 49.74602643 | E55: 72834.4696 | F55: 0.1
A56: =ROWS(A$5:A56)-1 -> 51 | B56: =-PMT(F56/$F$2,COUNT(A56:$A$365),E55) -> 657.11449 | C56: 606.9539133 | D56: 50.16057665 | E56: 72784.30902 | F56: 0.1
A57: =ROWS(A$5:A57)-1 -> 52 | B57: =-PMT(F57/$F$2,COUNT(A57:$A$365),E56) -> 657.11449 | C57: 606.5359085 | D57: 50.57858146 | E57: 72733.73044 | F57: 0.1
A58: =ROWS(A$5:A58)-1 -> 53 | B58: =-PMT(F58/$F$2,COUNT(A58:$A$365),E57) -> 657.11449 | C58: 606.1144203 | D58: 51.00006963 | E58: 72682.73037 | F58: 0.1
A59: =ROWS(A$5:A59)-1 -> 54 | B59: =-PMT(F59/$F$2,COUNT(A59:$A$365),E58) -> 657.11449 | C59: 605.6894197 | D59: 51.42507021 | E59: 72631.3053 | F59: 0.1
A60: =ROWS(A$5:A60)-1 -> 55 | B60: =-PMT(F60/$F$2,COUNT(A60:$A$365),E59) -> 657.11449 | C60: 605.2608775 | D60: 51.85361247 | E60: 72579.45169 | F60: 0.1
A61: =ROWS(A$5:A61)-1 -> 56 | B61: =-PMT(F61/$F$2,COUNT(A61:$A$365),E60) -> 657.11449 | C61: 604.828764 | D61: 52.2857259 | E61: 72527.16596 | F61: 0.1
A62: =ROWS(A$5:A62)-1 -> 57 | B62: =-PMT(F62/$F$2,COUNT(A62:$A$365),E61) -> 657.11449 | C62: 604.3930497 | D62: 52.72144029 | E62: 72474.44452 | F62: 0.1
A63: =ROWS(A$5:A63)-1 -> 58 | B63: =-PMT(F63/$F$2,COUNT(A63:$A$365),E62) -> 657.11449 | C63: 603.9537043 | D63: 53.16078562 | E63: 72421.28373 | F63: 0.1
A64: =ROWS(A$5:A64)-1 -> 59 | B64: =-PMT(F64/$F$2,COUNT(A64:$A$365),E63) -> 657.11449 | C64: 603.5106978 | D64: 53.60379217 | E64: 72367.67994 | F64: 0.1
A65: =ROWS(A$5:A65)-1 -> 60 | B65: =-PMT(F65/$F$2,COUNT(A65:$A$365),E64) -> 657.11449 | C65: 603.0639995 | D65: 54.05049044 | E65: 72313.62945 | F65: 0.1
A66: =ROWS(A$5:A66)-1 -> 61 | B66: =-PMT(F66/$F$2,COUNT(A66:$A$365),E65) -> 534.391342 | C66: 451.9601841 | D66: 82.43115792 | E66: 72231.19829 | F66: 0.075
A67: =ROWS(A$5:A67)-1 -> 62 | B67: =-PMT(F67/$F$2,COUNT(A67:$A$365),E66) -> 534.391342 | C67: 451.4449893 | D67: 82.94635266 | E67: 72148.25194 | F67: 0.075
A68: =ROWS(A$5:A68)-1 -> 63 | B68: =-PMT(F68/$F$2,COUNT(A68:$A$365),E67) -> 534.391342 | C68: 450.9265746 | D68: 83.46476736 | E68: 72064.78717 | F68: 0.075
A69: =ROWS(A$5:A69)-1 -> 64 | B69: =-PMT(F69/$F$2,COUNT(A69:$A$365),E68) -> 534.391342 | C69: 450.4049198 | D69: 83.98642216 | E69: 71980.80075 | F69: 0.075
A70: =ROWS(A$5:A70)-1 -> 65 | B70: =-PMT(F70/$F$2,COUNT(A70:$A$365),E69) -> 534.391342 | C70: 449.8800047 | D70: 84.5113373 | E70: =E69-D70-G70 -> 71896.28941 | F70: 0.075
A71: =ROWS(A$5:A71)-1 -> 66 | B71: =-PMT(F71/$F$2,COUNT(A71:$A$365),E70) -> 534.391342 | C71: =E70*F71/$F$2 -> 449.3518088 | D71: =B71-C71 -> 85.03953315 | E71: 71811.24988 | F71: 0.075
A72: =ROWS(A$5:A72)-1 -> 67 | B72: =-PMT(F72/$F$2,COUNT(A72:$A$365),E71) -> 534.391342 | C72: 448.8203118 | D72: 85.57103024 | E72: 71725.67885 | F72: 0.075
A73: =ROWS(A$5:A73)-1 -> 68 | B73: =-PMT(F73/$F$2,COUNT(A73:$A$365),E72) -> 534.391342 | C73: 448.2854928 | D73: 86.10584917 | E73: 71639.573 | F73: 0.075
A74: =ROWS(A$5:A74)-1 -> 69 | B74: =-PMT(F74/$F$2,COUNT(A74:$A$365),E73) -> 534.391342 | C74: 447.7473313 | D74: 86.64401073 | E74: 71552.92899 | F74: 0.075
A75: =ROWS(A$5:A75)-1 -> 70 | B75: =-PMT(F75/$F$2,COUNT(A75:$A$365),E74) -> 534.391342 | C75: 447.2058062 | D75: 87.1855358 | E75: 71465.74346 | F75: 0.075
A76: =ROWS(A$5:A76)-1 -> 71 | B76: =-PMT(F76/$F$2,COUNT(A76:$A$365),E75) -> 534.391342 | C76: 446.6608966 | D76: 87.7304454 | E76: 71378.01301 | F76: 0.075
A77: =ROWS(A$5:A77)-1 -> 72 | B77: =-PMT(F77/$F$2,COUNT(A77:$A$365),E76) -> 534.391342 | C77: 446.1125813 | D77: 88.27876068 | E77: 71289.73425 | F77: 0.075
A78: =ROWS(A$5:A78)-1 -> 73 | B78: =-PMT(F78/$F$2,COUNT(A78:$A$365),E77) -> 534.391342 | C78: 445.5608391 | D78: 88.83050294 | E78: 71200.90375 | F78: 0.075
A79: =ROWS(A$5:A79)-1 -> 74 | B79: =-PMT(F79/$F$2,COUNT(A79:$A$365),E78) -> 534.391342 | C79: 445.0056484 | D79: 89.38569358 | E79: 71111.51805 | F79: 0.075
A80: =ROWS(A$5:A80)-1 -> 75 | B80: =-PMT(F80/$F$2,COUNT(A80:$A$365),E79) -> 534.391342 | C80: 444.4469878 | D80: 89.94435416 | E80: 71021.5737 | F80: 0.075
A81: =ROWS(A$5:A81)-1 -> 76 | B81: =-PMT(F81/$F$2,COUNT(A81:$A$365),E80) -> 534.391342 | C81: 443.8848356 | D81: 90.50650638 | E81: 70931.06719 | F81: 0.075
A82: =ROWS(A$5:A82)-1 -> 77 | B82: =-PMT(F82/$F$2,COUNT(A82:$A$365),E81) -> 534.391342 | C82: 443.3191699 | D82: 91.07217204 | E82: 70839.99502 | F82: 0.075
A83: =ROWS(A$5:A83)-1 -> 78 | B83: =-PMT(F83/$F$2,COUNT(A83:$A$365),E82) -> 534.391342 | C83: 442.7499689 | D83: 91.64137312 | E83: 70748.35365 | F83: 0.075
A84: =ROWS(A$5:A84)-1 -> 79 | B84: =-PMT(F84/$F$2,COUNT(A84:$A$365),E83) -> 534.391342 | C84: 442.1772103 | D84: 92.2141317 | E84: 70656.13952 | F84: 0.075
A85: =ROWS(A$5:A85)-1 -> 80 | B85: =-PMT(F85/$F$2,COUNT(A85:$A$365),E84) -> 534.391342 | C85: 441.600872 | D85: 92.79047002 | E85: 70563.34904 | F85: 0.075
A86: =ROWS(A$5:A86)-1 -> 81 | B86: =-PMT(F86/$F$2,COUNT(A86:$A$365),E85) -> 534.391342 | C86: 441.0209315 | D86: 93.37041046 | E86: 70469.97863 | F86: 0.075
A87: =ROWS(A$5:A87)-1 -> 82 | B87: =-PMT(F87/$F$2,COUNT(A87:$A$365),E86) -> 534.391342 | C87: 440.4373665 | D87: 93.95397553 | E87: 70376.02466 | F87: 0.075
A88: =ROWS(A$5:A88)-1 -> 83 | B88: =-PMT(F88/$F$2,COUNT(A88:$A$365),E87) -> 534.391342 | C88: 439.8501541 | D88: 94.54118787 | E88: 70281.48347 | F88: 0.075
A89: =ROWS(A$5:A89)-1 -> 84 | B89: =-PMT(F89/$F$2,COUNT(A89:$A$365),E88) -> 534.391342 | C89: 439.2592717 | D89: 95.1320703 | E89: 70186.3514 | F89: 0.075
A90: =ROWS(A$5:A90)-1 -> 85 | B90: =-PMT(F90/$F$2,COUNT(A90:$A$365),E89) -> 534.391342 | C90: 438.6646963 | D90: 95.72664574 | E90: 70090.62476 | F90: 0.075
A91: =ROWS(A$5:A91)-1 -> 86 | B91: =-PMT(F91/$F$2,COUNT(A91:$A$365),E90) -> 534.391342 | C91: 438.0664047 | D91: 96.32493727 | E91: 69994.29982 | F91: 0.075
A92: =ROWS(A$5:A92)-1 -> 87 | B92: =-PMT(F92/$F$2,COUNT(A92:$A$365),E91) -> 534.391342 | C92: 437.4643739 | D92: 96.92696813 | E92: 69897.37285 | F92: 0.075
A93: =ROWS(A$5:A93)-1 -> 88 | B93: =-PMT(F93/$F$2,COUNT(A93:$A$365),E92) -> 534.391342 | C93: 436.8585803 | D93: 97.53276168 | E93: 69799.84009 | F93: 0.075
A94: =ROWS(A$5:A94)-1 -> 89 | B94: =-PMT(F94/$F$2,COUNT(A94:$A$365),E93) -> 534.391342 | C94: 436.2490006 | D94: 98.14234144 | E94: 69701.69775 | F94: 0.075
A95: =ROWS(A$5:A95)-1 -> 90 | B95: =-PMT(F95/$F$2,COUNT(A95:$A$365),E94) -> 534.391342 | C95: 435.6356109 | D95: 98.75573108 | E95: 69602.94202 | F95: 0.075
A96: =ROWS(A$5:A96)-1 -> 91 | B96: =-PMT(F96/$F$2,COUNT(A96:$A$365),E95) -> 534.391342 | C96: 435.0183876 | D96: 99.37295439 | E96: 69503.56906 | F96: 0.075
A97: =ROWS(A$5:A97)-1 -> 92 | B97: =-PMT(F97/$F$2,COUNT(A97:$A$365),E96) -> 534.391342 | C97: 434.3973066 | D97: 99.99403536 | E97: 69403.57503 | F97: 0.075
A98: =ROWS(A$5:A98)-1 -> 93 | B98: =-PMT(F98/$F$2,COUNT(A98:$A$365),E97) -> 534.391342 | C98: 433.7723439 | D98: 100.6189981 | E98: 69302.95603 | F98: 0.075
A99: =ROWS(A$5:A99)-1 -> 94 | B99: =-PMT(F99/$F$2,COUNT(A99:$A$365),E98) -> 534.391342 | C99: 433.1434752 | D99: 101.2478668 | E99: 69201.70816 | F99: 0.075
A100: =ROWS(A$5:A100)-1 -> 95 | B100: =-PMT(F100/$F$2,COUNT(A100:$A$365),E99) -> 534.391342 | C100: 432.510676 | D100: 101.880666 | E100: 69099.82749 | F100: 0.075
A101: =ROWS(A$5:A101)-1 -> 96 | B101: =-PMT(F101/$F$2,COUNT(A101:$A$365),E100) -> 534.391342 | C101: 431.8739218 | D101: 102.5174201 | E101: 68997.31007 | F101: 0.075
A102: =ROWS(A$5:A102)-1 -> 97 | B102: =-PMT(F102/$F$2,COUNT(A102:$A$365),E101) -> 534.391342 | C102: 431.233188 | D102: 103.158154 | E102: 68894.15192 | F102: 0.075
A103: =ROWS(A$5:A103)-1 -> 98 | B103: =-PMT(F103/$F$2,COUNT(A103:$A$365),E102) -> 534.391342 | C103: 430.5884495 | D103: 103.8028925 | E103: 68790.34903 | F103: 0.075
A104: =ROWS(A$5:A104)-1 -> 99 | B104: =-PMT(F104/$F$2,COUNT(A104:$A$365),E103) -> 534.391342 | C104: 429.9396814 | D104: 104.4516606 | E104: 68685.89737 | F104: 0.075
A105: =ROWS(A$5:A105)-1 -> 100 | B105: =-PMT(F105/$F$2,COUNT(A105:$A$365),E104) -> 534.391342 | C105: 429.2868585 | D105: 105.1044834 | E105: 68580.79288 | F105: 0.075
A106: =ROWS(A$5:A106)-1 -> 101 | B106: =-PMT(F106/$F$2,COUNT(A106:$A$365),E105) -> 534.391342 | C106: 428.6299555 | D106: 105.7613865 | E106: 68475.0315 | F106: 0.075
A107: =ROWS(A$5:A107)-1 -> 102 | B107: =-PMT(F107/$F$2,COUNT(A107:$A$365),E106) -> 534.391342 | C107: 427.9689469 | D107: 106.4223951 | E107: 68368.6091 | F107: 0.075
A108: =ROWS(A$5:A108)-1 -> 103 | B108: =-PMT(F108/$F$2,COUNT(A108:$A$365),E107) -> 534.391342 | C108: 427.3038069 | D108: 107.0875351 | E108: 68261.52157 | F108: 0.075
A109: =ROWS(A$5:A109)-1 -> 104 | B109: =-PMT(F109/$F$2,COUNT(A109:$A$365),E108) -> 534.391342 | C109: 426.6345098 | D109: 107.7568322 | E109: 68153.76474 | F109: 0.075
A110: =ROWS(A$5:A110)-1 -> 105 | B110: =-PMT(F110/$F$2,COUNT(A110:$A$365),E109) -> 534.391342 | C110: 425.9610296 | D110: 108.4303124 | E110: 68045.33442 | F110: 0.075
A111: =ROWS(A$5:A111)-1 -> 106 | B111: =-PMT(F111/$F$2,COUNT(A111:$A$365),E110) -> 534.391342 | C111: 425.2833401 | D111: 109.1080018 | E111: 67936.22642 | F111: 0.075
A112: =ROWS(A$5:A112)-1 -> 107 | B112: =-PMT(F112/$F$2,COUNT(A112:$A$365),E111) -> 534.391342 | C112: 424.6014151 | D112: 109.7899269 | E112: 67826.43649 | F112: 0.075
A113: =ROWS(A$5:A113)-1 -> 108 | B113: =-PMT(F113/$F$2,COUNT(A113:$A$365),E112) -> 534.391342 | C113: 423.9152281 | D113: 110.4761139 | E113: 67715.96038 | F113: 0.075
A114: =ROWS(A$5:A114)-1 -> 109 | B114: =-PMT(F114/$F$2,COUNT(A114:$A$365),E113) -> 534.391342 | C114: 423.2247524 | D114: 111.1665896 | E114: 67604.79379 | F114: 0.075
A115: =ROWS(A$5:A115)-1 -> 110 | B115: =-PMT(F115/$F$2,COUNT(A115:$A$365),E114) -> 534.391342 | C115: 422.5299612 | D115: 111.8613808 | E115: 67492.93241 | F115: 0.075
A116: =ROWS(A$5:A116)-1 -> 111 | B116: =-PMT(F116/$F$2,COUNT(A116:$A$365),E115) -> 534.391342 | C116: 421.8308276 | D116: 112.5605144 | E116: 67380.3719 | F116: 0.075
A117: =ROWS(A$5:A117)-1 -> 112 | B117: =-PMT(F117/$F$2,COUNT(A117:$A$365),E116) -> 534.391342 | C117: 421.1273243 | D117: 113.2640176 | E117: 67267.10788 | F117: 0.075
A118: =ROWS(A$5:A118)-1 -> 113 | B118: =-PMT(F118/$F$2,COUNT(A118:$A$365),E117) -> 534.391342 | C118: 420.4194242 | D118: 113.9719178 | E118: 67153.13596 | F118: 0.075
A119: =ROWS(A$5:A119)-1 -> 114 | B119: =-PMT(F119/$F$2,COUNT(A119:$A$365),E118) -> 534.391342 | C119: 419.7070998 | D119: 114.6842422 | E119: 67038.45172 | F119: 0.075
A120: =ROWS(A$5:A120)-1 -> 115 | B120: =-PMT(F120/$F$2,COUNT(A120:$A$365),E119) -> 534.391342 | C120: 418.9903232 | D120: 115.4010188 | E120: 66923.0507 | F120: 0.075
A121: =ROWS(A$5:A121)-1 -> 116 | B121: =-PMT(F121/$F$2,COUNT(A121:$A$365),E120) -> 534.391342 | C121: 418.2690669 | D121: 116.1222751 | E121: 66806.92842 | F121: 0.075
A122: =ROWS(A$5:A122)-1 -> 117 | B122: =-PMT(F122/$F$2,COUNT(A122:$A$365),E121) -> 534.391342 | C122: 417.5433026 | D122: 116.8480393 | E122: 66690.08038 | F122: 0.075
A123: =ROWS(A$5:A123)-1 -> 118 | B123: =-PMT(F123/$F$2,COUNT(A123:$A$365),E122) -> 534.391342 | C123: 416.8130024 | D123: 117.5783396 | E123: 66572.50204 | F123: 0.075
A124: =ROWS(A$5:A124)-1 -> 119 | B124: =-PMT(F124/$F$2,COUNT(A124:$A$365),E123) -> 534.391342 | C124: 416.0781378 | D124: 118.3132042 | E124: 66454.18884 | F124: 0.075
A125: =ROWS(A$5:A125)-1 -> 120 | B125: =-PMT(F125/$F$2,COUNT(A125:$A$365),E124) -> 534.391342 | C125: 415.3386803 | D125: 119.0526617 | E125: 66335.13618 | F125: 0.075
A126: =ROWS(A$5:A126)-1 -> 121 | B126: =-PMT(F126/$F$2,COUNT(A126:$A$365),E125) -> 534.391342 | C126: 414.5946011 | D126: 119.7967409 | E126: 66215.33944 | F126: 0.075
A127: =ROWS(A$5:A127)-1 -> 122 | B127: =-PMT(F127/$F$2,COUNT(A127:$A$365),E126) -> 534.391342 | C127: 413.8458715 | D127: 120.5454705 | E127: 66094.79397 | F127: 0.075
A128: =ROWS(A$5:A128)-1 -> 123 | B128: =-PMT(F128/$F$2,COUNT(A128:$A$365),E127) -> 534.391342 | C128: 413.0924623 | D128: 121.2988797 | E128: 65973.49509 | F128: 0.075
A129: =ROWS(A$5:A129)-1 -> 124 | B129: =-PMT(F129/$F$2,COUNT(A129:$A$365),E128) -> 534.391342 | C129: 412.3343443 | D129: 122.0569977 | E129: 65851.43809 | F129: 0.075
A130: =ROWS(A$5:A130)-1 -> 125 | B130: =-PMT(F130/$F$2,COUNT(A130:$A$365),E129) -> 534.391342 | C130: 411.5714881 | D130: 122.8198539 | E130: 65728.61824 | F130: 0.075
A131: =ROWS(A$5:A131)-1 -> 126 | B131: =-PMT(F131/$F$2,COUNT(A131:$A$365),E130) -> 534.391342 | C131: 410.803864 | D131: 123.587478 | E131: 65605.03076 | F131: 0.075
A132: =ROWS(A$5:A132)-1 -> 127 | B132: =-PMT(F132/$F$2,COUNT(A132:$A$365),E131) -> 534.391342 | C132: 410.0314422 | D132: 124.3598998 | E132: 65480.67086 | F132: 0.075
A133: =ROWS(A$5:A133)-1 -> 128 | B133: =-PMT(F133/$F$2,COUNT(A133:$A$365),E132) -> 534.391342 | C133: 409.2541929 | D133: 125.1371491 | E133: 65355.53371 | F133: 0.075
A134: =ROWS(A$5:A134)-1 -> 129 | B134: =-PMT(F134/$F$2,COUNT(A134:$A$365),E133) -> 534.391342 | C134: 408.4720857 | D134: 125.9192563 | E134: =E133-D134-G134 -> 65229.61445 | F134: 0.075
A135: =ROWS(A$5:A135)-1 -> 130 | B135: =-PMT(F135/$F$2,COUNT(A135:$A$365),E134) -> 534.391342 | C135: =E134*F135/$F$2 -> 407.6850903 | D135: =B135-C135 -> 126.7062517 | E135: 65102.9082 | F135: 0.075
A136: =ROWS(A$5:A136)-1 -> 131 | B136: =-PMT(F136/$F$2,COUNT(A136:$A$365),E135) -> 534.391342 | C136: 406.8931763 | D136: 127.4981657 | E136: 64975.41004 | F136: 0.075
A137: =ROWS(A$5:A137)-1 -> 132 | B137: =-PMT(F137/$F$2,COUNT(A137:$A$365),E136) -> 534.391342 | C137: 406.0963127 | D137: 128.2950293 | E137: 64847.11501 | F137: 0.075
A138: =ROWS(A$5:A138)-1 -> 133 | B138: =-PMT(F138/$F$2,COUNT(A138:$A$365),E137) -> 534.391342 | C138: 405.2944688 | D138: 129.0968732 | E138: 64718.01813 | F138: 0.075
A139: =ROWS(A$5:A139)-1 -> 134 | B139: =-PMT(F139/$F$2,COUNT(A139:$A$365),E138) -> 534.391342 | C139: 404.4876133 | D139: 129.9037287 | E139: 64588.1144 | F139: 0.075
A140: =ROWS(A$5:A140)-1 -> 135 | B140: =-PMT(F140/$F$2,COUNT(A140:$A$365),E139) -> 534.391342 | C140: 403.675715 | D140: 130.715627 | E140: 64457.39878 | F140: 0.075
A141: =ROWS(A$5:A141)-1 -> 136 | B141: =-PMT(F141/$F$2,COUNT(A141:$A$365),E140) -> 534.391342 | C141: 402.8587424 | D141: 131.5325996 | E141: 64325.86618 | F141: 0.075
A142: =ROWS(A$5:A142)-1 -> 137 | B142: =-PMT(F142/$F$2,COUNT(A142:$A$365),E141) -> 534.391342 | C142: 402.0366636 | D142: 132.3546784 | E142: 64193.5115 | F142: 0.075
A143: =ROWS(A$5:A143)-1 -> 138 | B143: =-PMT(F143/$F$2,COUNT(A143:$A$365),E142) -> 534.391342 | C143: 401.2094469 | D143: 133.1818951 | E143: 64060.3296 | F143: 0.075
A144: =ROWS(A$5:A144)-1 -> 139 | B144: =-PMT(F144/$F$2,COUNT(A144:$A$365),E143) -> 534.391342 | C144: 400.37706 | D144: 134.014282 | E144: 63926.31532 | F144: 0.075
A145: =ROWS(A$5:A145)-1 -> 140 | B145: =-PMT(F145/$F$2,COUNT(A145:$A$365),E144) -> 534.391342 | C145: 399.5394708 | D145: 134.8518712 | E145: 63791.46345 | F145: 0.075
A146: =ROWS(A$5:A146)-1 -> 141 | B146: =-PMT(F146/$F$2,COUNT(A146:$A$365),E145) -> 534.391342 | C146: 398.6966466 | D146: 135.6946954 | E146: 63655.76876 | F146: 0.075
A147: =ROWS(A$5:A147)-1 -> 142 | B147: =-PMT(F147/$F$2,COUNT(A147:$A$365),E146) -> 534.391342 | C147: 397.8485547 | D147: 136.5427873 | E147: 63519.22597 | F147: 0.075
A148: =ROWS(A$5:A148)-1 -> 143 | B148: =-PMT(F148/$F$2,COUNT(A148:$A$365),E147) -> 534.391342 | C148: 396.9951623 | D148: 137.3961797 | E148: 63381.82979 | F148: 0.075
A149: =ROWS(A$5:A149)-1 -> 144 | B149: =-PMT(F149/$F$2,COUNT(A149:$A$365),E148) -> 534.391342 | C149: 396.1364362 | D149: 138.2549058 | E149: 63243.57488 | F149: 0.075
A150: =ROWS(A$5:A150)-1 -> 145 | B150: =-PMT(F150/$F$2,COUNT(A150:$A$365),E149) -> 534.391342 | C150: 395.272343 | D150: 139.118999 | E150: 63104.45588 | F150: 0.075
A151: =ROWS(A$5:A151)-1 -> 146 | B151: =-PMT(F151/$F$2,COUNT(A151:$A$365),E150) -> 534.391342 | C151: 394.4028493 | D151: 139.9884927 | E151: 62964.46739 | F151: 0.075
A152: =ROWS(A$5:A152)-1 -> 147 | B152: =-PMT(F152/$F$2,COUNT(A152:$A$365),E151) -> 534.391342 | C152: 393.5279212 | D152: 140.8634208 | E152: 62823.60397 | F152: 0.075
A153: =ROWS(A$5:A153)-1 -> 148 | B153: =-PMT(F153/$F$2,COUNT(A153:$A$365),E152) -> 534.391342 | C153: 392.6475248 | D153: 141.7438172 | E153: 62681.86015 | F153: 0.075
A154: =ROWS(A$5:A154)-1 -> 149 | B154: =-PMT(F154/$F$2,COUNT(A154:$A$365),E153) -> 534.391342 | C154: 391.761626 | D154: 142.629716 | E154: 62539.23044 | F154: 0.075
A155: =ROWS(A$5:A155)-1 -> 150 | B155: =-PMT(F155/$F$2,COUNT(A155:$A$365),E154) -> 534.391342 | C155: 390.8701902 | D155: 143.5211518 | E155: 62395.70929 | F155: 0.075
A156: =ROWS(A$5:A156)-1 -> 151 | B156: =-PMT(F156/$F$2,COUNT(A156:$A$365),E155) -> 534.391342 | C156: 389.973183 | D156: 144.418159 | E156: 62251.29113 | F156: 0.075
A157: =ROWS(A$5:A157)-1 -> 152 | B157: =-PMT(F157/$F$2,COUNT(A157:$A$365),E156) -> 534.391342 | C157: 389.0705695 | D157: 145.3207724 | E157: 62105.97035 | F157: 0.075
A158: =ROWS(A$5:A158)-1 -> 153 | B158: =-PMT(F158/$F$2,COUNT(A158:$A$365),E157) -> 534.391342 | C158: 388.1623147 | D158: 146.2290273 | E158: 61959.74133 | F158: 0.075
A159: =ROWS(A$5:A159)-1 -> 154 | B159: =-PMT(F159/$F$2,COUNT(A159:$A$365),E158) -> 534.391342 | C159: 387.2483833 | D159: 147.1429587 | E159: 61812.59837 | F159: 0.075
A160: =ROWS(A$5:A160)-1 -> 155 | B160: =-PMT(F160/$F$2,COUNT(A160:$A$365),E159) -> 534.391342 | C160: 386.3287398 | D160: 148.0626022 | E160: 61664.53577 | F160: 0.075
A161: =ROWS(A$5:A161)-1 -> 156 | B161: =-PMT(F161/$F$2,COUNT(A161:$A$365),E160) -> 534.391342 | C161: 385.4033485 | D161: 148.9879935 | E161: 61515.54777 | F161: 0.075
A162: =ROWS(A$5:A162)-1 -> 157 | B162: =-PMT(F162/$F$2,COUNT(A162:$A$365),E161) -> 534.391342 | C162: 384.4721736 | D162: 149.9191684 | E162: 61365.6286 | F162: 0.075
A163: =ROWS(A$5:A163)-1 -> 158 | B163: =-PMT(F163/$F$2,COUNT(A163:$A$365),E162) -> 534.391342 | C163: 383.5351788 | D163: 150.8561632 | E163: 61214.77244 | F163: 0.075
A164: =ROWS(A$5:A164)-1 -> 159 | B164: =-PMT(F164/$F$2,COUNT(A164:$A$365),E163) -> 534.391342 | C164: 382.5923278 | D164: 151.7990142 | E164: 61062.97343 | F164: 0.075
A165: =ROWS(A$5:A165)-1 -> 160 | B165: =-PMT(F165/$F$2,COUNT(A165:$A$365),E164) -> 534.391342 | C165: 381.6435839 | D165: 152.7477581 | E165: 60910.22567 | F165: 0.075
A166: =ROWS(A$5:A166)-1 -> 161 | B166: =-PMT(F166/$F$2,COUNT(A166:$A$365),E165) -> 534.391342 | C166: 380.6889104 | D166: 153.7024316 | E166: 60756.52324 | F166: 0.075
A167: =ROWS(A$5:A167)-1 -> 162 | B167: =-PMT(F167/$F$2,COUNT(A167:$A$365),E166) -> 534.391342 | C167: 379.7282702 | D167: 154.6630718 | E167: 60601.86017 | F167: 0.075
A168: =ROWS(A$5:A168)-1 -> 163 | B168: =-PMT(F168/$F$2,COUNT(A168:$A$365),E167) -> 534.391342 | C168: 378.761626 | D168: 155.629716 | E168: 60446.23045 | F168: 0.075
A169: =ROWS(A$5:A169)-1 -> 164 | B169: =-PMT(F169/$F$2,COUNT(A169:$A$365),E168) -> 534.391342 | C169: 377.7889403 | D169: 156.6024017 | E169: 60289.62805 | F169: 0.075
A170: =ROWS(A$5:A170)-1 -> 165 | B170: =-PMT(F170/$F$2,COUNT(A170:$A$365),E169) -> 534.391342 | C170: 376.8101753 | D170: 157.5811667 | E170: 60132.04688 | F170: 0.075
A171: =ROWS(A$5:A171)-1 -> 166 | B171: =-PMT(F171/$F$2,COUNT(A171:$A$365),E170) -> 534.391342 | C171: 375.825293 | D171: 158.566049 | E171: 59973.48083 | F171: 0.075
A172: =ROWS(A$5:A172)-1 -> 167 | B172: =-PMT(F172/$F$2,COUNT(A172:$A$365),E171) -> 534.391342 | C172: 374.8342552 | D172: 159.5570868 | E172: 59813.92375 | F172: 0.075
A173: =ROWS(A$5:A173)-1 -> 168 | B173: =-PMT(F173/$F$2,COUNT(A173:$A$365),E172) -> 534.391342 | C173: 373.8370234 | D173: 160.5543186 | E173: 59653.36943 | F173: 0.075
A174: =ROWS(A$5:A174)-1 -> 169 | B174: =-PMT(F174/$F$2,COUNT(A174:$A$365),E173) -> 534.391342 | C174: 372.8335589 | D174: 161.5577831 | E174: 59491.81164 | F174: 0.075
A175: =ROWS(A$5:A175)-1 -> 170 | B175: =-PMT(F175/$F$2,COUNT(A175:$A$365),E174) -> 534.391342 | C175: 371.8238228 | D175: 162.5675192 | E175: 59329.24412 | F175: 0.075
A176: =ROWS(A$5:A176)-1 -> 171 | B176: =-PMT(F176/$F$2,COUNT(A176:$A$365),E175) -> 534.391342 | C176: 370.8077758 | D176: 163.5835662 | E176: 59165.66056 | F176: 0.075
A177: =ROWS(A$5:A177)-1 -> 172 | B177: =-PMT(F177/$F$2,COUNT(A177:$A$365),E176) -> 534.391342 | C177: 369.7853785 | D177: 164.6059635 | E177: 59001.05459 | F177: 0.075
A178: =ROWS(A$5:A178)-1 -> 173 | B178: =-PMT(F178/$F$2,COUNT(A178:$A$365),E177) -> 534.391342 | C178: 368.7565912 | D178: 165.6347508 | E178: 58835.41984 | F178: 0.075
A179: =ROWS(A$5:A179)-1 -> 174 | B179: =-PMT(F179/$F$2,COUNT(A179:$A$365),E178) -> 534.391342 | C179: 367.721374 | D179: 166.669968 | E179: 58668.74988 | F179: 0.075
A180: =ROWS(A$5:A180)-1 -> 175 | B180: =-PMT(F180/$F$2,COUNT(A180:$A$365),E179) -> 534.391342 | C180: 366.6796867 | D180: 167.7116553 | E180: 58501.03822 | F180: 0.075
A181: =ROWS(A$5:A181)-1 -> 176 | B181: =-PMT(F181/$F$2,COUNT(A181:$A$365),E180) -> 534.391342 | C181: 365.6314889 | D181: 168.7598531 | E181: 58332.27837 | F181: 0.075
A182: =ROWS(A$5:A182)-1 -> 177 | B182: =-PMT(F182/$F$2,COUNT(A182:$A$365),E181) -> 534.391342 | C182: 364.5767398 | D182: 169.8146022 | E182: 58162.46377 | F182: 0.075
A183: =ROWS(A$5:A183)-1 -> 178 | B183: =-PMT(F183/$F$2,COUNT(A183:$A$365),E182) -> 534.391342 | C183: 363.5153985 | D183: 170.8759435 | E183: 57991.58782 | F183: 0.075
A184: =ROWS(A$5:A184)-1 -> 179 | B184: =-PMT(F184/$F$2,COUNT(A184:$A$365),E183) -> 534.391342 | C184: 362.4474239 | D184: 171.9439181 | E184: 57819.6439 | F184: 0.075
A185: =ROWS(A$5:A185)-1 -> 180 | B185: =-PMT(F185/$F$2,COUNT(A185:$A$365),E184) -> 534.391342 | C185: 361.3727744 | D185: 173.0185676 | E185: 57646.62534 | F185: 0.075
A186: =ROWS(A$5:A186)-1 -> 181 | B186: =-PMT(F186/$F$2,COUNT(A186:$A$365),E185) -> 534.391342 | C186: 360.2914084 | D186: 174.0999336 | E186: 57472.5254 | F186: 0.075
A187: =ROWS(A$5:A187)-1 -> 182 | B187: =-PMT(F187/$F$2,COUNT(A187:$A$365),E186) -> 534.391342 | C187: 359.2032838 | D187: 175.1880582 | E187: 57297.33734 | F187: 0.075
A188: =ROWS(A$5:A188)-1 -> 183 | B188: =-PMT(F188/$F$2,COUNT(A188:$A$365),E187) -> 534.391342 | C188: 358.1083584 | D188: 176.2829836 | E188: 57121.05436 | F188: 0.075
A189: =ROWS(A$5:A189)-1 -> 184 | B189: =-PMT(F189/$F$2,COUNT(A189:$A$365),E188) -> 534.391342 | C189: 357.0065898 | D189: 177.3847522 | E189: 56943.66961 | F189: 0.075
A190: =ROWS(A$5:A190)-1 -> 185 | B190: =-PMT(F190/$F$2,COUNT(A190:$A$365),E189) -> 534.391342 | C190: 355.8979351 | D190: 178.4934069 | E190: 56765.1762 | F190: 0.075
A191: =ROWS(A$5:A191)-1 -> 186 | B191: =-PMT(F191/$F$2,COUNT(A191:$A$365),E190) -> 534.391342 | C191: 354.7823513 | D191: 179.6089907 | E191: 56585.56721 | F191: 0.075
A192: =ROWS(A$5:A192)-1 -> 187 | B192: =-PMT(F192/$F$2,COUNT(A192:$A$365),E191) -> 534.391342 | C192: 353.6597951 | D192: 180.7315469 | E192: 56404.83566 | F192: 0.075
A193: =ROWS(A$5:A193)-1 -> 188 | B193: =-PMT(F193/$F$2,COUNT(A193:$A$365),E192) -> 534.391342 | C193: 352.5302229 | D193: 181.8611191 | E193: 56222.97454 | F193: 0.075
A194: =ROWS(A$5:A194)-1 -> 189 | B194: =-PMT(F194/$F$2,COUNT(A194:$A$365),E193) -> 534.391342 | C194: 351.3935909 | D194: 182.9977511 | E194: 56039.97679 | F194: 0.075
A195: =ROWS(A$5:A195)-1 -> 190 | B195: =-PMT(F195/$F$2,COUNT(A195:$A$365),E194) -> 534.391342 | C195: 350.249855 | D195: 184.141487 | E195: 55855.83531 | F195: 0.075
A196: =ROWS(A$5:A196)-1 -> 191 | B196: =-PMT(F196/$F$2,COUNT(A196:$A$365),E195) -> 534.391342 | C196: 349.0989707 | D196: 185.2923713 | E196: 55670.54294 | F196: 0.075
A197: =ROWS(A$5:A197)-1 -> 192 | B197: =-PMT(F197/$F$2,COUNT(A197:$A$365),E196) -> 534.391342 | C197: 347.9408933 | D197: 186.4504486 | E197: 55484.09249 | F197: 0.075
A198: =ROWS(A$5:A198)-1 -> 193 | B198: =-PMT(F198/$F$2,COUNT(A198:$A$365),E197) -> 534.391342 | C198: 346.775578 | D198: 187.6157639 | E198: =E197-D198-G198 -> 55296.47672 | F198: 0.075
A199: =ROWS(A$5:A199)-1 -> 194 | B199: =-PMT(F199/$F$2,COUNT(A199:$A$365),E198) -> 534.391342 | C199: =E198*F199/$F$2 -> 345.6029795 | D199: =B199-C199 -> 188.7883625 | E199: 55107.68836 | F199: 0.075
A200: =ROWS(A$5:A200)-1 -> 195 | B200: =-PMT(F200/$F$2,COUNT(A200:$A$365),E199) -> 534.391342 | C200: 344.4230523 | D200: 189.9682897 | E200: 54917.72007 | F200: 0.075
A201: =ROWS(A$5:A201)-1 -> 196 | B201: =-PMT(F201/$F$2,COUNT(A201:$A$365),E200) -> 534.391342 | C201: 343.2357504 | D201: 191.1555916 | E201: 54726.56448 | F201: 0.075
... 164 more rows

Sheet Styles(1)
A2: Invoice # | B2: Date | C2: SalesRep | D2: Product sold | E2: UnitsSold | F2: Total Sales
A3: 5513 | B3: 2010-01-10 | C3: Bill | D3: Boom 5 | E3: 26 | F3: 364
A4: 5514 | B4: 2010-01-10 | C4: Tina | D4: Boom 1 | E4: 21 | F4: 210
A5: 5515 | B5: 2010-01-10 | C5: Bob | D5: Boom 11 | E5: 10 | F5: 189.5
A6: 5516 | B6: 2010-01-10 | C6: Bob | D6: Boom 2 | E6: 12 | F6: 144
A7: 5517 | B7: 2010-01-10 | C7: Bob | D7: Boom 9 | E7: 10 | F7: 169.5
A8: 5518 | B8: 2010-01-10 | C8: Donita | D8: Boom 11 | E8: 13 | F8: 246.35
A9: 5519 | B9: 2010-01-10 | C9: Chin | D9: Boom 4 | E9: 18 | F9: 233.1
A10: 5520 | B10: 2010-01-10 | C10: Bill | D10: Boom 8 | E10: 8 | F10: 127.6
A11: 5521 | B11: 2010-01-10 | C11: Sioux | D11: Boom 8 | E11: 26 | F11: 414.7
A12: 5522 | B12: 2010-01-10 | C12: Donita | D12: Boom 2 | E12: 28 | F12: 336
A13: 5523 | B13: 2010-01-10 | C13: Donita | D13: Boom 7 | E13: 17 | F13: 271.15
A14: 5524 | B14: 2010-01-10 | C14: Sioux | D14: Boom 15 | E14: 13 | F14: 567.97
A15: 5525 | B15: 2010-01-10 | C15: Shelia | D15: Boom 1 | E15: 20 | F15: 200

Sheet Styles(2)
A1: Wind Sport Inc.
B2: Jul | C2: Aug | D2: Sep | E2: Oct | F2: Nov | G2: Dec
A3: Boomerangs | B3: =B11*1.075 -> 376.25 | C3: 293.475 | D3: 403.125 | E3: 537.5 | F3: 1026.625 | G3: 1173.9
A4: Kites | B4: 1028.775 | C4: 994.375 | D4: 1343.75 | E4: 1182.5 | F4: 2160.75 | G4: 2461.75
A5: Toys | B5: 172 | C5: 236.5 | D5: 312.825 | E5: 479.45 | F5: 577.275 | G5: 223.6
A6: Accessories | B6: 564.375 | C6: 671.875 | D6: 612.75 | E6: 915.9 | F6: 806.25 | G6: 618.125
A7: Total | B7: =SUM(B3:B6) -> 2141.4 | C7: =SUM(C3:C6) -> 2196.225 | D7: 2672.45 | E7: 3115.35 | F7: 4570.9 | G7: 4477.375
A9: Wind Sport Inc.
B10: Jan | C10: Feb | D10: Mar | E10: Apr | F10: May | G10: Jun
A11: Boomerangs | B11: 350 | C11: 273 | D11: 375 | E11: 500 | F11: 955 | G11: 1092
A12: Kites | B12: 957 | C12: 925 | D12: 1250 | E12: 1100 | F12: 2010 | G12: 2290
A13: Toys | B13: 160 | C13: 220 | D13: 291 | E13: 446 | F13: 537 | G13: 208
A14: Accessories | B14: 525 | C14: 625 | D14: 570 | E14: 852 | F14: 750 | G14: 575
A15: Total | B15: =SUM(B11:B14) -> 1992 | C15: 2043 | D15: 2486 | E15: 2898 | F15: 4252 | G15: 4165
A17: Cash Account
A18: Date | B18: DR | C18: CR | D18: Balance
D19: DR | E19: CR
A20: 2010-01-12 | B20: 500 | D20: =IF(OR($A20="",SUM($B$20:$B20)-SUM($C$20:$C20)<0),"",ABS(SUM($B$20:$B20)-SUM($C$20:$C20))) -> 500 | E20: =IF(OR($A20="",SUM($B$20:$B20)-SUM($C$20:$C20)>=0),"",ABS(SUM($B$20:$B20)-SUM($C$20:$C20))) -> 
A21: 2010-01-13 | C21: 600 | D21: =IF(OR($A21="",SUM($B$20:$B21)-SUM($C$20:$C21)<0),"",ABS(SUM($B$20:$B21)-SUM($C$20:$C21))) ->  | E21: =IF(OR($A21="",SUM($B$20:$B21)-SUM($C$20:$C21)>=0),"",ABS(SUM($B$20:$B21)-SUM($C$20:$C21))) -> 100
A22: 2010-01-14 | B22: 750 | D22: =IF(OR($A22="",SUM($B$20:$B22)-SUM($C$20:$C22)<0),"",ABS(SUM($B$20:$B22)-SUM($C$20:$C22))) -> 650 | E22: =IF(OR($A22="",SUM($B$20:$B22)-SUM($C$20:$C22)>=0),"",ABS(SUM($B$20:$B22)-SUM($C$20:$C22))) -> 
A23: 2010-01-15 | C23: 1000 | D23: =IF(OR($A23="",SUM($B$20:$B23)-SUM($C$20:$C23)<0),"",ABS(SUM($B$20:$B23)-SUM($C$20:$C23))) ->  | E23: =IF(OR($A23="",SUM($B$20:$B23)-SUM($C$20:$C23)>=0),"",ABS(SUM($B$20:$B23)-SUM($C$20:$C23))) -> 350
D24: =IF(OR($A24="",SUM($B$20:$B24)-SUM($C$20:$C24)<0),"",ABS(SUM($B$20:$B24)-SUM($C$20:$C24))) ->  | E24: =IF(OR($A24="",SUM($B$20:$B24)-SUM($C$20:$C24)>=0),"",ABS(SUM($B$20:$B24)-SUM($C$20:$C24))) -> 
D25: =IF(OR($A25="",SUM($B$20:$B25)-SUM($C$20:$C25)<0),"",ABS(SUM($B$20:$B25)-SUM($C$20:$C25))) ->  | E25: =IF(OR($A25="",SUM($B$20:$B25)-SUM($C$20:$C25)>=0),"",ABS(SUM($B$20:$B25)-SUM($C$20:$C25))) -> 
C26: Balance | D26: =IF(SUM($B$20:$B$25)>=SUM($C$20:$C$25),LOOKUP(10^10,D$20:D$25),"") ->  | E26: =IF(SUM($B$20:$B$25)<SUM($C$20:$C$25),LOOKUP(10^10,E$20:E$25),"") -> 350
C28: carry forward | E28: =SUM(D26:E26) -> 350

Sheet Formula(1)
A1: ="Cell "&ADDRESS(ROW(B4),COLUMN(B4),4)&" contains a formula because the 1st character in the cell is an equal sign and the cell does not have Text Number format" -> Cell B4 contains a formula because the 1st character in the cell is an equal sign and the cell does not have Text Number format
A2: Sales | B2: 100
A3: Expenses | B3: 91.25
A4: Net Income | B4: =B2-B3 -> 8.75 | D4: =B2-B3 -> 8.75
A6: ="Cell "&ADDRESS(ROW(B9),COLUMN(B9),4)&" does NOT contain a formula because the 1st character in the cell is a space" -> Cell B9 does NOT contain a formula because the 1st character in the cell is a space
A7: Sales | B7: 100
A8: Expenses | B8: 91.25 | E8: LEN function tells how many characters are in the cell
A9: Net Income | B9: =B7-B8 | D9: =B7-B8 -> 8.75 | E9: =LEN(B9) -> 7
A11: ="Cell "&ADDRESS(ROW(B9),COLUMN(B9),4)&" does NOT contain a formula because the Text Number format has been applied to the cell" -> Cell B9 does NOT contain a formula because the Text Number format has been applied to the cell
A12: Sales | B12: 100
A13: Expenses | B13: 91.25
A14: Net Income | B14: =B12-B13 | D14: =B12-B13 -> 8.75

Sheet Formula(2)
A1: Equal Sign, Cell References And Math Operator (Multiply *)
A2: Item | B2: 2 x 4 pine lumber
A3: ="Number of "&B2 -> Number of 2 x 4 pine lumber | B3: 15
A4: ="Price per "&B2 -> Price per 2 x 4 pine lumber | B4: 3.59
A5: Subtotal | B5: =B4*B3 -> 53.85
A7: Equal Sign, Cell Reference, Math Operator, Number
A8: Annual Insurance | B8: 5250 | C8: 12
A9: Monthly Allocation | B9: =B8/12 -> 437.5
A11: Equal Sign, Built-in Function, Range of Cells
A12: Student 1 | B12: 88.5
A13: Student 2 | B13: 92
A14: Student 3 | B14: 67
A15: Student 4 | B15: 78
A16: Average | B16: =AVERAGE(B12:B15) -> 81.375
A18: Equal Sign, Cell Reference, Math Operator, Built-in Function
A19: Revenue | B19: 15000
A20: Administrative Expense | B20: 4590
A21: Operational Expenses | B21: 8022
A22: Other Expenses | B22: 78
A23: Net Income | B23: =B19-SUM(B20:B22) -> 2310
A25: Equal Sign, Cell Reference, Comparative Operators
A26: DR | B26: CR
A27: 200 | B27: 200
A28: 50.01 | B28: 50.01
A29: 22.1 | B29: 22.1
A30: =SUM(A27:A29) -> 272.11 | B30: =SUM(B27:B29) -> 272.11
A32: In Balance? | B32: =A30=B30 -> TRUE
A34: Equal Sign, Cell Reference, Join Symbol (Ampersand = Shift + 7 = &), Text in Quotes
A35: First | B35: Last | C35: First & Last
A36: Bill | B36: Masters | C36: =A36&" "&B36 -> Bill Masters
A37: Tina | B37: Smith | C37: =A37&" "&B37 -> Tina Smith
A38: Sioux | B38: Lim | C38: Sioux Lim
A39: Sue | B39: Chin | C39: Sue Chin
A40: Luong | B40: Pham | C40: Luong Pham
A42: Sales | C42: Hurdle
A43: 512 | C43: 600
A44: 400 | C44: ="Number of Sales Greater Than "&DOLLAR(C43) -> Number of Sales Greater Than $600.00 | E44: <== Equal Sign, Text in Quotes, Join Symbol, Cell References, DOLLAR function
A45: 395 | C45: =COUNTIF(A43:A48,">"&C43) -> 2 | E45: <== Equal Sign, COUNTIF Function, Cell Range, Text in Quotes, Join Symbol, Cell Reference
A46: 875
A47: 652
A48: 395
A50: Equal Sign, SUM function, LARGE function, Cell Range, Array Constant
A51: MAXIMUM Time Aloft Score Sheet
A52: Thrower | B52: Throw 1 | C52: Throw 2 | D52: Throw 3 | E52: SUM of Best Two
A53: Daniel | B53: 45.99 | C53: 23.78 | D53: 51.02 | E53: =SUM(LARGE(B53:D53,{1,2})) -> 97.01
A54: Richard | B54: 40.22 | C54: 42.32 | D54: 43.69 | E54: =SUM(LARGE(B54:D54,{1,2})) -> 86.01
A55: Matt | B55: 37.55 | C55: 34.2 | D55: 31.5 | E55: =SUM(LARGE(B55:D55,{1,2})) -> 71.75
A56: Stevie | B56: 69.43 | C56: 0 | D56: 56.11 | E56: =SUM(LARGE(B56:D56,{1,2})) -> 125.54
A58: Not in Book at this point (we will cover thes later in this chapter, but this is a preview):
A60: EmployeeName | B60: LookupE-Mail
A61: Christina Kim | B61: =VLOOKUP(A61,A64:D71,4,0) -> Kim@gmail.com | C61: <<== Lookup formula
A63: EmployeeName | B63: Department | C63: HireDate | D63: E-Mail
A64: Sioux Timmy | B64: Accounting | C64: 2006-11-20 | D64: Timmy@yahoo.com
A65: John Pfeffer | B65: Finance | C65: 2011-01-28 | D65: Pfeffer@gmail.com
A66: Fred Smith | B66: Human Resource | C66: 2009-05-25 | D66: Smith@yahoo.com
A67: Ron Sabado | B67: Accounting | C67: 2009-09-17 | D67: Sabado@eif.com
A68: Christina Kim | B68: Accounting | C68: 2005-11-22 | D68: Kim@gmail.com
A69: Chin Pham | B69: Finance | C69: 2005-05-01 | D69: Pham@yahoo.com
A70: June Sunny | B70: Finance | C70: 2008-10-16 | D70: Sunny@yahoo.com
A71: Sheliadawn Bo | B71: Human Resource | C71: 2005-10-21 | D71: Bo@eif.com
A73: Date | B73: Sales | D73: Criteria = Year
A74: 2009-11-26 | B74: 790772 | D74: 2010
A75: 2010-01-25 | B75: 669253 | D75: Add
A76: 2011-01-30 | B76: 653699 | D76: =SUMPRODUCT(--(YEAR(A74:A81)=D74),B74:B81) -> 3048762
A77: 2010-10-05 | B77: 638300 | D77: < < < < < <
A78: 2010-01-26 | B78: 955656 | D78: Array Formula
A79: 2010-11-14 | B79: 785553
A80: 2009-10-22 | B80: 682300
A81: 2011-01-08 | B81: 623663
C83: =YEAR(A74) -> 2009

Sheet MathOperators
A1: Math Operators
A2: ( ) represents Parentheses | C2: Shift + 9 and Shift + 0
A3: ^ represents Exponents (powers and roots) | C3: Shift + 6
A4: * represents Multiplication | C4: * on Number pad
A5: / represents Division | C5: / on Number pad
A6: + represents Addition | C6: + on Number pad
A7: – represents Subtraction | C7: - on Number pad
A9: Comparative Operators
A10: > Greater Than
A11: >= Greater Than Or Equal To
A12: < Less Than
A13: <= Less Than Or Equal To
A14: = Equal To
A15: <> Not Equal To

Sheet OrderOfOperations
A1: Order of Operations | F1: Beg Qty | G1: End Qty | H1: Value Each | I1: COGS
A2: 1 | B2: Please | C2: Parenthesis | D2: ( ) | F2: 10 | G2: 3 | H2: 5 | I2: =F2-G2*H2 -> -5
A3: 2 | B3: Excuse | C3: Exponents | D3: ^ | F3: Beg Qty | G3: End Qty | H3: Value Each | I3: COGS | K3: COGS calculation
A4: 3 | B4: My Dear | C4: Multiply & Divide (Left to Right) | D4: * , / | F4: 10 | G4: 3 | H4: 5 | I4: =(F4-G4)*H4 -> 35 | K4: =F4&" - "&G4&" * "&H4&" = "&F4-G4*H4 -> 10 - 3 * 5 = -5
A5: 4 | B5: Aunt Sally | C5: Adding & Subtracting (Left To Right) | D5: + , - | K5: =M5&" - "&N5*O5&" = "&M5-N5*O5 -> 10 - 15 = -5 | M5: 10 | N5: 3 | O5: 5
K6: =M6-N6*O6&" = "&M6-N6*O6 -> -5 = -5 | M6: 10 | N6: 3 | O6: 5
C7: Excel's Order of Operations: | I7: 8+2*2
C8: Parenthesis ( ) | I8: =(8+2)*2 -> 20
C9: Ranges use of colon symbol ":" | I9: 8+2*2
C10: Example: =SUM(A1:A4) | E10: 9 | F10: 4 | G10: 32 | I10: =8+2*2 -> 12
C11: Evaluate intersections with spaces | E11: 14 | F11: 30 | G11: 7 | I11: =8+2*2 -> 12 | J11: =(8+2)*2 -> 20
C12: Example: =E12:G12 F10:F15 (retrieve what is in F12) | E12: 29 | F12: 29 | G12: 26
C13: Evaluate unions (,) | E13: 11 | F13: 26 | G13: 30
C14: Example: =SUM(E10:G10,E14:G14) | E14: 27 | F14: 20 | G14: 12
C15: Negation (-) | E15: 33 | F15: 27 | G15: 2
C16: Example: =-2^4 è 16
C17: Example: =-(2^4) è -16 | E17: Space | F17: =E12:G12 F10:F15 -> 29
C18: Converts % (1% è .01) | E18: Union | F18: =SUM(E10:G10,E14:G14) -> 104
C19: Exponents (^) | F19: =1000-SUM(F10:F15 E12:G12,E10:G10) -> 926
C20: Example: 4^(1/2) = 2 | F20: =1% -> 0.01
C21: Example: 3^2 = 9
C22: Multiplication (*) and division (/), left to right
C23: Adding (+) and subtracting (-), left to right
C24: Ampersand (&)
C25: Comparative symbols: =, <>, >=, <=, <, >
C26: If anything is still left, then left to right

Sheet OOO
A1: Sales | B1: Expenses | C1: Profit Hurdle | D1: Question | E1: Pass Hurdle = Bonus
A2: 500 | B2: 392 | C2: 100 | D2: ="Is "&A2&"-"&B2&" > "&C2&" TRUE or FALSE?" -> Is 500-392 > 100 TRUE or FALSE? | E2: =A2-B2>C2 -> TRUE | G2: value_if_true | H2: value_if_false | J2: =A2&" - "&B2&" > "&C2 -> 500 - 392 > 100
A3: 500 | B3: 392 | C3: 100 | D3: ="Is "&A3&"-"&B3&" > "&C3&", "&G3&" or "&H3&"?" -> Is 500-392 > 100, Yes or No? | E3: =IF(A3-B3>C3,G3,H3) -> Yes | G3: Yes | H3: No | J3: =A2-B2&" > "&C2 -> 108 > 100
A4: 500 | B4: 392 | C4: 100 | D4: ="Is "&A4&"-"&B4&" > "&C4&", "&G4&" or "&H4&"?" -> Is 500-392 > 100, 10 or 0? | E4: =IF(A4-B4>C4,G4,H4) -> 10 | G4: 10 | H4: 0 | J4: =A2-B2>C2 -> TRUE
C6: 700

Sheet 3WaysToGetCR
A1: Date | B1: Sales | C1: COGS | D1: Gross Profit | G1: Sales | H1: Earned | I1: Bonus | J1: Hurdle
A2: 2011-11-06 | B2: 7038 | C2: =B2*F$14 -> 4574.7 | D2: =B2-C2 -> 2463.3 | G2: 10000 | H2: =IF(G2>=J2,I2,0) -> 500 | I2: 500 | J2: 10000
A3: 2011-11-07 | B3: 5938 | C3: =B3*F$14 -> 3859.7 | D3: 2078.3
A4: 2011-11-08 | B4: 6578 | C4: =B4*F$14 -> 4275.7 | D4: 2302.3
A5: 2011-11-09 | B5: 7890 | C5: =B5*F14 -> 5128.5 | D5: =B5-C5 -> 2761.5
F13: COGS %
F14: 0.65

Sheet CR(1)
A1: Month | B1: Total Revenue | C1: Total Expenses | D1: Net Income
A2: Jan | B2: 20000 | C2: 13050 | D2: =B2-C2 -> 6950
A3: Feb | B3: 20300 | C3: 13245.75 | D3: =B3-C3 -> 7054.25
A4: Mar | B4: 20604.5 | C4: 13444.45 | D4: =B4-C4 -> 7160.05
A5: Apr | B5: 20913.57 | C5: 13646.11 | D5: 7267.46
A6: May | B6: 21227.27 | C6: 13850.81 | D6: 7376.46
A7: Jun | B7: 21545.68 | C7: 14058.54 | D7: =B7-C7 -> 7487.14

Sheet CR(2)
B1: Retail Selling Price by Margin
A2: Items | B2: =B18 -> 0.45 | C2: =B2+$B19 -> 0.5 | D2: =C2+$B19 -> 0.55 | E2: New Price | F2: New Price | G2: New Price
A3: =A12 -> Sofa | B3: =$B12/(1-B$2) -> 1087.272727 | C3: =$B12/(1-C$2) -> 1196 | D3: 1328.888889 | E3: =B3*$B$11 -> 1141.636364 | F3: 1255.8 | G3: 1395.333333
A4: Head Lamp | B4: =$B13/(1-B$2) -> 154.5454545 | C4: 170 | D4: 188.8888889 | E4: 162.2727273 | F4: 178.5 | G4: 198.3333333
A5: Table | B5: 276.3636364 | C5: 304 | D5: 337.7777778 | E5: 290.1818182 | F5: 319.2 | G5: 354.6666667
A6: Chair | B6: 180 | C6: 198 | D6: 220 | E6: 189 | F6: 207.9 | G6: 231
A7: Dining Set | B7: 1045.454545 | C7: 1150 | D7: 1277.777778 | E7: 1097.727273 | F7: 1207.5 | G7: 1341.666667
A8: Picture | B8: 45.45454545 | C8: 50 | D8: 55.55555556 | E8: 47.72727273 | F8: 52.5 | G8: 58.33333333
A10: Assumption Table
A11: Increase in Price | B11: 1.05
A12: Sofa | B12: 598
A13: Head Lamp | B13: 85
A14: Table | B14: 152
A15: Chair | B15: 99
A16: Dining Set | B16: 575
A17: Picture | B17: 25
A18: =B1&" Starting Point" -> Retail Selling Price by Margin Starting Point | B18: 0.45
A19: Increment | B19: 0.05

Sheet CR(3)
A1: Assumption Table contains Formula Inputs
A2: Commission Rate | B2: 0.04
A4: SalesRep | B4: Sales | C4: Earned Commision
A5: Abraham | B5: 1161 | C5: =B5*B$2 -> 46.44
A6: Hironobu | B6: 1321 | C6: =B6*B$2 -> 52.84
A7: Daniel | B7: 1039 | C7: 41.56
A8: Dante | B8: 1761 | C8: 70.44
A9: Sarah B | B9: 1561 | C9: 62.44
A10: Tonya | B10: 1868 | C10: 74.72
A11: Janita | B11: 2787 | C11: 111.48
A12: Debra | B12: 1849 | C12: 73.96
A13: Tiara | B13: 2627 | C13: 105.08
A14: Andrea | B14: 2165 | C14: 86.6
A15: Faye | B15: 1589 | C15: 63.56
A16: Viktor | B16: 2603 | C16: 104.12
A17: Na | B17: 2366 | C17: 94.64
A18: Ryan | B18: 2107 | C18: 84.28
A19: Damir | B19: 2886 | C19: 115.44
A20: Sunita | B20: 1886 | C20: 75.44
A21: Meghan | B21: 2177 | C21: 87.08
A22: Cynthia | B22: 1873 | C22: 74.92
A23: Trevor | B23: 2164 | C23: 86.56
A24: John | B24: 1394 | C24: 55.76
A25: Sang | B25: 2263 | C25: 90.52
A26: Dina | B26: 2242 | C26: 89.68
A27: Tony | B27: 1474 | C27: 58.96
A28: Nikolay | B28: 1998 | C28: 79.92
A29: Thanh | B29: 2892 | C29: 115.68
A30: Tracinda | B30: 1873 | C30: 74.92
A31: Denis | B31: 1954 | C31: 78.16
A32: Michael | B32: 1729 | C32: 69.16
A33: Svitlana Q | B33: 1140 | C33: 45.6
A34: Leslie | B34: 1528 | C34: 61.12
A35: Sarah | B35: 1659 | C35: 66.36
A36: Andra | B36: 2119 | C36: 84.76
A37: Christien | B37: 1854 | C37: 74.16
A38: Irina | B38: 2759 | C38: 110.36
A39: Chandy | B39: 1237 | C39: 49.48
A40: David | B40: 1653 | C40: 66.12
A41: Wendy | B41: 2604 | C41: 104.16
A42: Archie | B42: 1479 | C42: 59.16
A43: Desiree | B43: 2569 | C43: 102.76
A44: Denise | B44: 1941 | C44: 77.64
A45: Hillary | B45: 2793 | C45: 111.72
A46: Nicolas | B46: 2614 | C46: 104.56
A47: Ralph | B47: 1645 | C47: 65.8
A48: Konstanti | B48: 1733 | C48: 69.32
A49: Svitlana | B49: 2466 | C49: 98.64
A50: Ewelina | B50: 2833 | C50: 113.32
A51: Jori | B51: 1604 | C51: 64.16
A52: Abdullahi | B52: 2588 | C52: 103.52

Sheet CR(4)
B1: January | C1: February | D1: March | E1: April | F1: May | G1: June
A2: Revenue | B2: 20000 | C2: =B2*$B4 -> 20300 | D2: =C2*$B4 -> 20604.5 | E2: 20913.5675 | F2: 21227.27101 | G2: 21545.68008
A4: Increase each month | B4: 1.015
H5: Page 159 in Book ==>>
A8: Start | B8: % Change | C8: End
A9: 1000 | B9: 0.1 | C9: =A9*(1+B9) -> 1100
A10: 1000 | B10: -0.1 | C10: =A10*(1+B10) -> 900
A12: **Sometimes (1+%change) is called the "Rate".
A14: Start | B14: Rate | C14: End
A15: 1000 | B15: 1.1 | C15: =A15*B15 -> 1100
A16: 1000 | B16: 0.9 | C16: =A16*B16 -> 900

Sheet CR(5)
A1: Yearly PMT | B1: -3000
A3: What will your Pension be worth when you retire?
A4: Years/Rate | B4: =B17 -> 0.06 | C4: =B4+$B18 -> 0.07 | D4: =C4+$B18 -> 0.08 | E4: =D4+$B18 -> 0.09 | F4: =E4+$B18 -> 0.1 | G4: =F4+$B18 -> 0.11
A5: =B19 -> 5 | B5: =FV(B$4,$A5,$B$1) -> 16911.27888 | C5: 17252.21703 | D5: 17599.80288 | E5: 17954.13183 | F5: 18315.3 | G5: 18683.40423
A6: =A5+B$20 -> 10 | B6: 39542.38483 | C6: 41449.34388 | D6: 43459.6874 | E6: 45578.78915 | F6: 47812.2738 | G6: 50166.02689
A7: 15 | B7: 69827.90965 | C7: 75387.06603 | D7: 81456.34178 | E7: 88082.74866 | F7: 95317.44508 | G7: 103216.077
A8: 20 | B8: 110356.7736 | C8: 122986.477 | D8: 137285.8929 | E8: 153480.3589 | F8: 171824.9985 | G8: 192608.4964
A9: 25 | B9: 164593.536 | C9: 189747.1131 | D9: 219317.8199 | E9: 254102.6887 | F9: 295041.1783 | G9: 343239.9219
A10: 30 | B10: 237174.5586 | C10: 283382.359 | D10: 339849.6333 | E10: 408922.6156 | F10: 493482.0681 | G10: 597062.6338
A11: 35 | B11: 334304.3396 | C11: 414710.6351 | D11: 516950.411 | E11: 647132.264 | F11: 813073.1054 | G11: 1024768.664
A12: 40 | B12: 464285.8969 | C12: 598905.336 | D12: 777169.5561 | E12: 1013647.335 | F12: 1327777.667 | G12: 1745478.199
A13: 45 | B13: 638230.5414 | C13: 857247.9325 | D13: 1159516.852 | E13: 1577576.203 | F13: 2156714.511 | G13: 2959915.678
A16: Assumption Table
A17: Start rate | B17: 0.06
A18: increment | B18: 0.01
A19: Start years | B19: 5
A20: Increment | B20: 5

Sheet CR(6)
B1: Multiplication Table
B2: Column Headers
A3: Row Headers | C3: =COLUMNS($C3:C3) -> 1 | D3: =COLUMNS($C3:D3) -> 2 | E3: =COLUMNS($C3:E3) -> 3 | F3: =COLUMNS($C3:F3) -> 4 | G3: =COLUMNS($C3:G3) -> 5 | H3: =COLUMNS($C3:H3) -> 6 | I3: =COLUMNS($C3:I3) -> 7 | J3: =COLUMNS($C3:J3) -> 8 | K3: =COLUMNS($C3:K3) -> 9 | L3: =COLUMNS($C3:L3) -> 10 | M3: =COLUMNS($C3:M3) -> 11 | N3: =COLUMNS($C3:N3) -> 12
B4: =ROWS(B$4:B4) -> 1 | C4: =$B4*C$3 -> 1 | D4: 2 | E4: 3 | F4: 4 | G4: 5 | H4: 6 | I4: 7 | J4: 8 | K4: 9 | L4: 10 | M4: 11 | N4: 12
B5: =ROWS(B$4:B5) -> 2 | C5: 2 | D5: 4 | E5: 6 | F5: 8 | G5: 10 | H5: 12 | I5: 14 | J5: 16 | K5: 18 | L5: 20 | M5: 22 | N5: 24
B6: =ROWS(B$4:B6) -> 3 | C6: 3 | D6: 6 | E6: 9 | F6: 12 | G6: 15 | H6: 18 | I6: 21 | J6: 24 | K6: 27 | L6: 30 | M6: 33 | N6: 36
B7: =ROWS(B$4:B7) -> 4 | C7: 4 | D7: 8 | E7: 12 | F7: 16 | G7: 20 | H7: 24 | I7: 28 | J7: 32 | K7: 36 | L7: 40 | M7: 44 | N7: 48
B8: =ROWS(B$4:B8) -> 5 | C8: 5 | D8: 10 | E8: 15 | F8: 20 | G8: 25 | H8: 30 | I8: 35 | J8: 40 | K8: 45 | L8: 50 | M8: 55 | N8: 60
B9: =ROWS(B$4:B9) -> 6 | C9: 6 | D9: 12 | E9: 18 | F9: 24 | G9: 30 | H9: 36 | I9: 42 | J9: 48 | K9: 54 | L9: 60 | M9: 66 | N9: 72
B10: =ROWS(B$4:B10) -> 7 | C10: 7 | D10: 14 | E10: 21 | F10: 28 | G10: 35 | H10: 42 | I10: 49 | J10: 56 | K10: 63 | L10: 70 | M10: 77 | N10: 84
B11: =ROWS(B$4:B11) -> 8 | C11: 8 | D11: 16 | E11: 24 | F11: 32 | G11: 40 | H11: 48 | I11: 56 | J11: 64 | K11: 72 | L11: 80 | M11: 88 | N11: 96
B12: =ROWS(B$4:B12) -> 9 | C12: 9 | D12: 18 | E12: 27 | F12: 36 | G12: 45 | H12: 54 | I12: 63 | J12: 72 | K12: 81 | L12: 90 | M12: 99 | N12: 108
B13: =ROWS(B$4:B13) -> 10 | C13: 10 | D13: 20 | E13: 30 | F13: 40 | G13: 50 | H13: 60 | I13: 70 | J13: 80 | K13: 90 | L13: 100 | M13: 110 | N13: 120
B14: =ROWS(B$4:B14) -> 11 | C14: 11 | D14: 22 | E14: 33 | F14: 44 | G14: 55 | H14: 66 | I14: 77 | J14: 88 | K14: 99 | L14: 110 | M14: 121 | N14: 132
B15: =ROWS(B$4:B15) -> 12 | C15: 12 | D15: 24 | E15: 36 | F15: 48 | G15: 60 | H15: 72 | I15: 84 | J15: 96 | K15: 108 | L15: 120 | M15: 132 | N15: 144

Sheet CR(7)
A1: Date | B1: SalesRep | C1: ProductSold | D1: UnitsSold | E1: Sales | G1: SalesRep | H1: Total Sales | J1: 2003 and earlier formula
A2: 2010-01-08 | B2: Tina | C2: Boom 15 | D2: 27 | E2: 1179.63 | G2: Tina | H2: =SUMIFS(E$2:E$19,B$2:B$19,G2) -> 2641.48 | J2: =SUMIF(B$2:B$19,G2,E$2:E$19) -> 2641.48 | L2: =SUMIF(B$2:B$19,G2,E$2) -> 2641.48
A3: 2010-01-03 | B3: Shelia | C3: Boom 15 | D3: 20 | E3: 873.8 | G3: Shelia | H3: =SUMIFS(E$2:E$19,B$2:B$19,G3) -> 1314.2 | J3: =SUMIF(B$2:B$19,G3,E$2:E$19) -> 1314.2 | L3: =SUMIF(B$2:B$19,G3,E$2) -> 1314.2
A4: 2010-01-06 | B4: Tina | C4: Boom 14 | D4: 23 | E4: 757.85 | G4: Bob | H4: 1080.7 | J4: 1080.7 | K4: or | L4: 1080.7
A5: 2010-01-01 | B5: Bob | C5: Boom 11 | D5: 26 | E5: 492.7 | G5: Sioux | H5: 343.85 | J5: 343.85 | L5: 343.85
A6: 2010-01-06 | B6: Tina | C6: Boom 5 | D6: 25 | E6: 350 | G6: Donita | H6: 534.4 | J6: 534.4 | L6: 534.4
A7: 2010-01-08 | B7: Sioux | C7: Boom 6 | D7: 23 | E7: 343.85 | G7: Chin | H7: 302 | J7: 302 | L7: 302
A8: 2010-01-02 | B8: Bob | C8: Boom 5 | D8: 24 | E8: 336 | G8: Don | H8: =SUMIFS(E$2:E$19,B$2:B$19,G8) -> 29 | J8: 29 | L8: 29
A9: 2010-01-05 | B9: Donita | C9: Boom 6 | D9: 18 | E9: 269.1
A10: 2010-01-07 | B10: Donita | C10: Boom 11 | D10: 14 | E10: 265.3
A11: 2010-01-08 | B11: Bob | C11: Boom 10 | D11: 14 | E11: 252
A12: 2010-01-07 | B12: Tina | C12: Boom 10 | D12: 13 | E12: 234
A13: 2010-01-06 | B13: Chin | C13: Boom 5 | D13: 13 | E13: 182
A14: 2010-01-03 | B14: Shelia | C14: Boom 8 | D14: 10 | E14: 159.5
A15: 2010-01-07 | B15: Shelia | C15: Boom 13 | D15: 6 | E15: 153.3
A16: 2010-01-06 | B16: Shelia | C16: Boom 8 | D16: 8 | E16: 127.6
A17: 2010-01-06 | B17: Chin | C17: Boom 2 | D17: 10 | E17: 120
A18: 2010-01-08 | B18: Tina | C18: Boom 1 | D18: 12 | E18: 120
A19: 2010-01-09 | B19: Don | C19: Boom 10 | D19: 1 | E19: 29
A22: Date | B22: Product | C22: Region | D22: SalesRep | E22: Customer | F22: Units | G22: Sales | H22: COGS | J22: Product/Region | K22: East | L22: MidWest | M22: West | N22: South
A23: 2011-01-13 | B23: Sunshine | C23: East | D23: Franks | E23: KBTB | F23: 58 | G23: 1102 | H23: 464 | J23: Sunshine | K23: =SUMIFS($G$23:$G$127,$B$23:$B$127,$J23,$C$23:$C$127,K$22) -> 4313 | L23: =SUMIFS($G$23:$G$127,$B$23:$B$127,$J23,$C$23:$C$127,L$22) -> 3933 | M23: 5415 | N23: 2812
A24: 2011-01-15 | B24: Sunshine | C24: MidWest | D24: Sioux | E24: MNGD | F24: 17 | G24: 323 | H24: 136 | J24: Carlota | K24: =SUMIFS($G$23:$G$127,$B$23:$B$127,$J24,$C$23:$C$127,K$22) -> 2530 | L24: 7981 | M24: 4485 | N24: 4876
A25: 2011-01-25 | B25: Sunshine | C25: West | D25: Franks | E25: JAQ | F25: 59 | G25: 1121 | H25: 472 | J25: Sunset | K25: 420 | L25: 6216 | M25: 2058 | N25: 3486
A26: 2011-01-03 | B26: Carlota | C26: MidWest | D26: Chin | E26: FRED | F26: 55 | G26: 1265 | H26: 605 | J26: Quad | K26: 5805 | L26: 7749 | M26: 5454 | N26: 3078
A27: 2011-01-27 | B27: Sunset | C27: MidWest | D27: Franks | E27: WFMI | F27: 44 | G27: 924 | H27: 407 | J27: Bellen | K27: 3586 | L27: 1276 | M27: 4400 | N27: 2090
A28: 2011-01-14 | B28: Quad | C28: MidWest | D28: Smith | E28: TTT | F28: 61 | G28: 1647 | H28: 884.5
A29: 2011-01-08 | B29: Quad | C29: MidWest | D29: Franks | E29: ET | F29: 50 | G29: 1350 | H29: 725
A30: 2011-01-16 | B30: Quad | C30: East | D30: Pham | E30: FM | F30: 59 | G30: 1593 | H30: 855.5
A31: 2011-01-07 | B31: Quad | C31: East | D31: Sioux | E31: EPP | F31: 36 | G31: 972 | H31: 522
A32: 2011-01-15 | B32: Sunset | C32: East | D32: Chin | E32: FRED | F32: 14 | G32: 294 | H32: 129.5
A33: 2011-01-20 | B33: Quad | C33: South | D33: Pham | E33: T | F33: 38 | G33: 1026 | H33: 551 | J33: 2003 and earlier formula
A34: 2011-01-27 | B34: Carlota | C34: MidWest | D34: Sioux | E34: LOP | F34: 63 | G34: 1449 | H34: 693 | J34: Product/Region | K34: East | L34: MidWest | M34: West | N34: South
A35: 2011-01-08 | B35: Sunshine | C35: East | D35: Gault | E35: PSA | F35: 9 | G35: 171 | H35: 72 | J35: Sunshine | K35: =SUMPRODUCT($G$23:$G$127,--($B$23:$B$127=$J35),--($C$23:$C$127=K$34)) -> 4313 | L35: 3933 | M35: 5415 | N35: 2812
A36: 2011-01-20 | B36: Carlota | C36: MidWest | D36: Chin | E36: T | F36: 65 | G36: 1495 | H36: 715 | J36: Carlota | K36: 2530 | L36: 7981 | M36: 4485 | N36: 4876
A37: 2011-01-05 | B37: Quad | C37: East | D37: Pham | E37: AST | F37: 35 | G37: 945 | H37: 507.5 | J37: Sunset | K37: 420 | L37: 6216 | M37: 2058 | N37: 3486
A38: 2011-01-12 | B38: Sunshine | C38: West | D38: Chin | E38: EPP | F38: 37 | G38: 703 | H38: 296 | J38: Quad | K38: 5805 | L38: 7749 | M38: 5454 | N38: 3078
A39: 2011-01-04 | B39: Sunshine | C39: East | D39: Pham | E39: SFWK | F39: 55 | G39: 1045 | H39: 440 | J39: Bellen | K39: 3586 | L39: 1276 | M39: 4400 | N39: 2090
A40: 2011-01-28 | B40: Sunshine | C40: South | D40: Smith | E40: KBTB | F40: 33 | G40: 627 | H40: 264
A41: 2011-01-04 | B41: Carlota | C41: East | D41: Chin | E41: WSD | F41: 28 | G41: 644 | H41: 308
A42: 2011-01-18 | B42: Quad | C42: East | D42: Sioux | E42: WFMI | F42: 10 | G42: 270 | H42: 145
A43: 2011-01-21 | B43: Bellen | C43: East | D43: Chin | E43: QT | F43: 30 | G43: 660 | H43: 300
A44: 2011-01-01 | B44: Sunshine | C44: West | D44: Pham | E44: TTT | F44: 26 | G44: 494 | H44: 208
A45: 2011-01-23 | B45: Sunset | C45: East | D45: Chin | E45: DFR | F45: 6 | G45: 126 | H45: 55.5
A46: 2011-01-25 | B46: Quad | C46: MidWest | D46: Franks | E46: EPP | F46: 41 | G46: 1107 | H46: 594.5
A47: 2011-01-19 | B47: Quad | C47: West | D47: Smith | E47: HII | F47: 26 | G47: 702 | H47: 377
A48: 2011-01-29 | B48: Sunshine | C48: MidWest | D48: Gault | E48: SFWK | F48: 45 | G48: 855 | H48: 360
A49: 2011-01-29 | B49: Sunset | C49: South | D49: Gault | E49: ITW | F49: 15 | G49: 315 | H49: 138.75
A50: 2011-01-22 | B50: Carlota | C50: West | D50: Chin | E50: KBTB | F50: 65 | G50: 1495 | H50: 715
A51: 2011-01-30 | B51: Quad | C51: East | D51: Franks | E51: HII | F51: 14 | G51: 378 | H51: 203
A52: 2011-01-18 | B52: Bellen | C52: West | D52: Chin | E52: MNGD | F52: 56 | G52: 1232 | H52: 560
A53: 2011-01-01 | B53: Sunshine | C53: West | D53: Franks | E53: FM | F53: 11 | G53: 209 | H53: 88
A54: 2011-01-18 | B54: Quad | C54: West | D54: Smith | E54: AA | F54: 40 | G54: 1080 | H54: 580
A55: 2011-01-21 | B55: Quad | C55: MidWest | D55: Sioux | E55: KBTB | F55: 58 | G55: 1566 | H55: 841
A56: 2011-01-12 | B56: Carlota | C56: MidWest | D56: Chin | E56: WT | F56: 40 | G56: 920 | H56: 440
A57: 2011-01-16 | B57: Quad | C57: West | D57: Chin | E57: PCC | F57: 40 | G57: 1080 | H57: 580
A58: 2011-01-05 | B58: Carlota | C58: South | D58: Franks | E58: FM | F58: 11 | G58: 253 | H58: 121
A59: 2011-01-30 | B59: Bellen | C59: West | D59: Franks | E59: ZAT | F59: 17 | G59: 374 | H59: 170
A60: 2011-01-15 | B60: Quad | C60: East | D60: Gault | E60: WT | F60: 19 | G60: 513 | H60: 275.5
A61: 2011-01-30 | B61: Quad | C61: MidWest | D61: Gault | E61: EPP | F61: 15 | G61: 405 | H61: 217.5
A62: 2011-01-16 | B62: Sunshine | C62: East | D62: Gault | E62: WSD | F62: 57 | G62: 1083 | H62: 456
A63: 2011-01-24 | B63: Sunset | C63: MidWest | D63: Franks | E63: WSD | F63: 17 | G63: 357 | H63: 157.25
A64: 2011-01-26 | B64: Carlota | C64: South | D64: Smith | E64: TTT | F64: 31 | G64: 713 | H64: 341
A65: 2011-01-11 | B65: Sunset | C65: South | D65: Gault | E65: MBG | F65: 28 | G65: 588 | H65: 259
A66: 2011-01-06 | B66: Bellen | C66: MidWest | D66: Smith | E66: TRU | F66: 11 | G66: 242 | H66: 110
A67: 2011-01-09 | B67: Bellen | C67: East | D67: Smith | E67: EPP | F67: 20 | G67: 440 | H67: 200
A68: 2011-01-16 | B68: Quad | C68: East | D68: Sioux | E68: PLOT | F68: 8 | G68: 216 | H68: 116
A69: 2011-01-12 | B69: Quad | C69: West | D69: Franks | E69: EPP | F69: 34 | G69: 918 | H69: 493
A70: 2011-01-14 | B70: Carlota | C70: MidWest | D70: Sioux | E70: TRU | F70: 34 | G70: 782 | H70: 374
A71: 2011-01-02 | B71: Sunshine | C71: West | D71: Franks | E71: BBT | F71: 16 | G71: 304 | H71: 128
A72: 2011-01-10 | B72: Carlota | C72: East | D72: Chin | E72: TTT | F72: 32 | G72: 736 | H72: 352
A73: 2011-01-28 | B73: Sunset | C73: MidWest | D73: Sioux | E73: QT | F73: 61 | G73: 1281 | H73: 564.25
A74: 2011-01-11 | B74: Sunset | C74: South | D74: Franks | E74: TTT | F74: 59 | G74: 1239 | H74: 545.75
A75: 2011-01-03 | B75: Bellen | C75: South | D75: Chin | E75: TTT | F75: 30 | G75: 660 | H75: 300
A76: 2011-01-15 | B76: Bellen | C76: MidWest | D76: Pham | E76: LOP | F76: 22 | G76: 484 | H76: 220
A77: 2011-01-14 | B77: Carlota | C77: West | D77: Franks | E77: ET | F77: 6 | G77: 138 | H77: 66
A78: 2011-01-28 | B78: Quad | C78: MidWest | D78: Smith | E78: DFGH | F78: 16 | G78: 432 | H78: 232
A79: 2011-01-04 | B79: Quad | C79: East | D79: Sioux | E79: MBG | F79: 19 | G79: 513 | H79: 275.5
A80: 2011-01-13 | B80: Carlota | C80: South | D80: Chin | E80: AA | F80: 30 | G80: 690 | H80: 330
A81: 2011-01-12 | B81: Sunshine | C81: West | D81: Pham | E81: WFMI | F81: 62 | G81: 1178 | H81: 496
A82: 2011-01-24 | B82: Bellen | C82: MidWest | D82: Franks | E82: EPP | F82: 25 | G82: 550 | H82: 250
A83: 2011-01-14 | B83: Sunshine | C83: West | D83: Sioux | E83: FM | F83: 13 | G83: 247 | H83: 104
A84: 2011-01-06 | B84: Sunset | C84: MidWest | D84: Chin | E84: DFR | F84: 24 | G84: 504 | H84: 222
A85: 2011-01-19 | B85: Carlota | C85: South | D85: Pham | E85: GRR | F85: 51 | G85: 1173 | H85: 561
A86: 2011-01-27 | B86: Sunshine | C86: East | D86: Franks | E86: ITW | F86: 23 | G86: 437 | H86: 184
A87: 2011-01-21 | B87: Carlota | C87: West | D87: Pham | E87: WSD | F87: 41 | G87: 943 | H87: 451
A88: 2011-01-04 | B88: Sunshine | C88: West | D88: Pham | E88: FM | F88: 11 | G88: 209 | H88: 88
A89: 2011-01-04 | B89: Quad | C89: MidWest | D89: Franks | E89: TRU | F89: 19 | G89: 513 | H89: 275.5
A90: 2011-01-27 | B90: Bellen | C90: West | D90: Smith | E90: TRU | F90: 62 | G90: 1364 | H90: 620
A91: 2011-01-19 | B91: Sunshine | C91: South | D91: Pham | E91: ITW | F91: 48 | G91: 912 | H91: 384
A92: 2011-01-11 | B92: Bellen | C92: East | D92: Franks | E92: MNGD | F92: 34 | G92: 748 | H92: 340
A93: 2011-01-01 | B93: Carlota | C93: MidWest | D93: Franks | E93: JAQ | F93: 37 | G93: 851 | H93: 407
A94: 2011-01-05 | B94: Sunshine | C94: West | D94: Sioux | E94: WT | F94: 50 | G94: 950 | H94: 400
A95: 2011-01-15 | B95: Carlota | C95: West | D95: Smith | E95: TTT | F95: 51 | G95: 1173 | H95: 561
A96: 2011-01-23 | B96: Carlota | C96: West | D96: Pham | E96: ET | F96: 32 | G96: 736 | H96: 352
A97: 2011-01-07 | B97: Carlota | C97: South | D97: Chin | E97: JAQ | F97: 22 | G97: 506 | H97: 242
A98: 2011-01-16 | B98: Carlota | C98: South | D98: Sioux | E98: ZAT | F98: 33 | G98: 759 | H98: 363
A99: 2011-01-19 | B99: Bellen | C99: South | D99: Pham | E99: TTT | F99: 18 | G99: 396 | H99: 180
A100: 2011-01-28 | B100: Sunshine | C100: East | D100: Sioux | E100: QT | F100: 17 | G100: 323 | H100: 136
A101: 2011-01-16 | B101: Sunshine | C101: South | D101: Chin | E101: T | F101: 14 | G101: 266 | H101: 112
A102: 2011-01-15 | B102: Sunshine | C102: MidWest | D102: Pham | E102: DFGH | F102: 54 | G102: 1026 | H102: 432
A103: 2011-01-27 | B103: Bellen | C103: East | D103: Franks | E103: TTT | F103: 56 | G103: 1232 | H103: 560
A104: 2011-01-28 | B104: Bellen | C104: South | D104: Sioux | E104: WT | F104: 47 | G104: 1034 | H104: 470
A105: 2011-01-28 | B105: Bellen | C105: West | D105: Chin | E105: KPSA | F105: 65 | G105: 1430 | H105: 650
A106: 2011-01-15 | B106: Sunset | C106: MidWest | D106: Franks | E106: FM | F106: 56 | G106: 1176 | H106: 518
A107: 2011-01-14 | B107: Quad | C107: South | D107: Pham | E107: AA | F107: 64 | G107: 1728 | H107: 928
A108: 2011-01-19 | B108: Sunset | C108: MidWest | D108: Smith | E108: DDH | F108: 63 | G108: 1323 | H108: 582.75
A109: 2011-01-29 | B109: Sunset | C109: West | D109: Smith | E109: TTT | F109: 25 | G109: 525 | H109: 231.25
A110: 2011-01-17 | B110: Quad | C110: East | D110: Franks | E110: SFWK | F110: 15 | G110: 405 | H110: 217.5
A111: 2011-01-30 | B111: Sunshine | C111: MidWest | D111: Franks | E111: LOP | F111: 42 | G111: 798 | H111: 336
A112: 2011-01-16 | B112: Sunset | C112: MidWest | D112: Pham | E112: JAQ | F112: 31 | G112: 651 | H112: 286.75
A113: 2011-01-19 | B113: Sunset | C113: West | D113: Gault | E113: QT | F113: 32 | G113: 672 | H113: 296
A114: 2011-01-05 | B114: Carlota | C114: South | D114: Sioux | E114: WSD | F114: 34 | G114: 782 | H114: 374
A115: 2011-01-18 | B115: Carlota | C115: East | D115: Chin | E115: TRU | F115: 50 | G115: 1150 | H115: 550
A116: 2011-01-08 | B116: Sunshine | C116: South | D116: Sioux | E116: ZAT | F116: 53 | G116: 1007 | H116: 424
A117: 2011-01-10 | B117: Quad | C117: MidWest | D117: Sioux | E117: KPSA | F117: 27 | G117: 729 | H117: 391.5
A118: 2011-01-05 | B118: Bellen | C118: East | D118: Gault | E118: WSD | F118: 23 | G118: 506 | H118: 230
A119: 2011-01-15 | B119: Quad | C119: West | D119: Chin | E119: MBG | F119: 12 | G119: 324 | H119: 174
A120: 2011-01-17 | B120: Quad | C120: West | D120: Chin | E120: HII | F120: 50 | G120: 1350 | H120: 725
A121: 2011-01-26 | B121: Sunshine | C121: MidWest | D121: Smith | E121: TRU | F121: 49 | G121: 931 | H121: 392
A122: 2011-01-11 | B122: Sunset | C122: South | D122: Smith | E122: HII | F122: 17 | G122: 357 | H122: 157.25
A123: 2011-01-04 | B123: Quad | C123: South | D123: Sioux | E123: ET | F123: 12 | G123: 324 | H123: 174
A124: 2011-01-21 | B124: Carlota | C124: MidWest | D124: Chin | E124: BBT | F124: 53 | G124: 1219 | H124: 583
A125: 2011-01-22 | B125: Sunset | C125: West | D125: Franks | E125: AA | F125: 41 | G125: 861 | H125: 379.25
A126: 2011-01-10 | B126: Sunshine | C126: East | D126: Franks | E126: JAQ | F126: 8 | G126: 152 | H126: 64
A127: 2011-01-12 | B127: Sunset | C127: South | D127: Franks | E127: QT | F127: 47 | G127: 987 | H127: 434.75

Sheet Assumption
A1: Budget
B2: Jan | C2: Feb | D2: Mar | E2: Apr | F2: May | G2: Jun | H2: Total
A3: Revenue | B3: 1000 | C3: 1250 | D3: 1370 | E3: 1250 | F3: 2000 | G3: 2215 | H3: =SUM(B3:G3) -> 9085
A4: =A14 -> Expense1 | B4: =B$3*$B14 -> 300 | C4: =C$3*$B14 -> 375 | D4: 411 | E4: 375 | F4: 600 | G4: 664.5 | H4: 2725.5
A5: Expense2 | B5: =B$3*$B15 -> 30 | C5: 37.5 | D5: 41.1 | E5: 37.5 | F5: 60 | G5: 66.45 | H5: 272.55
A6: Expense3 | B6: 30 | C6: 37.5 | D6: 41.1 | E6: 37.5 | F6: 60 | G6: 66.45 | H6: 272.55
A7: Expense4 | B7: 30 | C7: 37.5 | D7: 41.1 | E7: 37.5 | F7: 60 | G7: 66.45 | H7: 272.55
A8: Expense5 | B8: 30 | C8: 37.5 | D8: 41.1 | E8: 37.5 | F8: 60 | G8: 66.45 | H8: 272.55
A9: Expense6 | B9: 10 | C9: 12.5 | D9: 13.7 | E9: 12.5 | F9: 20 | G9: =G$3*$B19 -> 22.15 | H9: 90.85
A10: Total Expenses | B10: =SUM(B4:B9) -> 430 | C10: 537.5 | D10: 589.1 | E10: 537.5 | F10: 860 | G10: 952.45 | H10: 3906.55
A11: Net Income | B11: =B3-B10 -> 570 | C11: 712.5 | D11: 780.9 | E11: 712.5 | F11: 1140 | G11: 1262.55 | H11: 5178.45
A13: Assumptions - Formula Inputs
A14: Expense1 | B14: 0.3
A15: Expense2 | B15: 0.03
A16: Expense3 | B16: 0.03
A17: Expense4 | B17: 0.03
A18: Expense5 | B18: 0.03
A19: Expense6 | B19: 0.01
A21: Assumptions - Formula Inputs
A22: Expense1 | B22: Expense2 | C22: Expense3 | D22: Expense4 | E22: Expense5 | F22: Expense6
A23: 0.05 | B23: 0.075 | C23: 0.155 | D23: 0.225 | E23: 0.045 | F23: 0.12

Sheet Scenarios
A1: Budget
B2: Jan | C2: Feb | D2: Mar | E2: Apr | F2: May | G2: Jun | H2: Total
A3: Revenue | B3: 1000 | C3: 1250 | D3: 1370 | E3: 1250 | F3: 2000 | G3: 2215 | H3: =SUM(B3:G3) -> 9085
A4: =A14 -> Expense1 | B4: =B$3*$B14 -> 70 | C4: 87.5 | D4: 95.9 | E4: 87.5 | F4: 140 | G4: 155.05 | H4: 635.95
A5: Expense2 | B5: 70 | C5: 87.5 | D5: 95.9 | E5: 87.5 | F5: 140 | G5: 155.05 | H5: 635.95
A6: Expense3 | B6: 180 | C6: 225 | D6: 246.6 | E6: 225 | F6: 360 | G6: 398.7 | H6: 1635.3
A7: Expense4 | B7: 220 | C7: 275 | D7: 301.4 | E7: 275 | F7: 440 | G7: 487.3 | H7: 1998.7
A8: Expense5 | B8: 80 | C8: 100 | D8: 109.6 | E8: 100 | F8: 160 | G8: 177.2 | H8: 726.8
A9: Expense6 | B9: 160 | C9: 200 | D9: 219.2 | E9: 200 | F9: 320 | G9: 354.4 | H9: 1453.6
A10: Total Expenses | B10: =SUM(B4:B9) -> 780 | C10: 975 | D10: 1068.6 | E10: 975 | F10: 1560 | G10: 1727.7 | H10: 7086.3
A11: Net Income | B11: =B3-B10 -> 220 | C11: 275 | D11: 301.4 | E11: 275 | F11: 440 | G11: 487.3 | H11: 1998.7
A13: Assumptions - Formula Inputs
A14: Expense1 | B14: 0.07
A15: Expense2 | B15: 0.07
A16: Expense3 | B16: 0.18
A17: Expense4 | B17: 0.22
A18: Expense5 | B18: 0.08
A19: Expense6 | B19: 0.16
A21: Assumptions - Formula Inputs
A22: Expense1 | B22: Expense2 | C22: Expense3 | D22: Expense4 | E22: Expense5 | F22: Expense6
A23: 0.05 | B23: 0.075 | C23: 0.155 | D23: 0.225 | E23: 0.045 | F23: 0.12

Sheet CR(8)
A1: Schedule Of Accounts Receivable
A2: Name | B2: Amount
A3: Name1 | B3: 50
A4: Name2 | B4: 601
A5: Name3 | B5: 845
A6: Name4 | B6: 32
A7: Name5 | B7: 155
A8: Name6 | B8: 45
A9: Name7 | B9: 87
A10: Name8 | B10: 22
A11: Total AR | B11: =SUM(B3:B10) -> 1837
A13: Check to See If In Balance | B13: =B11='C AR'!A5 -> FALSE
A17: Check to See If In Balance | B17: =IF(B11='C AR'!A5,"In Balance","Not In Balance") -> Not In Balance

Sheet C AR
A1: Controling AR Account
A2: DR | B2: CR
A3: 1682
A4: 154
A5: =SUM(A3:A4) -> 1836

Sheet CR(9)
G1: Rev | H1: 10000
G2: E1 | H2: 500
G3: E2 | H3: 654
G4: E3 | H4: 85
G5: E4 | H5: 958
G6: E5 | H6: 6522
G7: E6 | H7: 12
A9: Current Net Income | B9: =H1-SUM(H2:H7) -> 1269
A10: May Net Income | B10: =[MayNetIncome.xlsm]May'!B8
A11: Change

Sheet Corp
A1: =REPLACE(CELL("filename",A1),1,FIND("]",CELL("filename",A1)),"")&"oration Totals" -> Corporation Totals
B2: Jan | C2: Feb | D2: Mar | E2: Apr | F2: Total
A3: Pro1 | B3: =SUM(Oak:Tac!B3) -> 131 | C3: =SUM(Oak:Tac!C3) -> 26 | D3: =SUM(Oak:Tac!D3) -> 15 | E3: =SUM(Oak:Tac!E3) -> 18 | F3: =SUM(B3:E3) -> 190
A4: Pro2 | B4: =SUM(Oak:Tac!B4) -> 13 | C4: =SUM(Oak:Tac!C4) -> 30 | D4: =SUM(Oak:Tac!D4) -> 22 | E4: =SUM(Oak:Tac!E4) -> 28 | F4: 93
A5: Pro3 | B5: =SUM(Oak:Tac!B5) -> 34 | C5: =SUM(Oak:Tac!C5) -> 16 | D5: =SUM(Oak:Tac!D5) -> 18 | E5: =SUM(Oak:Tac!E5) -> 21 | F5: 89
A6: Pro4 | B6: =SUM(Oak:Tac!B6) -> 19 | C6: =SUM(Oak:Tac!C6) -> 34 | D6: =SUM(Oak:Tac!D6) -> 11 | E6: =SUM(Oak:Tac!E6) -> 8 | F6: 72
A7: Pro5 | B7: =SUM(Oak:Tac!B7) -> 19 | C7: =SUM(Oak:Tac!C7) -> 23 | D7: =SUM(Oak:Tac!D7) -> 28 | E7: =SUM(Oak:Tac!E7) -> 13 | F7: 83
A8: Pro6 | B8: =SUM(Oak:Tac!B8) -> 25 | C8: =SUM(Oak:Tac!C8) -> 9 | D8: =SUM(Oak:Tac!D8) -> 7 | E8: =SUM(Oak:Tac!E8) -> 29 | F8: 70
A9: Total | B9: =SUM(B3:B8) -> 241 | C9: =SUM(C3:C8) -> 138 | D9: =SUM(D3:D8) -> 101 | E9: =SUM(E3:E8) -> 117 | F9: 597

Sheet Oak
A1: =REPLACE(CELL("filename",A1),1,FIND("]",CELL("filename",A1)),"")&" Totals" -> Oak Totals
B2: Jan | C2: Feb | D2: Mar | E2: Apr | F2: Total
A3: Pro1 | B3: 14 | C3: 8 | D3: 0 | E3: 1 | F3: =SUM(B3:E3) -> 23
A4: Pro2 | B4: 8 | C4: 8 | D4: 2 | E4: 11 | F4: 29
A5: Pro3 | B5: 6 | C5: 6 | D5: 13 | E5: 7 | F5: 32
A6: Pro4 | B6: 13 | C6: 12 | D6: 5 | E6: 2 | F6: 32
A7: Pro5 | B7: 9 | C7: 5 | D7: 10 | E7: 1 | F7: 25
A8: Pro6 | B8: 9 | C8: 3 | D8: 2 | E8: 12 | F8: 26
A9: Total | B9: =SUM(B3:B8) -> 59 | C9: =SUM(C3:C8) -> 42 | D9: =SUM(D3:D8) -> 32 | E9: =SUM(E3:E8) -> 34 | F9: 167

Sheet Bur
A1: =REPLACE(CELL("filename",A1),1,FIND("]",CELL("filename",A1)),"")&" Totals" -> Bur Totals
B2: Jan | C2: Feb | D2: Mar | E2: Apr | F2: Total
A3: Pro1 | B3: 100 | C3: 1 | D3: 1 | E3: 1 | F3: =SUM(B3:E3) -> 103
A4: Pro2 | B4: 1 | C4: 1 | D4: 1 | E4: 1 | F4: 4
A5: Pro3 | B5: 1 | C5: 1 | D5: 1 | E5: 1 | F5: 4
A6: Pro4 | B6: 1 | C6: 1 | D6: 1 | E6: 1 | F6: 4
A7: Pro5 | B7: 1 | C7: 1 | D7: 1 | E7: 1 | F7: 4
A8: Pro6 | B8: 1 | C8: 1 | D8: 1 | E8: 1 | F8: 4
A9: Total | B9: =SUM(B3:B8) -> 105 | C9: =SUM(C3:C8) -> 6 | D9: =SUM(D3:D8) -> 6 | E9: =SUM(E3:E8) -> 6 | F9: 123

Sheet Sea
A1: =REPLACE(CELL("filename",A1),1,FIND("]",CELL("filename",A1)),"")&" Totals" -> Sea Totals
B2: Jan | C2: Feb | D2: Mar | E2: Apr | F2: Total
A3: Pro1 | B3: 9 | C3: 3 | D3: 14 | E3: 9 | F3: =SUM(B3:E3) -> 35
A4: Pro2 | B4: 0 | C4: 8 | D4: 13 | E4: 2 | F4: 23
A5: Pro3 | B5: 13 | C5: 7 | D5: 2 | E5: 7 | F5: 29
A6: Pro4 | B6: 1 | C6: 13 | D6: 3 | E6: 5 | F6: 22
A7: Pro5 | B7: 3 | C7: 12 | D7: 10 | E7: 11 | F7: 36
A8: Pro6 | B8: 3 | C8: 0 | D8: 2 | E8: 11 | F8: 16
A9: Total | B9: =SUM(B3:B8) -> 29 | C9: =SUM(C3:C8) -> 43 | D9: =SUM(D3:D8) -> 44 | E9: =SUM(E3:E8) -> 45 | F9: 161

Sheet Tac
A1: =REPLACE(CELL("filename",A1),1,FIND("]",CELL("filename",A1)),"")&" Totals" -> Tac Totals
B2: Jan | C2: Feb | D2: Mar | E2: Apr | F2: Total
A3: Pro1 | B3: 8 | C3: 14 | D3: 0 | E3: 7 | F3: =SUM(B3:E3) -> 29
A4: Pro2 | B4: 4 | C4: 13 | D4: 6 | E4: 14 | F4: 37
A5: Pro3 | B5: 14 | C5: 2 | D5: 2 | E5: 6 | F5: 24
A6: Pro4 | B6: 4 | C6: 8 | D6: 2 | E6: 0 | F6: 14
A7: Pro5 | B7: 6 | C7: 5 | D7: 7 | E7: 0 | F7: 18
A8: Pro6 | B8: 12 | C8: 5 | D8: 2 | E8: 5 | F8: 24
A9: Total | B9: =SUM(B3:B8) -> 48 | C9: =SUM(C3:C8) -> 47 | D9: =SUM(D3:D8) -> 19 | E9: =SUM(E3:E8) -> 32 | F9: 146

Sheet Ranges
A1: Sales | C1: Inefficient formula because formula will not update when structural changes like inserting rows are made | D1: =A2+A3+A4+A6+A7+A8 ->  | E1: =TextFormula -> =A2+A3+A4+A6+A7+A8 | G1: <<== Special Formula automatically will show you how formula changes.
A2: none | C2: Inefficient formula because formula will not update when structural changes like inserting rows are made | D2: =SUM(A2,A3,A4,A6,A7,A8) -> 164 | E2: =TextFormula -> =SUM(A2,A3,A4,A6,A7,A8) | G2: <<== Special Formula automatically will show you how formula changes.
A3: 45 | C3: Efficient formula because formula will update when structural changes like inserting rows are made | D3: =SUM(A2:A8) -> 184 | E3: =TextFormula -> =SUM(A2:A8) | G3: <<== Special Formula automatically will show you how formula changes.
A4: 32
A5: 20
A6: 25
A7: 10
A8: 52

Sheet Functions(1)
A1: We got a lump sum of money ($14,000) that we don't need to use for five years. The CD contact says it will pay 5.5% annual interest compounded quarterly. Our goal is to find a built-in function that will calculate what this CD will be worth when we withdraw it.
A2: Yearly Contribution | B2: 14000
A3: Assumed Annual Rate | B3: 0.04
A4: Years Invested | B4: 5
A5: Number of periods per year | B5: 4
A6: Period Rate | B6: =B3/B5 -> 0.01
A7: Total Periods | B7: =B4*B5 -> 20
A8: Investment Worth | B8: =FV(B6,B7,,-B2) -> 17082.66056
A10: Names | B10: Scores | E10: Names | F10: Scores
A11: Student 1 | B11: 88.5 | E11: Student 1 | F11: 88.5
A12: Student 2 | B12: 52 | E12: Student 2 | F12: 52
A13: Student 3 | E13: Student 3 | F13: 0
A14: Student 4 | B14: 68 | E14: Student 4 | F14: 68
A15: Student 5 | B15: 78 | E15: Student 5 | F15: 78
A16: Student 6 | B16: 81 | E16: Student 6 | F16: 81
A17: Student 7 | B17: 82 | E17: Student 7 | F17: 82
A18: Student 8 | E18: Student 8 | F18: 0
A19: Student 9 | B19: 55 | E19: Student 9 | F19: 55
A20: Student 10 | B20: 85 | E20: Student 10 | F20: 85
A21: Student 11 | B21: 79 | E21: Student 11 | F21: 79
A22: Student 12 | B22: 74 | E22: Student 12 | F22: 74
A23: Student 13 | B23: 91 | E23: Student 13 | F23: 91
A24: Student 14 | E24: Student 14 | F24: 0
A25: Student 15 | E25: Student 15 | F25: 0
A26: Student 16 | E26: Student 16 | F26: 0
A27: Student 17 | B27: 67 | E27: Student 17 | F27: 67
A28: Student 18 | B28: 78 | E28: Student 18 | F28: 78 | H28: 2003 or earlier formula
A29: Average | B29: =AVERAGE(B11:B28) -> 75.26923077 | E29: Average | F29: =AVERAGEIF(F11:F28,"<>0") -> 75.26923077 | H29: =SUMIF(F11:F28,"<>0")/COUNTIF(F11:F28,"<>0") -> 75.26923077
A31: Loan Amount | B31: 175000
A32: Assumed Annual Rate | B32: 0.055
A33: Years To Pay Off Loan | B33: 30
A34: Number of periods per year | B34: 12
A35: Period Rate | B35: =B32/B34 -> 0.004583333333
A36: Total Periods | B36: =B33*B34 -> 360
A37: Monthly Paymnet | B37: =PMT(B35,B36,B31) -> -993.6307524

Sheet Functions(2)
A1: Date | B1: Product | C1: Region | D1: SalesRep | E1: Customer | F1: Units | G1: Sales | H1: COGS | J1: MAX | K1: =MAX(Sales) ->  | L1: MAX for finding the largest value | P1: Formulas in this column are alternatives that will work in earlier versions of Excel.
A2: 2011-01-26 | B2: Bellen | C2: West | D2: Pham | E2: FRED | F2: 61 | G2: 5000 | H2: 610 | J2: MIN | K2: =MIN(Sales) ->  | L2: MIN for finding the smallest value
A3: 2011-01-10 | B3: Bellen | C3: MidWest | D3: Gault | E3: FM | F3: 7 | G3: 154 | H3: 70 | J3: COUNTA | K3: =COUNTA(Region) -> 105 | L3: COUNTA for counting the total number of text entries (non-empty cells)
A4: 2011-01-03 | B4: Sunshine | C4: South | D4: Sioux | E4: PCC | F4: 6 | G4: 114 | H4: 48 | J4: SUMIFS | K4: =SUMIFS(Sales,SalesRep,K5,Customer,K6) ->  | L4: SUMIFS for adding with two criteria | P4: =SUMPRODUCT(--(D2:D106=K5),--(E2:E106=K6),G2:G106) -> 3201
A5: 2011-01-07 | B5: Sunset | C5: West | D5: Pham | E5: T | F5: 61 | G5: 1281 | H5: 564.25 | J5: Criteria 1 | K5: Sioux
A6: 2011-01-18 | B6: Sunshine | C6: West | D6: Sioux | E6: AST | F6: 8 | G6: 152 | H6: 64 | J6: Criteria 2 | K6: PCC
A7: 2011-01-20 | B7: Carlota | C7: East | D7: Chin | E7: ET | F7: 59 | G7: 1357 | H7: 649 | J7: COUNTIFS | K7: =COUNTIFS(Sales,K8,Sales,K9) ->  | L7: COUNTIFS for counting with two criteria
A8: 2011-01-26 | B8: Bellen | C8: MidWest | D8: Gault | E8: PSA | F8: 21 | G8: 462 | H8: 210 | J8: Criteria 1 | K8: >=1000
A9: 2011-01-07 | B9: Carlota | C9: MidWest | D9: Franks | E9: HHH | F9: 12 | G9: 276 | H9: 132 | J9: Criteria 2 | K9: <1500
A10: 2011-01-05 | B10: Carlota | C10: West | D10: Franks | E10: ITTW | F10: 60 | G10: 1380 | H10: 660 | J10: COUNTIFS | K10: =COUNTIFS(Sales,">="&K11,Sales,"<"&K12) ->  | L10: COUNTIFS for counting with two criteria | P10: =SUMPRODUCT(--(G2:G106>=K11),--(G2:G106<K12)) -> 30
A11: 2011-01-17 | B11: Quad | C11: East | D11: Franks | E11: HII | F11: 62 | G11: 1674 | H11: 899 | J11: Criteria 1 | K11: 500
A12: 2011-01-28 | B12: Sunshine | C12: South | D12: Smith | E12: FRED | F12: 51 | G12: 969 | H12: 408 | J12: Criteria 2 | K12: 1000
A13: 2011-01-17 | B13: Quad | C13: East | D13: Gault | E13: SFWK | F13: 43 | G13: 1161 | H13: 623.5 | J13: AVERAGEIFS | K13: =AVERAGEIFS(Sales,Product,K14,Region,K15) ->  | L13: AVERAGEIFS for averaging with two criteria | P13: =SUMPRODUCT(--(B2:B106=K14),--(C2:C106=K15),F2:F106)/SUMPRODUCT(--(B2:B106=K14),--(C2:C106=K15)) -> 33.5
A14: 2011-01-16 | B14: Bellen | C14: MidWest | D14: Sioux | E14: YTR | F14: 56 | G14: 1232 | H14: 560 | J14: Criteria 1 | K14: Bellen
A15: 2011-01-15 | B15: Sunshine | C15: MidWest | D15: Chin | E15: YTR | F15: 11 | G15: 209 | H15: 88 | J15: Criteria 2 | K15: West
A16: 2011-01-12 | B16: Bellen | C16: South | D16: Chin | E16: WT | F16: 7 | G16: 154 | H16: 70 | J16: SUMIFS | K16: =SUMIFS(Sales,Region,K17)+SUMIFS(Sales,Region,K18) ->  | L16: OR (One Or The Other) Criteria | P16: =SUMIF(C2:C106,K17,G2:G106)+SUMIF(C2:C106,K18,G2:G106) -> 40454
A17: 2011-01-03 | B17: Sunset | C17: South | D17: Pham | E17: WSD | F17: 23 | G17: 483 | H17: 212.75 | J17: OR Criteria 1 | K17: West
A18: 2011-01-22 | B18: Carlota | C18: South | D18: Smith | E18: KBTB | F18: 29 | G18: 667 | H18: 319 | J18: OR Criteria 2 | K18: MidWest
A19: 2011-01-21 | B19: Quad | C19: West | D19: Gault | E19: ITW | F19: 56 | G19: 1512 | H19: 812 | J19: COUNTIFS | K19: =COUNTIFS(Region,K20)+COUNTIFS(Region,K21) -> 48 | L19: OR (One Or The Other) Criteria | P19: =COUNTIF(C2:C106,K20)+COUNTIF(C2:C106,K21) -> 48
A20: 2011-01-13 | B20: Sunshine | C20: MidWest | D20: Pham | E20: PSA | F20: 33 | G20: 627 | H20: 264 | J20: OR Criteria 1 | K20: West
A21: 2011-01-10 | B21: Quad | C21: West | D21: Smith | E21: KBTB | F21: 65 | G21: 1755 | H21: 942.5 | J21: OR Criteria 2 | K21: MidWest
A22: 2011-01-08 | B22: Quad | C22: West | D22: Chin | E22: HII | F22: 16 | G22: 432 | H22: 232 | J22: Average | K22: =K16/K19 ->  | L22: =(SUMIFS(Sales,Region,K17)+SUMIFS(Sales,Region,K18))/(COUNTIFS(Region,K20)+COUNTIFS(Region,K21)) ->  | P22: =(SUMIF(C2:C106,K17,G2:G106)+SUMIF(C2:C106,K18,G2:G106))/(COUNTIF(C2:C106,K20)+COUNTIF(C2:C106,K21)) -> 842.7916667
A23: 2011-01-06 | B23: Quad | C23: West | D23: Sioux | E23: PCC | F23: 64 | G23: 1728 | H23: 928 | J23: OR Criteria 1 | K23: West
A24: 2011-01-26 | B24: Sunset | C24: South | D24: Sioux | E24: DFGH | F24: 44 | G24: 924 | H24: 407 | J24: OR Criteria 2 | K24: MidWest
A25: 2011-01-21 | B25: Sunshine | C25: MidWest | D25: Smith | E25: QT | F25: 64 | G25: 1216 | H25: 512
A26: 2011-01-07 | B26: Bellen | C26: West | D26: Smith | E26: T | F26: 27 | G26: 594 | H26: 270 | J26: Region | K26: COUNTIF
A27: 2011-01-20 | B27: Bellen | C27: East | D27: Gault | E27: PSA | F27: 10 | G27: 220 | H27: 100 | J27: West | K27: =COUNTIF(Region,J27) -> 24
A28: 2011-01-09 | B28: Bellen | C28: South | D28: Chin | E28: WSD | F28: 26 | G28: 572 | H28: 260 | J28: MidWest | K28: =COUNTIF(Region,J28) -> 24
A29: 2011-01-07 | B29: Sunset | C29: MidWest | D29: Sioux | E29: PCC | F29: 22 | G29: 462 | H29: 203.5 | J29: South | K29: =COUNTIF(Region,J29) -> 27
A30: 2011-01-29 | B30: Bellen | C30: East | D30: Chin | E30: AST | F30: 50 | G30: 1100 | H30: 500 | J30: East | K30: =COUNTIF(Region,J30) -> 30
A31: 2011-01-30 | B31: Sunshine | C31: South | D31: Sioux | E31: TTT | F31: 23 | G31: 437 | H31: 184
A32: 2011-01-30 | B32: Sunshine | C32: West | D32: Gault | E32: DFR | F32: 49 | G32: 931 | H32: 392
A33: 2011-01-28 | B33: Carlota | C33: West | D33: Smith | E33: LOP | F33: 15 | G33: 345 | H33: 165
A34: 2011-01-01 | B34: Quad | C34: East | D34: Sioux | E34: AA | F34: 16 | G34: 432 | H34: 232
A35: 2011-01-30 | B35: Quad | C35: South | D35: Sioux | E35: TTT | F35: 25 | G35: 675 | H35: 362.5
A36: 2011-01-16 | B36: Carlota | C36: South | D36: Smith | E36: QT | F36: 31 | G36: 713 | H36: 341
A37: 2011-01-24 | B37: Quad | C37: West | D37: Gault | E37: HII | F37: 63 | G37: 1701 | H37: 913.5
A38: 2011-01-25 | B38: Sunshine | C38: MidWest | D38: Franks | E38: JAQ | F38: 21 | G38: 399 | H38: 168
A39: 2011-01-21 | B39: Sunshine | C39: MidWest | D39: Pham | E39: DFR | F39: 23 | G39: 437 | H39: 184
A40: 2011-01-18 | B40: Bellen | C40: East | D40: Pham | E40: DFR | F40: 59 | G40: 1298 | H40: 590
A41: 2011-01-13 | B41: Bellen | C41: MidWest | D41: Pham | E41: PLOT | F41: 57 | G41: 1254 | H41: 570
A42: 2011-01-21 | B42: Quad | C42: East | D42: Chin | E42: FM | F42: 58 | G42: 1566 | H42: 841
A43: 2011-01-09 | B43: Sunshine | C43: East | D43: Smith | E43: PCC | F43: 42 | G43: 798 | H43: 336
A44: 2011-01-09 | B44: Bellen | C44: South | D44: Sioux | E44: QT | F44: 15 | G44: 330 | H44: 150
A45: 2011-01-27 | B45: Carlota | C45: West | D45: Gault | E45: QT | F45: 10 | G45: 230 | H45: 110
A46: 2011-01-06 | B46: Carlota | C46: West | D46: Sioux | E46: KPSA | F46: 18 | G46: 414 | H46: 198
A47: 2011-01-10 | B47: Sunset | C47: East | D47: Gault | E47: TRU | F47: 27 | G47: 567 | H47: 249.75
A48: 2011-01-21 | B48: Sunset | C48: South | D48: Pham | E48: HHH | F48: 13 | G48: 273 | H48: 120.25
A49: 2011-01-22 | B49: Bellen | C49: West | D49: Sioux | E49: YTR | F49: 35 | G49: 770 | H49: 350
A50: 2011-01-03 | B50: Sunshine | C50: East | D50: Pham | E50: FM | F50: 38 | G50: 722 | H50: 304
A51: 2011-01-10 | B51: Carlota | C51: East | D51: Pham | E51: AA | F51: 63 | G51: 1449 | H51: 693
A52: 2011-01-22 | B52: Quad | C52: South | D52: Franks | E52: FM | F52: 29 | G52: 783 | H52: 420.5
A53: 2011-01-28 | B53: Sunset | C53: East | D53: Smith | E53: ZAT | F53: 36 | G53: 756 | H53: 333
A54: 2011-01-10 | B54: Quad | C54: East | D54: Smith | E54: DFR | F54: 17 | G54: 459 | H54: 246.5
A55: 2011-01-17 | B55: Bellen | C55: MidWest | D55: Smith | E55: PCC | F55: 16 | G55: 352 | H55: 160
A56: 2011-01-20 | B56: Sunshine | C56: West | D56: Sioux | E56: YTR | F56: 58 | G56: 1102 | H56: 464
A57: 2011-01-18 | B57: Bellen | C57: East | D57: Franks | E57: DFGH | F57: 20 | G57: 440 | H57: 200
A58: 2011-01-13 | B58: Bellen | C58: MidWest | D58: Pham | E58: PSA | F58: 40 | G58: 880 | H58: 400
A59: 2011-01-14 | B59: Carlota | C59: East | D59: Franks | E59: JAQ | F59: 34 | G59: 782 | H59: 374
A60: 2011-01-17 | B60: Quad | C60: MidWest | D60: Chin | E60: EPP | F60: 61 | G60: 1647 | H60: 884.5
A61: 2011-01-12 | B61: Sunset | C61: MidWest | D61: Gault | E61: ITW | F61: 19 | G61: 399 | H61: 175.75
A62: 2011-01-06 | B62: Sunshine | C62: South | D62: Smith | E62: QT | F62: 40 | G62: 760 | H62: 320
A63: 2011-01-19 | B63: Bellen | C63: South | D63: Sioux | E63: T | F63: 35 | G63: 770 | H63: 350
A64: 2011-01-26 | B64: Bellen | C64: East | D64: Chin | E64: KPSA | F64: 17 | G64: 374 | H64: 170
A65: 2011-01-05 | B65: Sunset | C65: South | D65: Pham | E65: TTT | F65: 57 | G65: 1197 | H65: 527.25
A66: 2011-01-28 | B66: Carlota | C66: South | D66: Franks | E66: MNGD | F66: 46 | G66: 1058 | H66: 506
A67: 2011-01-10 | B67: Sunshine | C67: South | D67: Chin | E67: TRU | F67: 30 | G67: 570 | H67: 240
A68: 2011-01-07 | B68: Sunset | C68: West | D68: Pham | E68: WT | F68: 53 | G68: 1113 | H68: 490.25
A69: 2011-01-28 | B69: Quad | C69: MidWest | D69: Smith | E69: YTR | F69: 42 | G69: 1134 | H69: 609
A70: 2011-01-02 | B70: Quad | C70: West | D70: Pham | E70: AST | F70: 30 | G70: 810 | H70: 435
A71: 2011-01-15 | B71: Sunset | C71: East | D71: Gault | E71: AST | F71: 63 | G71: 1323 | H71: 582.75
A72: 2011-01-10 | B72: Sunset | C72: East | D72: Smith | E72: MBG | F72: 17 | G72: 357 | H72: 157.25
A73: 2011-01-23 | B73: Quad | C73: East | D73: Pham | E73: WT | F73: 22 | G73: 594 | H73: 319
A74: 2011-01-06 | B74: Sunshine | C74: East | D74: Franks | E74: PSA | F74: 54 | G74: 1026 | H74: 432
A75: 2011-01-18 | B75: Carlota | C75: South | D75: Smith | E75: YTR | F75: 53 | G75: 1219 | H75: 583
A76: 2011-01-11 | B76: Quad | C76: East | D76: Smith | E76: BBT | F76: 49 | G76: 1323 | H76: 710.5
A77: 2011-01-21 | B77: Bellen | C77: South | D77: Smith | E77: TRU | F77: 11 | G77: 242 | H77: 110
A78: 2011-01-18 | B78: Sunset | C78: East | D78: Gault | E78: MNGD | F78: 12 | G78: 252 | H78: 111
A79: 2011-01-10 | B79: Sunshine | C79: MidWest | D79: Smith | E79: TTT | F79: 8 | G79: 152 | H79: 64
A80: 2011-01-17 | B80: Sunshine | C80: MidWest | D80: Franks | E80: HHH | F80: 59 | G80: 1121 | H80: 472
A81: 2011-01-23 | B81: Sunshine | C81: South | D81: Chin | E81: T | F81: 49 | G81: 931 | H81: 392
A82: 2011-01-23 | B82: Quad | C82: East | D82: Franks | E82: PCC | F82: 44 | G82: 1188 | H82: 638
A83: 2011-01-28 | B83: Sunset | C83: West | D83: Chin | E83: FM | F83: 62 | G83: 1302 | H83: 573.5
A84: 2011-01-29 | B84: Quad | C84: MidWest | D84: Gault | E84: PLOT | F84: 10 | G84: 270 | H84: 145
A85: 2011-01-13 | B85: Carlota | C85: South | D85: Smith | E85: FM | F85: 52 | G85: 1196 | H85: 572
A86: 2011-01-18 | B86: Quad | C86: MidWest | D86: Smith | E86: PLOT | F86: 17 | G86: 459 | H86: 246.5
A87: 2011-01-04 | B87: Sunset | C87: MidWest | D87: Sioux | E87: BBT | F87: 29 | G87: 609 | H87: 268.25
A88: 2011-01-28 | B88: Bellen | C88: South | D88: Sioux | E88: QT | F88: 25 | G88: 550 | H88: 250
A89: 2011-01-11 | B89: Quad | C89: East | D89: Franks | E89: ITW | F89: 14 | G89: 378 | H89: 203
A90: 2011-01-22 | B90: Bellen | C90: West | D90: Pham | E90: AST | F90: 53 | G90: 1166 | H90: 530
A91: 2011-01-10 | B91: Sunset | C91: South | D91: Sioux | E91: MBG | F91: 47 | G91: 987 | H91: 434.75
A92: 2011-01-24 | B92: Carlota | C92: MidWest | D92: Franks | E92: BBT | F92: 13 | G92: 299 | H92: 143
A93: 2011-01-05 | B93: Sunshine | C93: West | D93: Franks | E93: ET | F93: 12 | G93: 228 | H93: 96
A94: 2011-01-03 | B94: Carlota | C94: MidWest | D94: Chin | E94: FM | F94: 20 | G94: 460 | H94: 220
A95: 2011-01-09 | B95: Bellen | C95: East | D95: Pham | E95: EPP | F95: 40 | G95: 880 | H95: 400
A96: 2011-01-23 | B96: Bellen | C96: East | D96: Gault | E96: DFGH | F96: 9 | G96: 198 | H96: 90
A97: 2011-01-09 | B97: Carlota | C97: East | D97: Franks | E97: WSD | F97: 38 | G97: 874 | H97: 418
A98: 2011-01-02 | B98: Bellen | C98: South | D98: Gault | E98: KBTB | F98: 24 | G98: 528 | H98: 240
A99: 2011-01-17 | B99: Quad | C99: West | D99: Chin | E99: PCC | F99: 10 | G99: 270 | H99: 145
A100: 2011-01-28 | B100: Quad | C100: South | D100: Gault | E100: KBTB | F100: 56 | G100: 1512 | H100: 812
A101: 2011-01-18 | B101: Sunshine | C101: MidWest | D101: Chin | E101: PCC | F101: 62 | G101: 1178 | H101: 496
A102: 2011-01-28 | B102: Quad | C102: South | D102: Franks | E102: YTR | F102: 44 | G102: 1188 | H102: 638
A103: 2011-01-17 | B103: Carlota | C103: East | D103: Sioux | E103: PCC | F103: 39 | G103: 897 | H103: 429
A104: 2011-01-18 | B104: Sunshine | C104: East | D104: Franks | E104: AA | F104: 24 | G104: 456 | H104: 192
A105: 2011-01-22 | B105: Bellen | C105: West | D105: Smith | E105: WT | F105: 6 | G105: 132 | H105: 60
A106: 2011-01-02 | B106: Bellen | C106: West | D106: Pham | E106: SFWK | F106: 19 | G106: 418 | H106: 190

Sheet SUMPRODUCT
A1: Date | B1: Product | C1: PriceOfProduct | D1: Units | F1: Total Sales | M1: Date | N1: Product | O1: Qrt Purchased | P1: Price Each | R1: Product | S1: WAC | V1: Date | W1: SalesRep | X1: Customer | Y1: Time of Phone Call | AA1: Max Date | AB1: =MAX(V2:V682) -> 2012-04-08
A2: 2010-11-04 | B2: Sunset | C2: 21 | D2: 220 | F2: =D2*C2 -> 4620 | H2: =DOLLAR(C2*D2,0) -> $4,620 | I2: =DOLLAR(C2,0)&" * "&D2&" = "&H2 -> $21 * 220 = $4,620 | M2: 2010-01-08 | N2: Product9 | O2: 10 | P2: 10.3 | R2: Product9 | S2: =SUMPRODUCT(--($N$2:$N$166=R2),$O$2:$O$166,$P$2:$P$166)/SUMIF($N$2:$N$166,R2,$O$2:$O$166) -> 10.4959854 | V2: 2011-04-21 | W2: Luong | X2: Cs3 | Y2: 20 | AA2: Min Date | AB2: =MIN(V2:V682) -> 2010-05-10
A3: 2010-11-05 | B3: Carlota | C3: 23 | D3: 202 | F3: 4646 | H3: $4,646 | I3: =DOLLAR(C3,0)&" * "&D3&" = "&H3 -> $23 * 202 = $4,646 | M3: 2010-01-11 | N3: Product8 | O3: 8 | P3: 8.8 | R3: Product8 | S3: =SUMPRODUCT(--($N$2:$N$166=R3),$O$2:$O$166,$P$2:$P$166)/SUMIF($N$2:$N$166,R3,$O$2:$O$166) -> 8.439215686 | V3: 2012-03-11 | W3: Luong | X3: Cs4 | Y3: 14 | AA3: Start Date | AB3: 2010-06-01 | AC3: <<= enter start date for template
A4: 2010-11-06 | B4: Carlota | C4: 23 | D4: 189 | F4: 4347 | H4: $4,347 | I4: $23 * 189 = $4,347 | M4: 2010-01-12 | N4: Product7 | O4: 9 | P4: 5.7 | R4: Product7 | S4: 5.396311475 | V4: 2011-01-06 | W4: Sioux | X4: Cs3 | Y4: 8 | AA4: 1st of month | AB4: =DATE(YEAR(AB3),MONTH(AB3),1) -> 2010-06-01
A5: 2010-11-07 | B5: Quad | C5: 27 | D5: 224 | F5: 6048 | H5: $6,048 | I5: $27 * 224 = $6,048 | M5: 2010-01-13 | N5: Product4 | O5: 13 | P5: 4 | R5: Product6 | S5: 6.364031621 | V5: 2010-06-14 | W5: Sioux | X5: Cs3 | Y5: 19
A6: 2010-11-08 | B6: Bellen | C6: 22 | D6: 236 | F6: 5192 | H6: $5,192 | I6: $22 * 236 = $5,192 | M6: 2010-01-14 | N6: Product8 | O6: 15 | P6: 8.4 | R6: Product5 | S6: 5.518015666 | V6: 2012-03-15 | W6: Sheliadawn | X6: Cs2 | Y6: 6 | AA6: Month/Sales Rep | AB6: Chin | AC6: Moe | AD6: Tina | AE6: Luong | AF6: Sheliadawn | AG6: Sioux
A7: 2010-11-09 | B7: Quad | C7: 27 | D7: 137 | F7: 3699 | H7: $3,699 | I7: $27 * 137 = $3,699 | M7: 2010-01-15 | N7: Product9 | O7: 12 | P7: 10 | R7: Product4 | S7: 4.422335025 | V7: 2010-10-10 | W7: Chin | X7: Cs3 | Y7: 19 | AA7: =AB4 -> 2010-06-01 | AB7: =SUMPRODUCT(--(TEXT($V$2:$V$682,"mmyyy")=TEXT($AA7,"mmyyy")),--($W$2:$W$682=AB$6)) -> 10 | AC7: =SUMPRODUCT(--(TEXT($V$2:$V$682,"mmyyy")=TEXT($AA7,"mmyyy")),--($W$2:$W$682=AC$6)) -> 3 | AD7: 7 | AE7: 8 | AF7: 6 | AG7: 6
A8: 2010-11-10 | B8: Sunshine | C8: 19 | D8: 228 | F8: 4332 | H8: $4,332 | I8: $19 * 228 = $4,332 | M8: 2010-01-18 | N8: Product2 | O8: 22 | P8: 5.9 | R8: Product3 | S8: 3.545098039 | V8: 2011-07-17 | W8: Chin | X8: Cs3 | Y8: 24 | AA8: =EDATE(AA7,1) -> 2010-07-01 | AB8: 7 | AC8: 5 | AD8: 4 | AE8: 3 | AF8: 8 | AG8: 4
F9: =SUM(F2:F8) -> 32884 | M9: 2010-01-19 | N9: Product6 | O9: 23 | P9: 6.3 | R9: Product2 | S9: 5.427304965 | V9: 2011-12-11 | W9: Luong | X9: Cs6 | Y9: 11 | AA9: =EDATE(AA8,1) -> 2010-08-01 | AB9: 3 | AC9: 7 | AD9: 7 | AE9: 5 | AF9: 4 | AG9: 7
C10: Total Sales | D10: =SUMPRODUCT(C2:C8,D2:D8) -> 32884 | J10: ="$4,620 + $4,646 + $4,347 + $6,048 + $5,192 + $3,699 + $4,332"&" = "&DOLLAR(SUMPRODUCT(C2:C8,D2:D8),0) -> $4,620 + $4,646 + $4,347 + $6,048 + $5,192 + $3,699 + $4,332 = $32,884 | M10: 2010-01-20 | N10: Product2 | O10: 24 | P10: 5.5 | R10: Product1 | S10: 2.378010471 | V10: 2012-03-25 | W10: Chin | X10: Cs1 | Y10: 5 | AA10: 2010-09-01 | AB10: 7 | AC10: 4 | AD10: 5 | AE10: 5 | AF10: 5 | AG10: 4
M11: 2010-01-21 | N11: Product7 | O11: 11 | P11: 5 | V11: 2010-10-31 | W11: Chin | X11: Cs6 | Y11: 5 | AA11: 2010-10-01 | AB11: 6 | AC11: 4 | AD11: 6 | AE11: 5 | AF11: 5 | AG11: 4
A12: State of Economy | B12: Prob. Of State of Economy | C12: Stock A Return | M12: 2010-01-22 | N12: Product1 | O12: 6 | P12: 2 | V12: 2011-02-03 | W12: Moe | X12: Cs4 | Y12: 5 | AA12: 2010-11-01 | AB12: 2 | AC12: 5 | AD12: 5 | AE12: 3 | AF12: 1 | AG12: 6
A13: Boom | B13: =1-SUM(B14:B16) -> 0.03 | C13: 0.15 | E13: =B13*C13 -> 0.0045 | M13: 2010-01-25 | N13: Product2 | O13: 22 | P13: 5 | V13: 2011-06-23 | W13: Tina | X13: Cs3 | Y13: 17 | AA13: 2010-12-01 | AB13: 1 | AC13: 3 | AD13: 7 | AE13: 10 | AF13: 3 | AG13: 2
A14: Normal | B14: 0.25 | C14: 0.095 | E14: 0.02375 | M14: 2010-01-26 | N14: Product7 | O14: 7 | P14: 5.8 | V14: 2011-07-10 | W14: Moe | X14: Cs1 | Y14: 3 | AA14: 2011-01-01 | AB14: 4 | AC14: 8 | AD14: 6 | AE14: 3 | AF14: 4 | AG14: 7
A15: Reccession | B15: 0.65 | C15: 0.025 | E15: 0.01625 | M15: 2010-01-27 | N15: Product5 | O15: 11 | P15: 5.9 | V15: 2011-09-10 | W15: Moe | X15: Cs5 | Y15: 17 | AA15: 2011-02-01 | AB15: 4 | AC15: 5 | AD15: 1 | AE15: 1 | AF15: 7 | AG15: 4
A16: Depression | B16: 0.07 | C16: -0.16 | E16: -0.0112 | M16: 2010-01-28 | N16: Product1 | O16: 7 | P16: 2.1 | V16: 2010-08-30 | W16: Sheliadawn | X16: Cs4 | Y16: 4 | AA16: 2011-03-01 | AB16: 5 | AC16: 4 | AD16: 5 | AE16: 4 | AF16: 6 | AG16: 8
B17: E(Ri) | C17: =SUMPRODUCT(B13:B16,C13:C16) -> 0.0333 | E17: =SUM(E13:E16) -> 0.0333 | M17: 2010-01-29 | N17: Product8 | O17: 20 | P17: 8.3 | V17: 2010-09-08 | W17: Sheliadawn | X17: Cs3 | Y17: 22 | AA17: 2011-04-01 | AB17: 8 | AC17: 4 | AD17: 5 | AE17: 3 | AF17: 5 | AG17: =SUMPRODUCT(--(TEXT($V$2:$V$682,"mmyyy")=TEXT($AA17,"mmyyy")),--($W$2:$W$682=AG$6)) -> 5
M18: 2010-02-01 | N18: Product7 | O18: 14 | P18: 5.1 | V18: 2011-11-18 | W18: Luong | X18: Cs1 | Y18: 6
M19: 2010-02-02 | N19: Product7 | O19: 22 | P19: 5.3 | V19: 2010-11-05 | W19: Moe | X19: Cs5 | Y19: 4
A20: State of Economy | B20: ="Prob. Of "&A20 -> Prob. Of State of Economy | C20: Stock A Return if State Occurs | D20: Stock B Return if State Occurs | E20: Stock C Return if State Occurs | M20: 2010-02-03 | N20: Product9 | O20: 9 | P20: 10.1 | V20: 2010-06-29 | W20: Tina | X20: Cs5 | Y20: 22
A21: Weight | B21: Weight | C21: 0.3 | D21: 0.4 | E21: 0.3 | M21: 2010-02-04 | N21: Product1 | O21: 10 | P21: 2 | V21: 2011-06-08 | W21: Moe | X21: Cs5 | Y21: 22
A22: Boom | B22: 0.15 | C22: 0.3 | D22: 0.45 | E22: 0.33 | F22: =C22*C$21*$B22 -> 0.0135 | G22: 0.027 | H22: 0.01485 | M22: 2010-02-05 | N22: Product7 | O22: 13 | P22: 5.1 | V22: 2011-05-12 | W22: Chin | X22: Cs6 | Y22: 14
A23: Good | B23: 0.45 | C23: 0.12 | D23: 0.1 | E23: 0.15 | F23: 0.0162 | G23: 0.018 | H23: 0.02025 | M23: 2010-02-08 | N23: Product8 | O23: 20 | P23: 8 | V23: 2010-08-05 | W23: Chin | X23: Cs3 | Y23: 25
A24: Poor | B24: 0.35 | C24: 0.01 | D24: -0.15 | E24: -0.05 | F24: 0.00105 | G24: -0.021 | H24: -0.00525 | M24: 2010-02-09 | N24: Product8 | O24: 10 | P24: 8.1 | V24: 2010-09-17 | W24: Chin | X24: Cs5 | Y24: 10
A25: Bust | B25: 0.05 | C25: -0.2 | D25: -0.3 | E25: -0.09 | F25: -0.003 | G25: -0.006 | H25: =E25*E$21*$B25 -> -0.00135 | M25: 2010-02-10 | N25: Product2 | O25: 11 | P25: 5.9 | V25: 2011-05-24 | W25: Luong | X25: Cs3 | Y25: 11
H26: =SUM(F22:H25) -> 0.07425 | M26: 2010-02-11 | N26: Product8 | O26: 8 | P26: 8.4 | V26: 2011-06-14 | W26: Tina | X26: Cs3 | Y26: 25
B27: Expected Return for Portfolio | D27: =SUMPRODUCT(B22:B25*C21:E21*C22:E25) -> 0.07425 | E27: =TextFormula -> =SUMPRODUCT(B22:B25*C21:E21*C22:E25) | M27: 2010-02-12 | N27: Product5 | O27: 11 | P27: 5.4 | V27: 2011-04-12 | W27: Sheliadawn | X27: Cs3 | Y27: 25
D28: =SUMPRODUCT(B22:B25,C21:E21,C22:E25) ->  | E28: =TextFormula -> =SUMPRODUCT(B22:B25,C21:E21,C22:E25) | M28: 2010-02-15 | N28: Product9 | O28: 7 | P28: 10.7 | V28: 2011-01-21 | W28: Moe | X28: Cs4 | Y28: 16
A29: SUMPRODUCT function can only handle arrays that are the same size, so you must use * instead of commas, | M29: 2010-02-16 | N29: Product9 | O29: 11 | P29: 10.6 | V29: 2010-12-29 | W29: Sheliadawn | X29: Cs5 | Y29: 7
M30: 2010-02-17 | N30: Product8 | O30: 16 | P30: 8.3 | V30: 2011-12-08 | W30: Sioux | X30: Cs1 | Y30: 6
M31: 2010-02-18 | N31: Product6 | O31: 13 | P31: 6.6 | V31: 2011-12-31 | W31: Sheliadawn | X31: Cs1 | Y31: 3
A32: Date | B32: Sales | D32: Criteria = Year | M32: 2010-02-19 | N32: Product3 | O32: 10 | P32: 3.6 | V32: 2011-01-21 | W32: Sheliadawn | X32: Cs3 | Y32: 11
A33: 2009-11-26 | B33: 790772 | D33: 2009 | F33: =YEAR(A33) -> 2009 | M33: 2010-02-22 | N33: Product5 | O33: 17 | P33: 5.8 | V33: 2011-05-23 | W33: Moe | X33: Cs4 | Y33: 15
A34: 2010-01-25 | B34: 669253 | D34: Add | F34: 2010 | M34: 2010-02-23 | N34: Product6 | O34: 14 | P34: 6.1 | V34: 2010-12-06 | W34: Moe | X34: Cs5 | Y34: 16
A35: 2011-01-30 | B35: 653699 | D35: =SUMPRODUCT(--(YEAR(A33:A40)=D33),B33:B40) -> 1473072 | F35: 2011 | M35: 2010-02-24 | N35: Product1 | O35: 15 | P35: 2 | V35: 2011-06-25 | W35: Moe | X35: Cs2 | Y35: 18
A36: 2010-10-05 | B36: 638300 | D36: < < < < < < | F36: 2010 | M36: 2010-02-25 | N36: Product9 | O36: 7 | P36: 10.1 | V36: 2010-09-12 | W36: Chin | X36: Cs6 | Y36: 3
A37: 2010-01-26 | B37: 955656 | D37: Array Formula | F37: 2010 | M37: 2010-02-26 | N37: Product4 | O37: 9 | P37: 4.6 | V37: 2010-05-31 | W37: Tina | X37: Cs4 | Y37: 1
A38: 2010-11-14 | B38: 785553 | F38: 2010 | M38: 2010-03-01 | N38: Product3 | O38: 10 | P38: 3.1 | V38: 2010-06-12 | W38: Sioux | X38: Cs1 | Y38: 7
A39: 2009-10-22 | B39: 682300 | F39: 2009 | M39: 2010-03-02 | N39: Product1 | O39: 6 | P39: 2.3 | V39: 2010-08-06 | W39: Sheliadawn | X39: Cs5 | Y39: 16
A40: 2011-01-08 | B40: 623663 | F40: 2011 | M40: 2010-03-03 | N40: Product3 | O40: 6 | P40: 3.5 | V40: 2012-01-30 | W40: Tina | X40: Cs3 | Y40: 24
M41: 2010-03-04 | N41: Product3 | O41: 8 | P41: 3 | V41: 2011-02-12 | W41: Sioux | X41: Cs6 | Y41: 25
M42: 2010-03-05 | N42: Product6 | O42: 24 | P42: 6.4 | V42: 2011-03-30 | W42: Luong | X42: Cs2 | Y42: 6
M43: 2010-03-08 | N43: Product4 | O43: 23 | P43: 4.1 | V43: 2010-10-24 | W43: Chin | X43: Cs3 | Y43: 4
M44: 2010-03-09 | N44: Product6 | O44: 25 | P44: 6.7 | V44: 2011-12-25 | W44: Moe | X44: Cs3 | Y44: 8
M45: 2010-03-10 | N45: Product2 | O45: 10 | P45: 5.7 | V45: 2010-06-29 | W45: Tina | X45: Cs3 | Y45: 7
M46: 2010-03-11 | N46: Product1 | O46: 18 | P46: 2.3 | V46: 2011-05-25 | W46: Luong | X46: Cs1 | Y46: 7
M47: 2010-03-12 | N47: Product4 | O47: 24 | P47: 4.6 | V47: 2011-11-26 | W47: Chin | X47: Cs4 | Y47: 9
M48: 2010-03-15 | N48: Product7 | O48: 8 | P48: 5.4 | V48: 2010-05-11 | W48: Tina | X48: Cs6 | Y48: 3
M49: 2010-03-16 | N49: Product5 | O49: 9 | P49: 5 | V49: 2011-02-11 | W49: Sheliadawn | X49: Cs2 | Y49: 10
M50: 2010-03-17 | N50: Product9 | O50: 25 | P50: 10.9 | V50: 2011-09-01 | W50: Chin | X50: Cs3 | Y50: 14
M51: 2010-03-18 | N51: Product5 | O51: 22 | P51: 5.4 | V51: 2011-04-09 | W51: Sheliadawn | X51: Cs4 | Y51: 1
M52: 2010-03-19 | N52: Product2 | O52: 24 | P52: 5.3 | V52: 2010-10-02 | W52: Sheliadawn | X52: Cs5 | Y52: 11
M53: 2010-03-22 | N53: Product4 | O53: 10 | P53: 4.1 | V53: 2010-10-17 | W53: Luong | X53: Cs1 | Y53: 17
M54: 2010-03-23 | N54: Product3 | O54: 9 | P54: 3.5 | V54: 2011-03-26 | W54: Sioux | X54: Cs5 | Y54: 4
M55: 2010-03-24 | N55: Product9 | O55: 24 | P55: 10.4 | V55: 2012-02-01 | W55: Luong | X55: Cs6 | Y55: 14
M56: 2010-03-25 | N56: Product2 | O56: 8 | P56: 5.3 | V56: 2011-10-27 | W56: Sheliadawn | X56: Cs3 | Y56: 19
M57: 2010-03-26 | N57: Product3 | O57: 18 | P57: 3.4 | V57: 2011-03-26 | W57: Sioux | X57: Cs3 | Y57: 19
M58: 2010-03-29 | N58: Product5 | O58: 25 | P58: 5.8 | V58: 2011-07-31 | W58: Chin | X58: Cs1 | Y58: 8
M59: 2010-03-30 | N59: Product5 | O59: 17 | P59: 5.2 | V59: 2010-08-20 | W59: Tina | X59: Cs5 | Y59: 23
M60: 2010-03-31 | N60: Product5 | O60: 25 | P60: 5.7 | V60: 2011-03-08 | W60: Sioux | X60: Cs5 | Y60: 9
M61: 2010-04-01 | N61: Product8 | O61: 8 | P61: 8.6 | V61: 2012-01-27 | W61: Moe | X61: Cs4 | Y61: 23
M62: 2010-04-02 | N62: Product9 | O62: 19 | P62: 10.9 | V62: 2011-05-21 | W62: Luong | X62: Cs6 | Y62: 6
M63: 2010-04-05 | N63: Product3 | O63: 15 | P63: 3.6 | V63: 2011-03-31 | W63: Sheliadawn | X63: Cs4 | Y63: 3
M64: 2010-04-06 | N64: Product3 | O64: 17 | P64: 3.9 | V64: 2011-06-20 | W64: Luong | X64: Cs1 | Y64: 7
M65: 2010-04-07 | N65: Product6 | O65: 15 | P65: 6 | V65: 2011-08-29 | W65: Moe | X65: Cs3 | Y65: 20
M66: 2010-04-08 | N66: Product6 | O66: 11 | P66: 6.8 | V66: 2012-02-25 | W66: Moe | X66: Cs3 | Y66: 19
M67: 2010-04-09 | N67: Product8 | O67: 16 | P67: 8.8 | V67: 2011-06-29 | W67: Moe | X67: Cs4 | Y67: 1
M68: 2010-04-12 | N68: Product5 | O68: 20 | P68: 5.8 | V68: 2012-03-17 | W68: Sheliadawn | X68: Cs6 | Y68: 20
M69: 2010-04-13 | N69: Product6 | O69: 13 | P69: 6.5 | V69: 2012-01-17 | W69: Tina | X69: Cs1 | Y69: 5
M70: 2010-04-14 | N70: Product1 | O70: 11 | P70: 2.5 | V70: 2010-05-25 | W70: Sioux | X70: Cs2 | Y70: 16
M71: 2010-04-15 | N71: Product6 | O71: 18 | P71: 6.1 | V71: 2010-08-01 | W71: Sioux | X71: Cs5 | Y71: 25
M72: 2010-04-16 | N72: Product2 | O72: 7 | P72: 5.1 | V72: 2011-06-24 | W72: Sheliadawn | X72: Cs5 | Y72: 23
M73: 2010-04-19 | N73: Product2 | O73: 8 | P73: 5 | V73: 2010-08-21 | W73: Sioux | X73: Cs3 | Y73: 18
M74: 2010-04-20 | N74: Product9 | O74: 13 | P74: 10.5 | V74: 2012-01-10 | W74: Sioux | X74: Cs2 | Y74: 17
M75: 2010-04-21 | N75: Product8 | O75: 22 | P75: 8.2 | V75: 2011-05-28 | W75: Chin | X75: Cs5 | Y75: 10
M76: 2010-04-22 | N76: Product7 | O76: 7 | P76: 5.1 | V76: 2010-07-01 | W76: Sioux | X76: Cs1 | Y76: 14
M77: 2010-04-23 | N77: Product1 | O77: 7 | P77: 2 | V77: 2012-01-18 | W77: Sheliadawn | X77: Cs6 | Y77: 9
M78: 2010-04-26 | N78: Product4 | O78: 21 | P78: 4.5 | V78: 2010-08-26 | W78: Moe | X78: Cs6 | Y78: 19
M79: 2010-04-27 | N79: Product8 | O79: 25 | P79: 8.8 | V79: 2011-07-08 | W79: Sheliadawn | X79: Cs4 | Y79: 21
M80: 2010-04-28 | N80: Product1 | O80: 20 | P80: 2.8 | V80: 2011-03-28 | W80: Chin | X80: Cs3 | Y80: 22
M81: 2010-04-29 | N81: Product3 | O81: 12 | P81: 3 | V81: 2012-04-08 | W81: Sioux | X81: Cs3 | Y81: 24
M82: 2010-04-30 | N82: Product9 | O82: 13 | P82: 10.6 | V82: 2011-06-07 | W82: Sheliadawn | X82: Cs6 | Y82: 13
M83: 2010-05-03 | N83: Product4 | O83: 16 | P83: 4.7 | V83: 2012-03-16 | W83: Luong | X83: Cs5 | Y83: 15
M84: 2010-05-04 | N84: Product9 | O84: 25 | P84: 10.8 | V84: 2011-07-17 | W84: Luong | X84: Cs6 | Y84: 24
M85: 2010-05-05 | N85: Product8 | O85: 14 | P85: 8.7 | V85: 2011-02-01 | W85: Sheliadawn | X85: Cs1 | Y85: 14
M86: 2010-05-06 | N86: Product3 | O86: 7 | P86: 3.4 | V86: 2010-08-19 | W86: Luong | X86: Cs4 | Y86: 16
M87: 2010-05-07 | N87: Product2 | O87: 7 | P87: 5.8 | V87: 2011-09-15 | W87: Sheliadawn | X87: Cs6 | Y87: 3
M88: 2010-05-10 | N88: Product2 | O88: 16 | P88: 5.1 | V88: 2011-03-29 | W88: Tina | X88: Cs3 | Y88: 20
M89: 2010-05-11 | N89: Product3 | O89: 20 | P89: 3.9 | V89: 2011-11-09 | W89: Luong | X89: Cs2 | Y89: 20
M90: 2010-05-12 | N90: Product5 | O90: 24 | P90: 5.7 | V90: 2011-04-28 | W90: Chin | X90: Cs5 | Y90: 21
M91: 2010-05-13 | N91: Product8 | O91: 17 | P91: 8.2 | V91: 2011-12-21 | W91: Luong | X91: Cs1 | Y91: 6
M92: 2010-05-14 | N92: Product9 | O92: 7 | P92: 10.5 | V92: 2011-04-19 | W92: Sioux | X92: Cs6 | Y92: 23
M93: 2010-05-17 | N93: Product5 | O93: 19 | P93: 5.4 | V93: 2011-06-16 | W93: Tina | X93: Cs2 | Y93: 20
M94: 2010-05-18 | N94: Product7 | O94: 8 | P94: 5.2 | V94: 2010-10-24 | W94: Tina | X94: Cs3 | Y94: 7
M95: 2010-05-19 | N95: Product3 | O95: 10 | P95: 3.5 | V95: 2010-05-31 | W95: Sioux | X95: Cs6 | Y95: 2
M96: 2010-05-20 | N96: Product1 | O96: 10 | P96: 2 | V96: 2011-09-03 | W96: Sheliadawn | X96: Cs1 | Y96: 1
M97: 2010-05-21 | N97: Product8 | O97: 16 | P97: 8 | V97: 2011-04-02 | W97: Moe | X97: Cs4 | Y97: 2
M98: 2010-05-24 | N98: Product2 | O98: 25 | P98: 5.7 | V98: 2011-10-31 | W98: Moe | X98: Cs6 | Y98: 19
M99: 2010-05-25 | N99: Product2 | O99: 18 | P99: 5 | V99: 2011-01-19 | W99: Sioux | X99: Cs6 | Y99: 15
M100: 2010-05-26 | N100: Product2 | O100: 13 | P100: 5.3 | V100: 2012-03-20 | W100: Sioux | X100: Cs2 | Y100: 24
M101: 2010-05-27 | N101: Product9 | O101: 17 | P101: 10.4 | V101: 2011-07-14 | W101: Sheliadawn | X101: Cs5 | Y101: 15
M102: 2010-05-28 | N102: Product5 | O102: 14 | P102: 5.6 | V102: 2011-08-22 | W102: Luong | X102: Cs1 | Y102: 21
M103: 2010-05-31 | N103: Product5 | O103: 24 | P103: 5.6 | V103: 2010-07-18 | W103: Chin | X103: Cs6 | Y103: 7
M104: 2010-06-01 | N104: Product5 | O104: 20 | P104: 5.9 | V104: 2010-05-13 | W104: Tina | X104: Cs1 | Y104: 19
M105: 2010-06-02 | N105: Product3 | O105: 25 | P105: 3.3 | V105: 2011-09-29 | W105: Sioux | X105: Cs5 | Y105: 18
M106: 2010-06-03 | N106: Product1 | O106: 10 | P106: 2.6 | V106: 2010-07-20 | W106: Moe | X106: Cs3 | Y106: 9
M107: 2010-06-04 | N107: Product5 | O107: 19 | P107: 5.6 | V107: 2011-04-30 | W107: Moe | X107: Cs3 | Y107: 7
M108: 2010-06-07 | N108: Product3 | O108: 19 | P108: 3.5 | V108: 2010-07-22 | W108: Moe | X108: Cs3 | Y108: 10
M109: 2010-06-08 | N109: Product7 | O109: 12 | P109: 5.7 | V109: 2011-03-22 | W109: Sioux | X109: Cs6 | Y109: 15
M110: 2010-06-09 | N110: Product6 | O110: 25 | P110: 6.1 | V110: 2011-05-13 | W110: Moe | X110: Cs4 | Y110: 6
M111: 2010-06-10 | N111: Product1 | O111: 13 | P111: 2.1 | V111: 2010-06-09 | W111: Luong | X111: Cs5 | Y111: 7
M112: 2010-06-11 | N112: Product6 | O112: 10 | P112: 6.2 | V112: 2011-08-11 | W112: Sioux | X112: Cs4 | Y112: 20
M113: 2010-06-14 | N113: Product1 | O113: 9 | P113: 2.1 | V113: 2011-02-26 | W113: Sioux | X113: Cs3 | Y113: 7
M114: 2010-06-15 | N114: Product4 | O114: 18 | P114: 4.3 | V114: 2010-05-15 | W114: Tina | X114: Cs3 | Y114: 24
M115: 2010-06-16 | N115: Product3 | O115: 24 | P115: 3.9 | V115: 2011-01-12 | W115: Moe | X115: Cs3 | Y115: 16
M116: 2010-06-17 | N116: Product9 | O116: 18 | P116: 10.1 | V116: 2012-01-31 | W116: Sheliadawn | X116: Cs1 | Y116: 20
M117: 2010-06-18 | N117: Product1 | O117: 15 | P117: 2.7 | V117: 2011-05-20 | W117: Moe | X117: Cs3 | Y117: 23
M118: 2010-06-21 | N118: Product7 | O118: 17 | P118: 5.9 | V118: 2012-03-11 | W118: Tina | X118: Cs2 | Y118: 13
M119: 2010-06-22 | N119: Product7 | O119: 25 | P119: 5.5 | V119: 2011-01-24 | W119: Chin | X119: Cs3 | Y119: 23
M120: 2010-06-23 | N120: Product3 | O120: 19 | P120: 3.1 | V120: 2011-12-19 | W120: Chin | X120: Cs3 | Y120: 16
M121: 2010-06-24 | N121: Product2 | O121: 15 | P121: 5.3 | V121: 2010-09-26 | W121: Sioux | X121: Cs3 | Y121: 5
M122: 2010-06-25 | N122: Product8 | O122: 24 | P122: 8.9 | V122: 2012-01-17 | W122: Chin | X122: Cs4 | Y122: 20
M123: 2010-06-28 | N123: Product5 | O123: 10 | P123: 5.8 | V123: 2012-01-05 | W123: Moe | X123: Cs1 | Y123: 23
M124: 2010-06-29 | N124: Product8 | O124: 7 | P124: 8 | V124: 2010-07-01 | W124: Sioux | X124: Cs3 | Y124: 9
M125: 2010-06-30 | N125: Product9 | O125: 17 | P125: 10.1 | V125: 2010-07-18 | W125: Chin | X125: Cs3 | Y125: 8
M126: 2010-07-01 | N126: Product7 | O126: 10 | P126: 5.5 | V126: 2011-01-27 | W126: Sioux | X126: Cs2 | Y126: 7
M127: 2010-07-02 | N127: Product5 | O127: 23 | P127: 5.1 | V127: 2012-03-17 | W127: Moe | X127: Cs1 | Y127: 20
M128: 2010-07-05 | N128: Product2 | O128: 16 | P128: 5.5 | V128: 2010-07-15 | W128: Tina | X128: Cs6 | Y128: 14
M129: 2010-07-06 | N129: Product6 | O129: 23 | P129: 6.5 | V129: 2010-11-23 | W129: Sioux | X129: Cs5 | Y129: 22
M130: 2010-07-07 | N130: Product5 | O130: 25 | P130: 5 | V130: 2011-09-01 | W130: Chin | X130: Cs6 | Y130: 21
M131: 2010-07-08 | N131: Product4 | O131: 8 | P131: 4.8 | V131: 2012-03-01 | W131: Sheliadawn | X131: Cs1 | Y131: 17
M132: 2010-07-09 | N132: Product6 | O132: 8 | P132: 6.9 | V132: 2010-12-09 | W132: Tina | X132: Cs4 | Y132: 13
M133: 2010-07-12 | N133: Product7 | O133: 9 | P133: 5 | V133: 2011-05-28 | W133: Sioux | X133: Cs5 | Y133: 11
M134: 2010-07-13 | N134: Product3 | O134: 23 | P134: 3.7 | V134: 2010-12-05 | W134: Luong | X134: Cs4 | Y134: 17
M135: 2010-07-14 | N135: Product2 | O135: 16 | P135: 5.9 | V135: 2011-10-01 | W135: Chin | X135: Cs4 | Y135: 23
M136: 2010-07-15 | N136: Product9 | O136: 9 | P136: 10.9 | V136: 2011-05-28 | W136: Chin | X136: Cs2 | Y136: 18
M137: 2010-07-16 | N137: Product4 | O137: 20 | P137: 4.7 | V137: 2011-04-27 | W137: Chin | X137: Cs6 | Y137: 4
M138: 2010-07-19 | N138: Product4 | O138: 6 | P138: 4.7 | V138: 2011-05-07 | W138: Sioux | X138: Cs5 | Y138: 14
M139: 2010-07-20 | N139: Product7 | O139: 8 | P139: 5.1 | V139: 2012-01-12 | W139: Sioux | X139: Cs3 | Y139: 5
M140: 2010-07-21 | N140: Product3 | O140: 15 | P140: 3.6 | V140: 2011-02-15 | W140: Sheliadawn | X140: Cs4 | Y140: 12
M141: 2010-07-22 | N141: Product9 | O141: 11 | P141: 10.4 | V141: 2010-10-28 | W141: Chin | X141: Cs6 | Y141: 15
M142: 2010-07-23 | N142: Product5 | O142: 12 | P142: 5.2 | V142: 2011-08-07 | W142: Tina | X142: Cs3 | Y142: 12
M143: 2010-07-26 | N143: Product4 | O143: 6 | P143: 4.9 | V143: 2011-08-20 | W143: Moe | X143: Cs1 | Y143: 1
M144: 2010-07-27 | N144: Product3 | O144: 9 | P144: 3.5 | V144: 2010-12-17 | W144: Tina | X144: Cs5 | Y144: 5
M145: 2010-07-28 | N145: Product1 | O145: 21 | P145: 2.9 | V145: 2011-07-01 | W145: Moe | X145: Cs5 | Y145: 22
M146: 2010-07-29 | N146: Product4 | O146: 15 | P146: 4.2 | V146: 2011-10-24 | W146: Sioux | X146: Cs2 | Y146: 19
M147: 2010-07-30 | N147: Product5 | O147: 25 | P147: 5.4 | V147: 2011-09-25 | W147: Sheliadawn | X147: Cs5 | Y147: 15
M148: 2010-08-02 | N148: Product1 | O148: 13 | P148: 2.4 | V148: 2012-02-14 | W148: Sheliadawn | X148: Cs3 | Y148: 9
M149: 2010-08-03 | N149: Product7 | O149: 8 | P149: 5.7 | V149: 2010-08-04 | W149: Moe | X149: Cs2 | Y149: 14
M150: 2010-08-04 | N150: Product6 | O150: 13 | P150: 6.2 | V150: 2010-12-22 | W150: Tina | X150: Cs1 | Y150: 1
M151: 2010-08-05 | N151: Product7 | O151: 9 | P151: 5.2 | V151: 2010-05-24 | W151: Tina | X151: Cs5 | Y151: 25
M152: 2010-08-06 | N152: Product3 | O152: 23 | P152: 3.9 | V152: 2011-06-28 | W152: Sioux | X152: Cs2 | Y152: 22
M153: 2010-08-09 | N153: Product7 | O153: 20 | P153: 5.2 | V153: 2010-06-22 | W153: Luong | X153: Cs5 | Y153: 19
M154: 2010-08-10 | N154: Product6 | O154: 8 | P154: 6 | V154: 2012-01-04 | W154: Moe | X154: Cs5 | Y154: 1
M155: 2010-08-11 | N155: Product8 | O155: 21 | P155: 8.5 | V155: 2011-12-14 | W155: Sioux | X155: Cs2 | Y155: 14
M156: 2010-08-12 | N156: Product9 | O156: 20 | P156: 10.5 | V156: 2011-07-31 | W156: Sioux | X156: Cs3 | Y156: 2
M157: 2010-08-13 | N157: Product8 | O157: 17 | P157: 8.9 | V157: 2011-06-09 | W157: Luong | X157: Cs3 | Y157: 20
M158: 2010-08-16 | N158: Product8 | O158: 22 | P158: 8.2 | V158: 2010-12-23 | W158: Moe | X158: Cs2 | Y158: 4
M159: 2010-08-17 | N159: Product3 | O159: 7 | P159: 3.6 | V159: 2011-11-02 | W159: Moe | X159: Cs4 | Y159: 14
M160: 2010-08-18 | N160: Product7 | O160: 10 | P160: 5.9 | V160: 2011-02-13 | W160: Moe | X160: Cs3 | Y160: 9
M161: 2010-08-19 | N161: Product4 | O161: 8 | P161: 4 | V161: 2011-03-10 | W161: Tina | X161: Cs6 | Y161: 4
M162: 2010-08-20 | N162: Product7 | O162: 6 | P162: 5.9 | V162: 2011-06-20 | W162: Luong | X162: Cs1 | Y162: 17
M163: 2010-08-23 | N163: Product5 | O163: 11 | P163: 5.5 | V163: 2011-10-18 | W163: Moe | X163: Cs1 | Y163: 23
M164: 2010-08-24 | N164: Product2 | O164: 20 | P164: 5.3 | V164: 2010-06-18 | W164: Luong | X164: Cs2 | Y164: 2
M165: 2010-08-25 | N165: Product6 | O165: 10 | P165: 6.6 | V165: 2011-09-11 | W165: Sioux | X165: Cs1 | Y165: 20
M166: 2010-08-26 | N166: Product7 | O166: 11 | P166: 5.2 | V166: 2011-08-30 | W166: Chin | X166: Cs4 | Y166: 1
V167: 2010-09-19 | W167: Chin | X167: Cs2 | Y167: 4
V168: 2011-03-16 | W168: Sioux | X168: Cs6 | Y168: 17
V169: 2011-05-26 | W169: Luong | X169: Cs3 | Y169: 8
V170: 2011-12-23 | W170: Tina | X170: Cs2 | Y170: 4
V171: 2012-02-22 | W171: Sioux | X171: Cs3 | Y171: 18
V172: 2011-05-21 | W172: Luong | X172: Cs3 | Y172: 11
V173: 2010-10-12 | W173: Sioux | X173: Cs4 | Y173: 21
V174: 2012-01-31 | W174: Luong | X174: Cs1 | Y174: 21
V175: 2010-06-09 | W175: Chin | X175: Cs5 | Y175: 3
V176: 2010-08-23 | W176: Sioux | X176: Cs2 | Y176: 24
V177: 2010-10-02 | W177: Tina | X177: Cs2 | Y177: 14
V178: 2011-04-19 | W178: Chin | X178: Cs1 | Y178: 14
V179: 2010-11-27 | W179: Sioux | X179: Cs6 | Y179: 1
V180: 2011-03-08 | W180: Sheliadawn | X180: Cs4 | Y180: 24
V181: 2011-09-21 | W181: Moe | X181: Cs5 | Y181: 7
V182: 2010-06-04 | W182: Sioux | X182: Cs3 | Y182: 12
V183: 2011-11-14 | W183: Chin | X183: Cs2 | Y183: 2
V184: 2010-07-28 | W184: Chin | X184: Cs3 | Y184: 3
V185: 2011-10-02 | W185: Tina | X185: Cs4 | Y185: 12
V186: 2010-07-09 | W186: Chin | X186: Cs2 | Y186: 1
V187: 2011-10-03 | W187: Sheliadawn | X187: Cs6 | Y187: 1
V188: 2012-02-04 | W188: Moe | X188: Cs5 | Y188: 22
V189: 2011-05-22 | W189: Moe | X189: Cs2 | Y189: 7
V190: 2010-09-11 | W190: Chin | X190: Cs6 | Y190: 3
V191: 2012-02-02 | W191: Moe | X191: Cs5 | Y191: 2
V192: 2011-02-12 | W192: Chin | X192: Cs5 | Y192: 16
V193: 2011-11-27 | W193: Sheliadawn | X193: Cs1 | Y193: 25
V194: 2011-02-22 | W194: Sheliadawn | X194: Cs3 | Y194: 22
V195: 2011-12-04 | W195: Tina | X195: Cs6 | Y195: 6
V196: 2011-03-04 | W196: Luong | X196: Cs4 | Y196: 13
V197: 2011-04-06 | W197: Tina | X197: Cs5 | Y197: 22
V198: 2012-01-08 | W198: Sioux | X198: Cs5 | Y198: 9
V199: 2011-12-03 | W199: Sheliadawn | X199: Cs6 | Y199: 6
V200: 2011-03-11 | W200: Sioux | X200: Cs2 | Y200: 1
... 482 more rows

Sheet SP(2)
A1: SalesRep | B1: Customer | C1: Sales | E1: Count with COUNTIFS | F1: =COUNTIFS($A$2:$A$16,F3,B2:B16,F4) -> 4 | G1: =TextFormula -> =COUNTIFS($A$2:$A$16,F3,B2:B16,F4)
A2: Pham | B2: ET | C2: 152 | E2: Count with SUMPRODUCT | F2: =SUMPRODUCT(--(A2:A16=F3),--(B2:B16=F4)) -> 4 | G2: =TextFormula -> =SUMPRODUCT(--(A2:A16=F3),--(B2:B16=F4))
A3: Gault | B3: PCC | C3: 220 | E3: SalesRep Criteria 1 | F3: Gault
A4: Gault | B4: ET | C4: 132 | E4: Customer Criteria 2 | F4: PCC
A5: Pham | B5: ET | C5: 154
A6: Pham | B6: PSA | C6: 1449 | E6: Sum with SUMIFS | G6: =TextFormula -> 
A7: Pham | B7: PCC | C7: 783 | E7: Sum with SUMPRODUCT | F7: =SUMPRODUCT(--(A2:A16=F8),--(B2:B16=F9),C2:C16) -> 1572 | G7: =TextFormula -> =SUMPRODUCT(--(A2:A16=F8),--(B2:B16=F9),C2:C16)
A8: Gault | B8: ET | C8: 594 | E8: SalesRep Criteria 1 | F8: Gault
A9: Gault | B9: ET | C9: 352 | E9: Customer Criteria 2 | F9: PCC
A10: Pham | B10: PCC | C10: 299
A11: Gault | B11: PCC | C11: 924 | F11: =COUNTIFS(A2:A16,F3,B2:B16,F4) -> 4 | G11: =TextFormula -> =COUNTIFS(A2:A16,F3,B2:B16,F4)
A12: Gault | B12: PSA | C12: 459 | F12: =SUMPRODUCT(--(A2:A16=F3),--(B2:B16=F4)) -> 4 | G12: =TextFormula -> =SUMPRODUCT(--(A2:A16=F3),--(B2:B16=F4))
A13: Gault | B13: PCC | C13: 230 | F13: =SUMPRODUCT((A2:A16=F3)*(B2:B16=F4)) -> 4 | G13: =TextFormula -> =SUMPRODUCT((A2:A16=F3)*(B2:B16=F4))
A14: Pham | B14: PCC | C14: 675 | F14: =SUMPRODUCT((A2:A16=F3)*1,(B2:B16=F4)*1) -> 4 | G14: =TextFormula -> =SUMPRODUCT((A2:A16=F3)*1,(B2:B16=F4)*1)
A15: Gault | B15: PCC | C15: 198 | F15: =SUMPRODUCT((A2:A16=F3)^1,(B2:B16=F4)^1) -> 4 | G15: =TextFormula -> =SUMPRODUCT((A2:A16=F3)^1,(B2:B16=F4)^1)
A16: Gault | B16: AST | C16: 459 | F16: =SUM((A2:A16=F3)*(B2:B16=F4)) -> 4 | G16: ="{"&TextFormula&"}" -> {=SUM((A2:A16=F3)*(B2:B16=F4))}
F17: =SUMPRODUCT((A2:A16=F3)+0,(B2:B16=F4)+0) -> 4 | G17: =TextFormula -> =SUMPRODUCT((A2:A16=F3)+0,(B2:B16=F4)+0)
G18: =TextFormula -> 

Sheet IF(1)
A1: Sales | B1: Expenses | C1: Profit Hurdle | D1: Question | E1: Pass Hurdle = Bonus | F1: Formula from E column
A2: 500 | B2: 700 | C2: 100 | D2: ="Is "&A2&" -"&B2&" > "&C2&" TRUE or FALSE?" -> Is 500 -700 > 100 TRUE or FALSE? | E2: =A2-B2>C2 -> FALSE | F2: ="Logical Formula:"&CHAR(10)&CHAR(10)&TextFormula -> Logical Formula: =A2-B2>C2 | H2: value_if_true | I2: value_if_false | K2: =A2&" - "&B2&" > "&C2 -> 500 - 700 > 100
A3: =A2 -> 500 | B3: 700 | C3: 100 | D3: ="Is "&A3&" -"&B3&" > "&C3&", "&H3&" or "&I3&"?" -> Is 500 -700 > 100, Yes or No? | E3: =IF(A3-B3>C3,H3,I3) -> No | F3: ="IF function that puts one of two words in a cell:"&CHAR(10)&CHAR(10)&TextFormula -> IF function that puts one of two words in a cell: =IF(A3-B3>C3,H3,I3) | H3: Yes | I3: No | K3: =A2-B2&" > "&C2 -> -200 > 100
A4: 500 | B4: 700 | C4: 100 | D4: ="Is "&A4&" -"&B4&" > "&C4&", "&H4&" or "&I4&"?" -> Is 500 -700 > 100, 10 or 0? | E4: =IF(A4-B4>C4,H4,I4) -> 0 | F4: ="IF function that puts one of two numbers in a cell:"&CHAR(10)&CHAR(10)&TextFormula -> IF function that puts one of two numbers in a cell: =IF(A4-B4>C4,H4,I4) | H4: 10 | I4: 0 | K4: =A2-B2>C2 -> FALSE

Sheet IF(2)
C1: Logical Formula or logical_test | D1: IF used to put 1 of 2 words in cell | E1: IF used to put 1 of 2 numbers in cell
A2: Employee | B2: Sales | C2: Bonus: TRUE or FALSE | D2: Bonus: "Yes" or "No" | E2: Bonus Amount
A3: Rod Barbaria | B3: 20382 | C3: =B3>=B$9 -> FALSE | D3: =IF(B3>=B$9,"Yes","No") -> No | E3: =IF(B3>=B$9,B$10,0) -> 0
A4: Elinore Cromedy | B4: 19504 | C4: =B4>=B$9 -> FALSE | D4: =IF(B4>=B$9,"Yes","No") -> No | E4: =IF(B4>=B$9,B$10,0) -> 0
A5: Twanda Spruce | B5: 21579 | C5: TRUE | D5: Yes | E5: 500
A6: Darius Raffety | B6: 12117 | C6: FALSE | D6: No | E6: 0
A7: Frida Vickerson | B7: 26081 | C7: TRUE | D7: Yes | E7: 500
A9: Bonus Hurdle | B9: 21000
A10: Bonus Amount If Hurdle Equaled or Passed | B10: 500

Sheet IF(3)
A1: Schedule Of Accounts Receivable | D1: Controling AR Account
A2: Name | B2: Amount | D2: DR | E2: CR
A3: Name1 | B3: 50 | D3: 1682
A4: Name2 | B4: 600 | D4: 154
A5: Name3 | B5: 845 | D5: =SUM(D3:D4) -> 1836
A6: Name4 | B6: 32
A7: Name5 | B7: 155
A8: Name6 | B8: 45
A9: Name7 | B9: 87
A10: Name8 | B10: 22
A11: Total AR | B11: =SUM(B3:B10) -> 1836
A13: Check to See If In Balance | B13: =IF(B11=D5,"In Balance","Not In Balance") -> In Balance
A16: IF function using = comparative operator and cell reference to put one of two "text strings" in a cell

Sheet IF(4)
A1: Sale | B1: Product | C1: IN/OUT House | E1: Out
A2: 10 | B2: Pro1 | C2: =IF(OR(B2=E$2,B2=E$3),"Out","In") -> In | E2: Pro5
A3: 19 | B3: Pro5 | C3: Out | E3: Pro6
A4: 15 | B4: Pro6 | C4: Out
A5: 5 | B5: Pro1 | C5: In
A6: 3 | B6: Pro6 | C6: Out
A7: 18 | B7: Pro2 | C7: In
A8: 5 | B8: Pro2 | C8: In
A9: 8 | B9: Pro5 | C9: Out
A10: 13 | B10: Pro1 | C10: In
A11: 16 | B11: Pro2 | C11: In
A12: 5 | B12: Pro4 | C12: In
A13: 6 | B13: Pro6 | C13: Out
A14: 10 | B14: Pro6 | C14: Out
A15: 19 | B15: Pro1 | C15: In
A16: 9 | B16: Pro2 | C16: In
A17: 5 | B17: Pro3 | C17: In
A18: 4 | B18: Pro3 | C18: In
A19: 3 | B19: Pro3 | C19: In
A20: 14 | B20: Pro4 | C20: In
A21: 17 | B21: Pro6 | C21: Out
A22: 14 | B22: Pro1 | C22: In
A23: 4 | B23: Pro5 | C23: Out
A24: 13 | B24: Pro4 | C24: In
A25: 14 | B25: Pro2 | C25: In
A26: 19 | B26: Pro4 | C26: In
A27: 10 | B27: Pro3 | C27: In
A28: 14 | B28: Pro5 | C28: Out
A29: 17 | B29: Pro4 | C29: In
A30: 1 | B30: Pro3 | C30: In
A31: 4 | B31: Pro6 | C31: Out
A32: 9 | B32: Pro5 | C32: Out
A33: 11 | B33: Pro1 | C33: In
A34: 9 | B34: Pro3 | C34: =IF(OR(B34=E$2,B34=E$3),"Out","In") -> In
A35: 4 | B35: Pro2 | C35: In
A36: 19 | B36: Pro6 | C36: Out
A37: 18 | B37: Pro2 | C37: In
A38: 14 | B38: Pro6 | C38: Out
A39: 1 | B39: Pro4 | C39: In
A40: 17 | B40: Pro5 | C40: Out
A41: 11 | B41: Pro6 | C41: Out
A42: 12 | B42: Pro1 | C42: In
A43: 2 | B43: Pro2 | C43: In
A44: 1 | B44: Pro4 | C44: In
A45: 1 | B45: Pro1 | C45: In
A46: 13 | B46: Pro6 | C46: Out
A47: 14 | B47: Pro6 | C47: Out
A48: 9 | B48: Pro2 | C48: In
A49: 8 | B49: Pro6 | C49: Out
A50: 12 | B50: Pro3 | C50: In
A51: 11 | B51: Pro6 | C51: Out
A52: 1 | B52: Pro6 | C52: Out
A53: 14 | B53: Pro4 | C53: In
A54: 11 | B54: Pro3 | C54: In
A55: 17 | B55: Pro6 | C55: Out
A56: 1 | B56: Pro5 | C56: Out
A57: 11 | B57: Pro5 | C57: Out
A58: 15 | B58: Pro3 | C58: In
A59: 12 | B59: Pro4 | C59: In
A60: 15 | B60: Pro3 | C60: In
A61: 2 | B61: Pro4 | C61: In
A62: 13 | B62: Pro6 | C62: Out
A63: 4 | B63: Pro5 | C63: Out
A64: 15 | B64: Pro1 | C64: In
A65: 14 | B65: Pro4 | C65: In
A66: 3 | B66: Pro5 | C66: =IF(OR(B66=E$2,B66=E$3),"Out","In") -> Out
A67: 12 | B67: Pro1 | C67: In

Sheet IF(5)
A1: Customer Credit Analysis
A2: Customer | B2: Net Worth | C2: Ave Yearly Sales | D2: Credit Score | E2: Pass Hurdles? | F2: Extend Credit? *All Tests = TRUE
A3: PCC | B3: 100000 | C3: 1500000 | D3: 4 | E3: =AND(B3>=B$11,C3>=B$12,D3>B$13) -> TRUE | F3: =IF(AND(B3>=B$11,C3>=B$12,D3>B$13),"Extend Credit","DON'T Extend Credit") -> Extend Credit | G3: =OR(AND(B3>=E$11,C3>=E$12),D3>=E$13) -> TRUE
A4: WFMI | B4: 1000000 | C4: 5000000 | D4: 2 | E4: =AND(B4>=B$11,C4>=B$12,D4>B$13) -> FALSE | F4: =IF(AND(B4>=B$11,C4>=B$12,D4>B$13),"Extend Credit","DON'T Extend Credit") -> DON'T Extend Credit | G4: =OR(AND(B4>=E$11,C4>=E$12),D4>=E$13) -> TRUE
A5: FM | B5: 250000 | C5: 1250000 | D5: 3.5 | E5: TRUE | F5: Extend Credit | G5: TRUE
A6: AMZ | B6: 6000000 | C6: 35000000 | D6: 3.5 | E6: TRUE | F6: Extend Credit | G6: TRUE
A7: EIF | B7: 95000 | C7: 52000 | D7: 5 | E7: FALSE | F7: DON'T Extend Credit | G7: TRUE
A8: ME | B8: 125000 | C8: 95000 | D8: 5 | E8: FALSE | F8: DON'T Extend Credit | G8: TRUE
A10: Hurdles | D10: Hurdles
A11: Net Worth | B11: 100000 | D11: Net Worth | E11: 100000
A12: Ave Yearly Sales | B12: 500000 | D12: Ave Yearly Sales | E12: 500000
A13: Credit Score | B13: 3 | D13: Credit Score | E13: 4

Sheet IF(6)
A1: Name | B1: Sales | C1: Comission | E1: Hurdle
A2: Cleo Gajate | B2: 5018 | C2: =IF(B2>=E$2,E$4,0)*B2 -> 0 | E2: 7000
A3: Lane Haruta | B3: 5651 | C3: 0 | E3: Com Rate
A4: Carlo Warrenfeltz | B4: 7000 | C4: 210 | E4: 0.03
A5: Dick Thackaberry | B5: 9623 | C5: 288.69
A6: Lurlene Caira | B6: 9008 | C6: 270.24
A7: Cleotilde Metting | B7: 5220 | C7: 0
A8: Porsche Artola | B8: 5417 | C8: 0
A9: Aurelio Broody | B9: 6436 | C9: 0
A10: Win Aydt | B10: 8407 | C10: 252.21
A11: Collin Mesteth | B11: 5815 | C11: 0

Sheet IF(7)
A1: Rule For Commission | B1: Hurdle | C1: Com. Rate
A2: =DOLLAR(B2,0)&" <= "&B$6&" < "&DOLLAR(B3,0) -> $0 <= Sales < $5,000 | B2: 0 | C2: 0
A3: =DOLLAR(B3,0)&" <= "&B$6&" < "&DOLLAR(B4,0) -> $5,000 <= Sales < $7,000 | B3: 5000 | C3: 0.02
A4: =B6&" >= "&DOLLAR(B4,0) -> Sales >= $7,000 | B4: 7000 | C4: 0.03
A6: Name | B6: Sales | C6: Comission
A7: Mike Tello | B7: 5018 | C7: =IF(B7>=B$4,C$4,IF(B7>=B$3,C$3,C$2))*B7 -> 100.36 | E7:  We need 0.02 because $5,000 <= $5,018 < $7,000 | G7: One of two items in cell or formula: 1 IF function in formula
A8: Samuel George | B8: 4125 | C8: =IF(B8>=B$4,C$4,IF(B8>=B$3,C$3,C$2))*B8 -> 0 | E8:  We need 0.00 because $0 <= $4,125 < $5,000 | G8: One of three items in cell or formula: 2 IF functions in formula
A9: Jeff Pannell | B9: 7000 | C9: 210 | E9:  We need 0.03 because $7,000 >= $7,000 | G9: One of four items in cell or formula: 3 IF functions in formula
A10: Bruce Urrutia | B10: 3012 | C10: 0 | E10:  We need 0.00 because $0 <= $3,012 < $5,000 | G10: Etc…
A11: Keith Reno | B11: 9558 | C11: 286.74 | E11:  We need 0.03 because $9,558 >= $7,000
G15: =" "&CHAR(27)&" We need "&VLOOKUP(B7,$B$2:$C$4,2)&" because"&CHAR(10)&SUBSTITUTE(LOOKUP(B7,$B$2:$B$4,$A$2:$A$4),"Sales",DOLLAR(B7,0)) ->  We need 0.02 because $5,000 <= $5,018 < $7,000
G16: =" "&CHAR(27)&" We need "&VLOOKUP(B8,$B$2:$C$4,2)&" because"&CHAR(10)&SUBSTITUTE(LOOKUP(B8,$B$2:$B$4,$A$2:$A$4),"Sales",DOLLAR(B8,0)) ->  We need 0 because $0 <= $4,125 < $5,000
G17:  We need 0.03 because $7,000 >= $7,000
G18:  We need 0 because $0 <= $3,012 < $5,000
G19:  We need 0.03 because $9,558 >= $7,000
A20: Rule For Commission | B20: Hurdle | C20: Com. Rate
A21: =DOLLAR(B21,0)&" <= "&B$6&" < "&DOLLAR(B22,0) -> $0 <= Sales < $2,000 | B21: 0 | C21: 0
A22: =DOLLAR(B22,0)&" <= "&B$6&" < "&DOLLAR(B23,0) -> $2,000 <= Sales < $3,000 | B22: 2000 | C22: 0.01
A23: $3,000 <= Sales < $4,000 | B23: 3000 | C23: 0.02
A24: $4,000 <= Sales < $5,000 | B24: 4000 | C24: 0.03
A25: $5,000 <= Sales < $7,000 | B25: 5000 | C25: 0.04
A26: =B28&" >= "&DOLLAR(B26,0) -> Sales >= $7,000 | B26: 7000 | C26: 0.05
A28: Name | B28: Sales | C28: Comission
A29: Mike Tello | B29: 5018 | C29: =IF(B29>=B$26,C$26,IF(B29>=B$25,C$25,IF(B29>=B$24,C$24,IF(B29>=B$23,C$23,IF(B29>=B$22,C$22,C$21)))))*B29 -> 200.72 | E29: =VLOOKUP(B29,$B$21:$C$26,2)*B29 -> 200.72
A30: Samuel George | B30: 1000 | C30: =IF(B30>=B$26,C$26,IF(B30>=B$25,C$25,IF(B30>=B$24,C$24,IF(B30>=B$23,C$23,IF(B30>=B$22,C$22,C$21)))))*B30 -> 0 | E30: =VLOOKUP(B30,$B$21:$C$26,2)*B30 -> 0
A31: Jeff Pannell | B31: 7000 | C31: 350 | E31: 350
A32: Bruce Urrutia | B32: 3012 | C32: 60.24 | E32: 60.24
A33: Keith Reno | B33: 9558 | C33: 477.9 | E33: 477.9

Sheet VLOOKUP(1)
A1: Date | B1: Product | C1: Region | D1: SalesRep | E1: Customer | F1: Units | G1: COGS | H1: Sales | I1: Sales Category | K1: Math Categories to help understand VLOOKUP | L1: Category Lower Limit | M1: Sales Category | Q1: 0 | R1: =Q2 -> 100 | T1: =MIN(H2:H106) -> 132
A2: 2011-01-26 | B2: Bellen | C2: West | D2: Pham | E2: FRED | F2: 7 | G2: 70 | H2: 154 | I2: =VLOOKUP(H2,$L$2:$M$6,2) -> OK | K2: =Q1&" <= Sales < "&R1 -> 0 <= Sales < 100 | L2: =Q1 -> 0 | M2: Subpar | O2: Lookup Table | Q2: 100 | R2: =Q3 -> 500
A3: 2011-01-10 | B3: Bellen | C3: MidWest | D3: Gault | E3: FM | F3: 61 | G3: 610 | H3: 555 | I3: =VLOOKUP(H3,$L$2:$M$6,2) -> Good | K3: =Q2&" <= Sales < "&R2 -> 100 <= Sales < 500 | L3: =Q2 -> 100 | M3: OK | Q3: 500 | R3: 750
A4: 2011-01-03 | B4: Sunshine | C4: South | D4: Sioux | E4: DDH | F4: 6 | G4: 48 | H4: 800 | I4: Great | K4: =Q3&" <= Sales < "&R3 -> 500 <= Sales < 750 | L4: =Q3 -> 500 | M4: Good | Q4: 750 | R4: 1000
A5: 2011-01-07 | B5: Sunset | C5: West | D5: Pham | E5: T | F5: 61 | G5: 564.25 | H5: 1281 | I5: Exceptional | K5: =Q4&" <= Sales < "&R4 -> 750 <= Sales < 1000 | L5: =Q4 -> 750 | M5: Great | Q5: 1000
A6: 2011-01-18 | B6: Sunshine | C6: West | D6: Sioux | E6: AST | F6: 8 | G6: 64 | H6: 152 | I6: OK | K6: ="Sales >= "&Q5 -> Sales >= 1000 | L6: =Q5 -> 1000 | M6: Exceptional
A7: 2011-01-20 | B7: Carlota | C7: East | D7: Chin | E7: ET | F7: 59 | G7: 649 | H7: 1357 | I7: Exceptional
A8: 2011-01-26 | B8: Bellen | C8: MidWest | D8: Gault | E8: PSA | F8: 21 | G8: 210 | H8: 462 | I8: OK
A9: 2011-01-07 | B9: Carlota | C9: MidWest | D9: Franks | E9: HHH | F9: 12 | G9: 132 | H9: 276 | I9: OK
A10: 2011-01-05 | B10: Carlota | C10: West | D10: Franks | E10: ITTW | F10: 60 | G10: 660 | H10: 1380 | I10: Exceptional
A11: 2011-01-17 | B11: Quad | C11: East | D11: Franks | E11: HII | F11: 62 | G11: 899 | H11: 1674 | I11: Exceptional
A12: 2011-01-28 | B12: Sunshine | C12: South | D12: Smith | E12: FRED | F12: 51 | G12: 408 | H12: 969 | I12: Great
A13: 2011-01-17 | B13: Quad | C13: East | D13: Gault | E13: SFWK | F13: 43 | G13: 623.5 | H13: 1161 | I13: Exceptional
A14: 2011-01-16 | B14: Bellen | C14: MidWest | D14: Sioux | E14: YTR | F14: 56 | G14: 560 | H14: 1232 | I14: Exceptional
A15: 2011-01-15 | B15: Sunshine | C15: MidWest | D15: Chin | E15: YTR | F15: 11 | G15: 88 | H15: 209 | I15: OK
A16: 2011-01-12 | B16: Bellen | C16: South | D16: Chin | E16: WT | F16: 7 | G16: 70 | H16: 154 | I16: OK
A17: 2011-01-03 | B17: Sunset | C17: South | D17: Pham | E17: WSD | F17: 23 | G17: 212.75 | H17: 483 | I17: OK
A18: 2011-01-22 | B18: Carlota | C18: South | D18: Smith | E18: KBTB | F18: 29 | G18: 319 | H18: 667 | I18: Good
A19: 2011-01-21 | B19: Quad | C19: West | D19: Gault | E19: ITW | F19: 56 | G19: 812 | H19: 1512 | I19: Exceptional
A20: 2011-01-13 | B20: Sunshine | C20: MidWest | D20: Pham | E20: PSA | F20: 33 | G20: 264 | H20: 627 | I20: Good
A21: 2011-01-10 | B21: Quad | C21: West | D21: Smith | E21: KBTB | F21: 65 | G21: 942.5 | H21: 1755 | I21: Exceptional
A22: 2011-01-08 | B22: Quad | C22: West | D22: Chin | E22: HII | F22: 16 | G22: 232 | H22: 432 | I22: OK
A23: 2011-01-06 | B23: Quad | C23: West | D23: Sioux | E23: PCC | F23: 64 | G23: 928 | H23: 1728 | I23: Exceptional
A24: 2011-01-26 | B24: Sunset | C24: South | D24: Sioux | E24: DFGH | F24: 44 | G24: 407 | H24: 924 | I24: Great
A25: 2011-01-21 | B25: Sunshine | C25: MidWest | D25: Smith | E25: QT | F25: 64 | G25: 512 | H25: 1216 | I25: Exceptional
A26: 2011-01-07 | B26: Bellen | C26: West | D26: Smith | E26: T | F26: 27 | G26: 270 | H26: 594 | I26: Good
A27: 2011-01-20 | B27: Bellen | C27: East | D27: Gault | E27: PSA | F27: 10 | G27: 100 | H27: 220 | I27: OK
A28: 2011-01-09 | B28: Bellen | C28: South | D28: Chin | E28: WSD | F28: 26 | G28: 260 | H28: 572 | I28: Good
A29: 2011-01-07 | B29: Sunset | C29: MidWest | D29: Smith | E29: PCC | F29: 22 | G29: 203.5 | H29: 462 | I29: OK
A30: 2011-01-29 | B30: Bellen | C30: East | D30: Chin | E30: AST | F30: 50 | G30: 500 | H30: 1100 | I30: Exceptional
A31: 2011-01-30 | B31: Sunshine | C31: South | D31: Sioux | E31: TTT | F31: 23 | G31: 184 | H31: 437 | I31: OK
A32: 2011-01-30 | B32: Sunshine | C32: West | D32: Gault | E32: DFR | F32: 49 | G32: 392 | H32: 931 | I32: Great
A33: 2011-01-28 | B33: Carlota | C33: West | D33: Smith | E33: LOP | F33: 15 | G33: 165 | H33: 345 | I33: OK
A34: 2011-01-01 | B34: Quad | C34: East | D34: Sioux | E34: AA | F34: 16 | G34: 232 | H34: 432 | I34: OK
A35: 2011-01-30 | B35: Quad | C35: South | D35: Sioux | E35: TTT | F35: 25 | G35: 362.5 | H35: 675 | I35: Good
A36: 2011-01-16 | B36: Carlota | C36: South | D36: Smith | E36: QT | F36: 31 | G36: 341 | H36: 713 | I36: Good
A37: 2011-01-24 | B37: Quad | C37: West | D37: Gault | E37: HII | F37: 63 | G37: 913.5 | H37: 1701 | I37: Exceptional
A38: 2011-01-25 | B38: Sunshine | C38: MidWest | D38: Franks | E38: JAQ | F38: 21 | G38: 168 | H38: 399 | I38: OK
A39: 2011-01-21 | B39: Sunshine | C39: MidWest | D39: Pham | E39: DFR | F39: 23 | G39: 184 | H39: 437 | I39: OK
A40: 2011-01-18 | B40: Bellen | C40: East | D40: Pham | E40: DFR | F40: 59 | G40: 590 | H40: 1298 | I40: Exceptional
A41: 2011-01-13 | B41: Bellen | C41: MidWest | D41: Pham | E41: PLOT | F41: 57 | G41: 570 | H41: 1254 | I41: Exceptional
A42: 2011-01-21 | B42: Quad | C42: East | D42: Chin | E42: FM | F42: 58 | G42: 841 | H42: 1566 | I42: Exceptional
A43: 2011-01-09 | B43: Sunshine | C43: East | D43: Smith | E43: PCC | F43: 42 | G43: 336 | H43: 798 | I43: Great
A44: 2011-01-09 | B44: Bellen | C44: South | D44: Sioux | E44: QT | F44: 15 | G44: 150 | H44: 330 | I44: OK
A45: 2011-01-27 | B45: Carlota | C45: West | D45: Gault | E45: QT | F45: 10 | G45: 110 | H45: 230 | I45: OK
A46: 2011-01-06 | B46: Carlota | C46: West | D46: Sioux | E46: KPSA | F46: 18 | G46: 198 | H46: 414 | I46: OK
A47: 2011-01-10 | B47: Sunset | C47: East | D47: Gault | E47: TRU | F47: 27 | G47: 249.75 | H47: 567 | I47: Good
A48: 2011-01-21 | B48: Sunset | C48: South | D48: Pham | E48: HHH | F48: 13 | G48: 120.25 | H48: 273 | I48: OK
A49: 2011-01-22 | B49: Bellen | C49: West | D49: Sioux | E49: YTR | F49: 35 | G49: 350 | H49: 770 | I49: Great
A50: 2011-01-03 | B50: Sunshine | C50: East | D50: Pham | E50: FM | F50: 38 | G50: 304 | H50: 722 | I50: Good
A51: 2011-01-10 | B51: Carlota | C51: East | D51: Pham | E51: AA | F51: 63 | G51: 693 | H51: 1449 | I51: Exceptional
A52: 2011-01-22 | B52: Quad | C52: South | D52: Franks | E52: FM | F52: 29 | G52: 420.5 | H52: 783 | I52: Great
A53: 2011-01-28 | B53: Sunset | C53: East | D53: Smith | E53: ZAT | F53: 36 | G53: 333 | H53: 756 | I53: Great
A54: 2011-01-10 | B54: Quad | C54: East | D54: Smith | E54: DFR | F54: 17 | G54: 246.5 | H54: 459 | I54: OK
A55: 2011-01-17 | B55: Bellen | C55: MidWest | D55: Smith | E55: PCC | F55: 16 | G55: 160 | H55: 352 | I55: OK
A56: 2011-01-20 | B56: Sunshine | C56: West | D56: Sioux | E56: YTR | F56: 58 | G56: 464 | H56: 1102 | I56: Exceptional
A57: 2011-01-18 | B57: Bellen | C57: East | D57: Franks | E57: DFGH | F57: 20 | G57: 200 | H57: 440 | I57: OK
A58: 2011-01-13 | B58: Bellen | C58: MidWest | D58: Pham | E58: PSA | F58: 40 | G58: 400 | H58: 880 | I58: Great
A59: 2011-01-14 | B59: Carlota | C59: East | D59: Franks | E59: JAQ | F59: 34 | G59: 374 | H59: 782 | I59: Great
A60: 2011-01-17 | B60: Quad | C60: MidWest | D60: Chin | E60: EPP | F60: 61 | G60: 884.5 | H60: 1647 | I60: Exceptional
A61: 2011-01-12 | B61: Sunset | C61: MidWest | D61: Gault | E61: ITW | F61: 19 | G61: 175.75 | H61: 399 | I61: OK
A62: 2011-01-06 | B62: Sunshine | C62: South | D62: Smith | E62: QT | F62: 40 | G62: 320 | H62: 760 | I62: Great
A63: 2011-01-19 | B63: Bellen | C63: South | D63: Sioux | E63: T | F63: 35 | G63: 350 | H63: 770 | I63: Great
A64: 2011-01-26 | B64: Bellen | C64: East | D64: Chin | E64: KPSA | F64: 17 | G64: 170 | H64: 374 | I64: OK
A65: 2011-01-05 | B65: Sunset | C65: South | D65: Pham | E65: TTT | F65: 57 | G65: 527.25 | H65: 1197 | I65: Exceptional
A66: 2011-01-28 | B66: Carlota | C66: South | D66: Franks | E66: MNGD | F66: 46 | G66: 506 | H66: 1058 | I66: Exceptional
A67: 2011-01-10 | B67: Sunshine | C67: South | D67: Chin | E67: TRU | F67: 30 | G67: 240 | H67: 570 | I67: =VLOOKUP(H67,$L$2:$M$6,2) -> Good
A68: 2011-01-07 | B68: Sunset | C68: West | D68: Pham | E68: WT | F68: 53 | G68: 490.25 | H68: 1113 | I68: Exceptional
A69: 2011-01-28 | B69: Quad | C69: MidWest | D69: Smith | E69: YTR | F69: 42 | G69: 609 | H69: 1134 | I69: Exceptional
A70: 2011-01-02 | B70: Quad | C70: West | D70: Pham | E70: AST | F70: 30 | G70: 435 | H70: 810 | I70: Great
A71: 2011-01-15 | B71: Sunset | C71: East | D71: Gault | E71: AST | F71: 63 | G71: 582.75 | H71: 1323 | I71: Exceptional
A72: 2011-01-10 | B72: Sunset | C72: East | D72: Smith | E72: MBG | F72: 17 | G72: 157.25 | H72: 357 | I72: OK
A73: 2011-01-23 | B73: Quad | C73: East | D73: Pham | E73: WT | F73: 22 | G73: 319 | H73: 594 | I73: Good
A74: 2011-01-06 | B74: Sunshine | C74: East | D74: Franks | E74: PSA | F74: 54 | G74: 432 | H74: 1026 | I74: Exceptional
A75: 2011-01-18 | B75: Carlota | C75: South | D75: Smith | E75: YTR | F75: 53 | G75: 583 | H75: 1219 | I75: Exceptional
A76: 2011-01-11 | B76: Quad | C76: East | D76: Smith | E76: BBT | F76: 49 | G76: 710.5 | H76: 1323 | I76: Exceptional
A77: 2011-01-21 | B77: Bellen | C77: South | D77: Smith | E77: TRU | F77: 11 | G77: 110 | H77: 242 | I77: OK
A78: 2011-01-18 | B78: Sunset | C78: East | D78: Gault | E78: MNGD | F78: 12 | G78: 111 | H78: 252 | I78: OK
A79: 2011-01-10 | B79: Sunshine | C79: MidWest | D79: Smith | E79: TTT | F79: 8 | G79: 64 | H79: 152 | I79: OK
A80: 2011-01-17 | B80: Sunshine | C80: MidWest | D80: Franks | E80: HHH | F80: 59 | G80: 472 | H80: 1121 | I80: Exceptional
A81: 2011-01-23 | B81: Sunshine | C81: South | D81: Chin | E81: T | F81: 49 | G81: 392 | H81: 931 | I81: Great
A82: 2011-01-23 | B82: Quad | C82: East | D82: Franks | E82: PCC | F82: 44 | G82: 638 | H82: 1188 | I82: Exceptional
A83: 2011-01-28 | B83: Sunset | C83: West | D83: Chin | E83: FM | F83: 62 | G83: 573.5 | H83: 1302 | I83: Exceptional
A84: 2011-01-29 | B84: Quad | C84: MidWest | D84: Gault | E84: PLOT | F84: 10 | G84: 145 | H84: 270 | I84: OK
A85: 2011-01-13 | B85: Carlota | C85: South | D85: Smith | E85: FM | F85: 52 | G85: 572 | H85: 1196 | I85: Exceptional
A86: 2011-01-18 | B86: Quad | C86: MidWest | D86: Smith | E86: PLOT | F86: 17 | G86: 246.5 | H86: 459 | I86: OK
A87: 2011-01-04 | B87: Sunset | C87: MidWest | D87: Sioux | E87: BBT | F87: 29 | G87: 268.25 | H87: 609 | I87: Good
A88: 2011-01-28 | B88: Bellen | C88: South | D88: Sioux | E88: QT | F88: 25 | G88: 250 | H88: 550 | I88: Good
A89: 2011-01-11 | B89: Quad | C89: East | D89: Franks | E89: ITW | F89: 14 | G89: 203 | H89: 378 | I89: OK
A90: 2011-01-22 | B90: Bellen | C90: West | D90: Pham | E90: AST | F90: 53 | G90: 530 | H90: 1166 | I90: Exceptional
A91: 2011-01-10 | B91: Sunset | C91: South | D91: Sioux | E91: MBG | F91: 47 | G91: 434.75 | H91: 987 | I91: Great
A92: 2011-01-24 | B92: Carlota | C92: MidWest | D92: Franks | E92: BBT | F92: 13 | G92: 143 | H92: 299 | I92: OK
A93: 2011-01-05 | B93: Sunshine | C93: West | D93: Franks | E93: ET | F93: 12 | G93: 96 | H93: 228 | I93: OK
A94: 2011-01-03 | B94: Carlota | C94: MidWest | D94: Chin | E94: FM | F94: 20 | G94: 220 | H94: 460 | I94: OK
A95: 2011-01-09 | B95: Bellen | C95: East | D95: Pham | E95: EPP | F95: 40 | G95: 400 | H95: 880 | I95: Great
A96: 2011-01-23 | B96: Bellen | C96: East | D96: Gault | E96: DFGH | F96: 9 | G96: 90 | H96: 198 | I96: OK
A97: 2011-01-09 | B97: Carlota | C97: East | D97: Franks | E97: WSD | F97: 38 | G97: 418 | H97: 874 | I97: Great
A98: 2011-01-02 | B98: Bellen | C98: South | D98: Gault | E98: KBTB | F98: 24 | G98: 240 | H98: 528 | I98: Good
A99: 2011-01-17 | B99: Quad | C99: West | D99: Chin | E99: TTT | F99: 10 | G99: 145 | H99: 270 | I99: OK
A100: 2011-01-28 | B100: Quad | C100: South | D100: Gault | E100: KBTB | F100: 56 | G100: 812 | H100: 1512 | I100: Exceptional
A101: 2011-01-18 | B101: Sunshine | C101: MidWest | D101: Chin | E101: LOP | F101: 62 | G101: 496 | H101: 1178 | I101: Exceptional
A102: 2011-01-28 | B102: Quad | C102: South | D102: Franks | E102: YTR | F102: 44 | G102: 638 | H102: 1188 | I102: Exceptional
A103: 2011-01-17 | B103: Carlota | C103: East | D103: Sioux | E103: GRR | F103: 39 | G103: 429 | H103: 897 | I103: Great
A104: 2011-01-18 | B104: Sunshine | C104: East | D104: Franks | E104: AA | F104: 24 | G104: 192 | H104: 456 | I104: OK
A105: 2011-01-22 | B105: Bellen | C105: West | D105: Smith | E105: WT | F105: 6 | G105: 60 | H105: 132 | I105: OK
A106: 2011-01-02 | B106: Bellen | C106: West | D106: Pham | E106: SFWK | F106: 19 | G106: 190 | H106: 418 | I106: OK

Sheet VLOOKUP(2)
A1: VLOOKUP to calculate Commission Earned
A2: Rule For Commission | B2: Hurdle | C2: Com. Rate
A3: =DOLLAR(B3,0)&" <= Sales < "&DOLLAR(B4,0) -> $0 <= Sales < $2,000 | B3: 0 | C3: 0
A4: =DOLLAR(B4,0)&" <= Sales < "&DOLLAR(B5,0) -> $2,000 <= Sales < $3,000 | B4: 2000 | C4: 0.01
A5: $3,000 <= Sales < $4,000 | B5: 3000 | C5: 0.02
A6: $4,000 <= Sales < $5,000 | B6: 4000 | C6: 0.03
A7: $5,000 <= Sales < $7,000 | B7: 5000 | C7: 0.04
A8: ="Sales >= "&DOLLAR(B8,0) -> Sales >= $7,000 | B8: 7000 | C8: 0.05
A10: Name | B10: Sales | C10: Comission | D10: Comission
A11: Mike Tello | B11: 5018 | C11: =VLOOKUP(B11,$B$3:$C$8,2)*B11 -> 200.72 | D11: =IF(B11>=B$8,C$8,IF(B11>=B$7,C$7,IF(B11>=B$6,C$6,IF(B11>=B$5,C$5,IF(B11>=B$4,C$4,C$3)))))*B11 -> 200.72
A12: Samuel George | B12: 1000 | C12: 0 | D12: =IF(B12>=B$8,C$8,IF(B12>=B$7,C$7,IF(B12>=B$6,C$6,IF(B12>=B$5,C$5,IF(B12>=B$4,C$4,C$3)))))*B12 -> 0
A13: Jeff Pannell | B13: 7000 | C13: 350 | D13: =IF(B13>=B$8,C$8,IF(B13>=B$7,C$7,IF(B13>=B$6,C$6,IF(B13>=B$5,C$5,IF(B13>=B$4,C$4,C$3)))))*B13 -> 350
A14: Bruce Urrutia | B14: 3012 | C14: 60.24 | D14: =IF(B14>=B$8,C$8,IF(B14>=B$7,C$7,IF(B14>=B$6,C$6,IF(B14>=B$5,C$5,IF(B14>=B$4,C$4,C$3)))))*B14 -> 60.24
A15: Keith Reno | B15: 9558 | C15: 477.9 | D15: =IF(B15>=B$8,C$8,IF(B15>=B$7,C$7,IF(B15>=B$6,C$6,IF(B15>=B$5,C$5,IF(B15>=B$4,C$4,C$3)))))*B15 -> 477.9

Sheet V(3)
A1: VLOOKUP to assign a grade
A2: Rule For Grade | B2: Score | D2: Grade
A3: =B3&" <= Sales < "&B4 -> 0 <= Sales < 90 | B3: 0 | C3: Fail | D3: F
A4: =B4&" <= Sales < "&B5 -> 90 <= Sales < 110 | B4: 90 | C4: Below Ave. | D4: D
A5: 110 <= Sales < 130 | B5: 110 | C5: Ave. | D5: C
A6: 130 <= Sales < 150 | B6: 130 | C6: Above Ave. | D6: B
A7: 150 <= Sales < 160 | B7: 150 | C7: High Ach. | D7: A
A8: ="Sales >= "&B8 -> Sales >= 160 | B8: 160 | C8: Top | D8: A+
A10: Name | B10: Sales | C10: Grade
A11: Leah Gamboa | B11: 118 | C11: =VLOOKUP(B11,$B$3:$D$8,3) -> C
A12: Patrick Dahlberg | B12: 88 | C12: =VLOOKUP(B12,$B$3:$D$8,3) -> F
A13: Kristen Sharpe | B13: 147 | C13: B
A14: Sean Mullens | B14: 53 | C14: F
A15: Gina Coronado | B15: 143 | C15: B
A16: Daisy Shepherd | B16: 168 | C16: A+

Sheet V(4)
A1: VLOOKUP to look up product information for invoice
A2: ProductID | B2: Name | C2: Description | D2: Price | E2: Cost
A3: Pro-650 | B3: Bellen | C3: 20 meters - 2 | D3: 25 | E3: 12
A4: Pro-643 | B4: Carlota | C4: 20 meters - 3 | D4: 27 | E4: 14.5
A5: Pro-187 | B5: Sunshine | C5: 30 meters | D5: 22 | E5: 11
A6: Pro-901 | B6: Sunbell | C6: 35 meters | D6: 24 | E6: 13
A7: Pro-711 | B7: Sunset | C7: 45 meters | D7: 23 | E7: 12
A9: =A2 -> ProductID | B9: =B2 -> Name | C9: =D2 -> Price | D9: Units | E9: Total
A10: Pro-901 | B10: =VLOOKUP($A10,$A$3:$E$7,2,0) -> Sunbell | C10: =VLOOKUP($A10,$A$3:$E$7,4,0) -> 24 | D10: 5 | E10: =D10*C10 -> 120
A13: VLOOKUP & MATCH to look up product information for invoice
A14: =MATCH(A15,$A$15:$E$15,0) -> 1 | B14: 2 | C14: 3 | D14: 4 | E14: 5 | F14: <<== Relative Position (or Ordinal Position) of Field Names
A15: ProductID | B15: Name | C15: Description | D15: Price | E15: Cost | F15: <<== Field Names
A16: Pro-650 | B16: Bellen | C16: 20 meters - 2 | D16: 25 | E16: 12
A17: Pro-643 | B17: Carlota | C17: 20 meters - 3 | D17: 27 | E17: 14.5
A18: Pro-187 | B18: Sunshine | C18: 30 meters | D18: 22 | E18: 11
A19: Pro-901 | B19: Sunbell | C19: 35 meters | D19: 24 | E19: 13
A20: Pro-711 | B20: Sunset | C20: 45 meters | D20: 23 | E20: 12
A22: =A15 -> ProductID | B22: =B15 -> Name | C22: Price | D22: Units | E22: Total
A23: Pro-901 | B23: =VLOOKUP($A23,$A$16:$E$20,MATCH(B22,$A$15:$E$15,0),0) -> Sunbell | C23: =VLOOKUP($A23,$A$16:$E$20,MATCH(C22,$A$15:$E$15,0),0) -> 24 | D23: 2 | E23: =C23*D23 -> 48

Sheet V(5)
A1: Data Validation, VLOOKUP & MATCH to lookup customer information when data is on different sheet.
A2: Account# | B2: Fname | C2: Lname | D2: Balance | E2: E-mail
A3: 1258-ViHo-1321 | B3: =VLOOKUP($A3,CustomerDataV,MATCH(B2,FieldM,0),0) -> Victor | C3: =VLOOKUP($A3,CustomerDataV,MATCH(C2,FieldM,0),0) -> Horvath | D3: =VLOOKUP($A3,CustomerDataV,MATCH(D2,FieldM,0),0) -> 3676.61 | E3: =VLOOKUP($A3,CustomerDataV,MATCH(E2,FieldM,0),0) -> ViHo@gmail.com

Sheet CTable
C2: =MATCH(C3,$C$3:$G$3,0) -> 1 | D2: =MATCH(D3,$C$3:$G$3,0) -> 2 | E2: =MATCH(E3,$C$3:$G$3,0) -> 3 | F2: =MATCH(F3,$C$3:$G$3,0) -> 4 | G2: =MATCH(G3,$C$3:$G$3,0) -> 5
C3: Account# | D3: Fname | E3: Lname | F3: Balance | G3: E-mail | R3: ="1258-"&LEFT(S3,2)&LEFT(T3,2)&"-"&INT(RAND()*8000+1001) -> 1258-DaDo-8947 | S3: Danielle | T3: Dowell | U3: =1000+ROUND(RAND()*8000,2) -> 8843.49 | V3: =LEFT(S3,2)&LEFT(T3,2)&"@gmail.com" -> DaDo@gmail.com
C4: 1258-DaDo-7418 | D4: Danielle | E4: Dowell | F4: 4191.56 | G4: DaDo@gmail.com
C5: 1258-ViHo-1321 | D5: Victor | E5: Horvath | F5: 3676.61 | G5: ViHo@gmail.com
C6: 1258-HoSh-4750 | D6: Howard | E6: Shah | F6: 7350.44 | G6: HoSh@gmail.com
C7: 1258-MaKo-6449 | D7: Mark | E7: Koehler | F7: 1367.36 | G7: MaKo@gmail.com
C8: 1258-DeSt-7389 | D8: Debbie | E8: Stephen | F8: 3196.24 | G8: DeSt@gmail.com
C9: 1258-KuWe-1748 | D9: Kurt | E9: Weckerly | F9: 7052.93 | G9: KuWe@gmail.com
C10: 1258-GuSu-6102 | D10: Guy | E10: Sur | F10: 1445.17 | G10: GuSu@gmail.com
C11: 1258-OdLa-8740 | D11: Odessa | E11: Lauria | F11: 7812.45 | G11: OdLa@gmail.com
C12: 1258-ElRh-4436 | D12: Elinor | E12: Rhames | F12: 6225.46 | G12: ElRh@gmail.com
C13: 1258-NeSu-3274 | D13: Neva | E13: Sumler | F13: 4749.54 | G13: NeSu@gmail.com
C14: 1258-TyBr-8211 | D14: Tyrone | E14: Brite | F14: 6943.25 | G14: TyBr@gmail.com
C15: 1258-JaSe-8984 | D15: Javier | E15: Segers | F15: 8101.48 | G15: JaSe@gmail.com
C16: 1258-ClWi-5671 | D16: Clare | E16: Wimbush | F16: 6647.43 | G16: ClWi@gmail.com
C17: 1258-HiHi-3444 | D17: Hillary | E17: Hillen | F17: 5095.71 | G17: HiHi@gmail.com
C18: 1258-MaZo-8107 | D18: Mathew | E18: Zobel | F18: 6533.32 | G18: MaZo@gmail.com
C19: 1258-JeSo-6445 | D19: Jeanie | E19: Solley | F19: 4790.28 | G19: JeSo@gmail.com
C20: 1258-MaLe-7052 | D20: Marcie | E20: Levis | F20: 3611.78 | G20: MaLe@gmail.com
C21: 1258-ZeSe-6140 | D21: Zelma | E21: Semones | F21: 1844.15 | G21: ZeSe@gmail.com
C22: 1258-DaCa-8640 | D22: Darryl | E22: Canela | F22: 8910.2 | G22: DaCa@gmail.com
C23: 1258-JuGo-1604 | D23: Julio | E23: Gondek | F23: 7341.38 | G23: JuGo@gmail.com
C24: 1258-LoSt-8418 | D24: Louisa | E24: Strecker | F24: 7140.8 | G24: LoSt@gmail.com
C25: 1258-JaCl-8766 | D25: Javier | E25: Claflin | F25: 5994.36 | G25: JaCl@gmail.com
C26: 1258-AnEv-6862 | D26: Annabelle | E26: Everest | F26: 1556.44 | G26: AnEv@gmail.com
C27: 1258-ElMe-1003 | D27: Elinor | E27: Meinke | F27: 6420.78 | G27: ElMe@gmail.com
C28: 1258-MaOp-8230 | D28: Max | E28: Opp | F28: 1989.48 | G28: MaOp@gmail.com
C29: 1258-TeOs-1454 | D29: Ted | E29: Oscar | F29: 8832.36 | G29: TeOs@gmail.com
C30: 1258-LoDe-6705 | D30: Lonnie | E30: Debus | F30: 1623.93 | G30: LoDe@gmail.com
C31: 1258-TaWa-4457 | D31: Tania | E31: Warburton | F31: 7312.21 | G31: TaWa@gmail.com
C32: 1258-HuPa-4126 | D32: Hugh | E32: Patron | F32: 7792.32 | G32: HuPa@gmail.com
C33: 1258-KeCa-5697 | D33: Kelly | E33: Carn | F33: 4898.4 | G33: KeCa@gmail.com
C34: 1258-JaEp-1979 | D34: Jamie | E34: Epperly | F34: 1810.45 | G34: JaEp@gmail.com
C35: 1258-ClMe-7851 | D35: Clinton | E35: Mellen | F35: 2813.82 | G35: ClMe@gmail.com
C36: 1258-JeKa-3017 | D36: Jessie | E36: Kappler | F36: 1135.83 | G36: JeKa@gmail.com
C37: 1258-JeKa-3825 | D37: Jessie | E37: Kappler | F37: 6875.03 | G37: JeKa@gmail.com

Sheet 2wl
F1: =MATCH(F3,$C$3:$G$3,0)&" column ==>>" -> 4 column ==>>
C2: 1 | D2: 2 | E2: 3 | G2: 5
C3: Account# | D3: Fname | E3: Lname | F3: Balance | G3: E-mail | R3: ="1258-"&LEFT(S3,2)&LEFT(T3,2)&"-"&INT(RAND()*8000+1001) -> 1258-DaDo-5833 | S3: Danielle | T3: Dowell | U3: =1000+ROUND(RAND()*8000,2) -> 4607.1 | V3: =LEFT(S3,2)&LEFT(T3,2)&"@gmail.com" -> DaDo@gmail.com
B4: 1 | C4: 1258-DaDo-7418 | D4: Danielle | E4: Dowell | F4: 4191.56 | G4: DaDo@gmail.com
A5: 2 row ==>> | C5: 1258-ViHo-1321 | D5: Victor | E5: Horvath | F5: 3676.61 | G5: ViHo@gmail.com
B6: 3 | C6: 1258-HoSh-4750 | D6: Howard | E6: Shah | F6: 7350.44 | G6: HoSh@gmail.com
B7: 4 | C7: 1258-MaKo-6449 | D7: Mark | E7: Koehler | F7: 1367.36 | G7: MaKo@gmail.com
B8: 5 | C8: 1258-DeSt-7389 | D8: Debbie | E8: Stephen | F8: 3196.24 | G8: DeSt@gmail.com
B9: 6 | C9: 1258-KuWe-1748 | D9: Kurt | E9: Weckerly | F9: 7052.93 | G9: KuWe@gmail.com
B10: 7 | C10: 1258-GuSu-6102 | D10: Guy | E10: Sur | F10: 1445.17 | G10: GuSu@gmail.com
B11: 8 | C11: 1258-OdLa-8740 | D11: Odessa | E11: Lauria | F11: 7812.45 | G11: OdLa@gmail.com
B12: 9 | C12: 1258-ElRh-4436 | D12: Elinor | E12: Rhames | F12: 6225.46 | G12: ElRh@gmail.com
B13: 10 | C13: 1258-NeSu-3274 | D13: Neva | E13: Sumler | F13: 4749.54 | G13: NeSu@gmail.com
B14: 11 | C14: 1258-TyBr-8211 | D14: Tyrone | E14: Brite | F14: 6943.25 | G14: TyBr@gmail.com
B15: 12 | C15: 1258-JaSe-8984 | D15: Javier | E15: Segers | F15: 8101.48 | G15: JaSe@gmail.com
B16: 13 | C16: 1258-ClWi-5671 | D16: Clare | E16: Wimbush | F16: 6647.43 | G16: ClWi@gmail.com
B17: 14 | C17: 1258-HiHi-3444 | D17: Hillary | E17: Hillen | F17: 5095.71 | G17: HiHi@gmail.com
B18: 15 | C18: 1258-MaZo-8107 | D18: Mathew | E18: Zobel | F18: 6533.32 | G18: MaZo@gmail.com
B19: 16 | C19: 1258-JeSo-6445 | D19: Jeanie | E19: Solley | F19: 4790.28 | G19: JeSo@gmail.com
B20: 17 | C20: 1258-MaLe-7052 | D20: Marcie | E20: Levis | F20: 3611.78 | G20: MaLe@gmail.com
B21: 18 | C21: 1258-ZeSe-6140 | D21: Zelma | E21: Semones | F21: 1844.15 | G21: ZeSe@gmail.com
B22: 19 | C22: 1258-DaCa-8640 | D22: Darryl | E22: Canela | F22: 8910.2 | G22: DaCa@gmail.com
B23: 20 | C23: 1258-JuGo-1604 | D23: Julio | E23: Gondek | F23: 7341.38 | G23: JuGo@gmail.com
B24: 21 | C24: 1258-LoSt-8418 | D24: Louisa | E24: Strecker | F24: 7140.8 | G24: LoSt@gmail.com
B25: 22 | C25: 1258-JaCl-8766 | D25: Javier | E25: Claflin | F25: 5994.36 | G25: JaCl@gmail.com
B26: 23 | C26: 1258-AnEv-6862 | D26: Annabelle | E26: Everest | F26: 1556.44 | G26: AnEv@gmail.com
B27: 24 | C27: 1258-ElMe-1003 | D27: Elinor | E27: Meinke | F27: 6420.78 | G27: ElMe@gmail.com
B28: 25 | C28: 1258-MaOp-8230 | D28: Max | E28: Opp | F28: 1989.48 | G28: MaOp@gmail.com
B29: 26 | C29: 1258-TeOs-1454 | D29: Ted | E29: Oscar | F29: 8832.36 | G29: TeOs@gmail.com
B30: 27 | C30: 1258-LoDe-6705 | D30: Lonnie | E30: Debus | F30: 1623.93 | G30: LoDe@gmail.com
B31: 28 | C31: 1258-TaWa-4457 | D31: Tania | E31: Warburton | F31: 7312.21 | G31: TaWa@gmail.com
A32: 29 | C32: 1258-HuPa-4126 | D32: Hugh | E32: Patron | F32: 7792.32 | G32: HuPa@gmail.com
A33: 30 | C33: 1258-KeCa-5697 | D33: Kelly | E33: Carn | F33: 4898.4 | G33: KeCa@gmail.com
A34: 31 | C34: 1258-JaEp-1979 | D34: Jamie | E34: Epperly | F34: 1810.45 | G34: JaEp@gmail.com
A35: 32 | C35: 1258-ClMe-7851 | D35: Clinton | E35: Mellen | F35: 2813.82 | G35: ClMe@gmail.com
A36: 33 | C36: 1258-JeKa-3017 | D36: Jessie | E36: Kappler | F36: 1135.83 | G36: JeKa@gmail.com
A37: 34 | C37: 1258-JeKa-3825 | D37: Jessie | E37: Kappler | F37: 6875.03 | G37: JeKa@gmail.com

Sheet MasterList
A1: Master List | C1: Current List | D1: New Item | N1: =TRIM(RIGHT(A2,LEN(A2)-5))&" "&INDEX({"Inc.","Com.","Bus."},INT(RAND()*3+1)) -> ntina Compiseno Inc. Com.
A2: Clementina Compiseno Inc. | C2: Clementina Compiseno Inc. | D2: =IF(ISNA(MATCH(C2,$A$2:$A$31,0)),"Adding To List","Nevermind") -> Nevermind | F2: <== Finds
A3: Rolf Detterich Inc. | C3: Rolf Detterich Inc. | D3: =IF(ISNA(MATCH(C3,$A$2:$A$31,0)),"Adding To List","Nevermind") -> Nevermind | F3: all records
A4: Cedrick Dings Inc. | C4: Happy Hair Inc. | D4: Adding To List | F4: not in
A5: Cortez Emperor Bus. | C5: Cortez Emperor Bus. | D5: Nevermind | F5: Master
A6: Leuze Inc. | C6: Leuze Inc. | D6: Nevermind | F6: List
A7: Manda Guiao Com. | C7: Manda Guiao Com. | D7: Nevermind
A8: Elizbeth Latus Bus. | C8: Elizbeth Latus Bus. | D8: Nevermind
A9: Delta Depippo Com. | C9: Fran Grin Bus. | D9: Adding To List
A10: Kristofer Laios Com. | C10: Kristofer Laios Com. | D10: Nevermind
A11: Delana Andalora Bus. | C11: Delana Andalora Bus. | D11: Nevermind
A12: Altha Pauza Com. | C12: Altha Pauza Com. | D12: Nevermind
A13: Mckenzie Jaggie Com. | C13: Mine Spinner Inc. | D13: Adding To List
A14: Samara Freedland Bus. | C14: Samara Freedland Bus. | D14: Nevermind
A15: Jospeh Melstrom Bus.
A16: Porter Part Bus.
A17: Jazmine Brechbill Bus.
A18: Malik Machak Bus. | C18: Current List | D18: New Item
A19: Kenyetta Heggins Inc. | C19: Happy Hair Inc. | D19: =ISNUMBER(MATCH(C19,$A$2:$A$31,0)) -> FALSE | F19: <== Finds
A20: Shu Alimo Bus. | C20: Fran Grin Bus. | D20: =ISNUMBER(MATCH(C20,$A$2:$A$31,0)) -> FALSE | F20: all
A21: Heide Birnberg Bus. | C21: Mine Spinner Inc. | D21: FALSE | F21: records in
A22: Rachele Marquina Bus. | C22: Samara Freedland Bus. | D22: TRUE | F22: Master
A23: Kasey Aninion Bus. | C23: Altha Pauza Com. | D23: TRUE | F23: List
A24: Hana Alsing Inc. | C24: Delana Andalora Bus. | D24: TRUE
A25: Leandro Haerr Bus. | C25: Kristofer Laios Com. | D25: TRUE
A26: Tomika Gazdecki Bus. | C26: Elizbeth Latus Bus. | D26: TRUE
A27: Flavia Marque Bus. | C27: Manda Guiao Com. | D27: TRUE
A28: Jin Nemani Inc. | C28: Leuze Inc. | D28: TRUE
A29: Shu Marchizano Inc. | C29: Cortez Emperor Bus. | D29: TRUE
A30: Gaston Elgar Inc. | C30: Rolf Detterich Inc. | D30: TRUE
A31: Maida Melaro Inc. | C31: Clementina Compiseno Inc. | D31: TRUE
C34: Current List | D34: New Item
C35: Samara Freedland Bus. | D35: =ISNUMBER(MATCH(C35,$A$2:$A$31,0)) -> TRUE | F35: <== Finds all records in Master List
C36: Altha Pauza Com. | D36: TRUE
C37: Delana Andalora Bus. | D37: TRUE
C38: Kristofer Laios Com. | D38: TRUE
C39: Elizbeth Latus Bus. | D39: TRUE
C40: Manda Guiao Com. | D40: TRUE
C41: Leuze Inc. | D41: TRUE
C42: Cortez Emperor Bus. | D42: TRUE
C43: Rolf Detterich Inc. | D43: TRUE
C44: Clementina Compiseno Inc. | D44: TRUE
C45: Happy Hair Inc. | D45: FALSE
C46: Fran Grin Bus. | D46: FALSE
C47: Mine Spinner Inc. | D47: FALSE

Sheet I(1)
D1: Product Commission Rate
D2: =IF(D3=$C$12,COUNTA($D3:D3)&" column ====>>","") ->  | E2: =IF(E3=$C$12,COUNTA($D3:E3)&" column ====>>","") ->  | F2: =IF(F3=$C$12,COUNTA($D3:F3)&" column ====>>","") ->  | G2: =IF(G3=$C$12,COUNTA($D3:G3)&" column ====>>","") ->  | H2: =IF(H3=$C$12,COUNTA($D3:H3)&" column ====>>","") -> 5 column ====>>
D3: Pro1 | E3: Pro2 | F3: Pro3 | G3: Pro4 | H3: Pro5 | K3: Jan | L3: Feb | M3: Mar | N3: Apr
A4: Sales | B4: =IF(MATCH(C$13,$C$4:$C$10,1)=COUNT(C$4:C4),COUNT(C$4:C4)&" row =>","") ->  | C4: 0 | D4: =(ROW()+COLUMN())/1000 -> 0.008 | E4: 0.009 | F4: 0.01 | G4: 0.011 | H4: 0.012 | J4: Pro1 | K4: 16 | L4: 12 | M4: 25 | N4: 12
B5: =IF(MATCH(C$13,$C$4:$C$10,1)=COUNT(C$4:C5),COUNT(C$4:C5)&" row =>","") ->  | C5: =C4+1500 -> 1500 | D5: 0.009 | E5: 0.01 | F5: 0.011 | G5: 0.012 | H5: 0.013 | J5: Pro2 | K5: 22 | L5: 18 | M5: 12 | N5: 17
B6: =IF(MATCH(C$13,$C$4:$C$10,1)=COUNT(C$4:C6),COUNT(C$4:C6)&" row =>","") ->  | C6: =C5+1500 -> 3000 | D6: 0.01 | E6: 0.011 | F6: 0.012 | G6: 0.013 | H6: 0.014 | J6: Pro3 | K6: 24 | L6: 16 | M6: 25 | N6: 16
B7: =IF(MATCH(C$13,$C$4:$C$10,1)=COUNT(C$4:C7),COUNT(C$4:C7)&" row =>","") ->  | C7: 4500 | D7: 0.011 | E7: 0.012 | F7: 0.013 | G7: 0.014 | H7: 0.015 | J7: Pro4 | K7: 25 | L7: 19 | M7: 11 | N7: 24
B8: =IF(MATCH(C$13,$C$4:$C$10,1)=COUNT(C$4:C8),COUNT(C$4:C8)&" row =>","") -> 5 row => | C8: 6000 | D8: 0.012 | E8: 0.013 | F8: 0.014 | G8: 0.015 | H8: 0.016 | J8: Pro5 | K8: 19 | L8: 13 | M8: 25 | N8: 17
B9: =IF(MATCH(C$13,$C$4:$C$10,1)=COUNT(C$4:C9),COUNT(C$4:C9)&" row =>","") ->  | C9: 7500 | D9: 0.013 | E9: 0.014 | F9: 0.015 | G9: 0.016 | H9: 0.017 | J9: Pro6 | K9: 15 | L9: 12 | M9: 12 | N9: 12
B10: =IF(MATCH(C$13,$C$4:$C$10,1)=COUNT(C$4:C10),COUNT(C$4:C10)&" row =>","") ->  | C10: 9000 | D10: 0.014 | E10: 0.015 | F10: 0.016 | G10: 0.017 | H10: 0.018
J11: INDEX to do 2-way lookup
B12: Pro | C12: Pro5 | E12: column | F12: =MATCH(C12,D3:H3,0) -> 5 | J12: Start Cell | K12: =INDEX($K$4:$N$9,MATCH(K13,$J$4:$J$9,0),MATCH(K14,$K$3:$N$3,0)) -> 16 | L12: End Cell | M12: =INDEX($K$4:$N$9,MATCH(M13,$J$4:$J$9,0),MATCH(M14,$K$3:$N$3,0)) -> 11
B13: =A4 -> Sales | C13: 6000 | E13: row | F13: =MATCH(C13,C4:C10) -> 5 | J13: Pro | K13: Pro3 | L13: Pro | M13: Pro4
B14: Tax | C14: =INDEX(D4:H10,MATCH(C13,C4:C10),MATCH(C12,D3:H3,0)) -> 0.016 | J14: Month | K14: Feb | L14: Month | M14: Mar
J15: INDEX to create Dynamic Range
B16: VLOOKUP: | C16: =VLOOKUP(C13,C4:H10,MATCH(C12,C3:H3,0)) -> 0.016 | J16: Sum | K16: =SUM(INDEX($K$4:$N$9,MATCH(K13,$J$4:$J$9,0),MATCH(K14,$K$3:$N$3,0)):INDEX($K$4:$N$9,MATCH(M13,$J$4:$J$9,0),MATCH(M14,$K$3:$N$3,0))) -> 71

Sheet I(2)
A1: Use INDEX / MATCH as a substitute for VLOOKUP when the value you want to return is to the left of the lookup column. | E1: Customer Asks For a Boomerang That Flies A Certain Range
A2: Product | B2: Price | C2: Description | E2: Description | F2: Product | G2: Price
A3: Carlota | B3: 23 | C3: Flying Range is 20 | E3: Flying Range is 20 | F3: =INDEX(A3:A8,MATCH($E3,$C$3:$C$8,0)) -> Carlota | G3: =INDEX(B3:B8,MATCH($E3,$C$3:$C$8,0)) -> 23
A4: Quad | B4: 30 | C4: Flying Range is 15
A5: Bellen | B5: 22 | C5: Flying Range is 25
A6: Sunshine | B6: 25 | C6: Flying Range is 30
A7: Majestic Beaut | B7: 23.5 | C7: Flying Range is 40
A8: Phenolic Sunshine | B8: 45 | C8: Flying Range is 60
A10: We need to return an item from this column ==>> | C10: Lookup Column ==>>

Sheet I(3)
A1: Use INDEX, MIN & MATCH to find vendor name with low bid | J1: Jan | K1: Feb | L1: Mar
A2: Products/Vendors | B2: Vendor1 | C2: Vendor2 | D2: Vendor3 | E2: Vendor4 | F2: Low Bid | G2: Vendor for Low Bid | I2: Pro 1 | J2: 40 | K2: 44 | L2: 73
A3: Product1 | B3: 47.63 | C3: 58.77 | D3: 59.76 | E3: 42 | F3: =MIN(B3:E3) -> 42 | G3: =INDEX($B$2:$E$2,MATCH(F3,B3:E3,0)) -> Vendor4 | I3: Pro 2 | J3: 42 | K3: 20 | L3: 51
A4: Product2 | B4: 48.36 | C4: 38.1 | D4: 52.94 | E4: 55.81 | F4: 38.1 | G4: =INDEX($B$2:$E$2,MATCH(F4,B4:E4,0)) -> Vendor2 | I4: Pro 3 | J4: 65 | K4: 11 | L4: 56
A5: Product3 | B5: 43.61 | C5: 32.11 | D5: 42.37 | E5: 59.74 | F5: 32.11 | G5: Vendor2 | I5: Pro 4 | J5: 20 | K5: 48 | L5: 30
A6: Product4 | B6: 47.06 | C6: 43.89 | D6: 49.22 | E6: 33.67 | F6: 33.67 | G6: Vendor4 | I6: Pro 5 | J6: 20 | K6: 40 | L6: 12
A7: Product5 | B7: 37.87 | C7: 58.75 | D7: 31.58 | E7: 45.23 | F7: 31.58 | G7: Vendor3 | I7: Pro 6 | J7: 42 | K7: 41 | L7: 66
A8: Product6 | B8: 46.93 | C8: 59.38 | D8: 49.61 | E8: 57.81 | F8: 46.93 | G8: Vendor1 | I8: Pro 7 | J8: 18 | K8: 29 | L8: 34
A9: Product7 | B9: 59.38 | C9: 41.13 | D9: 38.88 | E9: 36.13 | F9: 36.13 | G9: Vendor4
A10: Product8 | B10: 51.68 | C10: 34.04 | D10: 42 | E10: 40.13 | F10: 34.04 | G10: Vendor2 | I10: Lookup Row | K10: Lookup Column
A11: Product9 | B11: 34.27 | C11: 49.92 | D11: 32.71 | E11: 34.53 | F11: 32.71 | G11: Vendor3 | I11: Criteria | K11: Criteria
A12: Product10 | B12: 48.97 | C12: 34.91 | D12: 57.23 | E12: 58.44 | F12: 34.91 | G12: Vendor2 | I12: Pro 4 | K12: Jan
A13: Product11 | B13: 48.9 | C13: 42.95 | D13: 43.42 | E13: 53.83 | F13: 42.95 | G13: Vendor2 | I13: Total | K13: Total
A14: Product12 | B14: 46.12 | C14: 40.21 | D14: 58.03 | E14: 57.6 | F14: 40.21 | G14: Vendor2 | I14: =SUM(INDEX(J2:L8,MATCH(I12,I2:I8,0),)) -> 98 | K14: =SUM(INDEX(J2:L8,,MATCH(K12,J1:L1,0))) -> 247
I16: ** Leave the column_num empty and it returns all the columns
I17: ** Leave the row_num empty and it returns all the rows
I19: Pro 1 | J19: 40 | L19: Pro 4 | M19: 20
I20: Pro 2 | J20: 42 | L20: Pro 5 | M20: 20
I21: Pro 3 | J21: 65 | L21: Pro 6 | M21: 42
I23: lookup from 2 or more tables (CHOOSE lookup function can lookup two or more tables)
I24: Table | J24: 2
I25: Product | J25: Pro 4
I26: Value | J26: =IFERROR(INDEX(CHOOSE(J24,J19:J21,M19:M21),MATCH(J25,CHOOSE(J24,I19:I21,L19:L21),0)),"") -> 20

Sheet ROUND
A1: Tax Rate | B1: 0.0145
A3: Employee | B3: Before Tax | C3: Tax (column not rounded) | D3: After Tax
A4: Sioux | B4: 127.33 | C4: =ROUND(B4*B$1,2) -> 1.85 | D4: =B4-C4 -> 125.48
A5: Sue | B5: 257.87 | C5: =ROUND(B5*B$1,2) -> 3.74 | D5: =B5-C5 -> 254.13
A6: Jo | B6: 198.35 | C6: 2.88 | D6: 195.47
A7: Joe | B7: 243.19 | C7: 3.53 | D7: 239.66
A8: Totals | B8: =SUM(B4:B7) -> 826.74 | C8: =SUM(C4:C7) -> 12 | D8: =SUM(D4:D7) -> 814.74
C10: 1.85
C11: 3.74
C12: 2.88
C13: 3.53
C14: =SUM(C10:C13) -> 12

Sheet ROUND information
A1: Tax Rate | B1: 0.0145
A3: Employee | B3: Before Tax | C3: Tax (column not rounded) | D3: After Tax
A4: Sioux | B4: 127.33 | C4: =B4*B$1 -> 1.846285 | D4: =B4-C4 -> 125.483715 | F4: ="Value in "&ADDRESS(ROW(C4),COLUMN(C4),4)&" = "&C4&" is formatted to look like: "&DOLLAR(C4) -> Value in C4 = 1.846285 is formatted to look like: $1.85
A5: Sue | B5: 257.87 | C5: 3.739115 | D5: =B5-C5 -> 254.130885 | F5: ="Value in "&ADDRESS(ROW(C5),COLUMN(C5),4)&" = "&C5&" is formatted to look like: "&DOLLAR(C5) -> Value in C5 = 3.739115 is formatted to look like: $3.74
A6: Jo | B6: 198.35 | C6: 2.876075 | D6: 195.473925 | F6: Value in C6 = 2.876075 is formatted to look like: $2.88
A7: Joe | B7: 243.19 | C7: 3.526255 | D7: 239.663745 | F7: Value in C7 = 3.526255 is formatted to look like: $3.53
A8: Totals | B8: =SUM(B4:B7) -> 826.74 | C8: =SUM(C4:C7) -> 11.98773 | D8: =SUM(D4:D7) -> 814.75227 | F8: <<==Incorrect total because tax calculations were not rounded correctly
C10: =DOLLAR(C4)&" + "&DOLLAR(C5)&" + "&DOLLAR(C6)&" + "&DOLLAR(C7)&" = "&DOLLAR(SUM(ROUND(C4:C7,2)))&". NOT "&DOLLAR(C8)&"." -> $1.85 + $3.74 + $2.88 + $3.53 = $12.00. NOT $11.99.
C12: =ROUND(B4*B$1,2) -> 1.85 | D12: =B4-C12 -> 125.48 | F12: ="Value in "&ADDRESS(ROW(C12),COLUMN(C12),4)&" = "&C12&" and is formatted to look like: "&DOLLAR(C12) -> Value in C12 = 1.85 and is formatted to look like: $1.85
C13: =ROUND(B5*B$1,2) -> 3.74 | D13: =B5-C13 -> 254.13 | F13: ="Value in "&ADDRESS(ROW(C13),COLUMN(C13),4)&" = "&C13&" and is formatted to look like: "&DOLLAR(C13) -> Value in C13 = 3.74 and is formatted to look like: $3.74
C14: 2.88 | D14: 195.47 | F14: Value in C14 = 2.88 and is formatted to look like: $2.88
C15: =ROUND(B7*B$1,2) -> 3.53 | D15: 239.66 | F15: Value in C15 = 3.53 and is formatted to look like: $3.53
B16: Correct total ==>> | C16: =SUM(C12:C15) -> 12 | D16: =SUM(D12:D15) -> 814.74
A18: Rules For Rounding:
A19: 1) Choose 'position you want to round to'
A20: 2) Look at decimal to right of 'position you want to round to': if >= 5, add 1 to 'position you want to round to' if < 5, add 0 to 'position you want to round to'
A21: 3) Drop all decimals to right of 'position you want to round to'
A22: ="Example of how rounding works for a tax calculation =>"&CHAR(10)&DOLLAR(B4)&" * "&B1&" = "&B4*B1&CHAR(10)&" 'position you want to round to' is 2 places to right of decimal (penny)"&CHAR(10)&MID(B4*B1,5,1)&" "&IF(MID(B4*B1,5,1)+0>=5,">=","<")&" 5 "&CHAR(10)&B4*B1&" becomes "&ROUND(B4*B1,2) -> Example of how rounding works for a tax calculation => $127.33 * 0.0145 = 1.846285 'position you want to round to' is 2 places to right of decimal (penny) 6 >= 5 1.846285 becomes 1.85
A25: Example | B25: Number To Round | C25: ROUND function rounds | D25: Formula | E25: ROUND function 2nd argument 'position you want to round to'
A26: Round to penny | B26: 12.555 | C26: =ROUND(B26,2) -> 12.56 | D26: =" Formula in "&ADDRESS(ROW(C26),COLUMN(C26),4)&" "&TextFormula -> Formula in C26 =ROUND(B26,2) | E26: 2 | F26: positive rounds to right of decimal
A27: Round to dollar | B27: 12.5 | C27: =ROUND(B27,0) -> 13 | D27: =" Formula in "&ADDRESS(ROW(C27),COLUMN(C27),4)&" "&TextFormula -> Formula in C27 =ROUND(B27,0) | E27: 0 | F27: 0 (zero) rounds to integer (ones position)
A28: Round to thousands position | B28: 58900 | C28: =ROUND(B28,-3) -> 59000 | D28: =" Formula in "&ADDRESS(ROW(C28),COLUMN(C28),4)&" "&TextFormula -> Formula in C28 =ROUND(B28,-3) | E28: -3 | F28: negative rounds to left of decimal

Sheet AVE
B1: AVERAGE | D1: SUM | E1: =SUM(B5:B13) -> 524
B2: =AVERAGE(B5:B13) -> 65.5 | D2: COUNT | E2: =COUNT(B5:B13) -> 8
D3: =D1&"/"&D2&" = "&E1&"/"&E2 -> SUM/COUNT = 524/8 | E3: =E1/E2 -> 65.5 | G3: =(B5+B6+B7+B9+B10+B11+B12+B13)/COUNT(B5:B7,B9:B13) -> 65.5
A4: Names | B4: Test Scores
A5: Chin | B5: 59
A6: Tina | B6: 78
A7: Bill | B7: 92
A8: Tom
A9: Sioux | B9: 74
A10: Shelia | B10: 0
A11: Pham | B11: 81
A12: Mike | B12: 42
A13: Your Name | B13: 98
D115: The reason that we have averages is so that we can have one number that will represent all the numbers in a data set. An average is a "typical value" that we can use in discussions, reports and for comparative purposes. For example, an average score on a test is a useful number for comparing how well you did on the test; an average miles/gallon for a car number is useful for advertising; and the medain house price in a neighborhood can be a guide for making a purchase decision.
D116: AVERAGE for calculating arithmetic mean - sum/count. Example: Average Score on a test. | F116: MEDIAN for finding the value in the middle of a sorted list (good when there are a few unusually large or small values). Example: For real esate values, it is better to calculate the median because the average might be too large if you have a few $1,000,000 houses (a few values would pull the average up). | H116: MODE finds the one that occurs most often (good when you need an average for counting situations). Example: Counts for Below Par, OK, Good, Great categories. You could not calculate an average (arithmetic mean) bwcasue the sum/count always equals 1.

Sheet MED
A1: AVERAGE > MEDIAN. Why? Because the million dollar houses are 'pulling' the average up. | D1: MEDIAN
A2: MEDIAN | B2: AVERAGE | D2: =MEDIAN(D5:D14) -> 307000 | E2: =AVERAGE(D9:D10) -> 307000
A3: =MEDIAN(A6:A14) -> 312500 | B3: =AVERAGE(A6:A14) -> 560466.6667
D4: House Values
A5: House Values | D5: 2000000
A6: 2000000 | D6: 1000800
A7: 1000800 | D7: 339500 | E7: ="When there is an even number of numbers, MEDIAN takes the average of the middle two = ("&TEXT(D9,"#,###")&" + "&TEXT(D10,"#,###")&")/2 = "&TEXT(AVERAGE(D9:D10),"#,###") -> When there is an even number of numbers, MEDIAN takes the average of the middle two = (312,500 + 301,500)/2 = 307,000
A8: 339500 | D8: 325000
A9: 325000 | D9: 312500
A10: 312500 | D10: 301500
A11: 295800 | D11: 295800
A12: 275000 | D12: 275000
A13: 250000 | D13: 250000
A14: 245600 | D14: 245600
B115: The reason that we have averages is so that we can have one number that will represent all the numbers in a data set. An average is a "typical value" that we can use in discussions, reports and for comparative purposes. For example, an average score on a test is a useful number for comparing how well you did on the test; an average miles/gallon for a car number is useful for advertising; and the medain house price in a neighborhood can be a guide for making a purchase decision.
B116: AVERAGE for calculating arithmetic mean - sum/count. Example: Average Score on a test. | D116: MEDIAN for finding the value in the middle of a sorted list (good when there are a few unusually large or small values). Example: For real esate values, it is better to calculate the median because the average might be too large if you have a few $1,000,000 houses (a few values would pull the average up). | F116: MODE finds the one that occurs most often (good when you need an average for counting situations). Example: Counts for Below Par, OK, Good, Great categories. You could not calculate an average (arithmetic mean) bwcasue the sum/count always equals 1.

Sheet MODE
A1: ="The AVEARGE for 'Below Par' is"&CHAR(10)&C9&" / "&C9&" = "&C9/C9 -> The AVEARGE for 'Below Par' is 42 / 42 = 1
A2: MODE
A3: =MODE($B$13:$B$112) -> 1
A5: Categories for Survey | B5: Num | C5: Count
A6: Great | B6: 4 | C6: =COUNTIF($A$13:$A$112,A6) -> 13
A7: Good | B7: 3 | C7: =COUNTIF($A$13:$A$112,A7) -> 16
A8: OK | B8: 2 | C8: 29
A9: Below Par | B9: 1 | C9: 42 | D9: =42/42 -> 1
A11: =COUNT(B13:B112)&" people were asked how they liked the new Soda Pop." -> 100 people were asked how they liked the new Soda Pop.
A12: Survey Results | B12: Num | D12: =A6&" = "&B6 -> Great = 4
A13: =INDEX({"Great";"Good";"OK";"Below Par"},MATCH(B13,{4;3;2;1},0)) -> Below Par | B13: 1 | D13: =A7&" = "&B7 -> Good = 3
A14: =INDEX({"Great";"Good";"OK";"Below Par"},MATCH(B14,{4;3;2;1},0)) -> Below Par | B14: 1 | D14: =A8&" = "&B8 -> OK = 2
A15: =INDEX({"Great";"Good";"OK";"Below Par"},MATCH(B15,{4;3;2;1},0)) -> OK | B15: 2 | D15: =A9&" = "&B9 -> Below Par = 1
A16: =INDEX({"Great";"Good";"OK";"Below Par"},MATCH(B16,{4;3;2;1},0)) -> Below Par | B16: 1
A17: =INDEX({"Great";"Good";"OK";"Below Par"},MATCH(B17,{4;3;2;1},0)) -> Great | B17: 4
A18: =INDEX({"Great";"Good";"OK";"Below Par"},MATCH(B18,{4;3;2;1},0)) -> Good | B18: 3
A19: =INDEX({"Great";"Good";"OK";"Below Par"},MATCH(B19,{4;3;2;1},0)) -> Below Par | B19: 1
A20: =INDEX({"Great";"Good";"OK";"Below Par"},MATCH(B20,{4;3;2;1},0)) -> Below Par | B20: 1
A21: =INDEX({"Great";"Good";"OK";"Below Par"},MATCH(B21,{4;3;2;1},0)) -> Great | B21: 4
A22: =INDEX({"Great";"Good";"OK";"Below Par"},MATCH(B22,{4;3;2;1},0)) -> OK | B22: 2
A23: =INDEX({"Great";"Good";"OK";"Below Par"},MATCH(B23,{4;3;2;1},0)) -> OK | B23: 2
A24: =INDEX({"Great";"Good";"OK";"Below Par"},MATCH(B24,{4;3;2;1},0)) -> OK | B24: 2
A25: =INDEX({"Great";"Good";"OK";"Below Par"},MATCH(B25,{4;3;2;1},0)) -> Good | B25: 3
A26: =INDEX({"Great";"Good";"OK";"Below Par"},MATCH(B26,{4;3;2;1},0)) -> Below Par | B26: 1
A27: =INDEX({"Great";"Good";"OK";"Below Par"},MATCH(B27,{4;3;2;1},0)) -> Good | B27: 3
A28: =INDEX({"Great";"Good";"OK";"Below Par"},MATCH(B28,{4;3;2;1},0)) -> Below Par | B28: 1
A29: =INDEX({"Great";"Good";"OK";"Below Par"},MATCH(B29,{4;3;2;1},0)) -> Great | B29: 4
A30: =INDEX({"Great";"Good";"OK";"Below Par"},MATCH(B30,{4;3;2;1},0)) -> Good | B30: 3
A31: =INDEX({"Great";"Good";"OK";"Below Par"},MATCH(B31,{4;3;2;1},0)) -> Below Par | B31: 1
A32: =INDEX({"Great";"Good";"OK";"Below Par"},MATCH(B32,{4;3;2;1},0)) -> Great | B32: 4
A33: =INDEX({"Great";"Good";"OK";"Below Par"},MATCH(B33,{4;3;2;1},0)) -> Below Par | B33: 1
A34: =INDEX({"Great";"Good";"OK";"Below Par"},MATCH(B34,{4;3;2;1},0)) -> Great | B34: 4
A35: =INDEX({"Great";"Good";"OK";"Below Par"},MATCH(B35,{4;3;2;1},0)) -> OK | B35: 2
A36: =INDEX({"Great";"Good";"OK";"Below Par"},MATCH(B36,{4;3;2;1},0)) -> OK | B36: 2
A37: =INDEX({"Great";"Good";"OK";"Below Par"},MATCH(B37,{4;3;2;1},0)) -> Below Par | B37: 1
A38: =INDEX({"Great";"Good";"OK";"Below Par"},MATCH(B38,{4;3;2;1},0)) -> Below Par | B38: 1
A39: =INDEX({"Great";"Good";"OK";"Below Par"},MATCH(B39,{4;3;2;1},0)) -> Below Par | B39: 1
A40: =INDEX({"Great";"Good";"OK";"Below Par"},MATCH(B40,{4;3;2;1},0)) -> Below Par | B40: 1
A41: =INDEX({"Great";"Good";"OK";"Below Par"},MATCH(B41,{4;3;2;1},0)) -> OK | B41: 2
A42: =INDEX({"Great";"Good";"OK";"Below Par"},MATCH(B42,{4;3;2;1},0)) -> OK | B42: 2
A43: =INDEX({"Great";"Good";"OK";"Below Par"},MATCH(B43,{4;3;2;1},0)) -> Below Par | B43: 1
A44: =INDEX({"Great";"Good";"OK";"Below Par"},MATCH(B44,{4;3;2;1},0)) -> Below Par | B44: 1
A45: =INDEX({"Great";"Good";"OK";"Below Par"},MATCH(B45,{4;3;2;1},0)) -> Below Par | B45: 1
A46: =INDEX({"Great";"Good";"OK";"Below Par"},MATCH(B46,{4;3;2;1},0)) -> Good | B46: 3
A47: =INDEX({"Great";"Good";"OK";"Below Par"},MATCH(B47,{4;3;2;1},0)) -> Below Par | B47: 1
A48: =INDEX({"Great";"Good";"OK";"Below Par"},MATCH(B48,{4;3;2;1},0)) -> Below Par | B48: 1
A49: =INDEX({"Great";"Good";"OK";"Below Par"},MATCH(B49,{4;3;2;1},0)) -> Great | B49: 4
A50: =INDEX({"Great";"Good";"OK";"Below Par"},MATCH(B50,{4;3;2;1},0)) -> Great | B50: 4
A51: =INDEX({"Great";"Good";"OK";"Below Par"},MATCH(B51,{4;3;2;1},0)) -> Good | B51: 3
A52: =INDEX({"Great";"Good";"OK";"Below Par"},MATCH(B52,{4;3;2;1},0)) -> OK | B52: 2
A53: =INDEX({"Great";"Good";"OK";"Below Par"},MATCH(B53,{4;3;2;1},0)) -> Good | B53: 3
A54: =INDEX({"Great";"Good";"OK";"Below Par"},MATCH(B54,{4;3;2;1},0)) -> OK | B54: 2
A55: =INDEX({"Great";"Good";"OK";"Below Par"},MATCH(B55,{4;3;2;1},0)) -> OK | B55: 2
A56: =INDEX({"Great";"Good";"OK";"Below Par"},MATCH(B56,{4;3;2;1},0)) -> OK | B56: 2
A57: =INDEX({"Great";"Good";"OK";"Below Par"},MATCH(B57,{4;3;2;1},0)) -> Below Par | B57: 1
A58: =INDEX({"Great";"Good";"OK";"Below Par"},MATCH(B58,{4;3;2;1},0)) -> Great | B58: 4
A59: =INDEX({"Great";"Good";"OK";"Below Par"},MATCH(B59,{4;3;2;1},0)) -> OK | B59: 2
A60: =INDEX({"Great";"Good";"OK";"Below Par"},MATCH(B60,{4;3;2;1},0)) -> OK | B60: 2
A61: =INDEX({"Great";"Good";"OK";"Below Par"},MATCH(B61,{4;3;2;1},0)) -> Below Par | B61: 1
A62: =INDEX({"Great";"Good";"OK";"Below Par"},MATCH(B62,{4;3;2;1},0)) -> Great | B62: 4
A63: =INDEX({"Great";"Good";"OK";"Below Par"},MATCH(B63,{4;3;2;1},0)) -> Great | B63: 4
A64: =INDEX({"Great";"Good";"OK";"Below Par"},MATCH(B64,{4;3;2;1},0)) -> Good | B64: 3
A65: =INDEX({"Great";"Good";"OK";"Below Par"},MATCH(B65,{4;3;2;1},0)) -> Great | B65: 4
A66: =INDEX({"Great";"Good";"OK";"Below Par"},MATCH(B66,{4;3;2;1},0)) -> Good | B66: 3
A67: =INDEX({"Great";"Good";"OK";"Below Par"},MATCH(B67,{4;3;2;1},0)) -> Good | B67: 3
A68: =INDEX({"Great";"Good";"OK";"Below Par"},MATCH(B68,{4;3;2;1},0)) -> Below Par | B68: 1
A69: =INDEX({"Great";"Good";"OK";"Below Par"},MATCH(B69,{4;3;2;1},0)) -> Good | B69: 3
A70: =INDEX({"Great";"Good";"OK";"Below Par"},MATCH(B70,{4;3;2;1},0)) -> Great | B70: 4
A71: =INDEX({"Great";"Good";"OK";"Below Par"},MATCH(B71,{4;3;2;1},0)) -> Below Par | B71: 1
A72: =INDEX({"Great";"Good";"OK";"Below Par"},MATCH(B72,{4;3;2;1},0)) -> Good | B72: 3
A73: =INDEX({"Great";"Good";"OK";"Below Par"},MATCH(B73,{4;3;2;1},0)) -> Below Par | B73: 1
A74: =INDEX({"Great";"Good";"OK";"Below Par"},MATCH(B74,{4;3;2;1},0)) -> OK | B74: 2
A75: =INDEX({"Great";"Good";"OK";"Below Par"},MATCH(B75,{4;3;2;1},0)) -> Below Par | B75: 1
A76: =INDEX({"Great";"Good";"OK";"Below Par"},MATCH(B76,{4;3;2;1},0)) -> Below Par | B76: 1
A77: =INDEX({"Great";"Good";"OK";"Below Par"},MATCH(B77,{4;3;2;1},0)) -> Below Par | B77: 1
A78: =INDEX({"Great";"Good";"OK";"Below Par"},MATCH(B78,{4;3;2;1},0)) -> OK | B78: 2
A79: =INDEX({"Great";"Good";"OK";"Below Par"},MATCH(B79,{4;3;2;1},0)) -> Below Par | B79: 1
A80: =INDEX({"Great";"Good";"OK";"Below Par"},MATCH(B80,{4;3;2;1},0)) -> OK | B80: 2
A81: =INDEX({"Great";"Good";"OK";"Below Par"},MATCH(B81,{4;3;2;1},0)) -> Below Par | B81: 1
A82: =INDEX({"Great";"Good";"OK";"Below Par"},MATCH(B82,{4;3;2;1},0)) -> OK | B82: 2
A83: =INDEX({"Great";"Good";"OK";"Below Par"},MATCH(B83,{4;3;2;1},0)) -> Below Par | B83: 1
A84: =INDEX({"Great";"Good";"OK";"Below Par"},MATCH(B84,{4;3;2;1},0)) -> Below Par | B84: 1
A85: =INDEX({"Great";"Good";"OK";"Below Par"},MATCH(B85,{4;3;2;1},0)) -> Below Par | B85: 1
A86: =INDEX({"Great";"Good";"OK";"Below Par"},MATCH(B86,{4;3;2;1},0)) -> Below Par | B86: 1
A87: =INDEX({"Great";"Good";"OK";"Below Par"},MATCH(B87,{4;3;2;1},0)) -> OK | B87: 2
A88: =INDEX({"Great";"Good";"OK";"Below Par"},MATCH(B88,{4;3;2;1},0)) -> Good | B88: 3
A89: =INDEX({"Great";"Good";"OK";"Below Par"},MATCH(B89,{4;3;2;1},0)) -> OK | B89: 2
A90: =INDEX({"Great";"Good";"OK";"Below Par"},MATCH(B90,{4;3;2;1},0)) -> OK | B90: 2
A91: =INDEX({"Great";"Good";"OK";"Below Par"},MATCH(B91,{4;3;2;1},0)) -> Below Par | B91: 1
A92: =INDEX({"Great";"Good";"OK";"Below Par"},MATCH(B92,{4;3;2;1},0)) -> Below Par | B92: 1
A93: =INDEX({"Great";"Good";"OK";"Below Par"},MATCH(B93,{4;3;2;1},0)) -> OK | B93: 2
A94: =INDEX({"Great";"Good";"OK";"Below Par"},MATCH(B94,{4;3;2;1},0)) -> Below Par | B94: 1
A95: =INDEX({"Great";"Good";"OK";"Below Par"},MATCH(B95,{4;3;2;1},0)) -> Below Par | B95: 1
A96: =INDEX({"Great";"Good";"OK";"Below Par"},MATCH(B96,{4;3;2;1},0)) -> Below Par | B96: 1
A97: =INDEX({"Great";"Good";"OK";"Below Par"},MATCH(B97,{4;3;2;1},0)) -> OK | B97: 2
A98: =INDEX({"Great";"Good";"OK";"Below Par"},MATCH(B98,{4;3;2;1},0)) -> Below Par | B98: 1
A99: =INDEX({"Great";"Good";"OK";"Below Par"},MATCH(B99,{4;3;2;1},0)) -> OK | B99: 2
A100: =INDEX({"Great";"Good";"OK";"Below Par"},MATCH(B100,{4;3;2;1},0)) -> OK | B100: 2
A101: =INDEX({"Great";"Good";"OK";"Below Par"},MATCH(B101,{4;3;2;1},0)) -> Good | B101: 3
A102: =INDEX({"Great";"Good";"OK";"Below Par"},MATCH(B102,{4;3;2;1},0)) -> Below Par | B102: 1
A103: =INDEX({"Great";"Good";"OK";"Below Par"},MATCH(B103,{4;3;2;1},0)) -> OK | B103: 2
A104: =INDEX({"Great";"Good";"OK";"Below Par"},MATCH(B104,{4;3;2;1},0)) -> Below Par | B104: 1
A105: =INDEX({"Great";"Good";"OK";"Below Par"},MATCH(B105,{4;3;2;1},0)) -> OK | B105: 2
A106: =INDEX({"Great";"Good";"OK";"Below Par"},MATCH(B106,{4;3;2;1},0)) -> Good | B106: 3
A107: =INDEX({"Great";"Good";"OK";"Below Par"},MATCH(B107,{4;3;2;1},0)) -> OK | B107: 2
A108: =INDEX({"Great";"Good";"OK";"Below Par"},MATCH(B108,{4;3;2;1},0)) -> Great | B108: 4
A109: =INDEX({"Great";"Good";"OK";"Below Par"},MATCH(B109,{4;3;2;1},0)) -> OK | B109: 2
A110: =INDEX({"Great";"Good";"OK";"Below Par"},MATCH(B110,{4;3;2;1},0)) -> Good | B110: 3
A111: =INDEX({"Great";"Good";"OK";"Below Par"},MATCH(B111,{4;3;2;1},0)) -> Below Par | B111: 1
A112: =INDEX({"Great";"Good";"OK";"Below Par"},MATCH(B112,{4;3;2;1},0)) -> Below Par | B112: 1
I116: The reason that we have averages is so that we can have one number that will represent all the numbers in a data set. An average is a "typical value" that we can use in discussions, reports and for comparative purposes. For example, an average score on a test is a useful number for comparing how well you did on the test; an average miles/gallon for a car number is useful for advertising; and the medain house price in a neighborhood can be a guide for making a purchase decision.
I117: AVERAGE for calculating arithmetic mean - sum/count. Example: Average Score on a test. | K117: MEDIAN for finding the value in the middle of a sorted list (good when there are a few unusually large or small values). Example: For real esate values, it is better to calculate the median because the average might be too large if you have a few $1,000,000 houses (a few values would pull the average up). | M117: MODE finds the one that occurs most often (good when you need an average for counting situations). Example: Counts for Below Par, OK, Good, Great categories. You could not calculate an average (arithmetic mean) bwcasue the sum/count always equals 1.

Sheet RANK
A1: Date | B1: Sales | C1: RANK.EQ | D1: RANK | E1: RANK.AVE | G1: Assembling Product Times (Hours) | H1: RANK.AVE
A2: 2010-11-19 | B2: 9349 | C2: =_xlfn.RANK.EQ(B2,$B$2:$B$8,0) -> 6 | D2: =RANK(B2,$B$2:$B$8,0) -> 6 | E2: =_xlfn.RANK.AVG(B2,$B$2:$B$8,0) -> 6 | G2: 5.5 | H2: =_xlfn.RANK.AVG(G2,$G$2:$G$8,1) -> 6
A3: 2010-11-20 | B3: 9316 | C3: =_xlfn.RANK.EQ(B3,$B$2:$B$8,0) -> 7 | D3: =RANK(B3,$B$2:$B$8,0) -> 7 | E3: =_xlfn.RANK.AVG(B3,$B$2:$B$8,0) -> 7 | G3: 4.85 | H3: =_xlfn.RANK.AVG(G3,$G$2:$G$8,1) -> 2.5
A4: 2010-11-21 | B4: 15850 | C4: 4 | D4: 4 | E4: 4 | G4: 4.55 | H4: 1
A5: 2010-11-22 | B5: =B6 -> 15973 | C5: 2 | D5: 2 | E5: 2.5 | G5: 6.05 | H5: 7
A6: 2010-11-23 | B6: 15973 | C6: 2 | D6: 2 | E6: 2.5 | G6: 5.1 | H6: 5
A7: 2010-11-24 | B7: 12435 | C7: 5 | D7: 5 | E7: 5 | G7: 5.05 | H7: 4
A8: 2010-11-25 | B8: 16783 | C8: 1 | D8: 1 | E8: 1 | G8: 4.85 | H8: 2.5

Sheet GS
A1: Sales
A2: Sell Price of Boomerang | B2: 25
A3: Units Sold | B3: 20000
A4: Total Revenue | B4: =B3*B2 -> 500000

Sheet Array(1)
A1: Date | B1: Product | C1: COGS | D1: Sales | E1: Gross Profit | M1: formulas for rand
A2: 2010-09-13 | B2: Mchn 2 | C2: 7740 | D2: 21500 | E2: =D2-C2 -> 13760 | M2: Date | N2: Product | O2: COGS | P2: Sales
A3: 2010-07-17 | B3: Mchn 3 | C3: 9460 | D3: 21500 | E3: =D3-C3 -> 12040 | M3: =40357+INT(RAND()*40) -> 2010-07-30 | N3: =INDEX({"Machine 1";"Machine 2";"Machine 3"},INT(RAND()*3+1)) -> Machine 3 | O3: =ROUND(P3*VLOOKUP(N3,{"Machine 1",15000,0.45,0.29,0.47;"Machine 2",21500,0.44,0.36,0.45;"Machine 3",32100,0.37,0.3,0.47},3+INT(RAND()*3)),2) -> 11520.69 | P3: =ROUND(VLOOKUP(N3,{"Machine 1",15000;"Machine 2",21500;"Machine 3",32100},2,0)*INT(RAND()*10+91)/100,2) -> 31137
A4: 2010-07-30 | B4: Mchn 4 | C4: 4350 | D4: 15000 | E4: =D4-C4 -> 10650
A5: 2010-08-27 | B5: Mchn 5 | C5: 4350 | D5: 15000 | E5: 10650
A6: 2010-09-25 | B6: Mchn 6 | C6: 14785 | D6: 31458 | E6: 16673
A7: 2010-08-28 | B7: Mchn 7 | C7: 4176 | D7: 14400 | E7: 10224
A8: 2010-07-29 | B8: Mchn 8 | C8: 8859 | D8: 29532 | E8: 20673
D10: Total | E10: =SUM(E2:E8) -> 94670
A12: Date | B12: Product | C12: COGS | D12: Sales
A13: 2010-09-13 | B13: Mchn 2 | C13: 7740 | D13: 21500 | H13: =FIXED(D13,0)&" - "&FIXED(C13,0)&" = "&FIXED(D13-C13,0) -> 21,500 - 7,740 = 13,760
A14: 2010-07-17 | B14: Mchn 3 | C14: 9460 | D14: 21500 | H14: =FIXED(D14,0)&" - "&FIXED(C14,0)&" = "&FIXED(D14-C14,0) -> 21,500 - 9,460 = 12,040
A15: 2010-07-30 | B15: Mchn 4 | C15: 4350 | D15: 15000 | H15: 15,000 - 4,350 = 10,650
A16: 2010-08-27 | B16: Mchn 5 | C16: 4350 | D16: 15000 | H16: 15,000 - 4,350 = 10,650
A17: 2010-09-25 | B17: Mchn 6 | C17: 14785 | D17: 31458 | H17: 31,458 - 14,785 = 16,673
A18: 2010-08-28 | B18: Mchn 7 | C18: 4176 | D18: 14400 | H18: 14,400 - 4,176 = 10,224
A19: 2010-07-29 | B19: Mchn 8 | C19: 8859 | D19: 29532 | H19: 29,532 - 8,859 = 20,673
A21: Total Gross Profit | D21: =SUM(D13:D19-C13:C19) -> 94670
A23: Date | B23: Product | C23: COGS | D23: Sales
A24: 2010-09-13 | B24: Mchn 2 | C24: 7740 | D24: 21500
A25: 2010-07-17 | B25: Mchn 3 | C25: 9460 | D25: 21500
A26: 2010-07-30 | B26: Mchn 4 | C26: 4350 | D26: 15000
A27: 2010-08-27 | B27: Mchn 5 | C27: 4350 | D27: 15000
A28: 2010-09-25 | B28: Mchn 6 | C28: 14785 | D28: 31458
A29: 2010-08-28 | B29: Mchn 7 | C29: 4176 | D29: 14400
A30: 2010-07-29 | B30: Mchn 8 | C30: 8859 | D30: 29532
A32: Total Gross Profit | D32: =SUMPRODUCT(D24:D30-C24:C30) -> 94670
E132: =SUM(E2:E131) -> 189340

Sheet Array(2)
A1: Location | B1: Time (Minutes) To Assemble Product | D1: Location | E1: AVERAGE Time | F1: MIN Time | G1: MAX Time | H1: MODE Time | J1: Names | K1: Count Unique Records | M1: formulas for rand
A2: Seattle | B2: 6.7 | D2: Seattle | E2: =AVERAGEIF($A$2:$A$162,D2,$B$2:$B$162) -> 5.887755102 | F2: =MIN(IF($A$2:$A$161=D2,$B$2:$B$161)) -> 4.2 | G2: =MAX(IF($A$2:$A$161=D2,$B$2:$B$161)) -> 7 | H2: =MODE(IF($A$2:$A$161=D2,$B$2:$B$161)) -> 6.6 | J2: Tom | K2: =SUMPRODUCT(--(J2:J8<>""),1/COUNTIF(J2:J8,J2:J8&"")) -> 5 | M2: Location | N2: Time (Mins) To Assemble Product
A3: Oakland | B3: 5.4 | D3: Oakland | E3: =AVERAGEIF($A$2:$A$162,D3,$B$2:$B$162) -> 5.261538462 | F3: =MIN(IF($A$2:$A$161=D3,$B$2:$B$161)) -> 4 | G3: =MAX(IF($A$2:$A$161=D3,$B$2:$B$161)) -> 6.8 | H3: =MODE(IF($A$2:$A$161=D3,$B$2:$B$161)) -> 5.4 | J3: Sioux | M3: =INDEX({"Oakland";"SF";"Seattle"},INT(RAND()*3+1)) -> Seattle | N3: =IF(M3="SF",INT(RAND()*500+501)/100,INT(RAND()*300+401)/100) -> 4.33
A4: Oakland | B4: 4.7 | D4: SF | E4: =AVERAGEIF($A$2:$A$162,D4,$B$2:$B$162) -> 7.76779661 | F4: =MIN(IF($A$2:$A$161=D4,$B$2:$B$161)) -> 5.2 | G4: =MAX(IF($A$2:$A$161=D4,$B$2:$B$161)) -> 10 | H4: =MODE(IF($A$2:$A$161=D4,$B$2:$B$161)) -> 9.5 | J4: Sue
A5: SF | B5: 7.7 | J5: Sioux | L5: =COUNTA(J2:J8) -> 6
A6: SF | B6: 5.2
A7: SF | B7: 9.5 | J7: Jo
A8: Oakland | B8: 4.6 | J8: Mo
A9: Oakland | B9: 4.4
A10: Seattle | B10: 5.9
A11: Oakland | B11: 6.7 | J11: Names | K11: Count Unique Records if * included
A12: Oakland | B12: 6.3 | J12: Tom | K12: =SUM(IF(FREQUENCY(IF(J12:J18<>"",MATCH("~"&J12:J18,J12:J18&"",0)),ROW(J12:J18)-ROW(J12)+1),1)) -> 6
A13: Oakland | B13: 5.6 | J13: *Tom
A14: SF | B14: 5.7 | J14: Sue
A15: SF | B15: 6.2 | J15: Sioux
A16: Oakland | B16: 4.5
A17: SF | B17: 7.9 | J17: Jo
A18: SF | B18: 5.2 | J18: Mo
A19: SF | B19: 7.2
A20: Seattle | B20: 6.7
A21: Oakland | B21: 5.2
A22: SF | B22: 7.9
A23: SF | B23: 6
A24: Seattle | B24: 4.2
A25: SF | B25: 7.9
A26: Seattle | B26: 6.3
A27: SF | B27: 9.4
A28: SF | B28: 7.4
A29: Seattle | B29: 6.4
A30: SF | B30: 9
A31: SF | B31: 5.9
A32: Seattle | B32: 6.9
A33: Oakland | B33: 5.7
A34: SF | B34: 7.1
A35: Seattle | B35: 4.4
A36: SF | B36: 8.9
A37: Seattle | B37: 6.6
A38: SF | B38: 9.1
A39: SF | B39: 7.2
A40: SF | B40: 9.8
A41: Oakland | B41: 4.7
A42: Seattle | B42: 6.2
A43: SF | B43: 8.3
A44: SF | B44: 9.9
A45: SF | B45: 5.7
A46: Oakland | B46: 6
A47: Oakland | B47: 6.8
A48: Oakland | B48: 6.2
A49: Oakland | B49: 4.3
A50: Seattle | B50: 4.4
A51: Oakland | B51: 4.8
A52: SF | B52: 8.9
A53: Seattle | B53: 5.2
A54: Seattle | B54: 5.7
A55: SF | B55: 9.5
A56: Seattle | B56: 6.1
A57: Seattle | B57: 6.7
A58: Oakland | B58: 5
A59: Seattle | B59: 6.7
A60: SF | B60: 7.5
A61: Seattle | B61: 6.1
A62: Oakland | B62: 4.2
A63: SF | B63: 9.4
A64: Oakland | B64: 6.1
A65: Seattle | B65: 4.2
A66: Oakland | B66: 4.3
A67: Seattle | B67: 7
A68: Seattle | B68: 6.1
A69: Oakland | B69: 6.7
A70: Seattle | B70: 6.3
A71: Oakland | B71: 4.6
A72: SF | B72: 7.3
A73: SF | B73: 9
A74: Oakland | B74: 5.8
A75: SF | B75: 7.4
A76: Seattle | B76: 5.7
A77: Seattle | B77: 5.7
A78: SF | B78: 5.9
A79: SF | B79: 7.8
A80: SF | B80: 9.5
A81: SF | B81: 9.5
A82: Oakland | B82: 4.2
A83: Oakland | B83: 4.6
A84: Oakland | B84: 4
A85: Seattle | B85: 6
A86: Oakland | B86: 4.5
A87: SF | B87: 6.7
A88: SF | B88: 7.6
A89: Seattle | B89: 6.8
A90: SF | B90: 10
A91: Oakland | B91: 4.8
A92: SF | B92: 6.1
A93: SF | B93: 7.6
A94: SF | B94: 8.2
A95: Oakland | B95: 5.4
A96: Seattle | B96: 6.9
A97: Seattle | B97: 6.3
A98: Oakland | B98: 6.1
A99: Oakland | B99: 6.8
A100: Oakland | B100: 4.1
A101: SF | B101: 5.9
A102: Oakland | B102: 4.7
A103: Oakland | B103: 5.4
A104: SF | B104: 7
A105: Oakland | B105: 5.1
A106: Oakland | B106: 5.1
A107: Oakland | B107: 5.8
A108: Oakland | B108: 5.7
A109: SF | B109: 5.8
A110: Seattle | B110: 5.6
A111: Seattle | B111: 4.8
A112: SF | B112: 5.4
A113: Seattle | B113: 5.7
A114: Seattle | B114: 5.2
A115: Seattle | B115: 6.5
A116: Oakland | B116: 4.9
A117: SF | B117: 8.7
A118: SF | B118: 9.7
A119: Seattle | B119: 5.5
A120: SF | B120: 6.2
A121: Seattle | B121: 4.2
A122: SF | B122: 8
A123: Oakland | B123: 5.7
A124: Oakland | B124: 5
A125: SF | B125: 8.6
A126: SF | B126: 9.3
A127: Seattle | B127: 4.6
A128: Oakland | B128: 5.1
A129: Seattle | B129: 5
A130: Oakland | B130: 5.4
A131: Seattle | B131: 6.5
A132: Seattle | B132: 4.3
A133: SF | B133: 8.5
A134: Seattle | B134: 5
A135: SF | B135: 5.8
A136: Oakland | B136: 4.8
A137: Oakland | B137: 4.2
A138: Oakland | B138: 5.6
A139: Seattle | B139: 6.6
A140: Seattle | B140: 6.6
A141: SF | B141: 9.3
A142: Oakland | B142: 6.8
A143: SF | B143: 7.6
A144: Seattle | B144: 6.4
A145: Seattle | B145: 5.4
A146: Seattle | B146: 6.5
A147: SF | B147: 8.1
A148: SF | B148: 6.7
A149: SF | B149: 7.5
A150: Seattle | B150: 7
A151: SF | B151: 9.6
A152: Oakland | B152: 6.8
A153: Oakland | B153: 4.2
A154: Oakland | B154: 4.4
A155: SF | B155: 8.6
A156: Oakland | B156: 5.3
A157: Oakland | B157: 6.5
A158: Seattle | B158: 6.6
A159: Seattle | B159: 6.8
A160: Seattle | B160: 6.6
A161: Seattle | B161: 4.9

Sheet Array(3)
A1: Sales | C1: Category | D1: Upper Limit | E1: Frequency
A2: 249.99 | C2: ="Sales <= "&DOLLAR(D2,0) -> Sales <= $250 | D2: 250 | E2: =FREQUENCY(A2:A14,D2:D5) -> 2
A3: 250 | C3: =DOLLAR(D2,0)&" < Sales <= "&DOLLAR(D3,0) -> $250 < Sales <= $500 | D3: 500 | E3: 4
A4: 250.01 | C4: =DOLLAR(D3,0)&" < Sales <= "&DOLLAR(D4,0) -> $500 < Sales <= $750 | D4: 750 | E4: 1
A5: 450 | C5: $750 < Sales <= $1,000 | D5: 1000 | E5: 5 | K5: Technically, the PivotTable engine and the FREQUENCY function calculate differently:
A6: 499.99 | C6: ="Sales > "&DOLLAR(D5,0) -> Sales > $1,000 | E6: 1
A7: 500
A8: 500.01 | K8: Row Labels | L8: Count of Sales
A9: 800 | J9: =L31&" <= Sales < "&M31 -> 0 <= Sales < 250 | K9: 0-250 | L9: 1
A10: 900 | J10: =L32&" <= Sales < "&M32 -> 250 <= Sales < 500 | K10: 250-500 | L10: 4
A11: 850 | J11: =L33&" <= Sales < "&M33 -> 500 <= Sales < 750 | K11: 500-750 | L11: 2
A12: 800 | J12: =L34&" <= Sales < "&M34 -> 750 <= Sales < 1000 | K12: 750-1000 | L12: 5
A13: 1000 | J13: =L35&" < Sales" -> 1000 < Sales | K13: >1000 | L13: 1
A14: 2000 | K14: Grand Total | L14: 13
K16: Sales
K17: 249.99
K18: 250
K19: 250.01
K20: 450
K21: 499.99
K22: 500
K23: 500.01
K24: 800
K25: 900
K26: 850
K27: 800
K28: 1000
K29: 2000
K31: =L31&" < Sales <= "&M31 -> 0 < Sales <= 250 | L31: 0 | M31: 250 | N31: =COUNTIFS($A$2:$A$14,">="&L31,$A$2:$A$14,"<"&M31) -> 1
K32: =L32&" < Sales <= "&M32 -> 250 < Sales <= 500 | L32: =M31 -> 250 | M32: =M31+250 -> 500 | N32: =COUNTIFS($A$2:$A$14,">="&L32,$A$2:$A$14,"<"&M32) -> 4
K33: 500 < Sales <= 750 | L33: =M32 -> 500 | M33: =M32+250 -> 750 | N33: 2
K34: 750 < Sales <= 1000 | L34: 750 | M34: 1000 | N34: 4
K35: 1000 < Sales <= 1250 | L35: 1000 | M35: 1250 | N35: =COUNTIFS($A$2:$A$14,">"&L35) -> 1

Sheet Array(4)
A1: January Sales | B1: Sales Rep1 | C1: Sales Rep2 | D1: Sales Rep3 | E1: Sales Rep4 | F1: Totals
A2: Pro1 | B2: 415 | C2: 244 | D2: 248 | E2: 417 | F2: =SUM(B2:E2) -> 1324
A3: Pro2 | B3: 279 | C3: 223 | D3: 321 | E3: 191 | F3: 1014
A4: Pro3 | B4: 379 | C4: 382 | D4: 215 | E4: 304 | F4: 1280
A5: Pro4 | B5: 181 | C5: 227 | D5: 150 | E5: 260 | F5: 818
A6: Pro5 | B6: 290 | C6: 440 | D6: 212 | E6: 368 | F6: 1310
A7: Totals | B7: =SUM(B2:B6) -> 1544 | C7: =SUM(C2:C6) -> 1516 | D7: =SUM(D2:D6) -> 1146 | E7: =SUM(E2:E6) -> 1540 | F7: 5746
A9: =TRANSPOSE(A1:F7) -> January Sales | B9: Pro1 | C9: Pro2 | D9: Pro3 | E9: Pro4 | F9: Pro5 | G9: Totals
A10: Sales Rep1 | B10: 415 | C10: 279 | D10: 379 | E10: 181 | F10: 290 | G10: 1544
A11: Sales Rep2 | B11: 244 | C11: 223 | D11: 382 | E11: 227 | F11: 440 | G11: 1516
A12: Sales Rep3 | B12: 248 | C12: 321 | D12: 215 | E12: 150 | F12: 212 | G12: 1146
A13: Sales Rep4 | B13: 417 | C13: 191 | D13: 304 | E13: 260 | F13: 368 | G13: 1540
A14: Totals | B14: 1324 | C14: 1014 | D14: 1280 | E14: 818 | F14: 1310 | G14: 5746

Sheet CNF(notes)
A1: =ROW()&")" -> 1) | B1: Ctrl + 1 is the keyboard shortcut for the Format Cells Dialog Box
A2: =ROW()&")" -> 2) | B2: The Number Tab has many EXCELlent number formats
A3: 3) | B3: The Custom section let's you create custom Number Formatting
A4: 4) | B4: Before the 1st semi-colon is how to display positive numbers
A5: 5) | B5: Before the 2nd semi-colon and after the 1st semi-colon is how to display negative numbers
A6: 6) | B6: Before the 3rd semi-colon and after the 2nd semi-colon is how to display zeros
A7: 7) | B7: After the 3rd semi-colon is whether or not and how to display text
A8: 8) | B8: If you just have formatting symbols before the 1st semi-colon, the formatting will apply to positive, negative and zero numbers and text will display
A9: 9) | B9: When General Number Format is applied, all Custom Number Formatting will be removed
A10: 10) | B10: The TEXT function converts a number to text with a Custom Number Format that you specify. TEXT(number, "Custom Number Format in quotes")
A12: Symbol | B12: Usage | C12: Typed digits | D12: Displayed value
A13: # | B13: Digit placeholder that displays significant digits only; example ####.# | C13: 12.77 | D13: 12.77
C14: 5 | D14: 5
A15: 0 | B15: Digit placeholder that displays significant and insignificant zeroes; example: 0.00 | C15: 0.35 | D15: 0.35
C16: 23 | D16: 23
A17: 0 | B17: Zeros before digit like 00345; example: 00000 | C17: 345 | D17: 345
A18: 0 | B18: display many digits 0.000000000000000 | C18: .125489632586635 | D18: 0.1254896326
A19: ? | B19: Acts as a digit placeholder that does not display insignificant digits but does hold a place so that decimal points will align; example: 0.00? | C19: 27.3 | D19: 27.3
C20: 5.132 | D20: 5.132
A21: ? | B21: Scoots the decimal over; example: 0.00???? | C21: 27.3 | D21: 27.3
C22: 5.132 | D22: 5.132
A23: % | B23: Rules for formatting a % (times 100 and add symbol); example 0.00% | C23: 0.3 | D23: 0.3
A24: , | B24: Inserts a comma for thousands; example: #,### | C24: 1000000 | D24: 1000000
A25: , | B25: Use as a scaling operator; example #,, | C25: 1000000 | D25: 1000000
A26: * | B26: Tells the cell to put enough of the character (space) after it to fill the column; example $* 0.00 | C26: 548 | D26: 548
A27: * | B27: Tells the cell to put enough of the character (^) after it to fill the column; example $*^0.01 | C27: 548 | D27: 548
A28: _ | B28: Skip the width of the next character - often used with ) to help positive numbers align with negative numbers; example: _($* #,###0.00_);_($* (#,###0.00);_(* "-"??_);_(@_) | C28: 256.36 | D28: 256.36
A29: _ | B29: example: _($* #,###0.00_);_($* (#,###0.00);_(* "-"??_);_(@_) | C29: -256.36 | D29: -256.36
A30: _ | B30: example: _($* #,###0.00_);_($* (#,###0.00);_(* "-"??_);_(@_) | C30: 0 | D30: 0
A32: " " | B32: adds text; example: 0.00" Rad" | C32: 23 | D32: 23
A33: " " | B33: "surplus";"deficit" | C33: 5 | D33: 5
C34: -10 | D34: -10
A35: @ | B35: Indicates the location where text should be inserted in cells formatted with custom format; if the @ is not included in the code, the text will not be displayed; example: _($@_) | C35: none | D35: none
A36: @ | B36: Use formatting to hide words; example: 0.00;-0.00;"--"; | C36: none | D36: none
A37: @ | B37: How to put a single character in front of a word; example: _(* #,##0.00_);_(* (#,##0.00);_(* "-"??_);_(^@_) | C37: rad | D37: rad
A38: @ | B38: This scoots the text over one width of a parenthesis; example: _($* #,###0.00_);_($* (#,###0.00);_(* "-"??_);_(@_) | C38: rad | D38: rad
A39: d | B39: day; example: dddd | C39: 2006-12-31 | D39: 2006-12-31
A40: m | B40: month; example: mmm. | C40: 2006-12-31 | D40: 2006-12-31
A41: y | B41: year; example: yy | C41: 2006-12-31 | D41: 2006-12-31
A42: d | B42: day; example: d | C42: 2006-12-31 | D42: 2006-12-31
A43: m | B43: month; example: m | C43: 2006-12-31 | D43: 2006-12-31 | E43: Be careful ==> | F43: =12*D43 -> 468984
A44: y | B44: year; example: yyyy | C44: 2006-12-31 | D44: 2006-12-31
A45: hh:mm:ss AM/PM | B45: Time | C45: 08:00:00 | D45: =C45 -> 08:00:00
A46: [h]:mm | B46: Show time greater than 24 hours | C46: 2 | D46: =C46 -> 2
A47: Note 1==> | B47: If you specify only two formats, the first is used for positive and zero
A48: Note 2==> | B48: If you specify only one formats, it is used for all numbers

Sheet CNF(1)
A1: Date | B1: 2009-01-01 | C1: format: mmmm d, yyyy
A2: Time | B2: 08:00:00 | C2: format: hh:mm:ss AM/PM
A3: Time Greater than 24 hours | B3: 1.5 | C3: format: [h]:mm
A4: Percents | B4: 0.244 | C4: format: 0.00000%
A5: Fraction | B5: 2.2 | C5: format: ?/?
A6: Words with numbers | B6: 25 | C6: format: $#,##0.00" per unit"
A7: Four Sections | B7: Rad | C7: format: 0.00;-0.00;0;
A8: Blank | B8: RAD | C8: format: ;;;
A9: General: keyboard: Ctrl + Shift + ~ | B9: 2 | C9: format: General
A11: Custom Number Format to have word appear in cell with number. This allows you to still use the number in a formula
A12: 25
A13: Units | B13: Sales
A14: 12 | B14: =A14*A$12 -> 300
A15: 15 | B15: =A15*A$12 -> 375
A16: 9 | B16: 225
A17: 25 | B17: 625
A19: The TEXT function converts a number to text with a Custom Number Format that you specify. TEXT(number, "Custom Number Format in quotes") | C19: For more about the TEXT function, see this video: | F19: Excel Magic Trick #40: TEXT Function Formula: Dynamic Label
A20: TEXT function with custom number format and & (ampersand) to make label
A21: 17:00:00 | B21: ="All times before "&TEXT(A21,"h:mm AM/PM") -> All times before 5:00 PM | C21: All times before 02:00 PM
A22: TEXT function with custom number format and & (ampersand) to make label
A23: 2011-02-21 | B23: ="The criteria to match is "&TEXT(A23,"m/d/y") -> The criteria to match is 2/21/11 | C23: The Criteria to match is 12/15/2010
A24: TEXT function with custom number format and & (ampersand) to make label
A25: 0.2275 | B25: ="Your rate is "&TEXT(A25,"0.00%") -> Your rate is 22.75% | C25: Your rate is 25.55%
A26: TEXT function with custom number format to check criteria
A27: ="Does "&A30&" match "&B28&" "&B29&"?" -> Does Date match Dec 2009? | B27: =TEXT(B30,"mmmyyyy")=B28&B29 -> TRUE
A28: Criteria 1 | B28: Dec
A29: Criteria 2 | B29: 2009
A30: Date | B30: 2009-12-20
A31: ="TEXT function with custom number format to count Dates in "&B32&" "&B33 -> TEXT function with custom number format to count Dates in Jan 2009
A32: Criteria 1 | B32: Jan
A33: Criteria 2 | B33: 2009
A34: Count | B34: =SUMPRODUCT(--(TEXT(B37:B43,"mmmyyy")=B32&B33)) -> 4
B36: Dates
B37: 2009-01-25
B38: 2009-01-20
B39: 2009-07-01
B40: 2009-05-02
B41: 2009-01-02
B42: 2009-01-18
B43: 2009-04-23

Sheet Errors
A1: Error Message | B1: Description of Error
A2: ####### | B2: Column width not wide enough to display data (value), or negative date or time.
B3: Text in a formula that is not a built-in function or a Excel Defined Name.
B4: Not Available/ No Answer. Like when a lookup function cannot find what you are looking for.
B5: Formula is using cell reference that has been deleted, or other invalid cell reference.
B6: Invalid operator or argument type in a formula, or array formula was not entered with Ctrl + Shift + Enter.
B7: Invalid numeric values in a formula or function, or an iterative function like IRR cannot find an answer, or the number is too big or small (number must be between (-10^307 and 10^307).
B8: Formula divides by zero.
A9: Circular Cell Reference | B9: Cell reference in formula refers to the formulas result (itself).
B10: No Intersection.

Sheet S(1)
A1: Sample Times For Assemply Process (minutes)
A2: 8.87
A3: 8.75
A4: 8.69
A5: 8.61
A6: 8.58
A7: 8.37
A8: 8.28
A9: 8.21
A10: 8.14
A11: 7.95
A12: 7.69
A13: 7.62
A14: 7.51
A15: 7.43
A16: 7.19
A17: 6.95
A18: 6.83
A19: 6.44
A20: 5.65
A21: 5.64
A22: 5.56
A23: 5.16
A24: 5.06
A25: 4.86
A26: 4.81
A27: 4.76
A28: 4.63
A29: 4.43
A30: 4.18
A31: 4.03

Sheet S(2)
I1: =REPT(CHAR(42),INT(RAND()*4+1)) -> *
B2: Sample Times For Assemply Process (minutes) | C2: Quality of Assembly Rating | D2: dd
B3: 6.95 | C3: *** | D3: =RAND() -> 0.4974430982
B4: 4.86 | C4: ** | D4: 0.32726527
B5: 5.56 | C5: ** | D5: 0.3728899313
B6: 8.28 | C6: **** | D6: 0.672656941
B7: 6.44 | C7: ** | D7: 0.9440745577
B8: 4.76 | C8: * | D8: 0.8698014779
B9: 8.37 | C9: ** | D9: 0.9173935153
B10: 4.43 | C10: *** | D10: 0.4595165861
B11: 5.16 | C11: * | D11: 0.3915331454
B12: 8.75 | C12: **** | D12: 0.3408935591
B13: 5.65 | C13: ** | D13: 0.6088464733
B14: 8.58 | C14: *** | D14: 0.7099519507
B15: 7.19 | C15: *** | D15: 0.1114623629
B16: 7.51 | C16: ** | D16: 0.9795046247
B17: 7.69 | C17: *** | D17: 0.825381394
B18: 6.83 | C18: ** | D18: 0.2774035902
B19: 4.18 | C19: **** | D19: 0.2320098853
B20: 8.69 | C20: * | D20: 0.9176069762
B21: 4.03 | C21: ** | D21: 0.01003909746
B22: 4.63 | C22: *** | D22: 0.08694627354
B23: 8.87 | C23: ** | D23: 0.5912899447
B24: 4.81 | C24: *** | D24: 0.5783361036
B25: 8.61 | C25: ** | D25: 0.8702712215
B26: 5.64 | C26: *** | D26: 0.08244242072
B27: 8.21 | C27: ** | D27: 0.9540562602
B28: 7.62 | C28: **** | D28: 0.2119416167
B29: 8.14 | C29: **** | D29: 0.4599870927
B30: 7.95 | C30: **** | D30: 0.453643995
B31: 7.43 | C31: **** | D31: 0.3730964991
B32: 5.06 | C32: * | D32: 0.5953237755

Sheet S(3)
A1: Customers | B1: Address | C1: City | D1: State | E1: Zip | F1: E-mail | P1: =INT(RAND()*8000+101)&" "&CHOOSE(INT(RAND()*10+1),"1st","2nd","4th","13th","23rd","66th","151st","23rd","15th","173rd")&" "&CHOOSE(INT(RAND()*4+1),"Ave.","St.","Blvd.","Lane") -> 5231 66th Lane | Q1: =CHOOSE(INT(RAND()*3+1),"Seattle","Tacoma","Kent") -> Seattle | R1: WA | S1: =981&INT(RAND()*250+101) -> 981285 | T1: =CHAR(65+INT(RAND()*25))&CHAR(65+INT(RAND()*25))&CHAR(65+INT(RAND()*25))&"@"&CHOOSE(INT(RAND()*3+1),"yahoo.com","gmail.com","fun.edu") -> HFY@fun.edu
A2: Ghrist, Annita | B2: 313 173rd Blvd. | C2: Kent | D2: WA | E2: 981215 | F2: FSO485@gmail.com
A3: Dahnke, Georgeann | B3: 316 66th Blvd. | C3: Kent | D3: WA | E3: 981244 | F3: RWN@fun.edu
A4: Herry, Bryon | B4: 4358 23rd St. | C4: Kent | D4: WA | E4: 981225 | F4: LGQ756@gmail.com
A5: Zeiser, Keren | B5: 4907 13th Ave. | C5: Kent | D5: WA | E5: 981232 | F5: FRF676@yahoo.com
A6: Lomasney, Lavenia | B6: 4047 15th Ave. | C6: Kent | D6: WA | E6: 981228 | F6: HHU@fun.edu
A7: General, Marlin | B7: 7900 173rd Lane | C7: Kent | D7: WA | E7: 981266 | F7: KFP@yahoo.com
A8: Dillaman, Darius | B8: 965 151st St. | C8: Kent | D8: WA | E8: 981162 | F8: MJG@yahoo.com
A9: Spezio, Bryon | B9: 7096 15th Lane | C9: Seattle | D9: WA | E9: 981259 | F9: HCR176@yahoo.com
A10: Scrabeck, Keren | B10: 2977 66th Lane | C10: Seattle | D10: WA | E10: 981171 | F10: EBA@gmail.com
A11: Reffett, Marcel | B11: 267 4th Lane | C11: Seattle | D11: WA | E11: 981266 | F11: CHI751@yahoo.com
A12: Patrum, Ali | B12: 4254 23rd Blvd. | C12: Seattle | D12: WA | E12: 981234 | F12: NNR752@fun.edu
A13: Musco, Lianne | B13: 3341 173rd Blvd. | C13: Seattle | D13: WA | E13: 981185 | F13: HEW@fun.edu
A14: Matar, Son | B14: 2466 4th Ave. | C14: Seattle | D14: WA | E14: 981328 | F14: QFY278@yahoo.com
A15: Jayson, Dane | B15: 3392 23rd St. | C15: Seattle | D15: WA | E15: 981131 | F15: CLU@fun.edu
A16: Hudnell, Rod | B16: 3789 4th Blvd. | C16: Seattle | D16: WA | E16: 981152 | F16: IGJ150@gmail.com
A17: Fukumoto, Marvis | B17: 3653 4th Blvd. | C17: Seattle | D17: WA | E17: 981280 | F17: PKF@yahoo.com
A18: Fila, Bryon | B18: 1654 66th St. | C18: Seattle | D18: WA | E18: 981143 | F18: QKC@gmail.com
A19: Bruess, Natisha | B19: 7149 1st Ave. | C19: Seattle | D19: WA | E19: 981335 | F19: YSE222@fun.edu
A20: , Aler | B20: 3557 1st St. | C20: Seattle | D20: WA | E20: 981147 | F20: JNV@yahoo.com
A21: Zeiss, Son | B21: 4817 13th St. | C21: Tacoma | D21: WA | E21: 981112 | F21: DTT@yahoo.com
A22: Walenta, Bryon | B22: 7932 23rd St. | C22: Tacoma | D22: WA | E22: 981263 | F22: JKO209@fun.edu
A23: Vuono, Nolan | B23: 5789 13th Lane | C23: Tacoma | D23: WA | E23: 981341 | F23: CUU@fun.edu
A24: Stolt, Hal | B24: 7021 1st Ave. | C24: Tacoma | D24: WA | E24: 981185 | F24: FSI@yahoo.com
A25: Savini, Quinton | B25: 3861 2nd Blvd. | C25: Tacoma | D25: WA | E25: 981178 | F25: WGD789@gmail.com
A26: Pofahl, Quinton | B26: 1103 15th Lane | C26: Tacoma | D26: WA | E26: 981225 | F26: WFK@fun.edu
A27: Kalahiki, Rod | B27: 5054 1st St. | C27: Tacoma | D27: WA | E27: 981171 | F27: VWQ301@gmail.com
A28: Gonnella, Marcel | B28: 6699 13th St. | C28: Tacoma | D28: WA | E28: 981152 | F28: THH325@yahoo.com
A29: Durtschi, Dane | B29: 7582 4th Lane | C29: Tacoma | D29: WA | E29: 981177 | F29: KVC@gmail.com
A30: Chukes, Hal | B30: 7726 66th Ave. | C30: Tacoma | D30: WA | E30: 981118 | F30: MGF675@fun.edu
A31: Acero, Natisha | B31: 6281 173rd St. | C31: Tacoma | D31: WA | E31: 981317 | F31: HDT641@fun.edu

Sheet S(4)
A1: Data | H1: ASCII character | I1: ASCII number
A2: 3 | C2: =IFERROR(IF(A2="","<== blank cell",""),"") ->  | E2: =LEFT(A2,1) -> 3 | F2: =CODE(E2) -> 51 | H2: =CHAR(ROWS(H$2:H2)) ->  | I2: =CODE(H2) -> 1
A3: 4 | E3: 4 | F3: 52 | H3: =CHAR(ROWS(H$2:H3)) ->  | I3: 2
A4: # | E4: # | F4: 35 | H4: =CHAR(ROWS(H$2:H4)) ->  | I4: 3
A5: ) | E5: ) | F5: 41 | H5: =CHAR(ROWS(H$2:H5)) ->  | I5: 4
A6: * | E6: * | F6: 42 | H6: =CHAR(ROWS(H$2:H6)) ->  | I6: 5
A7: Cool | E7: C | F7: =CODE(E7) -> 67 | H7: =CHAR(ROWS(H$2:H7)) ->  | I7: 6
A8: cool | E8: c | F8: =CODE(E8) -> 99 | H8: =CHAR(ROWS(H$2:H8)) ->  | I8: 7
A9: rad | E9: r | F9: =CODE(E9) -> 114 | H9: =CHAR(ROWS(H$2:H9)) ->  | I9: 8
A10: FALSE | H10: =CHAR(ROWS(H$2:H10)) ->  | I10: 9
A11: TRUE | H11: =CHAR(ROWS(H$2:H11)) ->  | I11: 10
A12: =1/0 ->  | H12: =CHAR(ROWS(H$2:H12)) ->  | I12: 11
C13: <== blank cell | H13: =CHAR(ROWS(H$2:H13)) ->  | I13: 12
H14: =CHAR(ROWS(H$2:H14)) ->  | I14: 13
H15: =CHAR(ROWS(H$2:H15)) ->  | I15: 14
H16: =CHAR(ROWS(H$2:H16)) ->  | I16: 15
H17: =CHAR(ROWS(H$2:H17)) ->  | I17: 16
H18: =CHAR(ROWS(H$2:H18)) ->  | I18: 17
H19: =CHAR(ROWS(H$2:H19)) ->  | I19: 18
H20: =CHAR(ROWS(H$2:H20)) ->  | I20: 19
H21: =CHAR(ROWS(H$2:H21)) ->  | I21: 20
H22: =CHAR(ROWS(H$2:H22)) ->  | I22: 21
H23: =CHAR(ROWS(H$2:H23)) ->  | I23: 22
H24: =CHAR(ROWS(H$2:H24)) ->  | I24: 23
H25: =CHAR(ROWS(H$2:H25)) ->  | I25: 24
H26: =CHAR(ROWS(H$2:H26)) ->  | I26: 25
H27: =CHAR(ROWS(H$2:H27)) ->  | I27: 26
H28: =CHAR(ROWS(H$2:H28)) ->  | I28: 27
H29: =CHAR(ROWS(H$2:H29)) ->  | I29: 28
H30: =CHAR(ROWS(H$2:H30)) ->  | I30: 29
H31: =CHAR(ROWS(H$2:H31)) ->  | I31: 30
H32: =CHAR(ROWS(H$2:H32)) ->  | I32: 31
H33: =CHAR(ROWS(H$2:H33)) ->  | I33: 32
H34: =CHAR(ROWS(H$2:H34)) -> ! | I34: 33
H35: =CHAR(ROWS(H$2:H35)) -> " | I35: 34
H36: =CHAR(ROWS(H$2:H36)) -> # | I36: 35
H37: =CHAR(ROWS(H$2:H37)) -> $ | I37: 36
H38: =CHAR(ROWS(H$2:H38)) -> % | I38: 37
H39: =CHAR(ROWS(H$2:H39)) -> & | I39: 38
H40: =CHAR(ROWS(H$2:H40)) -> ' | I40: 39
H41: =CHAR(ROWS(H$2:H41)) -> ( | I41: 40
H42: =CHAR(ROWS(H$2:H42)) -> ) | I42: 41
H43: =CHAR(ROWS(H$2:H43)) -> * | I43: 42
H44: =CHAR(ROWS(H$2:H44)) -> + | I44: 43
H45: =CHAR(ROWS(H$2:H45)) -> , | I45: 44
H46: =CHAR(ROWS(H$2:H46)) -> - | I46: 45
H47: =CHAR(ROWS(H$2:H47)) -> . | I47: 46
H48: =CHAR(ROWS(H$2:H48)) -> / | I48: 47
H49: =CHAR(ROWS(H$2:H49)) -> 0 | I49: 48
H50: =CHAR(ROWS(H$2:H50)) -> 1 | I50: 49
H51: =CHAR(ROWS(H$2:H51)) -> 2 | I51: 50
H52: =CHAR(ROWS(H$2:H52)) -> 3 | I52: 51
H53: =CHAR(ROWS(H$2:H53)) -> 4 | I53: 52
H54: =CHAR(ROWS(H$2:H54)) -> 5 | I54: 53
H55: =CHAR(ROWS(H$2:H55)) -> 6 | I55: 54
H56: =CHAR(ROWS(H$2:H56)) -> 7 | I56: 55
H57: =CHAR(ROWS(H$2:H57)) -> 8 | I57: 56
H58: =CHAR(ROWS(H$2:H58)) -> 9 | I58: 57
H59: =CHAR(ROWS(H$2:H59)) -> : | I59: 58
H60: =CHAR(ROWS(H$2:H60)) -> ; | I60: 59
H61: =CHAR(ROWS(H$2:H61)) -> < | I61: 60
H62: =CHAR(ROWS(H$2:H62)) -> = | I62: 61
H63: =CHAR(ROWS(H$2:H63)) -> > | I63: 62
H64: =CHAR(ROWS(H$2:H64)) -> ? | I64: 63
H65: =CHAR(ROWS(H$2:H65)) -> @ | I65: 64
H66: =CHAR(ROWS(H$2:H66)) -> A | I66: =CODE(H66) -> 65
H67: =CHAR(ROWS(H$2:H67)) -> B | I67: 66
H68: =CHAR(ROWS(H$2:H68)) -> C | I68: 67
H69: =CHAR(ROWS(H$2:H69)) -> D | I69: 68
H70: =CHAR(ROWS(H$2:H70)) -> E | I70: 69
H71: =CHAR(ROWS(H$2:H71)) -> F | I71: 70
H72: =CHAR(ROWS(H$2:H72)) -> G | I72: 71
H73: =CHAR(ROWS(H$2:H73)) -> H | I73: 72
H74: =CHAR(ROWS(H$2:H74)) -> I | I74: 73
H75: =CHAR(ROWS(H$2:H75)) -> J | I75: 74
H76: =CHAR(ROWS(H$2:H76)) -> K | I76: 75
H77: =CHAR(ROWS(H$2:H77)) -> L | I77: 76
H78: =CHAR(ROWS(H$2:H78)) -> M | I78: 77
H79: =CHAR(ROWS(H$2:H79)) -> N | I79: 78
H80: =CHAR(ROWS(H$2:H80)) -> O | I80: 79
H81: =CHAR(ROWS(H$2:H81)) -> P | I81: 80
H82: =CHAR(ROWS(H$2:H82)) -> Q | I82: 81
H83: =CHAR(ROWS(H$2:H83)) -> R | I83: 82
H84: =CHAR(ROWS(H$2:H84)) -> S | I84: 83
H85: =CHAR(ROWS(H$2:H85)) -> T | I85: 84
H86: =CHAR(ROWS(H$2:H86)) -> U | I86: 85
H87: =CHAR(ROWS(H$2:H87)) -> V | I87: 86
H88: =CHAR(ROWS(H$2:H88)) -> W | I88: 87
H89: =CHAR(ROWS(H$2:H89)) -> X | I89: 88
H90: =CHAR(ROWS(H$2:H90)) -> Y | I90: 89
H91: =CHAR(ROWS(H$2:H91)) -> Z | I91: 90
H92: =CHAR(ROWS(H$2:H92)) -> [ | I92: 91
H93: =CHAR(ROWS(H$2:H93)) -> \ | I93: 92
H94: =CHAR(ROWS(H$2:H94)) -> ] | I94: 93
H95: =CHAR(ROWS(H$2:H95)) -> ^ | I95: 94
H96: =CHAR(ROWS(H$2:H96)) -> _ | I96: 95
H97: =CHAR(ROWS(H$2:H97)) -> ` | I97: 96
H98: =CHAR(ROWS(H$2:H98)) -> a | I98: 97
H99: =CHAR(ROWS(H$2:H99)) -> b | I99: 98
H100: =CHAR(ROWS(H$2:H100)) -> c | I100: 99
H101: =CHAR(ROWS(H$2:H101)) -> d | I101: 100
H102: =CHAR(ROWS(H$2:H102)) -> e | I102: 101
H103: =CHAR(ROWS(H$2:H103)) -> f | I103: 102
H104: =CHAR(ROWS(H$2:H104)) -> g | I104: 103
H105: =CHAR(ROWS(H$2:H105)) -> h | I105: 104
H106: =CHAR(ROWS(H$2:H106)) -> i | I106: 105
H107: =CHAR(ROWS(H$2:H107)) -> j | I107: 106
H108: =CHAR(ROWS(H$2:H108)) -> k | I108: 107
H109: =CHAR(ROWS(H$2:H109)) -> l | I109: 108
H110: =CHAR(ROWS(H$2:H110)) -> m | I110: 109
H111: =CHAR(ROWS(H$2:H111)) -> n | I111: 110
H112: =CHAR(ROWS(H$2:H112)) -> o | I112: 111
H113: =CHAR(ROWS(H$2:H113)) -> p | I113: 112
H114: =CHAR(ROWS(H$2:H114)) -> q | I114: 113
H115: =CHAR(ROWS(H$2:H115)) -> r | I115: 114
H116: =CHAR(ROWS(H$2:H116)) -> s | I116: 115
H117: =CHAR(ROWS(H$2:H117)) -> t | I117: 116
H118: =CHAR(ROWS(H$2:H118)) -> u | I118: 117
H119: =CHAR(ROWS(H$2:H119)) -> v | I119: 118
H120: =CHAR(ROWS(H$2:H120)) -> w | I120: 119
H121: =CHAR(ROWS(H$2:H121)) -> x | I121: 120
H122: =CHAR(ROWS(H$2:H122)) -> y | I122: 121
H123: =CHAR(ROWS(H$2:H123)) -> z | I123: 122
H124: =CHAR(ROWS(H$2:H124)) -> { | I124: 123
H125: =CHAR(ROWS(H$2:H125)) -> | | I125: 124
H126: =CHAR(ROWS(H$2:H126)) -> } | I126: 125
H127: =CHAR(ROWS(H$2:H127)) -> ~ | I127: 126
H128: =CHAR(ROWS(H$2:H128)) ->  | I128: 127
H129: =CHAR(ROWS(H$2:H129)) -> € | I129: 128
H130: =CHAR(ROWS(H$2:H130)) ->  | I130: =CODE(H130) -> 129
H131: =CHAR(ROWS(H$2:H131)) -> ‚ | I131: 130
H132: =CHAR(ROWS(H$2:H132)) -> ƒ | I132: 131
H133: =CHAR(ROWS(H$2:H133)) -> „ | I133: 132
H134: =CHAR(ROWS(H$2:H134)) -> … | I134: 133
H135: =CHAR(ROWS(H$2:H135)) -> † | I135: 134
H136: =CHAR(ROWS(H$2:H136)) -> ‡ | I136: 135
H137: =CHAR(ROWS(H$2:H137)) -> ˆ | I137: 136
H138: =CHAR(ROWS(H$2:H138)) -> ‰ | I138: 137
H139: =CHAR(ROWS(H$2:H139)) -> Š | I139: 138
H140: =CHAR(ROWS(H$2:H140)) -> ‹ | I140: 139
H141: =CHAR(ROWS(H$2:H141)) -> Œ | I141: 140
H142: =CHAR(ROWS(H$2:H142)) ->  | I142: 141
H143: =CHAR(ROWS(H$2:H143)) -> Ž | I143: 142
H144: =CHAR(ROWS(H$2:H144)) ->  | I144: 143
H145: =CHAR(ROWS(H$2:H145)) ->  | I145: 144
H146: =CHAR(ROWS(H$2:H146)) -> ‘ | I146: 145
H147: =CHAR(ROWS(H$2:H147)) -> ’ | I147: 146
H148: =CHAR(ROWS(H$2:H148)) -> “ | I148: 147
H149: =CHAR(ROWS(H$2:H149)) -> ” | I149: 148
H150: =CHAR(ROWS(H$2:H150)) -> • | I150: 149
H151: =CHAR(ROWS(H$2:H151)) -> – | I151: 150
H152: =CHAR(ROWS(H$2:H152)) -> — | I152: 151
H153: =CHAR(ROWS(H$2:H153)) -> ˜ | I153: 152
H154: =CHAR(ROWS(H$2:H154)) -> ™ | I154: 153
H155: =CHAR(ROWS(H$2:H155)) -> š | I155: 154
H156: =CHAR(ROWS(H$2:H156)) -> › | I156: 155
H157: =CHAR(ROWS(H$2:H157)) -> œ | I157: 156
H158: =CHAR(ROWS(H$2:H158)) ->  | I158: 157
H159: =CHAR(ROWS(H$2:H159)) -> ž | I159: 158
H160: =CHAR(ROWS(H$2:H160)) -> Ÿ | I160: 159
H161: =CHAR(ROWS(H$2:H161)) ->  | I161: 160
H162: =CHAR(ROWS(H$2:H162)) -> ¡ | I162: 161
H163: =CHAR(ROWS(H$2:H163)) -> ¢ | I163: 162
H164: =CHAR(ROWS(H$2:H164)) -> £ | I164: 163
H165: =CHAR(ROWS(H$2:H165)) -> ¤ | I165: 164
H166: =CHAR(ROWS(H$2:H166)) -> ¥ | I166: 165
H167: =CHAR(ROWS(H$2:H167)) -> ¦ | I167: 166
H168: =CHAR(ROWS(H$2:H168)) -> § | I168: 167
H169: =CHAR(ROWS(H$2:H169)) -> ¨ | I169: 168
H170: =CHAR(ROWS(H$2:H170)) -> © | I170: 169
H171: =CHAR(ROWS(H$2:H171)) -> ª | I171: 170
H172: =CHAR(ROWS(H$2:H172)) -> « | I172: 171
H173: =CHAR(ROWS(H$2:H173)) -> ¬ | I173: 172
H174: =CHAR(ROWS(H$2:H174)) -> ­ | I174: 173
H175: =CHAR(ROWS(H$2:H175)) -> ® | I175: 174
H176: =CHAR(ROWS(H$2:H176)) -> ¯ | I176: 175
H177: =CHAR(ROWS(H$2:H177)) -> ° | I177: 176
H178: =CHAR(ROWS(H$2:H178)) -> ± | I178: 177
H179: =CHAR(ROWS(H$2:H179)) -> ² | I179: 178
H180: =CHAR(ROWS(H$2:H180)) -> ³ | I180: 179
H181: =CHAR(ROWS(H$2:H181)) -> ´ | I181: 180
H182: =CHAR(ROWS(H$2:H182)) -> µ | I182: 181
H183: =CHAR(ROWS(H$2:H183)) -> ¶ | I183: 182
H184: =CHAR(ROWS(H$2:H184)) -> · | I184: 183
H185: =CHAR(ROWS(H$2:H185)) -> ¸ | I185: 184
H186: =CHAR(ROWS(H$2:H186)) -> ¹ | I186: 185
H187: =CHAR(ROWS(H$2:H187)) -> º | I187: 186
H188: =CHAR(ROWS(H$2:H188)) -> » | I188: 187
H189: =CHAR(ROWS(H$2:H189)) -> ¼ | I189: 188
H190: =CHAR(ROWS(H$2:H190)) -> ½ | I190: 189
H191: =CHAR(ROWS(H$2:H191)) -> ¾ | I191: 190
H192: =CHAR(ROWS(H$2:H192)) -> ¿ | I192: 191
H193: =CHAR(ROWS(H$2:H193)) -> À | I193: 192
H194: =CHAR(ROWS(H$2:H194)) -> Á | I194: =CODE(H194) -> 193
H195: =CHAR(ROWS(H$2:H195)) -> Â | I195: 194
H196: =CHAR(ROWS(H$2:H196)) -> Ã | I196: 195
H197: =CHAR(ROWS(H$2:H197)) -> Ä | I197: 196
H198: =CHAR(ROWS(H$2:H198)) -> Å | I198: 197
H199: =CHAR(ROWS(H$2:H199)) -> Æ | I199: 198
H200: =CHAR(ROWS(H$2:H200)) -> Ç | I200: 199
... 56 more rows

Sheet S(5)
A1: Invoice # | B1: Sales | C1: City
A2: 23004 | B2: 280 | C2: Seattle
A3: 23005 | B3: 691 | C3: Kent
A4: 23006 | B4: 713 | C4: Seattle
A5: 23007 | B5: 305 | C5: Kent
A6: 23008 | B6: 178 | C6: Seattle
A7: 23009 | B7: 512 | C7: Kent
A8: 23010 | B8: 893 | C8: Kent
A9: 23011 | B9: 645 | C9: Kent
A10: 23012 | B10: 907 | C10: Kent
A11: 23013 | B11: 615 | C11: Tacoma
A12: 23014 | B12: 834 | C12: Seattle
A13: 23015 | B13: 670 | C13: Tacoma
A14: 23016 | B14: 146 | C14: Seattle
A15: 23017 | B15: 666 | C15: Tacoma
A16: 23018 | B16: 598 | C16: Kent
A17: 23019 | B17: 821 | C17: Kent

Sheet S(6)
A1: Prospective Customers | B1: Is Name In Master List? | D1: Master List
A2: Acquaviva Company | B2: =MATCH(A2,$D$2:$D$12,0) ->  | D2: Manfre Company
A3: Grabenstein Company | D3: Degen Company
A4: Rana Company | D4: Farthing Company
A5: Shiroma Company | D5: Blose Company
A6: Wootton Company | D6: Spafford Company
A7: Yarrington Company | D7: Tarnowski Company
D8: Alameda Company
D9: Prestwich Company
D10: Rommel Company
D11: Haecker Company
D12: Jeong Company

Sheet S(7)
A1: Names For Presetations | C1: Names For Presetations | D1: Order - RAND()
A2: Steve Stephan | C2: Eugene Deutsch | D2: =RAND() -> 0.2258898474
A3: Roy Mattingly | C3: Elaine Lash | D3: 0.7125890808
A4: Matthew Mosley | C4: Jerry Wertz | D4: 0.09162718643
A5: Juan Singley | C5: Audrey Hinton | D5: 0.2928781443
A6: Jerry Wertz | C6: Amy Burnell | D6: 0.1922010615
A7: Eugene Deutsch | C7: Matthew Mosley | D7: 0.3173833276
A8: Elaine Lash | C8: Roy Mattingly | D8: 0.2485409005
A9: Charles Feeney | C9: Charles Feeney | D9: 0.6600778381
A10: Audrey Hinton | C10: Steve Stephan | D10: 0.04487422481
A11: Amy Burnell | C11: Juan Singley | D11: 0.8589136663

Sheet S(8)
A1: Sample Data | B1: 1.1 | C1: 1.3 | D1: 1.7 | E1: 2.3 | F1: 2.3 | G1: 2.7 | H1: 4.3 | I1: 5.2 | J1: 6.4 | K1: 6.8

Sheet S(9)
A1: Date | B1: Customer | C1: Sales | D1: E-mail
A2: 2011-01-17 | B2: Cust3 | C2: =INT(RAND()*800+80) -> 732 | D2: DZ[@ourbiz.com
A3: 2011-01-21 | B3: Cust7 | C3: 253 | D3: NZE@ourbiz.com
A4: 2011-01-16 | B4: Cust2 | C4: 574 | D4: HTS@ourbiz.com
A5: 2011-01-19 | B5: Cust5 | C5: 517 | D5: IQH@ourbiz.com
A6: 2011-01-22 | B6: Cust8 | C6: 467 | D6: NUR@ourbiz.com
A7: 2011-01-15 | B7: Cust1 | C7: 662 | D7: CJP@ourbiz.com
A8: 2011-01-18 | B8: Cust4 | C8: 439 | D8: JPJ@ourbiz.com
A9: 2011-01-20 | B9: Cust6 | C9: 829 | D9: ODL@ourbiz.com
A10: 2011-01-23 | B10: Cust9 | C10: 774 | D10: CZU@ourbiz.com
A11: 2011-01-24 | B11: Cust10 | C11: 588 | D11: PYL@ourbiz.com

Sheet S(10)
A1: Date | B1: Product | C1: Region | D1: SalesRep | E1: Customer | F1: Units | G1: Sales | H1: COGS
A2: 2011-01-28 | B2: Sunset | C2: West | D2: Chin | E2: FM | F2: 62 | G2: 1302 | H2: 573.5
A3: 2011-01-08 | B3: Quad | C3: West | D3: Chin | E3: HII | F3: 16 | G3: 432 | H3: 232
A4: 2011-01-17 | B4: Quad | C4: West | D4: Chin | E4: PCC | F4: 10 | G4: 270 | H4: 145
A5: 2011-01-05 | B5: Carlota | C5: West | D5: Franks | E5: ITTW | F5: 60 | G5: 1380 | H5: 660
A6: 2011-01-05 | B6: Sunshine | C6: West | D6: Franks | E6: ET | F6: 12 | G6: 228 | H6: 96
A7: 2011-01-24 | B7: Quad | C7: West | D7: Gault | E7: HII | F7: 63 | G7: 1701 | H7: 913.5
A8: 2011-01-21 | B8: Quad | C8: West | D8: Gault | E8: ITW | F8: 56 | G8: 1512 | H8: 812
A9: 2011-01-30 | B9: Sunshine | C9: West | D9: Gault | E9: DFR | F9: 49 | G9: 931 | H9: 392
A10: 2011-01-27 | B10: Carlota | C10: West | D10: Gault | E10: QT | F10: 10 | G10: 230 | H10: 110
A11: 2011-01-26 | B11: Bellen | C11: West | D11: Pham | E11: FRED | F11: 61 | G11: 5000 | H11: 610
A12: 2011-01-07 | B12: Sunset | C12: West | D12: Pham | E12: T | F12: 61 | G12: 1281 | H12: 564.25
A13: 2011-01-22 | B13: Bellen | C13: West | D13: Pham | E13: AST | F13: 53 | G13: 1166 | H13: 530
A14: 2011-01-07 | B14: Sunset | C14: West | D14: Pham | E14: WT | F14: 53 | G14: 1113 | H14: 490.25
A15: 2011-01-02 | B15: Quad | C15: West | D15: Pham | E15: AST | F15: 30 | G15: 810 | H15: 435
A16: 2011-01-02 | B16: Bellen | C16: West | D16: Pham | E16: SFWK | F16: 19 | G16: 418 | H16: 190
A17: 2011-01-06 | B17: Quad | C17: West | D17: Sioux | E17: PCC | F17: 64 | G17: 1728 | H17: 928
A18: 2011-01-20 | B18: Sunshine | C18: West | D18: Sioux | E18: YTR | F18: 58 | G18: 1102 | H18: 464
A19: 2011-01-22 | B19: Bellen | C19: West | D19: Sioux | E19: YTR | F19: 35 | G19: 770 | H19: 350
A20: 2011-01-06 | B20: Carlota | C20: West | D20: Sioux | E20: KPSA | F20: 18 | G20: 414 | H20: 198
A21: 2011-01-18 | B21: Sunshine | C21: West | D21: Sioux | E21: AST | F21: 8 | G21: 152 | H21: 64
A22: 2011-01-10 | B22: Quad | C22: West | D22: Smith | E22: KBTB | F22: 65 | G22: 1755 | H22: 942.5
A23: 2011-01-07 | B23: Bellen | C23: West | D23: Smith | E23: T | F23: 27 | G23: 594 | H23: 270
A24: 2011-01-28 | B24: Carlota | C24: West | D24: Smith | E24: LOP | F24: 15 | G24: 345 | H24: 165
A25: 2011-01-22 | B25: Bellen | C25: West | D25: Smith | E25: WT | F25: 6 | G25: 132 | H25: 60
A26: 2011-01-23 | B26: Sunshine | C26: South | D26: Chin | E26: T | F26: 49 | G26: 931 | H26: 392
A27: 2011-01-09 | B27: Bellen | C27: South | D27: Chin | E27: WSD | F27: 26 | G27: 572 | H27: 260
A28: 2011-01-10 | B28: Sunshine | C28: South | D28: Chin | E28: TRU | F28: 30 | G28: 570 | H28: 240
A29: 2011-01-12 | B29: Bellen | C29: South | D29: Chin | E29: WT | F29: 7 | G29: 154 | H29: 70
A30: 2011-01-28 | B30: Quad | C30: South | D30: Franks | E30: YTR | F30: 44 | G30: 1188 | H30: 638
A31: 2011-01-28 | B31: Carlota | C31: South | D31: Franks | E31: MNGD | F31: 46 | G31: 1058 | H31: 506
A32: 2011-01-22 | B32: Quad | C32: South | D32: Franks | E32: FM | F32: 29 | G32: 783 | H32: 420.5
A33: 2011-01-28 | B33: Quad | C33: South | D33: Gault | E33: KBTB | F33: 56 | G33: 1512 | H33: 812
A34: 2011-01-02 | B34: Bellen | C34: South | D34: Gault | E34: KBTB | F34: 24 | G34: 528 | H34: 240
A35: 2011-01-05 | B35: Sunset | C35: South | D35: Pham | E35: TTT | F35: 57 | G35: 1197 | H35: 527.25
A36: 2011-01-03 | B36: Sunset | C36: South | D36: Pham | E36: WSD | F36: 23 | G36: 483 | H36: 212.75
A37: 2011-01-21 | B37: Sunset | C37: South | D37: Pham | E37: HHH | F37: 13 | G37: 273 | H37: 120.25
A38: 2011-01-10 | B38: Sunset | C38: South | D38: Sioux | E38: MBG | F38: 47 | G38: 987 | H38: 434.75
A39: 2011-01-26 | B39: Sunset | C39: South | D39: Sioux | E39: DFGH | F39: 44 | G39: 924 | H39: 407
A40: 2011-01-19 | B40: Bellen | C40: South | D40: Sioux | E40: T | F40: 35 | G40: 770 | H40: 350
A41: 2011-01-30 | B41: Quad | C41: South | D41: Sioux | E41: TTT | F41: 25 | G41: 675 | H41: 362.5
A42: 2011-01-28 | B42: Bellen | C42: South | D42: Sioux | E42: QT | F42: 25 | G42: 550 | H42: 250
A43: 2011-01-30 | B43: Sunshine | C43: South | D43: Sioux | E43: TTT | F43: 23 | G43: 437 | H43: 184
A44: 2011-01-09 | B44: Bellen | C44: South | D44: Sioux | E44: QT | F44: 15 | G44: 330 | H44: 150
A45: 2011-01-03 | B45: Sunshine | C45: South | D45: Sioux | E45: PCC | F45: 6 | G45: 114 | H45: 48
A46: 2011-01-18 | B46: Carlota | C46: South | D46: Smith | E46: YTR | F46: 53 | G46: 1219 | H46: 583
A47: 2011-01-13 | B47: Carlota | C47: South | D47: Smith | E47: FM | F47: 52 | G47: 1196 | H47: 572
A48: 2011-01-28 | B48: Sunshine | C48: South | D48: Smith | E48: FRED | F48: 51 | G48: 969 | H48: 408
A49: 2011-01-06 | B49: Sunshine | C49: South | D49: Smith | E49: QT | F49: 40 | G49: 760 | H49: 320
A50: 2011-01-16 | B50: Carlota | C50: South | D50: Smith | E50: QT | F50: 31 | G50: 713 | H50: 341
A51: 2011-01-22 | B51: Carlota | C51: South | D51: Smith | E51: KBTB | F51: 29 | G51: 667 | H51: 319
A52: 2011-01-21 | B52: Bellen | C52: South | D52: Smith | E52: TRU | F52: 11 | G52: 242 | H52: 110
A53: 2011-01-17 | B53: Quad | C53: MidWest | D53: Chin | E53: EPP | F53: 61 | G53: 1647 | H53: 884.5
A54: 2011-01-18 | B54: Sunshine | C54: MidWest | D54: Chin | E54: PCC | F54: 62 | G54: 1178 | H54: 496
A55: 2011-01-03 | B55: Carlota | C55: MidWest | D55: Chin | E55: FM | F55: 20 | G55: 460 | H55: 220
A56: 2011-01-15 | B56: Sunshine | C56: MidWest | D56: Chin | E56: YTR | F56: 11 | G56: 209 | H56: 88
A57: 2011-01-17 | B57: Sunshine | C57: MidWest | D57: Franks | E57: HHH | F57: 59 | G57: 1121 | H57: 472
A58: 2011-01-25 | B58: Sunshine | C58: MidWest | D58: Franks | E58: JAQ | F58: 21 | G58: 399 | H58: 168
A59: 2011-01-24 | B59: Carlota | C59: MidWest | D59: Franks | E59: BBT | F59: 13 | G59: 299 | H59: 143
A60: 2011-01-07 | B60: Carlota | C60: MidWest | D60: Franks | E60: HHH | F60: 12 | G60: 276 | H60: 132
A61: 2011-01-26 | B61: Bellen | C61: MidWest | D61: Gault | E61: PSA | F61: 21 | G61: 462 | H61: 210
A62: 2011-01-12 | B62: Sunset | C62: MidWest | D62: Gault | E62: ITW | F62: 19 | G62: 399 | H62: 175.75
A63: 2011-01-29 | B63: Quad | C63: MidWest | D63: Gault | E63: PLOT | F63: 10 | G63: 270 | H63: 145
A64: 2011-01-10 | B64: Bellen | C64: MidWest | D64: Gault | E64: FM | F64: 7 | G64: 154 | H64: 70
A65: 2011-01-13 | B65: Bellen | C65: MidWest | D65: Pham | E65: PLOT | F65: 57 | G65: 1254 | H65: 570
A66: 2011-01-13 | B66: Bellen | C66: MidWest | D66: Pham | E66: PSA | F66: 40 | G66: 880 | H66: 400
A67: 2011-01-13 | B67: Sunshine | C67: MidWest | D67: Pham | E67: PSA | F67: 33 | G67: 627 | H67: 264
A68: 2011-01-21 | B68: Sunshine | C68: MidWest | D68: Pham | E68: DFR | F68: 23 | G68: 437 | H68: 184
A69: 2011-01-16 | B69: Bellen | C69: MidWest | D69: Sioux | E69: YTR | F69: 56 | G69: 1232 | H69: 560
A70: 2011-01-04 | B70: Sunset | C70: MidWest | D70: Sioux | E70: BBT | F70: 29 | G70: 609 | H70: 268.25
A71: 2011-01-07 | B71: Sunset | C71: MidWest | D71: Sioux | E71: PCC | F71: 22 | G71: 462 | H71: 203.5
A72: 2011-01-21 | B72: Sunshine | C72: MidWest | D72: Smith | E72: QT | F72: 64 | G72: 1216 | H72: 512
A73: 2011-01-28 | B73: Quad | C73: MidWest | D73: Smith | E73: YTR | F73: 42 | G73: 1134 | H73: 609
A74: 2011-01-18 | B74: Quad | C74: MidWest | D74: Smith | E74: PLOT | F74: 17 | G74: 459 | H74: 246.5
A75: 2011-01-17 | B75: Bellen | C75: MidWest | D75: Smith | E75: PCC | F75: 16 | G75: 352 | H75: 160
A76: 2011-01-10 | B76: Sunshine | C76: MidWest | D76: Smith | E76: TTT | F76: 8 | G76: 152 | H76: 64
A77: 2011-01-21 | B77: Quad | C77: East | D77: Chin | E77: FM | F77: 58 | G77: 1566 | H77: 841
A78: 2011-01-20 | B78: Carlota | C78: East | D78: Chin | E78: ET | F78: 59 | G78: 1357 | H78: 649
A79: 2011-01-29 | B79: Bellen | C79: East | D79: Chin | E79: AST | F79: 50 | G79: 1100 | H79: 500
A80: 2011-01-26 | B80: Bellen | C80: East | D80: Chin | E80: KPSA | F80: 17 | G80: 374 | H80: 170
A81: 2011-01-17 | B81: Quad | C81: East | D81: Franks | E81: HII | F81: 62 | G81: 1674 | H81: 899
A82: 2011-01-23 | B82: Quad | C82: East | D82: Franks | E82: PCC | F82: 44 | G82: 1188 | H82: 638
A83: 2011-01-06 | B83: Sunshine | C83: East | D83: Franks | E83: PSA | F83: 54 | G83: 1026 | H83: 432
A84: 2011-01-09 | B84: Carlota | C84: East | D84: Franks | E84: WSD | F84: 38 | G84: 874 | H84: 418
A85: 2011-01-14 | B85: Carlota | C85: East | D85: Franks | E85: JAQ | F85: 34 | G85: 782 | H85: 374
A86: 2011-01-18 | B86: Sunshine | C86: East | D86: Franks | E86: AA | F86: 24 | G86: 456 | H86: 192
A87: 2011-01-18 | B87: Bellen | C87: East | D87: Franks | E87: DFGH | F87: 20 | G87: 440 | H87: 200
A88: 2011-01-11 | B88: Quad | C88: East | D88: Franks | E88: ITW | F88: 14 | G88: 378 | H88: 203
A89: 2011-01-15 | B89: Sunset | C89: East | D89: Gault | E89: AST | F89: 63 | G89: 1323 | H89: 582.75
A90: 2011-01-17 | B90: Quad | C90: East | D90: Gault | E90: SFWK | F90: 43 | G90: 1161 | H90: 623.5
A91: 2011-01-10 | B91: Sunset | C91: East | D91: Gault | E91: TRU | F91: 27 | G91: 567 | H91: 249.75
A92: 2011-01-18 | B92: Sunset | C92: East | D92: Gault | E92: MNGD | F92: 12 | G92: 252 | H92: 111
A93: 2011-01-20 | B93: Bellen | C93: East | D93: Gault | E93: PSA | F93: 10 | G93: 220 | H93: 100
A94: 2011-01-23 | B94: Bellen | C94: East | D94: Gault | E94: DFGH | F94: 9 | G94: 198 | H94: 90
A95: 2011-01-10 | B95: Carlota | C95: East | D95: Pham | E95: AA | F95: 63 | G95: 1449 | H95: 693
A96: 2011-01-18 | B96: Bellen | C96: East | D96: Pham | E96: DFR | F96: 59 | G96: 1298 | H96: 590
A97: 2011-01-09 | B97: Bellen | C97: East | D97: Pham | E97: EPP | F97: 40 | G97: 880 | H97: 400
A98: 2011-01-03 | B98: Sunshine | C98: East | D98: Pham | E98: FM | F98: 38 | G98: 722 | H98: 304
A99: 2011-01-23 | B99: Quad | C99: East | D99: Pham | E99: WT | F99: 22 | G99: 594 | H99: 319
A100: 2011-01-17 | B100: Carlota | C100: East | D100: Sioux | E100: PCC | F100: 39 | G100: 897 | H100: 429
A101: 2011-01-01 | B101: Quad | C101: East | D101: Sioux | E101: AA | F101: 16 | G101: 432 | H101: 232
A102: 2011-01-11 | B102: Quad | C102: East | D102: Smith | E102: BBT | F102: 49 | G102: 1323 | H102: 710.5
A103: 2011-01-09 | B103: Sunshine | C103: East | D103: Smith | E103: PCC | F103: 42 | G103: 798 | H103: 336
A104: 2011-01-28 | B104: Sunset | C104: East | D104: Smith | E104: ZAT | F104: 36 | G104: 756 | H104: 333
A105: 2011-01-10 | B105: Quad | C105: East | D105: Smith | E105: DFR | F105: 17 | G105: 459 | H105: 246.5
A106: 2011-01-10 | B106: Sunset | C106: East | D106: Smith | E106: MBG | F106: 17 | G106: 357 | H106: 157.25

Sheet S(11)
A1: Names For Presetations
A2: Steve Stephan
A3: Audrey Hinton
A4: Eugene Deutsch
A5: Elaine Lash
A6: Jerry Wertz
A7: Amy Burnell
A8: Charles Feeney
A9: Juan Singley
A10: Roy Mattingly
A11: Matthew Mosley

Sheet ST(1)
A1: Date | B1: Product | C1: Region | D1: SalesRep | E1: Customer | F1: Units | G1: Sales | H1: COGS
A2: 2011-01-20 | B2: Carlota | C2: East | D2: Chin | E2: ET | F2: 59 | G2: 1357 | H2: 649
A3: 2011-01-21 | B3: Quad | C3: East | D3: Chin | E3: FM | F3: 58 | G3: 1566 | H3: 841
A4: 2011-01-26 | B4: Bellen | C4: East | D4: Chin | E4: KPSA | F4: 17 | G4: 374 | H4: 170
A5: 2011-01-29 | B5: Bellen | C5: East | D5: Chin | E5: AST | F5: 50 | G5: 1100 | H5: 500
A6: 2011-01-03 | B6: Carlota | C6: MidWest | D6: Chin | E6: FM | F6: 20 | G6: 460 | H6: 220
A7: 2011-01-15 | B7: Sunshine | C7: MidWest | D7: Chin | E7: YTR | F7: 11 | G7: 209 | H7: 88
A8: 2011-01-17 | B8: Quad | C8: MidWest | D8: Chin | E8: EPP | F8: 61 | G8: 1647 | H8: 884.5
A9: 2011-01-18 | B9: Sunshine | C9: MidWest | D9: Chin | E9: PCC | F9: 62 | G9: 1178 | H9: 496
A10: 2011-01-09 | B10: Bellen | C10: South | D10: Chin | E10: WSD | F10: 26 | G10: 572 | H10: 260
A11: 2011-01-10 | B11: Sunshine | C11: South | D11: Chin | E11: TRU | F11: 30 | G11: 570 | H11: 240
A12: 2011-01-12 | B12: Bellen | C12: South | D12: Chin | E12: WT | F12: 7 | G12: 154 | H12: 70
A13: 2011-01-23 | B13: Sunshine | C13: South | D13: Chin | E13: T | F13: 49 | G13: 931 | H13: 392
A14: 2011-01-08 | B14: Quad | C14: West | D14: Chin | E14: HII | F14: 16 | G14: 432 | H14: 232
A15: 2011-01-17 | B15: Quad | C15: West | D15: Chin | E15: PCC | F15: 10 | G15: 270 | H15: 145
A16: 2011-01-28 | B16: Sunset | C16: West | D16: Chin | E16: FM | F16: 62 | G16: 1302 | H16: 573.5
C17: Chin Count | D17: =SUBTOTAL(3,D2:D16) -> 15
A18: 2011-01-06 | B18: Sunshine | C18: East | D18: Franks | E18: PSA | F18: 54 | G18: 1026 | H18: 432
A19: 2011-01-09 | B19: Carlota | C19: East | D19: Franks | E19: WSD | F19: 38 | G19: 874 | H19: 418
A20: 2011-01-11 | B20: Quad | C20: East | D20: Franks | E20: ITW | F20: 14 | G20: 378 | H20: 203
A21: 2011-01-14 | B21: Carlota | C21: East | D21: Franks | E21: JAQ | F21: 34 | G21: 782 | H21: 374
A22: 2011-01-17 | B22: Quad | C22: East | D22: Franks | E22: HII | F22: 62 | G22: 1674 | H22: 899
A23: 2011-01-18 | B23: Bellen | C23: East | D23: Franks | E23: DFGH | F23: 20 | G23: 440 | H23: 200
A24: 2011-01-18 | B24: Sunshine | C24: East | D24: Franks | E24: AA | F24: 24 | G24: 456 | H24: 192
A25: 2011-01-23 | B25: Quad | C25: East | D25: Franks | E25: PCC | F25: 44 | G25: 1188 | H25: 638
A26: 2011-01-07 | B26: Carlota | C26: MidWest | D26: Franks | E26: HHH | F26: 12 | G26: 276 | H26: 132
A27: 2011-01-17 | B27: Sunshine | C27: MidWest | D27: Franks | E27: HHH | F27: 59 | G27: 1121 | H27: 472
A28: 2011-01-24 | B28: Carlota | C28: MidWest | D28: Franks | E28: BBT | F28: 13 | G28: 299 | H28: 143
A29: 2011-01-25 | B29: Sunshine | C29: MidWest | D29: Franks | E29: JAQ | F29: 21 | G29: 399 | H29: 168
A30: 2011-01-22 | B30: Quad | C30: South | D30: Franks | E30: FM | F30: 29 | G30: 783 | H30: 420.5
A31: 2011-01-28 | B31: Carlota | C31: South | D31: Franks | E31: MNGD | F31: 46 | G31: 1058 | H31: 506
A32: 2011-01-28 | B32: Quad | C32: South | D32: Franks | E32: YTR | F32: 44 | G32: 1188 | H32: 638
A33: 2011-01-05 | B33: Carlota | C33: West | D33: Franks | E33: ITTW | F33: 60 | G33: 1380 | H33: 660
A34: 2011-01-05 | B34: Sunshine | C34: West | D34: Franks | E34: ET | F34: 12 | G34: 228 | H34: 96
C35: Franks Count | D35: =SUBTOTAL(3,D18:D34) -> 17
A36: 2011-01-10 | B36: Sunset | C36: East | D36: Gault | E36: TRU | F36: 27 | G36: 567 | H36: 249.75
A37: 2011-01-15 | B37: Sunset | C37: East | D37: Gault | E37: AST | F37: 63 | G37: 1323 | H37: 582.75
A38: 2011-01-17 | B38: Quad | C38: East | D38: Gault | E38: SFWK | F38: 43 | G38: 1161 | H38: 623.5
A39: 2011-01-18 | B39: Sunset | C39: East | D39: Gault | E39: MNGD | F39: 12 | G39: 252 | H39: 111
A40: 2011-01-20 | B40: Bellen | C40: East | D40: Gault | E40: PSA | F40: 10 | G40: 220 | H40: 100
A41: 2011-01-23 | B41: Bellen | C41: East | D41: Gault | E41: DFGH | F41: 9 | G41: 198 | H41: 90
A42: 2011-01-10 | B42: Bellen | C42: MidWest | D42: Gault | E42: FM | F42: 7 | G42: 154 | H42: 70
A43: 2011-01-12 | B43: Sunset | C43: MidWest | D43: Gault | E43: ITW | F43: 19 | G43: 399 | H43: 175.75
A44: 2011-01-26 | B44: Bellen | C44: MidWest | D44: Gault | E44: PSA | F44: 21 | G44: 462 | H44: 210
A45: 2011-01-29 | B45: Quad | C45: MidWest | D45: Gault | E45: PLOT | F45: 10 | G45: 270 | H45: 145
A46: 2011-01-02 | B46: Bellen | C46: South | D46: Gault | E46: KBTB | F46: 24 | G46: 528 | H46: 240
A47: 2011-01-28 | B47: Quad | C47: South | D47: Gault | E47: KBTB | F47: 56 | G47: 1512 | H47: 812
A48: 2011-01-21 | B48: Quad | C48: West | D48: Gault | E48: ITW | F48: 56 | G48: 1512 | H48: 812
A49: 2011-01-24 | B49: Quad | C49: West | D49: Gault | E49: HII | F49: 63 | G49: 1701 | H49: 913.5
A50: 2011-01-27 | B50: Carlota | C50: West | D50: Gault | E50: QT | F50: 10 | G50: 230 | H50: 110
A51: 2011-01-30 | B51: Sunshine | C51: West | D51: Gault | E51: DFR | F51: 49 | G51: 931 | H51: 392
C52: Gault Count | D52: =SUBTOTAL(3,D36:D51) -> 16
A53: 2011-01-03 | B53: Sunshine | C53: East | D53: Pham | E53: FM | F53: 38 | G53: 722 | H53: 304
A54: 2011-01-09 | B54: Bellen | C54: East | D54: Pham | E54: EPP | F54: 40 | G54: 880 | H54: 400
A55: 2011-01-10 | B55: Carlota | C55: East | D55: Pham | E55: AA | F55: 63 | G55: 1449 | H55: 693
A56: 2011-01-18 | B56: Bellen | C56: East | D56: Pham | E56: DFR | F56: 59 | G56: 1298 | H56: 590
A57: 2011-01-23 | B57: Quad | C57: East | D57: Pham | E57: WT | F57: 22 | G57: 594 | H57: 319
A58: 2011-01-13 | B58: Bellen | C58: MidWest | D58: Pham | E58: PLOT | F58: 57 | G58: 1254 | H58: 570
A59: 2011-01-13 | B59: Bellen | C59: MidWest | D59: Pham | E59: PSA | F59: 40 | G59: 880 | H59: 400
A60: 2011-01-13 | B60: Sunshine | C60: MidWest | D60: Pham | E60: PSA | F60: 33 | G60: 627 | H60: 264
A61: 2011-01-21 | B61: Sunshine | C61: MidWest | D61: Pham | E61: DFR | F61: 23 | G61: 437 | H61: 184
A62: 2011-01-03 | B62: Sunset | C62: South | D62: Pham | E62: WSD | F62: 23 | G62: 483 | H62: 212.75
A63: 2011-01-05 | B63: Sunset | C63: South | D63: Pham | E63: TTT | F63: 57 | G63: 1197 | H63: 527.25
A64: 2011-01-21 | B64: Sunset | C64: South | D64: Pham | E64: HHH | F64: 13 | G64: 273 | H64: 120.25
A65: 2011-01-02 | B65: Bellen | C65: West | D65: Pham | E65: SFWK | F65: 19 | G65: 418 | H65: 190
A66: 2011-01-02 | B66: Quad | C66: West | D66: Pham | E66: AST | F66: 30 | G66: 810 | H66: 435
A67: 2011-01-07 | B67: Sunset | C67: West | D67: Pham | E67: T | F67: 61 | G67: 1281 | H67: 564.25
A68: 2011-01-07 | B68: Sunset | C68: West | D68: Pham | E68: WT | F68: 53 | G68: 1113 | H68: 490.25
A69: 2011-01-22 | B69: Bellen | C69: West | D69: Pham | E69: AST | F69: 53 | G69: 1166 | H69: 530
A70: 2011-01-26 | B70: Bellen | C70: West | D70: Pham | E70: FRED | F70: 61 | G70: 5000 | H70: 610
C71: Pham Count | D71: =SUBTOTAL(3,D53:D70) -> 18
A72: 2011-01-01 | B72: Quad | C72: East | D72: Sioux | E72: AA | F72: 16 | G72: 432 | H72: 232
A73: 2011-01-17 | B73: Carlota | C73: East | D73: Sioux | E73: PCC | F73: 39 | G73: 897 | H73: 429
A74: 2011-01-04 | B74: Sunset | C74: MidWest | D74: Sioux | E74: BBT | F74: 29 | G74: 609 | H74: 268.25
A75: 2011-01-07 | B75: Sunset | C75: MidWest | D75: Sioux | E75: PCC | F75: 22 | G75: 462 | H75: 203.5
A76: 2011-01-16 | B76: Bellen | C76: MidWest | D76: Sioux | E76: YTR | F76: 56 | G76: 1232 | H76: 560
A77: 2011-01-03 | B77: Sunshine | C77: South | D77: Sioux | E77: PCC | F77: 6 | G77: 114 | H77: 48
A78: 2011-01-09 | B78: Bellen | C78: South | D78: Sioux | E78: QT | F78: 15 | G78: 330 | H78: 150
A79: 2011-01-10 | B79: Sunset | C79: South | D79: Sioux | E79: MBG | F79: 47 | G79: 987 | H79: 434.75
A80: 2011-01-19 | B80: Bellen | C80: South | D80: Sioux | E80: T | F80: 35 | G80: 770 | H80: 350
A81: 2011-01-26 | B81: Sunset | C81: South | D81: Sioux | E81: DFGH | F81: 44 | G81: 924 | H81: 407
A82: 2011-01-28 | B82: Bellen | C82: South | D82: Sioux | E82: QT | F82: 25 | G82: 550 | H82: 250
A83: 2011-01-30 | B83: Quad | C83: South | D83: Sioux | E83: TTT | F83: 25 | G83: 675 | H83: 362.5
A84: 2011-01-30 | B84: Sunshine | C84: South | D84: Sioux | E84: TTT | F84: 23 | G84: 437 | H84: 184
A85: 2011-01-06 | B85: Carlota | C85: West | D85: Sioux | E85: KPSA | F85: 18 | G85: 414 | H85: 198
A86: 2011-01-06 | B86: Quad | C86: West | D86: Sioux | E86: PCC | F86: 64 | G86: 1728 | H86: 928
A87: 2011-01-18 | B87: Sunshine | C87: West | D87: Sioux | E87: AST | F87: 8 | G87: 152 | H87: 64
A88: 2011-01-20 | B88: Sunshine | C88: West | D88: Sioux | E88: YTR | F88: 58 | G88: 1102 | H88: 464
A89: 2011-01-22 | B89: Bellen | C89: West | D89: Sioux | E89: YTR | F89: 35 | G89: 770 | H89: 350
C90: Sioux Count | D90: =SUBTOTAL(3,D72:D89) -> 18
A91: 2011-01-09 | B91: Sunshine | C91: East | D91: Smith | E91: PCC | F91: 42 | G91: 798 | H91: 336
A92: 2011-01-10 | B92: Quad | C92: East | D92: Smith | E92: DFR | F92: 17 | G92: 459 | H92: 246.5
A93: 2011-01-10 | B93: Sunset | C93: East | D93: Smith | E93: MBG | F93: 17 | G93: 357 | H93: 157.25
A94: 2011-01-11 | B94: Quad | C94: East | D94: Smith | E94: BBT | F94: 49 | G94: 1323 | H94: 710.5
A95: 2011-01-28 | B95: Sunset | C95: East | D95: Smith | E95: ZAT | F95: 36 | G95: 756 | H95: 333
A96: 2011-01-10 | B96: Sunshine | C96: MidWest | D96: Smith | E96: TTT | F96: 8 | G96: 152 | H96: 64
A97: 2011-01-17 | B97: Bellen | C97: MidWest | D97: Smith | E97: PCC | F97: 16 | G97: 352 | H97: 160
A98: 2011-01-18 | B98: Quad | C98: MidWest | D98: Smith | E98: PLOT | F98: 17 | G98: 459 | H98: 246.5
A99: 2011-01-21 | B99: Sunshine | C99: MidWest | D99: Smith | E99: QT | F99: 64 | G99: 1216 | H99: 512
A100: 2011-01-28 | B100: Quad | C100: MidWest | D100: Smith | E100: YTR | F100: 42 | G100: 1134 | H100: 609
A101: 2011-01-06 | B101: Sunshine | C101: South | D101: Smith | E101: QT | F101: 40 | G101: 760 | H101: 320
A102: 2011-01-13 | B102: Carlota | C102: South | D102: Smith | E102: FM | F102: 52 | G102: 1196 | H102: 572
A103: 2011-01-16 | B103: Carlota | C103: South | D103: Smith | E103: QT | F103: 31 | G103: 713 | H103: 341
A104: 2011-01-18 | B104: Carlota | C104: South | D104: Smith | E104: YTR | F104: 53 | G104: 1219 | H104: 583
A105: 2011-01-21 | B105: Bellen | C105: South | D105: Smith | E105: TRU | F105: 11 | G105: 242 | H105: 110
A106: 2011-01-22 | B106: Carlota | C106: South | D106: Smith | E106: KBTB | F106: 29 | G106: 667 | H106: 319
A107: 2011-01-28 | B107: Sunshine | C107: South | D107: Smith | E107: FRED | F107: 51 | G107: 969 | H107: 408
A108: 2011-01-07 | B108: Bellen | C108: West | D108: Smith | E108: T | F108: 27 | G108: 594 | H108: 270
A109: 2011-01-10 | B109: Quad | C109: West | D109: Smith | E109: KBTB | F109: 65 | G109: 1755 | H109: 942.5
A110: 2011-01-22 | B110: Bellen | C110: West | D110: Smith | E110: WT | F110: 6 | G110: 132 | H110: 60
A111: 2011-01-28 | B111: Carlota | C111: West | D111: Smith | E111: LOP | F111: 15 | G111: 345 | H111: 165
C112: Smith Count | D112: =SUBTOTAL(3,D91:D111) -> 21
C113: Grand Count | D113: =SUBTOTAL(3,D2:D111) -> 105

Sheet STpaste
A1: Date | B1: Product | C1: Region | D1: SalesRep | E1: Customer | F1: Units | G1: Sales | H1: COGS
C2: East Total | F2: 1076 | G2: 24901 | H2: 12023.25
C3: MidWest Total | F3: 723 | G3: 15688 | H3: 7245.5
C4: South Total | F4: 891 | G4: 19802 | H4: 9278
C5: West Total | F5: 911 | G5: 24766 | H5: 10195
C6: Grand Total | F6: 3601 | G6: 85157 | H6: 38741.75

Sheet ST(2)
A1: Date | B1: Product | C1: Region | D1: SalesRep | E1: Customer | F1: Units | G1: Sales | H1: COGS
A2: 2011-01-20 | B2: Carlota | C2: East | D2: Chin | E2: ET | F2: 59 | G2: 1357 | H2: 649
A3: 2011-01-21 | B3: Quad | C3: East | D3: Chin | E3: FM | F3: 58 | G3: 1566 | H3: 841
A4: 2011-01-26 | B4: Bellen | C4: East | D4: Chin | E4: KPSA | F4: 17 | G4: 374 | H4: 170
A5: 2011-01-29 | B5: Bellen | C5: East | D5: Chin | E5: AST | F5: 50 | G5: 1100 | H5: 500
A6: 2011-01-06 | B6: Sunshine | C6: East | D6: Franks | E6: PSA | F6: 54 | G6: 1026 | H6: 432
A7: 2011-01-09 | B7: Carlota | C7: East | D7: Franks | E7: WSD | F7: 38 | G7: 874 | H7: 418
A8: 2011-01-11 | B8: Quad | C8: East | D8: Franks | E8: ITW | F8: 14 | G8: 378 | H8: 203
A9: 2011-01-14 | B9: Carlota | C9: East | D9: Franks | E9: JAQ | F9: 34 | G9: 782 | H9: 374
A10: 2011-01-17 | B10: Quad | C10: East | D10: Franks | E10: HII | F10: 62 | G10: 1674 | H10: 899
A11: 2011-01-18 | B11: Sunshine | C11: East | D11: Franks | E11: AA | F11: 24 | G11: 456 | H11: 192
A12: 2011-01-18 | B12: Bellen | C12: East | D12: Franks | E12: DFGH | F12: 20 | G12: 440 | H12: 200
A13: 2011-01-23 | B13: Quad | C13: East | D13: Franks | E13: PCC | F13: 44 | G13: 1188 | H13: 638
A14: 2011-01-10 | B14: Sunset | C14: East | D14: Gault | E14: TRU | F14: 27 | G14: 567 | H14: 249.75
A15: 2011-01-15 | B15: Sunset | C15: East | D15: Gault | E15: AST | F15: 63 | G15: 1323 | H15: 582.75
A16: 2011-01-17 | B16: Quad | C16: East | D16: Gault | E16: SFWK | F16: 43 | G16: 1161 | H16: 623.5
A17: 2011-01-18 | B17: Sunset | C17: East | D17: Gault | E17: MNGD | F17: 12 | G17: 252 | H17: 111
A18: 2011-01-20 | B18: Bellen | C18: East | D18: Gault | E18: PSA | F18: 10 | G18: 220 | H18: 100
A19: 2011-01-23 | B19: Bellen | C19: East | D19: Gault | E19: DFGH | F19: 9 | G19: 198 | H19: 90
A20: 2011-01-03 | B20: Sunshine | C20: East | D20: Pham | E20: FM | F20: 38 | G20: 722 | H20: 304
A21: 2011-01-09 | B21: Bellen | C21: East | D21: Pham | E21: EPP | F21: 40 | G21: 880 | H21: 400
A22: 2011-01-10 | B22: Carlota | C22: East | D22: Pham | E22: AA | F22: 63 | G22: 1449 | H22: 693
A23: 2011-01-18 | B23: Bellen | C23: East | D23: Pham | E23: DFR | F23: 59 | G23: 1298 | H23: 590
A24: 2011-01-23 | B24: Quad | C24: East | D24: Pham | E24: WT | F24: 22 | G24: 594 | H24: 319
A25: 2011-01-01 | B25: Quad | C25: East | D25: Sioux | E25: AA | F25: 16 | G25: 432 | H25: 232
A26: 2011-01-17 | B26: Carlota | C26: East | D26: Sioux | E26: PCC | F26: 39 | G26: 897 | H26: 429
A27: 2011-01-09 | B27: Sunshine | C27: East | D27: Smith | E27: PCC | F27: 42 | G27: 798 | H27: 336
A28: 2011-01-10 | B28: Quad | C28: East | D28: Smith | E28: DFR | F28: 17 | G28: 459 | H28: 246.5
A29: 2011-01-10 | B29: Sunset | C29: East | D29: Smith | E29: MBG | F29: 17 | G29: 357 | H29: 157.25
A30: 2011-01-11 | B30: Quad | C30: East | D30: Smith | E30: BBT | F30: 49 | G30: 1323 | H30: 710.5
A31: 2011-01-28 | B31: Sunset | C31: East | D31: Smith | E31: ZAT | F31: 36 | G31: 756 | H31: 333
A32: 2011-01-03 | B32: Carlota | C32: MidWest | D32: Chin | E32: FM | F32: 20 | G32: 460 | H32: 220
A33: 2011-01-15 | B33: Sunshine | C33: MidWest | D33: Chin | E33: YTR | F33: 11 | G33: 209 | H33: 88
A34: 2011-01-17 | B34: Quad | C34: MidWest | D34: Chin | E34: EPP | F34: 61 | G34: 1647 | H34: 884.5
A35: 2011-01-18 | B35: Sunshine | C35: MidWest | D35: Chin | E35: PCC | F35: 62 | G35: 1178 | H35: 496
A36: 2011-01-07 | B36: Carlota | C36: MidWest | D36: Franks | E36: HHH | F36: 12 | G36: 276 | H36: 132
A37: 2011-01-17 | B37: Sunshine | C37: MidWest | D37: Franks | E37: HHH | F37: 59 | G37: 1121 | H37: 472
A38: 2011-01-24 | B38: Carlota | C38: MidWest | D38: Franks | E38: BBT | F38: 13 | G38: 299 | H38: 143
A39: 2011-01-25 | B39: Sunshine | C39: MidWest | D39: Franks | E39: JAQ | F39: 21 | G39: 399 | H39: 168
A40: 2011-01-10 | B40: Bellen | C40: MidWest | D40: Gault | E40: FM | F40: 7 | G40: 154 | H40: 70
A41: 2011-01-12 | B41: Sunset | C41: MidWest | D41: Gault | E41: ITW | F41: 19 | G41: 399 | H41: 175.75
A42: 2011-01-26 | B42: Bellen | C42: MidWest | D42: Gault | E42: PSA | F42: 21 | G42: 462 | H42: 210
A43: 2011-01-29 | B43: Quad | C43: MidWest | D43: Gault | E43: PLOT | F43: 10 | G43: 270 | H43: 145
A44: 2011-01-13 | B44: Bellen | C44: MidWest | D44: Pham | E44: PLOT | F44: 57 | G44: 1254 | H44: 570
A45: 2011-01-13 | B45: Sunshine | C45: MidWest | D45: Pham | E45: PSA | F45: 33 | G45: 627 | H45: 264
A46: 2011-01-13 | B46: Bellen | C46: MidWest | D46: Pham | E46: PSA | F46: 40 | G46: 880 | H46: 400
A47: 2011-01-21 | B47: Sunshine | C47: MidWest | D47: Pham | E47: DFR | F47: 23 | G47: 437 | H47: 184
A48: 2011-01-04 | B48: Sunset | C48: MidWest | D48: Sioux | E48: BBT | F48: 29 | G48: 609 | H48: 268.25
A49: 2011-01-07 | B49: Sunset | C49: MidWest | D49: Sioux | E49: PCC | F49: 22 | G49: 462 | H49: 203.5
A50: 2011-01-16 | B50: Bellen | C50: MidWest | D50: Sioux | E50: YTR | F50: 56 | G50: 1232 | H50: 560
A51: 2011-01-10 | B51: Sunshine | C51: MidWest | D51: Smith | E51: TTT | F51: 8 | G51: 152 | H51: 64
A52: 2011-01-17 | B52: Bellen | C52: MidWest | D52: Smith | E52: PCC | F52: 16 | G52: 352 | H52: 160
A53: 2011-01-18 | B53: Quad | C53: MidWest | D53: Smith | E53: PLOT | F53: 17 | G53: 459 | H53: 246.5
A54: 2011-01-21 | B54: Sunshine | C54: MidWest | D54: Smith | E54: QT | F54: 64 | G54: 1216 | H54: 512
A55: 2011-01-28 | B55: Quad | C55: MidWest | D55: Smith | E55: YTR | F55: 42 | G55: 1134 | H55: 609
A56: 2011-01-09 | B56: Bellen | C56: South | D56: Chin | E56: WSD | F56: 26 | G56: 572 | H56: 260
A57: 2011-01-10 | B57: Sunshine | C57: South | D57: Chin | E57: TRU | F57: 30 | G57: 570 | H57: 240
A58: 2011-01-12 | B58: Bellen | C58: South | D58: Chin | E58: WT | F58: 7 | G58: 154 | H58: 70
A59: 2011-01-23 | B59: Sunshine | C59: South | D59: Chin | E59: T | F59: 49 | G59: 931 | H59: 392
A60: 2011-01-22 | B60: Quad | C60: South | D60: Franks | E60: FM | F60: 29 | G60: 783 | H60: 420.5
A61: 2011-01-28 | B61: Carlota | C61: South | D61: Franks | E61: MNGD | F61: 46 | G61: 1058 | H61: 506
A62: 2011-01-28 | B62: Quad | C62: South | D62: Franks | E62: YTR | F62: 44 | G62: 1188 | H62: 638
A63: 2011-01-02 | B63: Bellen | C63: South | D63: Gault | E63: KBTB | F63: 24 | G63: 528 | H63: 240
A64: 2011-01-28 | B64: Quad | C64: South | D64: Gault | E64: KBTB | F64: 56 | G64: 1512 | H64: 812
A65: 2011-01-03 | B65: Sunset | C65: South | D65: Pham | E65: WSD | F65: 23 | G65: 483 | H65: 212.75
A66: 2011-01-05 | B66: Sunset | C66: South | D66: Pham | E66: TTT | F66: 57 | G66: 1197 | H66: 527.25
A67: 2011-01-21 | B67: Sunset | C67: South | D67: Pham | E67: HHH | F67: 13 | G67: 273 | H67: 120.25
A68: 2011-01-03 | B68: Sunshine | C68: South | D68: Sioux | E68: PCC | F68: 6 | G68: 114 | H68: 48
A69: 2011-01-09 | B69: Bellen | C69: South | D69: Sioux | E69: QT | F69: 15 | G69: 330 | H69: 150
A70: 2011-01-10 | B70: Sunset | C70: South | D70: Sioux | E70: MBG | F70: 47 | G70: 987 | H70: 434.75
A71: 2011-01-19 | B71: Bellen | C71: South | D71: Sioux | E71: T | F71: 35 | G71: 770 | H71: 350
A72: 2011-01-26 | B72: Sunset | C72: South | D72: Sioux | E72: DFGH | F72: 44 | G72: 924 | H72: 407
A73: 2011-01-28 | B73: Bellen | C73: South | D73: Sioux | E73: QT | F73: 25 | G73: 550 | H73: 250
A74: 2011-01-30 | B74: Sunshine | C74: South | D74: Sioux | E74: TTT | F74: 23 | G74: 437 | H74: 184
A75: 2011-01-30 | B75: Quad | C75: South | D75: Sioux | E75: TTT | F75: 25 | G75: 675 | H75: 362.5
A76: 2011-01-06 | B76: Sunshine | C76: South | D76: Smith | E76: QT | F76: 40 | G76: 760 | H76: 320
A77: 2011-01-13 | B77: Carlota | C77: South | D77: Smith | E77: FM | F77: 52 | G77: 1196 | H77: 572
A78: 2011-01-16 | B78: Carlota | C78: South | D78: Smith | E78: QT | F78: 31 | G78: 713 | H78: 341
A79: 2011-01-18 | B79: Carlota | C79: South | D79: Smith | E79: YTR | F79: 53 | G79: 1219 | H79: 583
A80: 2011-01-21 | B80: Bellen | C80: South | D80: Smith | E80: TRU | F80: 11 | G80: 242 | H80: 110
A81: 2011-01-22 | B81: Carlota | C81: South | D81: Smith | E81: KBTB | F81: 29 | G81: 667 | H81: 319
A82: 2011-01-28 | B82: Sunshine | C82: South | D82: Smith | E82: FRED | F82: 51 | G82: 969 | H82: 408
A83: 2011-01-08 | B83: Quad | C83: West | D83: Chin | E83: HII | F83: 16 | G83: 432 | H83: 232
A84: 2011-01-17 | B84: Quad | C84: West | D84: Chin | E84: PCC | F84: 10 | G84: 270 | H84: 145
A85: 2011-01-28 | B85: Sunset | C85: West | D85: Chin | E85: FM | F85: 62 | G85: 1302 | H85: 573.5
A86: 2011-01-05 | B86: Sunshine | C86: West | D86: Franks | E86: ET | F86: 12 | G86: 228 | H86: 96
A87: 2011-01-05 | B87: Carlota | C87: West | D87: Franks | E87: ITTW | F87: 60 | G87: 1380 | H87: 660
A88: 2011-01-21 | B88: Quad | C88: West | D88: Gault | E88: ITW | F88: 56 | G88: 1512 | H88: 812
A89: 2011-01-24 | B89: Quad | C89: West | D89: Gault | E89: HII | F89: 63 | G89: 1701 | H89: 913.5
A90: 2011-01-27 | B90: Carlota | C90: West | D90: Gault | E90: QT | F90: 10 | G90: 230 | H90: 110
A91: 2011-01-30 | B91: Sunshine | C91: West | D91: Gault | E91: DFR | F91: 49 | G91: 931 | H91: 392
A92: 2011-01-02 | B92: Quad | C92: West | D92: Pham | E92: AST | F92: 30 | G92: 810 | H92: 435
A93: 2011-01-02 | B93: Bellen | C93: West | D93: Pham | E93: SFWK | F93: 19 | G93: 418 | H93: 190
A94: 2011-01-07 | B94: Sunset | C94: West | D94: Pham | E94: T | F94: 61 | G94: 1281 | H94: 564.25
A95: 2011-01-07 | B95: Sunset | C95: West | D95: Pham | E95: WT | F95: 53 | G95: 1113 | H95: 490.25
A96: 2011-01-22 | B96: Bellen | C96: West | D96: Pham | E96: AST | F96: 53 | G96: 1166 | H96: 530
A97: 2011-01-26 | B97: Bellen | C97: West | D97: Pham | E97: FRED | F97: 61 | G97: 5000 | H97: 610
A98: 2011-01-06 | B98: Carlota | C98: West | D98: Sioux | E98: KPSA | F98: 18 | G98: 414 | H98: 198
A99: 2011-01-06 | B99: Quad | C99: West | D99: Sioux | E99: PCC | F99: 64 | G99: 1728 | H99: 928
A100: 2011-01-18 | B100: Sunshine | C100: West | D100: Sioux | E100: AST | F100: 8 | G100: 152 | H100: 64
A101: 2011-01-20 | B101: Sunshine | C101: West | D101: Sioux | E101: YTR | F101: 58 | G101: 1102 | H101: 464
A102: 2011-01-22 | B102: Bellen | C102: West | D102: Sioux | E102: YTR | F102: 35 | G102: 770 | H102: 350
A103: 2011-01-07 | B103: Bellen | C103: West | D103: Smith | E103: T | F103: 27 | G103: 594 | H103: 270
A104: 2011-01-10 | B104: Quad | C104: West | D104: Smith | E104: KBTB | F104: 65 | G104: 1755 | H104: 942.5
A105: 2011-01-22 | B105: Bellen | C105: West | D105: Smith | E105: WT | F105: 6 | G105: 132 | H105: 60
A106: 2011-01-28 | B106: Carlota | C106: West | D106: Smith | E106: LOP | F106: 15 | G106: 345 | H106: 165

Sheet ST PT C
A1: 11 Functions for SUBTOTAL function
A2: Function_num (includes hidden values) | B2: Function_num (ignores hidden values) | C2: What you see in Subtotal "Use function" drop-down | D2: Function | E2: What it does
A3: 1 | B3: 101 | C3: Average | D3: AVERAGE | E3: Calculates arithmetic mean
A4: 2 | B4: 102 | C4: Count Numbers | D4: COUNT | E4: Counts numbers
A5: 3 | B5: 103 | C5: Count | D5: COUNTA | E5: Counts non empty cells
A6: 4 | B6: 104 | C6: Max | D6: MAX | E6: Finds largest value
A7: 5 | B7: 105 | C7: Min | D7: MIN | E7: Finds smallest value
A8: 6 | B8: 106 | C8: Product | D8: PRODUCT | E8: Multiplies
A9: 7 | B9: 107 | C9: Stdev | D9: STDEV | E9: Standard Deviation for a sample
A10: 8 | B10: 108 | C10: Stdevp | D10: STDEVP | E10: Standard Deviation for a population
A11: 9 | B11: 109 | C11: Sum | D11: SUM | E11: Adds
A12: 10 | B12: 110 | C12: Var | D12: VAR | E12: Variation for a sample
A13: 11 | B13: 111 | C13: Varp | D13: VARP | E13: Variation for a population
G15: 11 Functions available in a PivotTable
G16: What you see in Value Field Settings dialog box | H16: Function | I16: What it does
G17: Average | H17: AVERAGE | I17: Calculates arithmetic mean
G18: Count Numbers | H18: COUNT | I18: Counts numbers
G19: Count | H19: COUNTA | I19: Counts non empty cells
G20: Max | H20: MAX | I20: Finds largest value
G21: Min | H21: MIN | I21: Finds smallest value
G22: Product | H22: PRODUCT | I22: Multiplies
G23: Stdev | H23: STDEV | I23: Standard Deviation for a sample
G24: Stdevp | H24: STDEVP | I24: Standard Deviation for a population
G25: Sum | H25: SUM | I25: Adds
G26: Var | H26: VAR | I26: Variation for a sample
G27: Varp | H27: VARP | I27: Variation for a population

Sheet PT1
A3: Sum of Sales | B3: Region
A4: SalesRep | B4: East | C4: MidWest | D4: South | E4: West | F4: Grand Total
A5: Chin | B5: 4397 | C5: 3494 | D5: 2227 | E5: 2004 | F5: 12122
A6: Franks | B6: 6818 | C6: 2095 | D6: 3029 | E6: 1608 | F6: 13550
A7: Gault | B7: 3721 | C7: 1285 | D7: 2040 | E7: 4374 | F7: 11420
A8: Pham | B8: 4943 | C8: 3198 | D8: 1953 | E8: 9788 | F8: 19882
A9: Sioux | B9: 1329 | C9: 2303 | D9: 4787 | E9: 4166 | F9: 12585
A10: Smith | B10: 3693 | C10: 3313 | D10: 5766 | E10: 2826 | F10: 15598
A11: Grand Total | B11: 24901 | C11: 15688 | D11: 19802 | E11: 24766 | F11: 85157

Sheet PTData
A1: Date | B1: Product | C1: Region | D1: SalesRep | E1: Customer | F1: Units | G1: Sales | H1: COGS
A2: 2011-01-01 | B2: Quad | C2: East | D2: Sioux | E2: AA | F2: 16 | G2: 432 | H2: 232
A3: 2011-01-02 | B3: Bellen | C3: South | D3: Gault | E3: KBTB | F3: 24 | G3: 528 | H3: 240
A4: 2011-01-02 | B4: Quad | C4: West | D4: Pham | E4: AST | F4: 30 | G4: 810 | H4: 435
A5: 2011-01-02 | B5: Bellen | C5: West | D5: Pham | E5: SFWK | F5: 19 | G5: 418 | H5: 190
A6: 2011-01-03 | B6: Sunshine | C6: East | D6: Pham | E6: FM | F6: 38 | G6: 722 | H6: 304
A7: 2011-01-03 | B7: Carlota | C7: MidWest | D7: Chin | E7: FM | F7: 20 | G7: 460 | H7: 220
A8: 2011-01-03 | B8: Sunset | C8: South | D8: Pham | E8: WSD | F8: 23 | G8: 483 | H8: 212.75
A9: 2011-01-03 | B9: Sunshine | C9: South | D9: Sioux | E9: PCC | F9: 6 | G9: 114 | H9: 48
A10: 2011-01-04 | B10: Sunset | C10: MidWest | D10: Sioux | E10: BBT | F10: 29 | G10: 609 | H10: 268.25
A11: 2011-01-05 | B11: Sunset | C11: South | D11: Pham | E11: TTT | F11: 57 | G11: 1197 | H11: 527.25
A12: 2011-01-05 | B12: Sunshine | C12: West | D12: Franks | E12: ET | F12: 12 | G12: 228 | H12: 96
A13: 2011-01-05 | B13: Carlota | C13: West | D13: Franks | E13: ITTW | F13: 60 | G13: 1380 | H13: 660
A14: 2011-01-06 | B14: Sunshine | C14: East | D14: Franks | E14: PSA | F14: 54 | G14: 1026 | H14: 432
A15: 2011-01-06 | B15: Sunshine | C15: South | D15: Smith | E15: QT | F15: 40 | G15: 760 | H15: 320
A16: 2011-01-06 | B16: Carlota | C16: West | D16: Sioux | E16: KPSA | F16: 18 | G16: 414 | H16: 198
A17: 2011-01-06 | B17: Quad | C17: West | D17: Sioux | E17: PCC | F17: 64 | G17: 1728 | H17: 928
A18: 2011-01-07 | B18: Carlota | C18: MidWest | D18: Franks | E18: HHH | F18: 12 | G18: 276 | H18: 132
A19: 2011-01-07 | B19: Sunset | C19: MidWest | D19: Sioux | E19: PCC | F19: 22 | G19: 462 | H19: 203.5
A20: 2011-01-07 | B20: Sunset | C20: West | D20: Pham | E20: T | F20: 61 | G20: 1281 | H20: 564.25
A21: 2011-01-07 | B21: Sunset | C21: West | D21: Pham | E21: WT | F21: 53 | G21: 1113 | H21: 490.25
A22: 2011-01-07 | B22: Bellen | C22: West | D22: Smith | E22: T | F22: 27 | G22: 594 | H22: 270
A23: 2011-01-08 | B23: Quad | C23: West | D23: Chin | E23: HII | F23: 16 | G23: 432 | H23: 232
A24: 2011-01-09 | B24: Carlota | C24: East | D24: Franks | E24: WSD | F24: 38 | G24: 874 | H24: 418
A25: 2011-01-09 | B25: Bellen | C25: East | D25: Pham | E25: EPP | F25: 40 | G25: 880 | H25: 400
A26: 2011-01-09 | B26: Sunshine | C26: East | D26: Smith | E26: PCC | F26: 42 | G26: 798 | H26: 336
A27: 2011-01-09 | B27: Bellen | C27: South | D27: Chin | E27: WSD | F27: 26 | G27: 572 | H27: 260
A28: 2011-01-09 | B28: Bellen | C28: South | D28: Sioux | E28: QT | F28: 15 | G28: 330 | H28: 150
A29: 2011-01-10 | B29: Sunset | C29: East | D29: Gault | E29: TRU | F29: 27 | G29: 567 | H29: 249.75
A30: 2011-01-10 | B30: Carlota | C30: East | D30: Pham | E30: AA | F30: 63 | G30: 1449 | H30: 693
A31: 2011-01-10 | B31: Quad | C31: East | D31: Smith | E31: DFR | F31: 17 | G31: 459 | H31: 246.5
A32: 2011-01-10 | B32: Sunset | C32: East | D32: Smith | E32: MBG | F32: 17 | G32: 357 | H32: 157.25
A33: 2011-01-10 | B33: Bellen | C33: MidWest | D33: Gault | E33: FM | F33: 7 | G33: 154 | H33: 70
A34: 2011-01-10 | B34: Sunshine | C34: MidWest | D34: Smith | E34: TTT | F34: 8 | G34: 152 | H34: 64
A35: 2011-01-10 | B35: Sunshine | C35: South | D35: Chin | E35: TRU | F35: 30 | G35: 570 | H35: 240
A36: 2011-01-10 | B36: Sunset | C36: South | D36: Sioux | E36: MBG | F36: 47 | G36: 987 | H36: 434.75
A37: 2011-01-10 | B37: Quad | C37: West | D37: Smith | E37: KBTB | F37: 65 | G37: 1755 | H37: 942.5
A38: 2011-01-11 | B38: Quad | C38: East | D38: Franks | E38: ITW | F38: 14 | G38: 378 | H38: 203
A39: 2011-01-11 | B39: Quad | C39: East | D39: Smith | E39: BBT | F39: 49 | G39: 1323 | H39: 710.5
A40: 2011-01-12 | B40: Sunset | C40: MidWest | D40: Gault | E40: ITW | F40: 19 | G40: 399 | H40: 175.75
A41: 2011-01-12 | B41: Bellen | C41: South | D41: Chin | E41: WT | F41: 7 | G41: 154 | H41: 70
A42: 2011-01-13 | B42: Bellen | C42: MidWest | D42: Pham | E42: PLOT | F42: 57 | G42: 1254 | H42: 570
A43: 2011-01-13 | B43: Sunshine | C43: MidWest | D43: Pham | E43: PSA | F43: 33 | G43: 627 | H43: 264
A44: 2011-01-13 | B44: Bellen | C44: MidWest | D44: Pham | E44: PSA | F44: 40 | G44: 880 | H44: 400
A45: 2011-01-13 | B45: Carlota | C45: South | D45: Smith | E45: FM | F45: 52 | G45: 1196 | H45: 572
A46: 2011-01-14 | B46: Carlota | C46: East | D46: Franks | E46: JAQ | F46: 34 | G46: 782 | H46: 374
A47: 2011-01-15 | B47: Sunset | C47: East | D47: Gault | E47: AST | F47: 63 | G47: 1323 | H47: 582.75
A48: 2011-01-15 | B48: Sunshine | C48: MidWest | D48: Chin | E48: YTR | F48: 11 | G48: 209 | H48: 88
A49: 2011-01-16 | B49: Bellen | C49: MidWest | D49: Sioux | E49: YTR | F49: 56 | G49: 1232 | H49: 560
A50: 2011-01-16 | B50: Carlota | C50: South | D50: Smith | E50: QT | F50: 31 | G50: 713 | H50: 341
A51: 2011-01-17 | B51: Quad | C51: East | D51: Franks | E51: HII | F51: 62 | G51: 1674 | H51: 899
A52: 2011-01-17 | B52: Quad | C52: East | D52: Gault | E52: SFWK | F52: 43 | G52: 1161 | H52: 623.5
A53: 2011-01-17 | B53: Carlota | C53: East | D53: Sioux | E53: PCC | F53: 39 | G53: 897 | H53: 429
A54: 2011-01-17 | B54: Quad | C54: MidWest | D54: Chin | E54: EPP | F54: 61 | G54: 1647 | H54: 884.5
A55: 2011-01-17 | B55: Sunshine | C55: MidWest | D55: Franks | E55: HHH | F55: 59 | G55: 1121 | H55: 472
A56: 2011-01-17 | B56: Bellen | C56: MidWest | D56: Smith | E56: PCC | F56: 16 | G56: 352 | H56: 160
A57: 2011-01-17 | B57: Quad | C57: West | D57: Chin | E57: PCC | F57: 10 | G57: 270 | H57: 145
A58: 2011-01-18 | B58: Sunshine | C58: East | D58: Franks | E58: AA | F58: 24 | G58: 456 | H58: 192
A59: 2011-01-18 | B59: Bellen | C59: East | D59: Franks | E59: DFGH | F59: 20 | G59: 440 | H59: 200
A60: 2011-01-18 | B60: Sunset | C60: East | D60: Gault | E60: MNGD | F60: 12 | G60: 252 | H60: 111
A61: 2011-01-18 | B61: Bellen | C61: East | D61: Pham | E61: DFR | F61: 59 | G61: 1298 | H61: 590
A62: 2011-01-18 | B62: Sunshine | C62: MidWest | D62: Chin | E62: PCC | F62: 62 | G62: 1178 | H62: 496
A63: 2011-01-18 | B63: Quad | C63: MidWest | D63: Smith | E63: PLOT | F63: 17 | G63: 459 | H63: 246.5
A64: 2011-01-18 | B64: Carlota | C64: South | D64: Smith | E64: YTR | F64: 53 | G64: 1219 | H64: 583
A65: 2011-01-18 | B65: Sunshine | C65: West | D65: Sioux | E65: AST | F65: 8 | G65: 152 | H65: 64
A66: 2011-01-19 | B66: Bellen | C66: South | D66: Sioux | E66: T | F66: 35 | G66: 770 | H66: 350
A67: 2011-01-20 | B67: Carlota | C67: East | D67: Chin | E67: ET | F67: 59 | G67: 1357 | H67: 649
A68: 2011-01-20 | B68: Bellen | C68: East | D68: Gault | E68: PSA | F68: 10 | G68: 220 | H68: 100
A69: 2011-01-20 | B69: Sunshine | C69: West | D69: Sioux | E69: YTR | F69: 58 | G69: 1102 | H69: 464
A70: 2011-01-21 | B70: Quad | C70: East | D70: Chin | E70: FM | F70: 58 | G70: 1566 | H70: 841
A71: 2011-01-21 | B71: Sunshine | C71: MidWest | D71: Pham | E71: DFR | F71: 23 | G71: 437 | H71: 184
A72: 2011-01-21 | B72: Sunshine | C72: MidWest | D72: Smith | E72: QT | F72: 64 | G72: 1216 | H72: 512
A73: 2011-01-21 | B73: Sunset | C73: South | D73: Pham | E73: HHH | F73: 13 | G73: 273 | H73: 120.25
A74: 2011-01-21 | B74: Bellen | C74: South | D74: Smith | E74: TRU | F74: 11 | G74: 242 | H74: 110
A75: 2011-01-21 | B75: Quad | C75: West | D75: Gault | E75: ITW | F75: 56 | G75: 1512 | H75: 812
A76: 2011-01-22 | B76: Quad | C76: South | D76: Franks | E76: FM | F76: 29 | G76: 783 | H76: 420.5
A77: 2011-01-22 | B77: Carlota | C77: South | D77: Smith | E77: KBTB | F77: 29 | G77: 667 | H77: 319
A78: 2011-01-22 | B78: Bellen | C78: West | D78: Pham | E78: AST | F78: 53 | G78: 1166 | H78: 530
A79: 2011-01-22 | B79: Bellen | C79: West | D79: Sioux | E79: YTR | F79: 35 | G79: 770 | H79: 350
A80: 2011-01-22 | B80: Bellen | C80: West | D80: Smith | E80: WT | F80: 6 | G80: 132 | H80: 60
A81: 2011-01-23 | B81: Quad | C81: East | D81: Franks | E81: PCC | F81: 44 | G81: 1188 | H81: 638
A82: 2011-01-23 | B82: Bellen | C82: East | D82: Gault | E82: DFGH | F82: 9 | G82: 198 | H82: 90
A83: 2011-01-23 | B83: Quad | C83: East | D83: Pham | E83: WT | F83: 22 | G83: 594 | H83: 319
A84: 2011-01-23 | B84: Sunshine | C84: South | D84: Chin | E84: T | F84: 49 | G84: 931 | H84: 392
A85: 2011-01-24 | B85: Carlota | C85: MidWest | D85: Franks | E85: BBT | F85: 13 | G85: 299 | H85: 143
A86: 2011-01-24 | B86: Quad | C86: West | D86: Gault | E86: HII | F86: 63 | G86: 1701 | H86: 913.5
A87: 2011-01-25 | B87: Sunshine | C87: MidWest | D87: Franks | E87: JAQ | F87: 21 | G87: 399 | H87: 168
A88: 2011-01-26 | B88: Bellen | C88: East | D88: Chin | E88: KPSA | F88: 17 | G88: 374 | H88: 170
A89: 2011-01-26 | B89: Bellen | C89: MidWest | D89: Gault | E89: PSA | F89: 21 | G89: 462 | H89: 210
A90: 2011-01-26 | B90: Sunset | C90: South | D90: Sioux | E90: DFGH | F90: 44 | G90: 924 | H90: 407
A91: 2011-01-26 | B91: Bellen | C91: West | D91: Pham | E91: FRED | F91: 61 | G91: 5000 | H91: 610
A92: 2011-01-27 | B92: Carlota | C92: West | D92: Gault | E92: QT | F92: 10 | G92: 230 | H92: 110
A93: 2011-01-28 | B93: Sunset | C93: East | D93: Smith | E93: ZAT | F93: 36 | G93: 756 | H93: 333
A94: 2011-01-28 | B94: Quad | C94: MidWest | D94: Smith | E94: YTR | F94: 42 | G94: 1134 | H94: 609
A95: 2011-01-28 | B95: Carlota | C95: South | D95: Franks | E95: MNGD | F95: 46 | G95: 1058 | H95: 506
A96: 2011-01-28 | B96: Quad | C96: South | D96: Franks | E96: YTR | F96: 44 | G96: 1188 | H96: 638
A97: 2011-01-28 | B97: Quad | C97: South | D97: Gault | E97: KBTB | F97: 56 | G97: 1512 | H97: 812
A98: 2011-01-28 | B98: Bellen | C98: South | D98: Sioux | E98: QT | F98: 25 | G98: 550 | H98: 250
A99: 2011-01-28 | B99: Sunshine | C99: South | D99: Smith | E99: FRED | F99: 51 | G99: 969 | H99: 408
A100: 2011-01-28 | B100: Sunset | C100: West | D100: Chin | E100: FM | F100: 62 | G100: 1302 | H100: 573.5
A101: 2011-01-28 | B101: Carlota | C101: West | D101: Smith | E101: LOP | F101: 15 | G101: 345 | H101: 165
A102: 2011-01-29 | B102: Bellen | C102: East | D102: Chin | E102: AST | F102: 50 | G102: 1100 | H102: 500
A103: 2011-01-29 | B103: Quad | C103: MidWest | D103: Gault | E103: PLOT | F103: 10 | G103: 270 | H103: 145
A104: 2011-01-30 | B104: Sunshine | C104: South | D104: Sioux | E104: TTT | F104: 23 | G104: 437 | H104: 184
A105: 2011-01-30 | B105: Quad | C105: South | D105: Sioux | E105: TTT | F105: 25 | G105: 675 | H105: 362.5
A106: 2011-01-30 | B106: Sunshine | C106: West | D106: Gault | E106: DFR | F106: 49 | G106: 931 | H106: 392

Sheet FormulaS
B1: East | C1: MidWest | D1: South | E1: West | F1: Grand Total
A2: Jan | B2: =SUMPRODUCT(--(TEXT('PTData (2)'!$A$2:$A$1227,"mmm")=$A2),--('PTData (2)'!$C$2:$C$1227=B$1),'PTData (2)'!$G$2:$G$1227) -> 38438 | C2: =SUMPRODUCT(--(TEXT('PTData (2)'!$A$2:$A$1227,"mmm")=$A2),--('PTData (2)'!$C$2:$C$1227=C$1),'PTData (2)'!$G$2:$G$1227) -> 47995 | D2: =SUMPRODUCT(--(TEXT('PTData (2)'!$A$2:$A$1227,"mmm")=$A2),--('PTData (2)'!$C$2:$C$1227=D$1),'PTData (2)'!$G$2:$G$1227) -> 49374 | E2: =SUMPRODUCT(--(TEXT('PTData (2)'!$A$2:$A$1227,"mmm")=$A2),--('PTData (2)'!$C$2:$C$1227=E$1),'PTData (2)'!$G$2:$G$1227) -> 36487 | F2: =SUM(B2:E2) -> 172294
A3: Feb | B3: =SUMPRODUCT(--(TEXT('PTData (2)'!$A$2:$A$1227,"mmm")=$A3),--('PTData (2)'!$C$2:$C$1227=B$1),'PTData (2)'!$G$2:$G$1227) -> 37044 | C3: =SUMPRODUCT(--(TEXT('PTData (2)'!$A$2:$A$1227,"mmm")=$A3),--('PTData (2)'!$C$2:$C$1227=C$1),'PTData (2)'!$G$2:$G$1227) -> 39134 | D3: =SUMPRODUCT(--(TEXT('PTData (2)'!$A$2:$A$1227,"mmm")=$A3),--('PTData (2)'!$C$2:$C$1227=D$1),'PTData (2)'!$G$2:$G$1227) -> 31851 | E3: =SUMPRODUCT(--(TEXT('PTData (2)'!$A$2:$A$1227,"mmm")=$A3),--('PTData (2)'!$C$2:$C$1227=E$1),'PTData (2)'!$G$2:$G$1227) -> 34005 | F3: 142034
A4: Mar | B4: =SUMPRODUCT(--(TEXT('PTData (2)'!$A$2:$A$1227,"mmm")=$A4),--('PTData (2)'!$C$2:$C$1227=B$1),'PTData (2)'!$G$2:$G$1227) -> 35064 | C4: =SUMPRODUCT(--(TEXT('PTData (2)'!$A$2:$A$1227,"mmm")=$A4),--('PTData (2)'!$C$2:$C$1227=C$1),'PTData (2)'!$G$2:$G$1227) -> 38162 | D4: =SUMPRODUCT(--(TEXT('PTData (2)'!$A$2:$A$1227,"mmm")=$A4),--('PTData (2)'!$C$2:$C$1227=D$1),'PTData (2)'!$G$2:$G$1227) -> 41283 | E4: =SUMPRODUCT(--(TEXT('PTData (2)'!$A$2:$A$1227,"mmm")=$A4),--('PTData (2)'!$C$2:$C$1227=E$1),'PTData (2)'!$G$2:$G$1227) -> 37155 | F4: 151664
A5: Apr | B5: =SUMPRODUCT(--(TEXT('PTData (2)'!$A$2:$A$1227,"mmm")=$A5),--('PTData (2)'!$C$2:$C$1227=B$1),'PTData (2)'!$G$2:$G$1227) -> 43693 | C5: =SUMPRODUCT(--(TEXT('PTData (2)'!$A$2:$A$1227,"mmm")=$A5),--('PTData (2)'!$C$2:$C$1227=C$1),'PTData (2)'!$G$2:$G$1227) -> 29520 | D5: =SUMPRODUCT(--(TEXT('PTData (2)'!$A$2:$A$1227,"mmm")=$A5),--('PTData (2)'!$C$2:$C$1227=D$1),'PTData (2)'!$G$2:$G$1227) -> 40505 | E5: =SUMPRODUCT(--(TEXT('PTData (2)'!$A$2:$A$1227,"mmm")=$A5),--('PTData (2)'!$C$2:$C$1227=E$1),'PTData (2)'!$G$2:$G$1227) -> 43495 | F5: 157213
A6: May | B6: =SUMPRODUCT(--(TEXT('PTData (2)'!$A$2:$A$1227,"mmm")=$A6),--('PTData (2)'!$C$2:$C$1227=B$1),'PTData (2)'!$G$2:$G$1227) -> 35750 | C6: =SUMPRODUCT(--(TEXT('PTData (2)'!$A$2:$A$1227,"mmm")=$A6),--('PTData (2)'!$C$2:$C$1227=C$1),'PTData (2)'!$G$2:$G$1227) -> 39905 | D6: =SUMPRODUCT(--(TEXT('PTData (2)'!$A$2:$A$1227,"mmm")=$A6),--('PTData (2)'!$C$2:$C$1227=D$1),'PTData (2)'!$G$2:$G$1227) -> 47170 | E6: =SUMPRODUCT(--(TEXT('PTData (2)'!$A$2:$A$1227,"mmm")=$A6),--('PTData (2)'!$C$2:$C$1227=E$1),'PTData (2)'!$G$2:$G$1227) -> 45793 | F6: 168618
A7: Jun | B7: =SUMPRODUCT(--(TEXT('PTData (2)'!$A$2:$A$1227,"mmm")=$A7),--('PTData (2)'!$C$2:$C$1227=B$1),'PTData (2)'!$G$2:$G$1227) -> 37706 | C7: =SUMPRODUCT(--(TEXT('PTData (2)'!$A$2:$A$1227,"mmm")=$A7),--('PTData (2)'!$C$2:$C$1227=C$1),'PTData (2)'!$G$2:$G$1227) -> 45037 | D7: =SUMPRODUCT(--(TEXT('PTData (2)'!$A$2:$A$1227,"mmm")=$A7),--('PTData (2)'!$C$2:$C$1227=D$1),'PTData (2)'!$G$2:$G$1227) -> 46967 | E7: =SUMPRODUCT(--(TEXT('PTData (2)'!$A$2:$A$1227,"mmm")=$A7),--('PTData (2)'!$C$2:$C$1227=E$1),'PTData (2)'!$G$2:$G$1227) -> 39288 | F7: 168998
A8: Grand Total | B8: =SUM(B2:B7) -> 227695 | C8: 239753 | D8: 257150 | E8: 236223 | F8: 960821

Sheet PT(2)
A3: Sum of Sales | C3: Region
A4: Years | B4: Date | C4: East | D4: MidWest | E4: South | F4: West | G4: Grand Total
A5: 2011 | B5: Jan | C5: 38438 | D5: 47995 | E5: 49374 | F5: 36487 | G5: 172294
B6: Feb | C6: 37044 | D6: 39134 | E6: 31851 | F6: 34005 | G6: 142034
B7: Mar | C7: 35064 | D7: 38162 | E7: 41283 | F7: 37155 | G7: 151664
B8: Apr | C8: 43693 | D8: 29520 | E8: 40505 | F8: 43495 | G8: 157213
B9: May | C9: 35750 | D9: 39905 | E9: 47170 | F9: 45793 | G9: 168618
B10: Jun | C10: 37706 | D10: 45037 | E10: 46967 | F10: 39288 | G10: 168998
A11: Grand Total | C11: 227695 | D11: 239753 | E11: 257150 | F11: 236223 | G11: 960821

Sheet PTWeekly
A3: Row Labels | B3: Sum of Sales
A4: <1/3/2011 | B4: 9738
A5: 1/3/2011 - 1/9/2011 | B5: 47038
A6: 1/10/2011 - 1/16/2011 | B6: 27746
A7: 1/17/2011 - 1/23/2011 | B7: 44708
A8: 1/24/2011 - 1/30/2011 | B8: 40309
A9: 1/31/2011 - 2/6/2011 | B9: 29439
A10: 2/7/2011 - 2/13/2011 | B10: 41456
A11: 2/14/2011 - 2/20/2011 | B11: 49411
A12: 2/21/2011 - 2/27/2011 | B12: 21933
A13: 2/28/2011 - 3/6/2011 | B13: 28995
A14: 3/7/2011 - 3/13/2011 | B14: 29032
A15: 3/14/2011 - 3/20/2011 | B15: 43109
A16: 3/21/2011 - 3/27/2011 | B16: 34375
A17: 3/28/2011 - 4/3/2011 | B17: 31240
A18: 4/4/2011 - 4/10/2011 | B18: 40355
A19: 4/11/2011 - 4/17/2011 | B19: 37415
A20: 4/18/2011 - 4/24/2011 | B20: 33197
A21: 4/25/2011 - 5/1/2011 | B21: 39252
A22: 5/2/2011 - 5/8/2011 | B22: 35666
A23: 5/9/2011 - 5/15/2011 | B23: 41177
A24: 5/16/2011 - 5/22/2011 | B24: 40267
A25: 5/23/2011 - 5/29/2011 | B25: 36467
A26: 5/30/2011 - 6/5/2011 | B26: 42780
A27: 6/6/2011 - 6/12/2011 | B27: 32585
A28: 6/13/2011 - 6/19/2011 | B28: 50626
A29: 6/20/2011 - 6/26/2011 | B29: 36210
A30: 6/27/2011 - 6/30/2011 | B30: 16295
A31: Grand Total | B31: 960821

Sheet PTData (2)
A1: Date | B1: Product | C1: Region | D1: SalesRep | E1: Customer | F1: Units | G1: Sales | H1: COGS
A2: 2011-01-23 | B2: Quad | C2: West | D2: Sioux | E2: DFR | F2: 23 | G2: 621 | H2: 333.5
A3: 2011-01-18 | B3: Sunshine | C3: West | D3: Pham | E3: TTT | F3: 65 | G3: 1235 | H3: 520
A4: 2011-06-19 | B4: Sunset | C4: West | D4: Pham | E4: FM | F4: 47 | G4: 987 | H4: 434.75
A5: 2011-06-13 | B5: Quad | C5: MidWest | D5: Smith | E5: PLOT | F5: 24 | G5: 648 | H5: 348
A6: 2011-04-06 | B6: Sunshine | C6: South | D6: Pham | E6: JAQ | F6: 58 | G6: 1102 | H6: 464
A7: 2011-03-02 | B7: Quad | C7: West | D7: Franks | E7: ET | F7: 22 | G7: 594 | H7: 319
A8: 2011-03-24 | B8: Quad | C8: East | D8: Smith | E8: JAQ | F8: 8 | G8: 216 | H8: 116
A9: 2011-02-27 | B9: Sunshine | C9: South | D9: Smith | E9: ET | F9: 29 | G9: 551 | H9: 232
A10: 2011-06-19 | B10: Carlota | C10: West | D10: Chin | E10: ZAT | F10: 55 | G10: 1265 | H10: 605
A11: 2011-05-17 | B11: Carlota | C11: MidWest | D11: Franks | E11: ZAT | F11: 39 | G11: 897 | H11: 429
A12: 2011-04-11 | B12: Sunshine | C12: MidWest | D12: Pham | E12: DFGH | F12: 49 | G12: 931 | H12: 392
A13: 2011-02-15 | B13: Carlota | C13: MidWest | D13: Pham | E13: KBTB | F13: 63 | G13: 1449 | H13: 693
A14: 2011-02-20 | B14: Quad | C14: South | D14: Smith | E14: ITTW | F14: 19 | G14: 513 | H14: 275.5
A15: 2011-01-09 | B15: Quad | C15: MidWest | D15: Chin | E15: LOP | F15: 40 | G15: 1080 | H15: 580
A16: 2011-04-04 | B16: Quad | C16: East | D16: Smith | E16: YTR | F16: 60 | G16: 1620 | H16: 870
A17: 2011-04-17 | B17: Sunset | C17: South | D17: Chin | E17: WT | F17: 24 | G17: 504 | H17: 222
A18: 2011-01-22 | B18: Bellen | C18: West | D18: Pham | E18: BBT | F18: 10 | G18: 220 | H18: 100
A19: 2011-02-09 | B19: Sunshine | C19: East | D19: Smith | E19: GRR | F19: 26 | G19: 494 | H19: 208
A20: 2011-05-15 | B20: Sunshine | C20: West | D20: Pham | E20: WFMI | F20: 65 | G20: 1235 | H20: 520
A21: 2011-05-19 | B21: Carlota | C21: MidWest | D21: Sioux | E21: TTT | F21: 43 | G21: 989 | H21: 473
A22: 2011-05-07 | B22: Sunshine | C22: South | D22: Gault | E22: AA | F22: 20 | G22: 380 | H22: 160
A23: 2011-04-20 | B23: Bellen | C23: West | D23: Gault | E23: WFMI | F23: 39 | G23: 858 | H23: 390
A24: 2011-04-09 | B24: Sunset | C24: MidWest | D24: Gault | E24: ET | F24: 33 | G24: 693 | H24: 305.25
A25: 2011-05-05 | B25: Sunshine | C25: East | D25: Chin | E25: HII | F25: 6 | G25: 114 | H25: 48
A26: 2011-05-05 | B26: Carlota | C26: East | D26: Chin | E26: KPSA | F26: 33 | G26: 759 | H26: 363
A27: 2011-03-14 | B27: Bellen | C27: MidWest | D27: Pham | E27: TTT | F27: 34 | G27: 748 | H27: 340
A28: 2011-01-11 | B28: Bellen | C28: MidWest | D28: Smith | E28: KPSA | F28: 23 | G28: 506 | H28: 230
A29: 2011-05-13 | B29: Carlota | C29: MidWest | D29: Gault | E29: QT | F29: 6 | G29: 138 | H29: 66
A30: 2011-04-23 | B30: Sunset | C30: South | D30: Smith | E30: FM | F30: 15 | G30: 315 | H30: 138.75
A31: 2011-03-22 | B31: Carlota | C31: South | D31: Pham | E31: ITTW | F31: 27 | G31: 621 | H31: 297
A32: 2011-01-18 | B32: Sunset | C32: South | D32: Pham | E32: DFGH | F32: 36 | G32: 756 | H32: 333
A33: 2011-06-24 | B33: Bellen | C33: MidWest | D33: Gault | E33: SFWK | F33: 64 | G33: 1408 | H33: 640
A34: 2011-02-07 | B34: Sunset | C34: MidWest | D34: Gault | E34: JAQ | F34: 44 | G34: 924 | H34: 407
A35: 2011-03-19 | B35: Carlota | C35: South | D35: Pham | E35: TTT | F35: 54 | G35: 1242 | H35: 594
A36: 2011-06-03 | B36: Quad | C36: MidWest | D36: Smith | E36: HII | F36: 21 | G36: 567 | H36: 304.5
A37: 2011-03-26 | B37: Sunset | C37: East | D37: Franks | E37: DFGH | F37: 40 | G37: 840 | H37: 370
A38: 2011-04-26 | B38: Carlota | C38: South | D38: Smith | E38: AST | F38: 22 | G38: 506 | H38: 242
A39: 2011-04-26 | B39: Sunset | C39: MidWest | D39: Gault | E39: MNGD | F39: 51 | G39: 1071 | H39: 471.75
A40: 2011-02-04 | B40: Quad | C40: West | D40: Sioux | E40: DFGH | F40: 25 | G40: 675 | H40: 362.5
A41: 2011-06-05 | B41: Sunshine | C41: East | D41: Gault | E41: HII | F41: 63 | G41: 1197 | H41: 504
A42: 2011-01-19 | B42: Bellen | C42: East | D42: Pham | E42: ITTW | F42: 40 | G42: 880 | H42: 400
A43: 2011-05-20 | B43: Bellen | C43: West | D43: Smith | E43: ZAT | F43: 47 | G43: 1034 | H43: 470
A44: 2011-06-28 | B44: Sunset | C44: East | D44: Smith | E44: KBTB | F44: 12 | G44: 252 | H44: 111
A45: 2011-06-02 | B45: Sunshine | C45: MidWest | D45: Chin | E45: WT | F45: 24 | G45: 456 | H45: 192
A46: 2011-01-01 | B46: Quad | C46: West | D46: Sioux | E46: EPP | F46: 33 | G46: 891 | H46: 478.5
A47: 2011-02-19 | B47: Bellen | C47: South | D47: Gault | E47: EPP | F47: 39 | G47: 858 | H47: 390
A48: 2011-01-03 | B48: Sunshine | C48: MidWest | D48: Smith | E48: LOP | F48: 51 | G48: 969 | H48: 408
A49: 2011-01-22 | B49: Carlota | C49: MidWest | D49: Franks | E49: DFGH | F49: 29 | G49: 667 | H49: 319
A50: 2011-06-25 | B50: Bellen | C50: South | D50: Franks | E50: WFMI | F50: 33 | G50: 726 | H50: 330
A51: 2011-06-05 | B51: Carlota | C51: South | D51: Smith | E51: SFWK | F51: 30 | G51: 690 | H51: 330
A52: 2011-01-28 | B52: Sunshine | C52: South | D52: Gault | E52: HII | F52: 59 | G52: 1121 | H52: 472
A53: 2011-02-16 | B53: Quad | C53: East | D53: Franks | E53: GRR | F53: 26 | G53: 702 | H53: 377
A54: 2011-05-03 | B54: Quad | C54: West | D54: Pham | E54: ITTW | F54: 11 | G54: 297 | H54: 159.5
A55: 2011-05-19 | B55: Sunshine | C55: West | D55: Gault | E55: DDH | F55: 13 | G55: 247 | H55: 104
A56: 2011-05-08 | B56: Sunset | C56: MidWest | D56: Franks | E56: JAQ | F56: 58 | G56: 1218 | H56: 536.5
A57: 2011-05-07 | B57: Bellen | C57: South | D57: Franks | E57: WSD | F57: 25 | G57: 550 | H57: 250
A58: 2011-06-26 | B58: Quad | C58: West | D58: Chin | E58: DFGH | F58: 55 | G58: 1485 | H58: 797.5
A59: 2011-04-25 | B59: Sunshine | C59: South | D59: Pham | E59: KBTB | F59: 8 | G59: 152 | H59: 64
A60: 2011-03-02 | B60: Quad | C60: East | D60: Pham | E60: DDH | F60: 8 | G60: 216 | H60: 116
A61: 2011-04-11 | B61: Bellen | C61: South | D61: Chin | E61: ITTW | F61: 13 | G61: 286 | H61: 130
A62: 2011-03-20 | B62: Sunset | C62: West | D62: Pham | E62: GRR | F62: 31 | G62: 651 | H62: 286.75
A63: 2011-02-02 | B63: Sunshine | C63: South | D63: Sioux | E63: WSD | F63: 60 | G63: 1140 | H63: 480
A64: 2011-06-26 | B64: Bellen | C64: MidWest | D64: Smith | E64: WT | F64: 9 | G64: 198 | H64: 90
A65: 2011-01-27 | B65: Bellen | C65: West | D65: Gault | E65: AST | F65: 12 | G65: 264 | H65: 120
A66: 2011-03-12 | B66: Sunset | C66: East | D66: Pham | E66: AA | F66: 65 | G66: 1365 | H66: 601.25
A67: 2011-02-18 | B67: Sunset | C67: South | D67: Pham | E67: AA | F67: 50 | G67: 1050 | H67: 462.5
A68: 2011-05-29 | B68: Sunset | C68: East | D68: Sioux | E68: ITTW | F68: 57 | G68: 1197 | H68: 527.25
A69: 2011-06-05 | B69: Bellen | C69: West | D69: Smith | E69: YTR | F69: 65 | G69: 1430 | H69: 650
A70: 2011-06-18 | B70: Bellen | C70: South | D70: Gault | E70: TTT | F70: 40 | G70: 880 | H70: 400
A71: 2011-04-01 | B71: Sunshine | C71: South | D71: Gault | E71: HII | F71: 62 | G71: 1178 | H71: 496
A72: 2011-04-18 | B72: Sunset | C72: South | D72: Sioux | E72: FRED | F72: 47 | G72: 987 | H72: 434.75
A73: 2011-03-12 | B73: Quad | C73: East | D73: Chin | E73: TTT | F73: 18 | G73: 486 | H73: 261
A74: 2011-04-30 | B74: Bellen | C74: West | D74: Pham | E74: JAQ | F74: 63 | G74: 1386 | H74: 630
A75: 2011-04-02 | B75: Sunshine | C75: West | D75: Smith | E75: PCC | F75: 42 | G75: 798 | H75: 336
A76: 2011-06-25 | B76: Bellen | C76: East | D76: Franks | E76: ITTW | F76: 12 | G76: 264 | H76: 120
A77: 2011-04-08 | B77: Sunshine | C77: South | D77: Chin | E77: YTR | F77: 19 | G77: 361 | H77: 152
A78: 2011-05-07 | B78: Sunset | C78: South | D78: Smith | E78: ITTW | F78: 14 | G78: 294 | H78: 129.5
A79: 2011-01-25 | B79: Carlota | C79: West | D79: Chin | E79: ITTW | F79: 7 | G79: 161 | H79: 77
A80: 2011-02-16 | B80: Sunshine | C80: West | D80: Pham | E80: EPP | F80: 51 | G80: 969 | H80: 408
A81: 2011-02-22 | B81: Carlota | C81: MidWest | D81: Franks | E81: KPSA | F81: 25 | G81: 575 | H81: 275
A82: 2011-03-01 | B82: Bellen | C82: East | D82: Franks | E82: DFGH | F82: 49 | G82: 1078 | H82: 490
A83: 2011-04-29 | B83: Sunset | C83: West | D83: Gault | E83: FRED | F83: 36 | G83: 756 | H83: 333
A84: 2011-05-28 | B84: Carlota | C84: MidWest | D84: Franks | E84: KBTB | F84: 10 | G84: 230 | H84: 110
A85: 2011-04-23 | B85: Sunset | C85: East | D85: Chin | E85: TRU | F85: 6 | G85: 126 | H85: 55.5
A86: 2011-04-16 | B86: Carlota | C86: MidWest | D86: Sioux | E86: HII | F86: 55 | G86: 1265 | H86: 605
A87: 2011-01-25 | B87: Quad | C87: East | D87: Pham | E87: DFR | F87: 31 | G87: 837 | H87: 449.5
A88: 2011-05-18 | B88: Bellen | C88: South | D88: Pham | E88: KBTB | F88: 43 | G88: 946 | H88: 430
A89: 2011-04-19 | B89: Sunshine | C89: West | D89: Pham | E89: KBTB | F89: 17 | G89: 323 | H89: 136
A90: 2011-01-24 | B90: Carlota | C90: South | D90: Franks | E90: EPP | F90: 38 | G90: 874 | H90: 418
A91: 2011-05-31 | B91: Sunshine | C91: East | D91: Sioux | E91: WT | F91: 42 | G91: 798 | H91: 336
A92: 2011-02-04 | B92: Sunset | C92: MidWest | D92: Smith | E92: LOP | F92: 6 | G92: 126 | H92: 55.5
A93: 2011-01-08 | B93: Quad | C93: East | D93: Smith | E93: GRR | F93: 23 | G93: 621 | H93: 333.5
A94: 2011-02-17 | B94: Bellen | C94: West | D94: Smith | E94: WT | F94: 41 | G94: 902 | H94: 410
A95: 2011-05-06 | B95: Carlota | C95: East | D95: Pham | E95: DFR | F95: 41 | G95: 943 | H95: 451
A96: 2011-03-05 | B96: Quad | C96: South | D96: Franks | E96: QT | F96: 14 | G96: 378 | H96: 203
A97: 2011-01-29 | B97: Carlota | C97: West | D97: Smith | E97: ITW | F97: 40 | G97: 920 | H97: 440
A98: 2011-03-31 | B98: Sunshine | C98: East | D98: Gault | E98: KBTB | F98: 36 | G98: 684 | H98: 288
A99: 2011-01-04 | B99: Carlota | C99: South | D99: Chin | E99: YTR | F99: 43 | G99: 989 | H99: 473
A100: 2011-03-24 | B100: Carlota | C100: MidWest | D100: Chin | E100: TRU | F100: 18 | G100: 414 | H100: 198
A101: 2011-02-19 | B101: Sunset | C101: South | D101: Pham | E101: QT | F101: 60 | G101: 1260 | H101: 555
A102: 2011-02-01 | B102: Quad | C102: West | D102: Smith | E102: HHH | F102: 23 | G102: 621 | H102: 333.5
A103: 2011-06-12 | B103: Bellen | C103: West | D103: Chin | E103: GRR | F103: 40 | G103: 880 | H103: 400
A104: 2011-05-10 | B104: Quad | C104: West | D104: Franks | E104: HHH | F104: 23 | G104: 621 | H104: 333.5
A105: 2011-06-08 | B105: Sunshine | C105: West | D105: Chin | E105: KPSA | F105: 38 | G105: 722 | H105: 304
A106: 2011-05-07 | B106: Quad | C106: MidWest | D106: Pham | E106: HHH | F106: 48 | G106: 1296 | H106: 696
A107: 2011-04-26 | B107: Carlota | C107: East | D107: Sioux | E107: YTR | F107: 36 | G107: 828 | H107: 396
A108: 2011-05-26 | B108: Sunshine | C108: West | D108: Franks | E108: DFR | F108: 26 | G108: 494 | H108: 208
A109: 2011-05-09 | B109: Bellen | C109: West | D109: Chin | E109: TRU | F109: 19 | G109: 418 | H109: 190
A110: 2011-04-03 | B110: Quad | C110: MidWest | D110: Franks | E110: FM | F110: 39 | G110: 1053 | H110: 565.5
A111: 2011-03-22 | B111: Sunshine | C111: South | D111: Sioux | E111: TRU | F111: 28 | G111: 532 | H111: 224
A112: 2011-05-03 | B112: Carlota | C112: South | D112: Smith | E112: ITTW | F112: 17 | G112: 391 | H112: 187
A113: 2011-01-23 | B113: Sunshine | C113: East | D113: Chin | E113: WSD | F113: 39 | G113: 741 | H113: 312
A114: 2011-01-18 | B114: Sunshine | C114: MidWest | D114: Gault | E114: ITW | F114: 58 | G114: 1102 | H114: 464
A115: 2011-06-17 | B115: Bellen | C115: South | D115: Gault | E115: TTT | F115: 38 | G115: 836 | H115: 380
A116: 2011-01-17 | B116: Carlota | C116: South | D116: Franks | E116: PLOT | F116: 34 | G116: 782 | H116: 374
A117: 2011-05-23 | B117: Bellen | C117: East | D117: Gault | E117: ET | F117: 59 | G117: 1298 | H117: 590
A118: 2011-01-20 | B118: Quad | C118: South | D118: Gault | E118: TTT | F118: 28 | G118: 756 | H118: 406
A119: 2011-04-07 | B119: Sunshine | C119: South | D119: Sioux | E119: QT | F119: 62 | G119: 1178 | H119: 496
A120: 2011-05-25 | B120: Quad | C120: West | D120: Gault | E120: YTR | F120: 65 | G120: 1755 | H120: 942.5
A121: 2011-05-14 | B121: Sunset | C121: West | D121: Pham | E121: BBT | F121: 6 | G121: 126 | H121: 55.5
A122: 2011-06-07 | B122: Bellen | C122: MidWest | D122: Smith | E122: BBT | F122: 34 | G122: 748 | H122: 340
A123: 2011-05-13 | B123: Carlota | C123: West | D123: Franks | E123: DFR | F123: 60 | G123: 1380 | H123: 660
A124: 2011-05-01 | B124: Sunshine | C124: West | D124: Pham | E124: PSA | F124: 50 | G124: 950 | H124: 400
A125: 2011-01-12 | B125: Quad | C125: MidWest | D125: Smith | E125: MBG | F125: 40 | G125: 1080 | H125: 580
A126: 2011-05-13 | B126: Sunset | C126: West | D126: Chin | E126: TTT | F126: 24 | G126: 504 | H126: 222
A127: 2011-01-26 | B127: Bellen | C127: MidWest | D127: Sioux | E127: TTT | F127: 65 | G127: 1430 | H127: 650
A128: 2011-02-06 | B128: Quad | C128: East | D128: Franks | E128: FM | F128: 52 | G128: 1404 | H128: 754
A129: 2011-06-06 | B129: Sunshine | C129: West | D129: Gault | E129: WT | F129: 60 | G129: 1140 | H129: 480
A130: 2011-04-12 | B130: Carlota | C130: East | D130: Smith | E130: PCC | F130: 46 | G130: 1058 | H130: 506
A131: 2011-06-02 | B131: Carlota | C131: East | D131: Sioux | E131: SFWK | F131: 41 | G131: 943 | H131: 451
A132: 2011-01-22 | B132: Sunshine | C132: South | D132: Franks | E132: WT | F132: 29 | G132: 551 | H132: 232
A133: 2011-03-14 | B133: Sunshine | C133: East | D133: Smith | E133: HHH | F133: 65 | G133: 1235 | H133: 520
A134: 2011-05-28 | B134: Carlota | C134: East | D134: Pham | E134: HII | F134: 37 | G134: 851 | H134: 407
A135: 2011-03-24 | B135: Sunshine | C135: MidWest | D135: Smith | E135: WT | F135: 14 | G135: 266 | H135: 112
A136: 2011-02-01 | B136: Bellen | C136: East | D136: Pham | E136: WFMI | F136: 18 | G136: 396 | H136: 180
A137: 2011-04-14 | B137: Carlota | C137: West | D137: Smith | E137: AA | F137: 44 | G137: 1012 | H137: 484
A138: 2011-03-27 | B138: Bellen | C138: West | D138: Sioux | E138: FRED | F138: 62 | G138: 1364 | H138: 620
A139: 2011-01-16 | B139: Sunshine | C139: MidWest | D139: Gault | E139: WSD | F139: 21 | G139: 399 | H139: 168
A140: 2011-01-23 | B140: Bellen | C140: South | D140: Smith | E140: JAQ | F140: 56 | G140: 1232 | H140: 560
A141: 2011-05-02 | B141: Bellen | C141: MidWest | D141: Gault | E141: BBT | F141: 64 | G141: 1408 | H141: 640
A142: 2011-02-20 | B142: Sunshine | C142: South | D142: Pham | E142: T | F142: 22 | G142: 418 | H142: 176
A143: 2011-05-22 | B143: Sunset | C143: MidWest | D143: Franks | E143: AST | F143: 21 | G143: 441 | H143: 194.25
A144: 2011-02-08 | B144: Sunset | C144: East | D144: Gault | E144: DFGH | F144: 22 | G144: 462 | H144: 203.5
A145: 2011-04-18 | B145: Sunshine | C145: East | D145: Pham | E145: WSD | F145: 40 | G145: 760 | H145: 320
A146: 2011-01-26 | B146: Sunshine | C146: South | D146: Pham | E146: TTT | F146: 24 | G146: 456 | H146: 192
A147: 2011-01-07 | B147: Carlota | C147: MidWest | D147: Sioux | E147: FM | F147: 14 | G147: 322 | H147: 154
A148: 2011-02-19 | B148: Sunshine | C148: West | D148: Pham | E148: FRED | F148: 61 | G148: 1159 | H148: 488
A149: 2011-05-22 | B149: Sunshine | C149: East | D149: Franks | E149: BBT | F149: 12 | G149: 228 | H149: 96
A150: 2011-01-16 | B150: Sunset | C150: East | D150: Pham | E150: BBT | F150: 34 | G150: 714 | H150: 314.5
A151: 2011-02-09 | B151: Quad | C151: MidWest | D151: Franks | E151: DFR | F151: 8 | G151: 216 | H151: 116
A152: 2011-01-15 | B152: Sunshine | C152: MidWest | D152: Franks | E152: AA | F152: 44 | G152: 836 | H152: 352
A153: 2011-03-31 | B153: Sunset | C153: MidWest | D153: Smith | E153: DDH | F153: 25 | G153: 525 | H153: 231.25
A154: 2011-01-25 | B154: Quad | C154: West | D154: Pham | E154: WSD | F154: 56 | G154: 1512 | H154: 812
A155: 2011-03-10 | B155: Carlota | C155: West | D155: Pham | E155: LOP | F155: 13 | G155: 299 | H155: 143
A156: 2011-03-23 | B156: Quad | C156: South | D156: Gault | E156: T | F156: 6 | G156: 162 | H156: 87
A157: 2011-04-08 | B157: Quad | C157: East | D157: Pham | E157: KPSA | F157: 23 | G157: 621 | H157: 333.5
A158: 2011-01-17 | B158: Carlota | C158: West | D158: Smith | E158: TTT | F158: 21 | G158: 483 | H158: 231
A159: 2011-04-06 | B159: Sunshine | C159: East | D159: Chin | E159: ET | F159: 50 | G159: 950 | H159: 400
A160: 2011-06-13 | B160: Carlota | C160: South | D160: Sioux | E160: EPP | F160: 54 | G160: 1242 | H160: 594
A161: 2011-03-16 | B161: Bellen | C161: West | D161: Chin | E161: PCC | F161: 8 | G161: 176 | H161: 80
A162: 2011-06-11 | B162: Sunshine | C162: South | D162: Gault | E162: FRED | F162: 53 | G162: 1007 | H162: 424
A163: 2011-06-03 | B163: Sunset | C163: East | D163: Pham | E163: ET | F163: 55 | G163: 1155 | H163: 508.75
A164: 2011-06-01 | B164: Carlota | C164: West | D164: Chin | E164: ITW | F164: 64 | G164: 1472 | H164: 704
A165: 2011-03-18 | B165: Sunset | C165: East | D165: Sioux | E165: TRU | F165: 53 | G165: 1113 | H165: 490.25
A166: 2011-03-10 | B166: Quad | C166: West | D166: Franks | E166: YTR | F166: 58 | G166: 1566 | H166: 841
A167: 2011-04-01 | B167: Sunset | C167: West | D167: Smith | E167: MNGD | F167: 46 | G167: 966 | H167: 425.5
A168: 2011-04-11 | B168: Bellen | C168: MidWest | D168: Pham | E168: ITW | F168: 19 | G168: 418 | H168: 190
A169: 2011-02-18 | B169: Bellen | C169: South | D169: Pham | E169: TTT | F169: 47 | G169: 1034 | H169: 470
A170: 2011-05-11 | B170: Sunset | C170: West | D170: Smith | E170: KBTB | F170: 13 | G170: 273 | H170: 120.25
A171: 2011-02-06 | B171: Sunshine | C171: West | D171: Pham | E171: PCC | F171: 10 | G171: 190 | H171: 80
A172: 2011-06-18 | B172: Carlota | C172: MidWest | D172: Franks | E172: ET | F172: 65 | G172: 1495 | H172: 715
A173: 2011-06-20 | B173: Sunshine | C173: MidWest | D173: Chin | E173: T | F173: 37 | G173: 703 | H173: 296
A174: 2011-03-30 | B174: Bellen | C174: West | D174: Gault | E174: ET | F174: 45 | G174: 990 | H174: 450
A175: 2011-06-19 | B175: Bellen | C175: South | D175: Franks | E175: AA | F175: 20 | G175: 440 | H175: 200
A176: 2011-02-09 | B176: Quad | C176: South | D176: Franks | E176: AA | F176: 30 | G176: 810 | H176: 435
A177: 2011-02-20 | B177: Bellen | C177: East | D177: Franks | E177: DDH | F177: 58 | G177: 1276 | H177: 580
A178: 2011-01-18 | B178: Carlota | C178: West | D178: Chin | E178: TTT | F178: 16 | G178: 368 | H178: 176
A179: 2011-04-03 | B179: Bellen | C179: MidWest | D179: Gault | E179: MBG | F179: 18 | G179: 396 | H179: 180
A180: 2011-03-17 | B180: Carlota | C180: South | D180: Smith | E180: TRU | F180: 42 | G180: 966 | H180: 462
A181: 2011-06-23 | B181: Sunset | C181: MidWest | D181: Smith | E181: GRR | F181: 47 | G181: 987 | H181: 434.75
A182: 2011-03-17 | B182: Bellen | C182: South | D182: Chin | E182: SFWK | F182: 29 | G182: 638 | H182: 290
A183: 2011-06-24 | B183: Carlota | C183: MidWest | D183: Gault | E183: ITW | F183: 13 | G183: 299 | H183: 143
A184: 2011-01-15 | B184: Sunshine | C184: West | D184: Franks | E184: FM | F184: 21 | G184: 399 | H184: 168
A185: 2011-01-09 | B185: Carlota | C185: MidWest | D185: Smith | E185: DFR | F185: 41 | G185: 943 | H185: 451
